Workbook

Sheet Instructions

Sheet Salary Range
A1: CLASSIFICATIONS **
A2: Class Codes | B2: SELECT TITLE | C2: Rates* | D2: Source | F2: LINK to Bureau of Labor Statistics:
A3: CONSTRUCTION ENGINEERING | F3: https://beta.bls.gov/dataQuery/find?fq=survey:%5Boe%5D&s=popularity:D
A4: CM | B4: Construction Manager | C4: 0
A5: ADMINISTRATION
A6: CTRMGR | B6: Contract Manager | C6: 0
A7: ADMIN | B7: Administrative Assistant | C7: 0
A8: LABOR | B8: Labor Compliance Specialist | C8: 0
A9: OE | B9: Office Engineer | C9: 0
A10: SCHEDULING
A11: SrSCHD | B11: Sr. Scheduling Specialist | C11: 0
A12: SpSCHD | B12: Scheduling Specialist | C12: 0
A13: ROADWAY PROJECT
A14: SrRdDES | B14: Sr. Design Engineer (Roadway) | C14: 0
A15: RdDES | B15: Design Engineer (Roadway) | C15: 0
A16: JrRdDES | B16: Jr. Design Engineer (Roadway) | C16: 0
A17: BRIDGE PROJECT
A18: SrBDES | B18: Sr. Engineer (Structure & Bridge) | C18: 0
A19: BDES | B19: Engineer (Structure & Bridge) | C19: 0
A20: JrBDES | B20: Jr. Engineer (Structure & Bridge) | C20: 0
A21: GEOTECHNICAL
A22: SrGEO | B22: Sr. Geotech Engineer | C22: 0
A23: GEO | B23: Geothech Engineer | C23: 0
A24: JrGEO | B24: Junior Geotech Engineer | C24: 0
A25: SrGEOL | B25: Sr. Geologist | C25: 0
A26: MATERIAL TESTING
A27: SrME | B27: Sr. Material Engineer | C27: 0
A28: ME | B28: Materials Engineer | C28: 0
A29: JrME | B29: Jr. Materials Engineer | C29: 0
A30: SURVEY
A31: LS | B31: Licensed Surveyor | C31: 0
A32: SrSURV | B32: Sr. Survey Technician | C32: 0
A33: SUVCHF | B33: Survey Crew Chief | C33: 0
A34: INST | B34: Instrument person | C34: 0
A35: ROD | B35: Rod Person | C35: 0
A36: RSCHR | B36: Researcher | C36: 0
A37: CAD/DRAFTING
A38: SrDRAFT | B38: Sr. Draftsman | C38: 0
A39: CADD | B39: CADD Tech | C39: 0
A40: ENVIRONMENTAL
A41: SrENV | B41: Senior Env Specialist | C41: 0
A42: NSENV | B42: Env Specialist (Noise) | C42: 0
A43: AQENV | B43: Env Specialist (Air Quality) | C43: 0
A44: BIOENV | B44: Env Specialist (Biological Studies) | C44: 0
A45: EISENV | B45: Env Specialist (EIS) | C45: 0
A46: WQENV | B46: Env Specialist (Water Quality) | C46: 0
A47: REGENV | B47: Env Specialist (Regulatory) | C47: 0
A48: HAZENV | B48: Env Specialist (Haz Waste) | C48: 0
A49: COMP | B49: Lead Compliance | C49: 0
A50: SWPP | B50: SWPPP Planning | C50: 0
A51: LANDSCAPE
A52: SrARCH | B52: Sr. Landscape Architect | C52: 0
A53: ARCH | B53: Landscape Architect | C53: 0
A54: INSPL | B54: Landscape Inspector | C54: 0
A55: TRAFFIC
A56: SrTRAFC | B56: Sr. Engineer Traffic | C56: 0
A57: TRFC | B57: Engineer (Traffic) | C57: 0
A58: JrTRAFC | B58: Jr. Engineer (Traffic) | C58: 0
A59: HYDRAULICS
A60: SrHYD | B60: Sr. Engineers (Hydraulics) | C60: 0
A61: HYD | B61: Engineer (Hydraulics) | C61: 0
A62: JrHYD | B62: Jr. Engineer (Hydraulics) | C62: 0
A63: ELECTRICAL
A64: SrELEC | B64: Sr. Electrical Engineer | C64: 0
A65: ELEC | B65: Electrical Engineer | C65: 0
A66: JrELEC | B66: Jr. Electrical Engineer | C66: 0
A67: ELECTECH | B67: Electrician | C67: 0
A68: ELECTINS | B68: Electrical Inspector | C68: 0
A69: USER DEFINED**
A70: USER1 | B70: USER DEFINED 1 | C70: 0
A71: USER2 | B71: USER DEFINED 2 | C71: 0
A72: USER 3 | B72: USER DEFINED 3 | C72: 0
A73: USER 4 | B73: USER DEFINED 4 | C73: 0
A74: USER 5 | B74: USER DEFINED 5 | C74: 0
A75: USER 6 | B75: USER DEFINED 6 | C75: 0
A76: USER 7 | B76: USER DEFINED 7 | C76: 0
A77: USER 8 | B77: USER DEFINED 8 | C77: 0
A78: USER 9 | B78: USER DEFINED 9 | C78: 0
A79: USER 10 | B79: USER DEFINED 10 | C79: 0
A80: USER 11 | B80: USER DEFINED 11 | C80: 0
A81: USER 12 | B81: USER DEFINED 12 | C81: 0
A82: USER 13 | B82: USER DEFINED 13 | C82: 0
A83: USER 14 | B83: USER DEFINED 14 | C83: 0
A84: USER 15 | B84: USER DEFINED 15 | C84: 0
A85: USER 16 | B85: USER DEFINED 16 | C85: 0
A86: USER 17 | B86: USER DEFINED 17 | C86: 0
A87: USER 18 | B87: USER DEFINED 18 | C87: 0
A88: USER 19 | B88: USER DEFINED 19 | C88: 0
A89: USER 20 | B89: USER DEFINED 20 | C89: 0
A90: USER 21 | B90: USER DEFINED 21 | C90: 0
A91: USER 22 | B91: USER DEFINED 22 | C91: 0
A92: USER 23 | B92: USER DEFINED 23 | C92: 0
A93: USER 24 | B93: USER DEFINED 24 | C93: 0
A94: USER 25 | B94: USER DEFINED 25 | C94: 0
A95: USER 26 | B95: USER DEFINED 26 | C95: 0
A96: USER 27 | B96: USER DEFINED 27 | C96: 0
A97: USER 28 | B97: USER DEFINED 28 | C97: 0
A98: USER 29 | B98: USER DEFINED 29 | C98: 0
A99: USER 30 | B99: USER DEFINED 30 | C99: 0
A100: USER 31 | B100: USER DEFINED 31 | C100: 0
A101: USER 32 | B101: USER DEFINED 32 | C101: 0

Sheet LPA Estimate of Hours
B1: INDEPENDENT COST ESTIMATE (ICE) - Part 1
A2: Local Agency :
A3: Project Name :
A4: Project Location :
A5: Control No. :
A6: Local Agency Responsible Charge :
A7: Phone :
A8: E-mail :
A9: Date :
A11: Indirect Cost Rate (ICR) * | B11: 0
A12: Fixed Fee** | B12: 0
A13: Escalation Rate *** | B13: 0
A15: Work Categories | B15: Title
B16: SELECT TITLE | C16: SELECT TITLE | D16: SELECT TITLE | E16: SELECT TITLE | F16: SELECT TITLE | G16: SELECT TITLE | H16: SELECT TITLE | I16: SELECT TITLE | J16: SELECT TITLE | K16: SELECT TITLE | L16: SELECT TITLE | M16: SELECT TITLE | N16: SELECT TITLE | O16: SELECT TITLE | P16: SELECT TITLE | Q16: SELECT TITLE | R16: SELECT TITLE | S16: SELECT TITLE | T16: SELECT TITLE | U16: SELECT TITLE | V16: SELECT TITLE | W16: SELECT TITLE | X16: SELECT TITLE | Y16: SELECT TITLE | Z16: SELECT TITLE | AA16: SELECT TITLE | AB16: SELECT TITLE | AC16: SELECT TITLE | AD16: SELECT TITLE | AE16: SELECT TITLE | AF16: SELECT TITLE | AG16: SELECT TITLE | AH16: SELECT TITLE | AI16: SELECT TITLE | AJ16: SELECT TITLE | AK16: SELECT TITLE | AL16: SELECT TITLE | AM16: SELECT TITLE | AN16: SELECT TITLE | AO16: SELECT TITLE | AP16: SELECT TITLE | AQ16: SELECT TITLE | AR16: SELECT TITLE | AS16: SELECT TITLE | AT16: SELECT TITLE | AU16: SELECT TITLE | AV16: SELECT TITLE | AW16: SELECT TITLE | AX16: SELECT TITLE | AY16: SELECT TITLE
B17: =IFERROR(INDEX(Codes,MATCH('LPA Estimate of Hours'!B16,Title,0))," ") ->  | C17: =IFERROR(INDEX(Codes,MATCH('LPA Estimate of Hours'!C16,Title,0))," ") ->  | D17: =IFERROR(INDEX(Codes,MATCH('LPA Estimate of Hours'!D16,Title,0))," ") ->  | E17: =IFERROR(INDEX(Codes,MATCH('LPA Estimate of Hours'!E16,Title,0))," ") ->  | F17: =IFERROR(INDEX(Codes,MATCH('LPA Estimate of Hours'!F16,Title,0))," ") ->  | G17: =IFERROR(INDEX(Codes,MATCH('LPA Estimate of Hours'!G16,Title,0))," ") ->  | H17: =IFERROR(INDEX(Codes,MATCH('LPA Estimate of Hours'!H16,Title,0))," ") ->  | I17: =IFERROR(INDEX(Codes,MATCH('LPA Estimate of Hours'!I16,Title,0))," ") ->  | J17: =IFERROR(INDEX(Codes,MATCH('LPA Estimate of Hours'!J16,Title,0))," ") ->  | K17: =IFERROR(INDEX(Codes,MATCH('LPA Estimate of Hours'!K16,Title,0))," ") ->  | L17: =IFERROR(INDEX(Codes,MATCH('LPA Estimate of Hours'!L16,Title,0))," ") ->  | M17: =IFERROR(INDEX(Codes,MATCH('LPA Estimate of Hours'!M16,Title,0))," ") ->  | N17: =IFERROR(INDEX(Codes,MATCH('LPA Estimate of Hours'!N16,Title,0))," ") ->  | O17: =IFERROR(INDEX(Codes,MATCH('LPA Estimate of Hours'!O16,Title,0))," ") ->  | P17: =IFERROR(INDEX(Codes,MATCH('LPA Estimate of Hours'!P16,Title,0))," ") ->  | Q17: =IFERROR(INDEX(Codes,MATCH('LPA Estimate of Hours'!Q16,Title,0))," ") ->  | R17: =IFERROR(INDEX(Codes,MATCH('LPA Estimate of Hours'!R16,Title,0))," ") ->  | S17: =IFERROR(INDEX(Codes,MATCH('LPA Estimate of Hours'!S16,Title,0))," ") ->  | T17: =IFERROR(INDEX(Codes,MATCH('LPA Estimate of Hours'!T16,Title,0))," ") ->  | U17: =IFERROR(INDEX(Codes,MATCH('LPA Estimate of Hours'!U16,Title,0))," ") ->  | V17: =IFERROR(INDEX(Codes,MATCH('LPA Estimate of Hours'!V16,Title,0))," ") ->  | W17: =IFERROR(INDEX(Codes,MATCH('LPA Estimate of Hours'!W16,Title,0))," ") ->  | X17: =IFERROR(INDEX(Codes,MATCH('LPA Estimate of Hours'!X16,Title,0))," ") ->  | Y17: =IFERROR(INDEX(Codes,MATCH('LPA Estimate of Hours'!Y16,Title,0))," ") ->  | Z17: =IFERROR(INDEX(Codes,MATCH('LPA Estimate of Hours'!Z16,Title,0))," ") ->  | AA17: =IFERROR(INDEX(Codes,MATCH('LPA Estimate of Hours'!AA16,Title,0))," ") ->  | AB17: =IFERROR(INDEX(Codes,MATCH('LPA Estimate of Hours'!AB16,Title,0))," ") ->  | AC17: =IFERROR(INDEX(Codes,MATCH('LPA Estimate of Hours'!AC16,Title,0))," ") ->  | AD17: =IFERROR(INDEX(Codes,MATCH('LPA Estimate of Hours'!AD16,Title,0))," ") ->  | AE17: =IFERROR(INDEX(Codes,MATCH('LPA Estimate of Hours'!AE16,Title,0))," ") ->  | AF17: =IFERROR(INDEX(Codes,MATCH('LPA Estimate of Hours'!AF16,Title,0))," ") ->  | AG17: =IFERROR(INDEX(Codes,MATCH('LPA Estimate of Hours'!AG16,Title,0))," ") ->  | AH17: =IFERROR(INDEX(Codes,MATCH('LPA Estimate of Hours'!AH16,Title,0))," ") ->  | AI17: =IFERROR(INDEX(Codes,MATCH('LPA Estimate of Hours'!AI16,Title,0))," ") ->  | AJ17: =IFERROR(INDEX(Codes,MATCH('LPA Estimate of Hours'!AJ16,Title,0))," ") ->  | AK17: =IFERROR(INDEX(Codes,MATCH('LPA Estimate of Hours'!AK16,Title,0))," ") ->  | AL17: =IFERROR(INDEX(Codes,MATCH('LPA Estimate of Hours'!AL16,Title,0))," ") ->  | AM17: =IFERROR(INDEX(Codes,MATCH('LPA Estimate of Hours'!AM16,Title,0))," ") ->  | AN17: =IFERROR(INDEX(Codes,MATCH('LPA Estimate of Hours'!AN16,Title,0))," ") ->  | AO17: =IFERROR(INDEX(Codes,MATCH('LPA Estimate of Hours'!AO16,Title,0))," ") ->  | AP17: =IFERROR(INDEX(Codes,MATCH('LPA Estimate of Hours'!AP16,Title,0))," ") ->  | AQ17: =IFERROR(INDEX(Codes,MATCH('LPA Estimate of Hours'!AQ16,Title,0))," ") ->  | AR17: =IFERROR(INDEX(Codes,MATCH('LPA Estimate of Hours'!AR16,Title,0))," ") ->  | AS17: =IFERROR(INDEX(Codes,MATCH('LPA Estimate of Hours'!AS16,Title,0))," ") ->  | AT17: =IFERROR(INDEX(Codes,MATCH('LPA Estimate of Hours'!AT16,Title,0))," ") ->  | AU17: =IFERROR(INDEX(Codes,MATCH('LPA Estimate of Hours'!AU16,Title,0))," ") ->  | AV17: =IFERROR(INDEX(Codes,MATCH('LPA Estimate of Hours'!AV16,Title,0))," ") ->  | AW17: =IFERROR(INDEX(Codes,MATCH('LPA Estimate of Hours'!AW16,Title,0))," ") ->  | AX17: =IFERROR(INDEX(Codes,MATCH('LPA Estimate of Hours'!AX16,Title,0))," ") ->  | AY17: =IFERROR(INDEX(Codes,MATCH('LPA Estimate of Hours'!AY16,Title,0))," ") ->  | AZ17: TOTAL
A18: 1. Construction Engineering & Inspection | B18: =SUBTOTAL(9,OFFSET(B18,1,0):OFFSET(B34,-1,0)) -> 0 | C18: =SUBTOTAL(9,OFFSET(C18,1,0):OFFSET(C34,-1,0)) -> 0 | D18: =SUBTOTAL(9,OFFSET(D18,1,0):OFFSET(D34,-1,0)) -> 0 | E18: =SUBTOTAL(9,OFFSET(E18,1,0):OFFSET(E34,-1,0)) -> 0 | F18: =SUBTOTAL(9,OFFSET(F18,1,0):OFFSET(F34,-1,0)) -> 0 | G18: =SUBTOTAL(9,OFFSET(G18,1,0):OFFSET(G34,-1,0)) -> 0 | H18: =SUBTOTAL(9,OFFSET(H18,1,0):OFFSET(H34,-1,0)) -> 0 | I18: =SUBTOTAL(9,OFFSET(I18,1,0):OFFSET(I34,-1,0)) -> 0 | J18: =SUBTOTAL(9,OFFSET(J18,1,0):OFFSET(J34,-1,0)) -> 0 | K18: =SUBTOTAL(9,OFFSET(K18,1,0):OFFSET(K34,-1,0)) -> 0 | L18: =SUBTOTAL(9,OFFSET(L18,1,0):OFFSET(L34,-1,0)) -> 0 | M18: =SUBTOTAL(9,OFFSET(M18,1,0):OFFSET(M34,-1,0)) -> 0 | N18: =SUBTOTAL(9,OFFSET(N18,1,0):OFFSET(N34,-1,0)) -> 0 | O18: =SUBTOTAL(9,OFFSET(O18,1,0):OFFSET(O34,-1,0)) -> 0 | P18: =SUBTOTAL(9,OFFSET(P18,1,0):OFFSET(P34,-1,0)) -> 0 | Q18: =SUBTOTAL(9,OFFSET(Q18,1,0):OFFSET(Q34,-1,0)) -> 0 | R18: =SUBTOTAL(9,OFFSET(R18,1,0):OFFSET(R34,-1,0)) -> 0 | S18: =SUBTOTAL(9,OFFSET(S18,1,0):OFFSET(S34,-1,0)) -> 0 | T18: =SUBTOTAL(9,OFFSET(T18,1,0):OFFSET(T34,-1,0)) -> 0 | U18: =SUBTOTAL(9,OFFSET(U18,1,0):OFFSET(U34,-1,0)) -> 0 | V18: =SUBTOTAL(9,OFFSET(V18,1,0):OFFSET(V34,-1,0)) -> 0 | W18: =SUBTOTAL(9,OFFSET(W18,1,0):OFFSET(W34,-1,0)) -> 0 | X18: =SUBTOTAL(9,OFFSET(X18,1,0):OFFSET(X34,-1,0)) -> 0 | Y18: =SUBTOTAL(9,OFFSET(Y18,1,0):OFFSET(Y34,-1,0)) -> 0 | Z18: =SUBTOTAL(9,OFFSET(Z18,1,0):OFFSET(Z34,-1,0)) -> 0 | AA18: =SUBTOTAL(9,OFFSET(AA18,1,0):OFFSET(AA34,-1,0)) -> 0 | AB18: =SUBTOTAL(9,OFFSET(AB18,1,0):OFFSET(AB34,-1,0)) -> 0 | AC18: =SUBTOTAL(9,OFFSET(AC18,1,0):OFFSET(AC34,-1,0)) -> 0 | AD18: =SUBTOTAL(9,OFFSET(AD18,1,0):OFFSET(AD34,-1,0)) -> 0 | AE18: =SUBTOTAL(9,OFFSET(AE18,1,0):OFFSET(AE34,-1,0)) -> 0 | AF18: =SUBTOTAL(9,OFFSET(AF18,1,0):OFFSET(AF34,-1,0)) -> 0 | AG18: =SUBTOTAL(9,OFFSET(AG18,1,0):OFFSET(AG34,-1,0)) -> 0 | AH18: =SUBTOTAL(9,OFFSET(AH18,1,0):OFFSET(AH34,-1,0)) -> 0 | AI18: =SUBTOTAL(9,OFFSET(AI18,1,0):OFFSET(AI34,-1,0)) -> 0 | AJ18: =SUBTOTAL(9,OFFSET(AJ18,1,0):OFFSET(AJ34,-1,0)) -> 0 | AK18: =SUBTOTAL(9,OFFSET(AK18,1,0):OFFSET(AK34,-1,0)) -> 0 | AL18: =SUBTOTAL(9,OFFSET(AL18,1,0):OFFSET(AL34,-1,0)) -> 0 | AM18: =SUBTOTAL(9,OFFSET(AM18,1,0):OFFSET(AM34,-1,0)) -> 0 | AN18: =SUBTOTAL(9,OFFSET(AN18,1,0):OFFSET(AN34,-1,0)) -> 0 | AO18: =SUBTOTAL(9,OFFSET(AO18,1,0):OFFSET(AO34,-1,0)) -> 0 | AP18: =SUBTOTAL(9,OFFSET(AP18,1,0):OFFSET(AP34,-1,0)) -> 0 | AQ18: =SUBTOTAL(9,OFFSET(AQ18,1,0):OFFSET(AQ34,-1,0)) -> 0 | AR18: =SUBTOTAL(9,OFFSET(AR18,1,0):OFFSET(AR34,-1,0)) -> 0 | AS18: =SUBTOTAL(9,OFFSET(AS18,1,0):OFFSET(AS34,-1,0)) -> 0 | AT18: =SUBTOTAL(9,OFFSET(AT18,1,0):OFFSET(AT34,-1,0)) -> 0 | AU18: =SUBTOTAL(9,OFFSET(AU18,1,0):OFFSET(AU34,-1,0)) -> 0 | AV18: =SUBTOTAL(9,OFFSET(AV18,1,0):OFFSET(AV34,-1,0)) -> 0 | AW18: =SUBTOTAL(9,OFFSET(AW18,1,0):OFFSET(AW34,-1,0)) -> 0 | AX18: =SUBTOTAL(9,OFFSET(AX18,1,0):OFFSET(AX34,-1,0)) -> 0 | AY18: =SUBTOTAL(9,OFFSET(AY18,1,0):OFFSET(AY34,-1,0)) -> 0 | AZ18: =SUM(INDIRECT("B"&ROW()&":"&ADDRESS(ROW(),COLUMN()-1))) -> 0
A19: Check calculations | AZ19: =SUM(INDIRECT("B"&ROW()&":"&ADDRESS(ROW(),COLUMN()-1))) -> 0
A20: Construction Inspection | AZ20: 0
A21: Construction Materials Testing | AZ21: 0
A22: Inspect change orders | AZ22: 0
A23: Monitor compliance regulations | AZ23: 0
A24: Prepare construciton reports | AZ24: 0
A25: Project coordination | AZ25: 0
A26: Project Management | AZ26: 0
A27: Review engineering shop drawings | AZ27: 0
A28: Schedule development | AZ28: 0
A29: Reserve | AZ29: 0
A30: Reserve | AZ30: 0
A31: Reserve | AZ31: 0
A32: Reserve | AZ32: 0
A33: Reserve | AZ33: 0
A34: 2. Project Management and QC | B34: =SUBTOTAL(9,OFFSET(B34,1,0):OFFSET(B55,-1,0)) -> 0 | C34: =SUBTOTAL(9,OFFSET(C34,1,0):OFFSET(C55,-1,0)) -> 0 | D34: =SUBTOTAL(9,OFFSET(D34,1,0):OFFSET(D55,-1,0)) -> 0 | E34: =SUBTOTAL(9,OFFSET(E34,1,0):OFFSET(E55,-1,0)) -> 0 | F34: =SUBTOTAL(9,OFFSET(F34,1,0):OFFSET(F55,-1,0)) -> 0 | G34: =SUBTOTAL(9,OFFSET(G34,1,0):OFFSET(G55,-1,0)) -> 0 | H34: =SUBTOTAL(9,OFFSET(H34,1,0):OFFSET(H55,-1,0)) -> 0 | I34: =SUBTOTAL(9,OFFSET(I34,1,0):OFFSET(I55,-1,0)) -> 0 | J34: =SUBTOTAL(9,OFFSET(J34,1,0):OFFSET(J55,-1,0)) -> 0 | K34: =SUBTOTAL(9,OFFSET(K34,1,0):OFFSET(K55,-1,0)) -> 0 | L34: =SUBTOTAL(9,OFFSET(L34,1,0):OFFSET(L55,-1,0)) -> 0 | M34: =SUBTOTAL(9,OFFSET(M34,1,0):OFFSET(M55,-1,0)) -> 0 | N34: =SUBTOTAL(9,OFFSET(N34,1,0):OFFSET(N55,-1,0)) -> 0 | O34: =SUBTOTAL(9,OFFSET(O34,1,0):OFFSET(O55,-1,0)) -> 0 | P34: =SUBTOTAL(9,OFFSET(P34,1,0):OFFSET(P55,-1,0)) -> 0 | Q34: =SUBTOTAL(9,OFFSET(Q34,1,0):OFFSET(Q55,-1,0)) -> 0 | R34: =SUBTOTAL(9,OFFSET(R34,1,0):OFFSET(R55,-1,0)) -> 0 | S34: =SUBTOTAL(9,OFFSET(S34,1,0):OFFSET(S55,-1,0)) -> 0 | T34: =SUBTOTAL(9,OFFSET(T34,1,0):OFFSET(T55,-1,0)) -> 0 | U34: =SUBTOTAL(9,OFFSET(U34,1,0):OFFSET(U55,-1,0)) -> 0 | V34: =SUBTOTAL(9,OFFSET(V34,1,0):OFFSET(V55,-1,0)) -> 0 | W34: =SUBTOTAL(9,OFFSET(W34,1,0):OFFSET(W55,-1,0)) -> 0 | X34: =SUBTOTAL(9,OFFSET(X34,1,0):OFFSET(X55,-1,0)) -> 0 | Y34: =SUBTOTAL(9,OFFSET(Y34,1,0):OFFSET(Y55,-1,0)) -> 0 | Z34: =SUBTOTAL(9,OFFSET(Z34,1,0):OFFSET(Z55,-1,0)) -> 0 | AA34: =SUBTOTAL(9,OFFSET(AA34,1,0):OFFSET(AA55,-1,0)) -> 0 | AB34: =SUBTOTAL(9,OFFSET(AB34,1,0):OFFSET(AB55,-1,0)) -> 0 | AC34: =SUBTOTAL(9,OFFSET(AC34,1,0):OFFSET(AC55,-1,0)) -> 0 | AD34: =SUBTOTAL(9,OFFSET(AD34,1,0):OFFSET(AD55,-1,0)) -> 0 | AE34: =SUBTOTAL(9,OFFSET(AE34,1,0):OFFSET(AE55,-1,0)) -> 0 | AF34: =SUBTOTAL(9,OFFSET(AF34,1,0):OFFSET(AF55,-1,0)) -> 0 | AG34: =SUBTOTAL(9,OFFSET(AG34,1,0):OFFSET(AG55,-1,0)) -> 0 | AH34: =SUBTOTAL(9,OFFSET(AH34,1,0):OFFSET(AH55,-1,0)) -> 0 | AI34: =SUBTOTAL(9,OFFSET(AI34,1,0):OFFSET(AI55,-1,0)) -> 0 | AJ34: =SUBTOTAL(9,OFFSET(AJ34,1,0):OFFSET(AJ55,-1,0)) -> 0 | AK34: =SUBTOTAL(9,OFFSET(AK34,1,0):OFFSET(AK55,-1,0)) -> 0 | AL34: =SUBTOTAL(9,OFFSET(AL34,1,0):OFFSET(AL55,-1,0)) -> 0 | AM34: =SUBTOTAL(9,OFFSET(AM34,1,0):OFFSET(AM55,-1,0)) -> 0 | AN34: =SUBTOTAL(9,OFFSET(AN34,1,0):OFFSET(AN55,-1,0)) -> 0 | AO34: =SUBTOTAL(9,OFFSET(AO34,1,0):OFFSET(AO55,-1,0)) -> 0 | AP34: =SUBTOTAL(9,OFFSET(AP34,1,0):OFFSET(AP55,-1,0)) -> 0 | AQ34: =SUBTOTAL(9,OFFSET(AQ34,1,0):OFFSET(AQ55,-1,0)) -> 0 | AR34: =SUBTOTAL(9,OFFSET(AR34,1,0):OFFSET(AR55,-1,0)) -> 0 | AS34: =SUBTOTAL(9,OFFSET(AS34,1,0):OFFSET(AS55,-1,0)) -> 0 | AT34: =SUBTOTAL(9,OFFSET(AT34,1,0):OFFSET(AT55,-1,0)) -> 0 | AU34: =SUBTOTAL(9,OFFSET(AU34,1,0):OFFSET(AU55,-1,0)) -> 0 | AV34: =SUBTOTAL(9,OFFSET(AV34,1,0):OFFSET(AV55,-1,0)) -> 0 | AW34: =SUBTOTAL(9,OFFSET(AW34,1,0):OFFSET(AW55,-1,0)) -> 0 | AX34: =SUBTOTAL(9,OFFSET(AX34,1,0):OFFSET(AX55,-1,0)) -> 0 | AY34: =SUBTOTAL(9,OFFSET(AY34,1,0):OFFSET(AY55,-1,0)) -> 0 | AZ34: =SUM(INDIRECT("B"&ROW()&":"&ADDRESS(ROW(),COLUMN()-1))) -> 0
A35: Final Deliverables | AZ35: =SUM(INDIRECT("B"&ROW()&":"&ADDRESS(ROW(),COLUMN()-1))) -> 0
A36: Project Management | AZ36: 0
A37: Quality Assurance/Quality Control | AZ37: 0
A38: Reserve | AZ38: 0
A39: Reserve | AZ39: 0
A40: Reserve | AZ40: 0
A41: Reserve | AZ41: 0
A42: Reserve | AZ42: 0
A43: Reserve | AZ43: 0
A44: Reserve | AZ44: 0
A45: Reserve | AZ45: 0
A46: Reserve | AZ46: 0
A47: Reserve | AZ47: 0
A48: Reserve | AZ48: 0
A49: Reserve | AZ49: 0
A50: Reserve | AZ50: 0
A51: Reserve | AZ51: 0
A52: Reserve | AZ52: 0
A53: Reserve | AZ53: 0
A54: Reserve | AZ54: 0
A55: 3. Roadway Design | B55: =SUBTOTAL(9,OFFSET(B55,1,0):OFFSET(B76,-1,0)) -> 0 | C55: =SUBTOTAL(9,OFFSET(C55,1,0):OFFSET(C76,-1,0)) -> 0 | D55: =SUBTOTAL(9,OFFSET(D55,1,0):OFFSET(D76,-1,0)) -> 0 | E55: =SUBTOTAL(9,OFFSET(E55,1,0):OFFSET(E76,-1,0)) -> 0 | F55: =SUBTOTAL(9,OFFSET(F55,1,0):OFFSET(F76,-1,0)) -> 0 | G55: =SUBTOTAL(9,OFFSET(G55,1,0):OFFSET(G76,-1,0)) -> 0 | H55: =SUBTOTAL(9,OFFSET(H55,1,0):OFFSET(H76,-1,0)) -> 0 | I55: =SUBTOTAL(9,OFFSET(I55,1,0):OFFSET(I76,-1,0)) -> 0 | J55: =SUBTOTAL(9,OFFSET(J55,1,0):OFFSET(J76,-1,0)) -> 0 | K55: =SUBTOTAL(9,OFFSET(K55,1,0):OFFSET(K76,-1,0)) -> 0 | L55: =SUBTOTAL(9,OFFSET(L55,1,0):OFFSET(L76,-1,0)) -> 0 | M55: =ROUND(SUM(M56:M75),2) -> 0 | N55: 0 | O55: 0 | P55: 0 | Q55: 0 | R55: 0 | S55: 0 | T55: 0 | U55: 0 | V55: 0 | W55: 0 | X55: 0 | Y55: 0 | Z55: =ROUND(SUM(Z56:Z75),2) -> 0 | AA55: 0 | AB55: 0 | AC55: 0 | AD55: 0 | AE55: 0 | AF55: 0 | AG55: 0 | AH55: 0 | AI55: 0 | AJ55: 0 | AK55: =ROUND(SUM(AK56:AK75),2) -> 0 | AL55: 0 | AM55: 0 | AN55: 0 | AO55: 0 | AP55: 0 | AQ55: 0 | AR55: 0 | AS55: 0 | AT55: 0 | AU55: 0 | AV55: 0 | AW55: 0 | AX55: 0 | AY55: 0 | AZ55: =SUM(INDIRECT("B"&ROW()&":"&ADDRESS(ROW(),COLUMN()-1))) -> 0
A56: Construction Phasing | AZ56: =SUM(INDIRECT("B"&ROW()&":"&ADDRESS(ROW(),COLUMN()-1))) -> 0
A57: Coordination | AZ57: 0
A58: Data Collection and Review | AZ58: 0
A59: Drafting | AZ59: 0
A60: Drainage Design | AZ60: 0
A61: Field review | AZ61: 0
A62: Meeting | AZ62: 0
A63: Quantities/Estimates | AZ63: 0
A64: Report | AZ64: 0
A65: Right-of-Way Design | AZ65: 0
A66: Roadway Design | AZ66: 0
A67: Schedule development | AZ67: 0
A68: Storm Sewer Design | AZ68: 0
A69: Street Lighting Design | AZ69: 0
A70: Traffic Analysis | AZ70: 0
A71: Utility Coordination / Verification | AZ71: 0
A72: Reserve | AZ72: 0
A73: Reserve | AZ73: =SUM(INDIRECT("B"&ROW()&":"&ADDRESS(ROW(),COLUMN()-1))) -> 0
A74: Reserve | AZ74: 0
A75: Reserve | AZ75: 0
A76: 4. Bridge Design | B76: =SUBTOTAL(9,OFFSET(B76,1,0):OFFSET(B97,-1,0)) -> 0 | C76: =SUBTOTAL(9,OFFSET(C76,1,0):OFFSET(C97,-1,0)) -> 0 | D76: =SUBTOTAL(9,OFFSET(D76,1,0):OFFSET(D97,-1,0)) -> 0 | E76: =SUBTOTAL(9,OFFSET(E76,1,0):OFFSET(E97,-1,0)) -> 0 | F76: =SUBTOTAL(9,OFFSET(F76,1,0):OFFSET(F97,-1,0)) -> 0 | G76: =SUBTOTAL(9,OFFSET(G76,1,0):OFFSET(G97,-1,0)) -> 0 | H76: =SUBTOTAL(9,OFFSET(H76,1,0):OFFSET(H97,-1,0)) -> 0 | I76: =SUBTOTAL(9,OFFSET(I76,1,0):OFFSET(I97,-1,0)) -> 0 | J76: =SUBTOTAL(9,OFFSET(J76,1,0):OFFSET(J97,-1,0)) -> 0 | K76: =SUBTOTAL(9,OFFSET(K76,1,0):OFFSET(K97,-1,0)) -> 0 | L76: =SUBTOTAL(9,OFFSET(L76,1,0):OFFSET(L97,-1,0)) -> 0 | M76: =ROUND(SUM(M77:M96),2) -> 0 | N76: 0 | O76: 0 | P76: 0 | Q76: 0 | R76: 0 | S76: 0 | T76: 0 | U76: 0 | V76: 0 | W76: 0 | X76: 0 | Y76: 0 | Z76: =ROUND(SUM(Z77:Z96),2) -> 0 | AA76: 0 | AB76: 0 | AC76: 0 | AD76: 0 | AE76: 0 | AF76: 0 | AG76: 0 | AH76: 0 | AI76: 0 | AJ76: 0 | AK76: =ROUND(SUM(AK77:AK96),2) -> 0 | AL76: 0 | AM76: 0 | AN76: 0 | AO76: 0 | AP76: 0 | AQ76: 0 | AR76: 0 | AS76: 0 | AT76: 0 | AU76: 0 | AV76: 0 | AW76: 0 | AX76: 0 | AY76: 0 | AZ76: 0
A77: Conduct Quality Assurance | AZ77: =SUM(INDIRECT("B"&ROW()&":"&ADDRESS(ROW(),COLUMN()-1))) -> 0
A78: Coordination | AZ78: 0
A79: Data Collection and Review | AZ79: 0
A80: Design, analyze, check structural elements | AZ80: 0
A81: Drafting | AZ81: 0
A82: Drafting | AZ82: 0
A83: Field review | AZ83: 0
A84: Hydraulics | AZ84: 0
A85: Inspection* | AZ85: 0
A86: Investigation | AZ86: 0
A87: Meeting | AZ87: 0
A88: Prepare bridge plans | AZ88: 0
A89: Prepare report | AZ89: 0
A90: Report | AZ90: 0
A91: Schedule development | AZ91: 0
A92: Reserve | AZ92: 0
A93: Reserve | AZ93: 0
A94: Reserve | AZ94: =SUM(INDIRECT("B"&ROW()&":"&ADDRESS(ROW(),COLUMN()-1))) -> 0
A95: Reserve | AZ95: 0
A96: Reserve | AZ96: 0
A97: 5. Landscape Design | B97: =SUBTOTAL(9,OFFSET(B97,1,0):OFFSET(B113,-1,0)) -> 0 | C97: =SUBTOTAL(9,OFFSET(C97,1,0):OFFSET(C113,-1,0)) -> 0 | D97: =SUBTOTAL(9,OFFSET(D97,1,0):OFFSET(D113,-1,0)) -> 0 | E97: =SUBTOTAL(9,OFFSET(E97,1,0):OFFSET(E113,-1,0)) -> 0 | F97: =SUBTOTAL(9,OFFSET(F97,1,0):OFFSET(F113,-1,0)) -> 0 | G97: =SUBTOTAL(9,OFFSET(G97,1,0):OFFSET(G113,-1,0)) -> 0 | H97: =SUBTOTAL(9,OFFSET(H97,1,0):OFFSET(H113,-1,0)) -> 0 | I97: =SUBTOTAL(9,OFFSET(I97,1,0):OFFSET(I113,-1,0)) -> 0 | J97: =SUBTOTAL(9,OFFSET(J97,1,0):OFFSET(J113,-1,0)) -> 0 | K97: =SUBTOTAL(9,OFFSET(K97,1,0):OFFSET(K113,-1,0)) -> 0 | L97: =SUBTOTAL(9,OFFSET(L97,1,0):OFFSET(L113,-1,0)) -> 0 | M97: =ROUND(SUM(M98:M112),2) -> 0 | N97: 0 | O97: 0 | P97: 0 | Q97: 0 | R97: 0 | S97: 0 | T97: 0 | U97: 0 | V97: 0 | W97: 0 | X97: 0 | Y97: 0 | Z97: 0 | AA97: 0 | AB97: 0 | AC97: 0 | AD97: 0 | AE97: 0 | AF97: 0 | AG97: 0 | AH97: 0 | AI97: 0 | AJ97: 0 | AK97: 0 | AL97: 0 | AM97: 0 | AN97: 0 | AO97: 0 | AP97: 0 | AQ97: 0 | AR97: 0 | AS97: 0 | AT97: 0 | AU97: 0 | AV97: 0 | AW97: 0 | AX97: 0 | AY97: 0 | AZ97: 0
A98: Drafting | AZ98: =SUM(INDIRECT("B"&ROW()&":"&ADDRESS(ROW(),COLUMN()-1))) -> 0
A99: Landscape Design | AZ99: 0
A100: Meeting | AZ100: 0
A101: Reserve | AZ101: 0
A102: Reserve | AZ102: 0
A103: Reserve | AZ103: 0
A104: Reserve | AZ104: 0
A105: Reserve | AZ105: 0
A106: Reserve | AZ106: 0
A107: Reserve | AZ107: 0
A108: Reserve | AZ108: 0
A109: Reserve | AZ109: 0
A110: Reserve | AZ110: 0
A111: Reserve | AZ111: 0
A112: Reserve | AZ112: 0
A113: 6. Admininstration | B113: =SUBTOTAL(9,OFFSET(B113,1,0):OFFSET(B129,-1,0)) -> 0 | C113: =SUBTOTAL(9,OFFSET(C113,1,0):OFFSET(C129,-1,0)) -> 0 | D113: =SUBTOTAL(9,OFFSET(D113,1,0):OFFSET(D129,-1,0)) -> 0 | E113: =SUBTOTAL(9,OFFSET(E113,1,0):OFFSET(E129,-1,0)) -> 0 | F113: =SUBTOTAL(9,OFFSET(F113,1,0):OFFSET(F129,-1,0)) -> 0 | G113: =SUBTOTAL(9,OFFSET(G113,1,0):OFFSET(G129,-1,0)) -> 0 | H113: =SUBTOTAL(9,OFFSET(H113,1,0):OFFSET(H129,-1,0)) -> 0 | I113: =SUBTOTAL(9,OFFSET(I113,1,0):OFFSET(I129,-1,0)) -> 0 | J113: =SUBTOTAL(9,OFFSET(J113,1,0):OFFSET(J129,-1,0)) -> 0 | K113: =SUBTOTAL(9,OFFSET(K113,1,0):OFFSET(K129,-1,0)) -> 0 | L113: =SUBTOTAL(9,OFFSET(L113,1,0):OFFSET(L129,-1,0)) -> 0 | M113: =ROUND(SUM(M114:M128),2) -> 0 | N113: 0 | O113: 0 | P113: 0 | Q113: 0 | R113: 0 | S113: 0 | T113: 0 | U113: 0 | V113: 0 | W113: 0 | X113: 0 | Y113: 0 | Z113: 0 | AA113: 0 | AB113: 0 | AC113: 0 | AD113: 0 | AE113: 0 | AF113: 0 | AG113: 0 | AH113: 0 | AI113: 0 | AJ113: 0 | AK113: 0 | AL113: 0 | AM113: 0 | AN113: 0 | AO113: 0 | AP113: 0 | AQ113: 0 | AR113: 0 | AS113: 0 | AT113: 0 | AU113: 0 | AV113: 0 | AW113: 0 | AX113: 0 | AY113: 0 | AZ113: 0
A114: Consultant selection | AZ114: =SUM(INDIRECT("B"&ROW()&":"&ADDRESS(ROW(),COLUMN()-1))) -> 0
A115: Contract Agreement | AZ115: 0
A116: Contract Amendments | AZ116: 0
A117: Contract Preparation | AZ117: 0
A118: Invoice payment | AZ118: 0
A119: Project Closeout | AZ119: 0
A120: Solicitation | AZ120: 0
A121: Reserve | AZ121: 0
A122: Reserve | AZ122: 0
A123: Reserve | AZ123: 0
A124: Reserve | AZ124: 0
A125: Reserve | AZ125: 0
A126: Reserve | AZ126: 0
A127: Reserve | AZ127: 0
A128: Reserve | AZ128: 0
A129: 7. Public Involvement | B129: =SUBTOTAL(9,OFFSET(B129,1,0):OFFSET(B140,-1,0)) -> 0 | C129: =SUBTOTAL(9,OFFSET(C129,1,0):OFFSET(C140,-1,0)) -> 0 | D129: =SUBTOTAL(9,OFFSET(D129,1,0):OFFSET(D140,-1,0)) -> 0 | E129: =SUBTOTAL(9,OFFSET(E129,1,0):OFFSET(E140,-1,0)) -> 0 | F129: =SUBTOTAL(9,OFFSET(F129,1,0):OFFSET(F140,-1,0)) -> 0 | G129: =SUBTOTAL(9,OFFSET(G129,1,0):OFFSET(G140,-1,0)) -> 0 | H129: =SUBTOTAL(9,OFFSET(H129,1,0):OFFSET(H140,-1,0)) -> 0 | I129: =SUBTOTAL(9,OFFSET(I129,1,0):OFFSET(I140,-1,0)) -> 0 | J129: =SUBTOTAL(9,OFFSET(J129,1,0):OFFSET(J140,-1,0)) -> 0 | K129: =SUBTOTAL(9,OFFSET(K129,1,0):OFFSET(K140,-1,0)) -> 0 | L129: =SUBTOTAL(9,OFFSET(L129,1,0):OFFSET(L140,-1,0)) -> 0 | M129: =ROUND(SUM(M130:M139),2) -> 0 | N129: 0 | O129: 0 | P129: 0 | Q129: 0 | R129: 0 | S129: 0 | T129: 0 | U129: 0 | V129: 0 | W129: 0 | X129: 0 | Y129: 0 | Z129: =ROUND(SUM(Z130:Z139),2) -> 0 | AA129: 0 | AB129: 0 | AC129: 0 | AD129: 0 | AE129: 0 | AF129: 0 | AG129: 0 | AH129: 0 | AI129: 0 | AJ129: 0 | AK129: =ROUND(SUM(AK130:AK139),2) -> 0 | AL129: 0 | AM129: 0 | AN129: 0 | AO129: 0 | AP129: 0 | AQ129: 0 | AR129: 0 | AS129: 0 | AT129: 0 | AU129: 0 | AV129: 0 | AW129: 0 | AX129: 0 | AY129: 0 | AZ129: 0
A130: Outreach | AZ130: =SUM(INDIRECT("B"&ROW()&":"&ADDRESS(ROW(),COLUMN()-1))) -> 0
A131: Preparation | AZ131: =SUM(INDIRECT("B"&ROW()&":"&ADDRESS(ROW(),COLUMN()-1))) -> 0
A132: Public Information Meeting | AZ132: =SUM(INDIRECT("B"&ROW()&":"&ADDRESS(ROW(),COLUMN()-1))) -> 0
A133: Reserve | AZ133: =SUM(INDIRECT("B"&ROW()&":"&ADDRESS(ROW(),COLUMN()-1))) -> 0
A134: Reserve | AZ134: 0
A135: Reserve | AZ135: 0
A136: Reserve | AZ136: 0
A137: Reserve | AZ137: 0
A138: Reserve | AZ138: 0
A139: Reserve | AZ139: 0
A140: 8. Geotechnical Analysis | B140: =SUBTOTAL(9,OFFSET(B140,1,0):OFFSET(B161,-1,0)) -> 0 | C140: =SUBTOTAL(9,OFFSET(C140,1,0):OFFSET(C161,-1,0)) -> 0 | D140: =SUBTOTAL(9,OFFSET(D140,1,0):OFFSET(D161,-1,0)) -> 0 | E140: =SUBTOTAL(9,OFFSET(E140,1,0):OFFSET(E161,-1,0)) -> 0 | F140: =SUBTOTAL(9,OFFSET(F140,1,0):OFFSET(F161,-1,0)) -> 0 | G140: =SUBTOTAL(9,OFFSET(G140,1,0):OFFSET(G161,-1,0)) -> 0 | H140: =SUBTOTAL(9,OFFSET(H140,1,0):OFFSET(H161,-1,0)) -> 0 | I140: =SUBTOTAL(9,OFFSET(I140,1,0):OFFSET(I161,-1,0)) -> 0 | J140: =SUBTOTAL(9,OFFSET(J140,1,0):OFFSET(J161,-1,0)) -> 0 | K140: =SUBTOTAL(9,OFFSET(K140,1,0):OFFSET(K161,-1,0)) -> 0 | L140: =SUBTOTAL(9,OFFSET(L140,1,0):OFFSET(L161,-1,0)) -> 0 | M140: =ROUND(SUM(M141:M160),2) -> 0 | N140: 0 | O140: 0 | P140: 0 | Q140: 0 | R140: 0 | S140: 0 | T140: 0 | U140: 0 | V140: 0 | W140: 0 | X140: 0 | Y140: 0 | Z140: 0 | AA140: 0 | AB140: 0 | AC140: 0 | AD140: 0 | AE140: 0 | AF140: 0 | AG140: 0 | AH140: 0 | AI140: 0 | AJ140: 0 | AK140: 0 | AL140: 0 | AM140: 0 | AN140: 0 | AO140: 0 | AP140: 0 | AQ140: 0 | AR140: 0 | AS140: 0 | AT140: 0 | AU140: 0 | AV140: 0 | AW140: 0 | AX140: 0 | AY140: 0 | AZ140: 0
A141: Analysis of the Test Data | AZ141: =SUM(INDIRECT("B"&ROW()&":"&ADDRESS(ROW(),COLUMN()-1))) -> 0
A142: Field Log Recording | AZ142: =SUM(INDIRECT("B"&ROW()&":"&ADDRESS(ROW(),COLUMN()-1))) -> 0
A143: Field review | AZ143: =SUM(INDIRECT("B"&ROW()&":"&ADDRESS(ROW(),COLUMN()-1))) -> 0
A144: Laboratory Testing of Recovered Samples | AZ144: =SUM(INDIRECT("B"&ROW()&":"&ADDRESS(ROW(),COLUMN()-1))) -> 0
A145: Project Preparation | AZ145: 0
A146: Report | AZ146: 0
A147: Soil Borings | AZ147: 0
A148: Reserve | AZ148: 0
A149: Reserve | AZ149: 0
A150: Reserve | AZ150: 0
A151: Reserve | AZ151: 0
A152: Reserve | AZ152: 0
A153: Reserve | AZ153: 0
A154: Reserve | AZ154: 0
A155: Reserve | AZ155: 0
A156: Reserve | AZ156: 0
A157: Reserve | AZ157: 0
A158: Reserve | AZ158: 0
A159: Reserve | AZ159: 0
A160: Reserve | AZ160: 0
A161: 9. Material Testing | B161: =SUBTOTAL(9,OFFSET(B161,1,0):OFFSET(B177,-1,0)) -> 0 | C161: =SUBTOTAL(9,OFFSET(C161,1,0):OFFSET(C177,-1,0)) -> 0 | D161: =SUBTOTAL(9,OFFSET(D161,1,0):OFFSET(D177,-1,0)) -> 0 | E161: =SUBTOTAL(9,OFFSET(E161,1,0):OFFSET(E177,-1,0)) -> 0 | F161: =SUBTOTAL(9,OFFSET(F161,1,0):OFFSET(F177,-1,0)) -> 0 | G161: =SUBTOTAL(9,OFFSET(G161,1,0):OFFSET(G177,-1,0)) -> 0 | H161: =SUBTOTAL(9,OFFSET(H161,1,0):OFFSET(H177,-1,0)) -> 0 | I161: =SUBTOTAL(9,OFFSET(I161,1,0):OFFSET(I177,-1,0)) -> 0 | J161: =SUBTOTAL(9,OFFSET(J161,1,0):OFFSET(J177,-1,0)) -> 0 | K161: =SUBTOTAL(9,OFFSET(K161,1,0):OFFSET(K177,-1,0)) -> 0 | L161: =SUBTOTAL(9,OFFSET(L161,1,0):OFFSET(L177,-1,0)) -> 0 | M161: =SUBTOTAL(9,OFFSET(M161,1,0):OFFSET(M177,-1,0)) -> 0 | N161: =SUBTOTAL(9,OFFSET(N161,1,0):OFFSET(N177,-1,0)) -> 0 | O161: =SUBTOTAL(9,OFFSET(O161,1,0):OFFSET(O177,-1,0)) -> 0 | P161: =SUBTOTAL(9,OFFSET(P161,1,0):OFFSET(P177,-1,0)) -> 0 | Q161: =SUBTOTAL(9,OFFSET(Q161,1,0):OFFSET(Q177,-1,0)) -> 0 | R161: =SUBTOTAL(9,OFFSET(R161,1,0):OFFSET(R177,-1,0)) -> 0 | S161: =SUBTOTAL(9,OFFSET(S161,1,0):OFFSET(S177,-1,0)) -> 0 | T161: =SUBTOTAL(9,OFFSET(T161,1,0):OFFSET(T177,-1,0)) -> 0 | U161: =SUBTOTAL(9,OFFSET(U161,1,0):OFFSET(U177,-1,0)) -> 0 | V161: =SUBTOTAL(9,OFFSET(V161,1,0):OFFSET(V177,-1,0)) -> 0 | W161: =SUBTOTAL(9,OFFSET(W161,1,0):OFFSET(W177,-1,0)) -> 0 | X161: =SUBTOTAL(9,OFFSET(X161,1,0):OFFSET(X177,-1,0)) -> 0 | Y161: =SUBTOTAL(9,OFFSET(Y161,1,0):OFFSET(Y177,-1,0)) -> 0 | Z161: =SUBTOTAL(9,OFFSET(Z161,1,0):OFFSET(Z177,-1,0)) -> 0 | AA161: =SUBTOTAL(9,OFFSET(AA161,1,0):OFFSET(AA177,-1,0)) -> 0 | AB161: =SUBTOTAL(9,OFFSET(AB161,1,0):OFFSET(AB177,-1,0)) -> 0 | AC161: =SUBTOTAL(9,OFFSET(AC161,1,0):OFFSET(AC177,-1,0)) -> 0 | AD161: =SUBTOTAL(9,OFFSET(AD161,1,0):OFFSET(AD177,-1,0)) -> 0 | AE161: =SUBTOTAL(9,OFFSET(AE161,1,0):OFFSET(AE177,-1,0)) -> 0 | AF161: =SUBTOTAL(9,OFFSET(AF161,1,0):OFFSET(AF177,-1,0)) -> 0 | AG161: =SUBTOTAL(9,OFFSET(AG161,1,0):OFFSET(AG177,-1,0)) -> 0 | AH161: =SUBTOTAL(9,OFFSET(AH161,1,0):OFFSET(AH177,-1,0)) -> 0 | AI161: =SUBTOTAL(9,OFFSET(AI161,1,0):OFFSET(AI177,-1,0)) -> 0 | AJ161: =SUBTOTAL(9,OFFSET(AJ161,1,0):OFFSET(AJ177,-1,0)) -> 0 | AK161: =SUBTOTAL(9,OFFSET(AK161,1,0):OFFSET(AK177,-1,0)) -> 0 | AL161: =SUBTOTAL(9,OFFSET(AL161,1,0):OFFSET(AL177,-1,0)) -> 0 | AM161: =SUBTOTAL(9,OFFSET(AM161,1,0):OFFSET(AM177,-1,0)) -> 0 | AN161: =SUBTOTAL(9,OFFSET(AN161,1,0):OFFSET(AN177,-1,0)) -> 0 | AO161: =SUBTOTAL(9,OFFSET(AO161,1,0):OFFSET(AO177,-1,0)) -> 0 | AP161: =SUBTOTAL(9,OFFSET(AP161,1,0):OFFSET(AP177,-1,0)) -> 0 | AQ161: =SUBTOTAL(9,OFFSET(AQ161,1,0):OFFSET(AQ177,-1,0)) -> 0 | AR161: =SUBTOTAL(9,OFFSET(AR161,1,0):OFFSET(AR177,-1,0)) -> 0 | AS161: =SUBTOTAL(9,OFFSET(AS161,1,0):OFFSET(AS177,-1,0)) -> 0 | AT161: =SUBTOTAL(9,OFFSET(AT161,1,0):OFFSET(AT177,-1,0)) -> 0 | AU161: =SUBTOTAL(9,OFFSET(AU161,1,0):OFFSET(AU177,-1,0)) -> 0 | AV161: =SUBTOTAL(9,OFFSET(AV161,1,0):OFFSET(AV177,-1,0)) -> 0 | AW161: =SUBTOTAL(9,OFFSET(AW161,1,0):OFFSET(AW177,-1,0)) -> 0 | AX161: =SUBTOTAL(9,OFFSET(AX161,1,0):OFFSET(AX177,-1,0)) -> 0 | AY161: =SUBTOTAL(9,OFFSET(AY161,1,0):OFFSET(AY177,-1,0)) -> 0 | AZ161: 0
A162: Analysis of the Test Data | AZ162: =SUM(INDIRECT("B"&ROW()&":"&ADDRESS(ROW(),COLUMN()-1))) -> 0
A163: Field Log Recording | AZ163: 0
A164: Laboratory Testing of Recovered Samples | AZ164: 0
A165: Project Preparation | AZ165: 0
A166: Report | AZ166: 0
A167: Soil Borings | AZ167: 0
A168: Reserve | AZ168: 0
A169: Reserve | AZ169: 0
A170: Reserve | AZ170: 0
A171: Reserve | AZ171: 0
A172: Reserve | AZ172: 0
A173: Reserve | AZ173: 0
A174: Reserve | AZ174: 0
A175: Reserve | AZ175: 0
A176: Reserve | AZ176: 0
A177: 10. Survey and Mapping | B177: =SUBTOTAL(9,OFFSET(B177,1,0):OFFSET(B193,-1,0)) -> 0 | C177: =SUBTOTAL(9,OFFSET(C177,1,0):OFFSET(C193,-1,0)) -> 0 | D177: =SUBTOTAL(9,OFFSET(D177,1,0):OFFSET(D193,-1,0)) -> 0 | E177: =SUBTOTAL(9,OFFSET(E177,1,0):OFFSET(E193,-1,0)) -> 0 | F177: =SUBTOTAL(9,OFFSET(F177,1,0):OFFSET(F193,-1,0)) -> 0 | G177: =SUBTOTAL(9,OFFSET(G177,1,0):OFFSET(G193,-1,0)) -> 0 | H177: =SUBTOTAL(9,OFFSET(H177,1,0):OFFSET(H193,-1,0)) -> 0 | I177: =SUBTOTAL(9,OFFSET(I177,1,0):OFFSET(I193,-1,0)) -> 0 | J177: =SUBTOTAL(9,OFFSET(J177,1,0):OFFSET(J193,-1,0)) -> 0 | K177: =SUBTOTAL(9,OFFSET(K177,1,0):OFFSET(K193,-1,0)) -> 0 | L177: =SUBTOTAL(9,OFFSET(L177,1,0):OFFSET(L193,-1,0)) -> 0 | M177: =ROUND(SUM(M178:M192),2) -> 0 | N177: 0 | O177: 0 | P177: 0 | Q177: 0 | R177: 0 | S177: 0 | T177: 0 | U177: 0 | V177: 0 | W177: 0 | X177: 0 | Y177: 0 | Z177: =ROUND(SUM(Z178:Z192),2) -> 0 | AA177: 0 | AB177: 0 | AC177: 0 | AD177: 0 | AE177: 0 | AF177: 0 | AG177: 0 | AH177: 0 | AI177: 0 | AJ177: 0 | AK177: =ROUND(SUM(AK178:AK192),2) -> 0 | AL177: 0 | AM177: 0 | AN177: 0 | AO177: 0 | AP177: 0 | AQ177: 0 | AR177: 0 | AS177: 0 | AT177: 0 | AU177: 0 | AV177: 0 | AW177: 0 | AX177: 0 | AY177: 0 | AZ177: 0
A178: Aerial Mapping - Photogrammetric Mapping | AZ178: =SUM(INDIRECT("B"&ROW()&":"&ADDRESS(ROW(),COLUMN()-1))) -> 0
A179: Aerial Mapping - Survey for Mapping | AZ179: =SUM(INDIRECT("B"&ROW()&":"&ADDRESS(ROW(),COLUMN()-1))) -> 0
A180: Base Map Preparation | AZ180: =SUM(INDIRECT("B"&ROW()&":"&ADDRESS(ROW(),COLUMN()-1))) -> 0
A181: Construction Survey | AZ181: =SUM(INDIRECT("B"&ROW()&":"&ADDRESS(ROW(),COLUMN()-1))) -> 0
A182: Land Survey | AZ182: 0
A183: Location Survey/Survey Data | AZ183: 0
A184: Subsurface Utility Engineering Existing Utilities | AZ184: 0
A185: Survey Control* | AZ185: 0
A186: Reserve | AZ186: 0
A187: Reserve | AZ187: 0
A188: Reserve | AZ188: 0
A189: Reserve | AZ189: 0
A190: Reserve | AZ190: =SUM(INDIRECT("B"&ROW()&":"&ADDRESS(ROW(),COLUMN()-1))) -> 0
A191: Reserve | AZ191: 0
A192: Reserve | AZ192: 0
A193: 11. Environmental | B193: =SUBTOTAL(9,OFFSET(B193,1,0):OFFSET(B219,-1,0)) -> 0 | C193: =SUBTOTAL(9,OFFSET(C193,1,0):OFFSET(C219,-1,0)) -> 0 | D193: =SUBTOTAL(9,OFFSET(D193,1,0):OFFSET(D219,-1,0)) -> 0 | E193: =SUBTOTAL(9,OFFSET(E193,1,0):OFFSET(E219,-1,0)) -> 0 | F193: =SUBTOTAL(9,OFFSET(F193,1,0):OFFSET(F219,-1,0)) -> 0 | G193: =SUBTOTAL(9,OFFSET(G193,1,0):OFFSET(G219,-1,0)) -> 0 | H193: =SUBTOTAL(9,OFFSET(H193,1,0):OFFSET(H219,-1,0)) -> 0 | I193: =SUBTOTAL(9,OFFSET(I193,1,0):OFFSET(I219,-1,0)) -> 0 | J193: =SUBTOTAL(9,OFFSET(J193,1,0):OFFSET(J219,-1,0)) -> 0 | K193: =SUBTOTAL(9,OFFSET(K193,1,0):OFFSET(K219,-1,0)) -> 0 | L193: =SUBTOTAL(9,OFFSET(L193,1,0):OFFSET(L219,-1,0)) -> 0 | M193: =SUBTOTAL(9,OFFSET(M193,1,0):OFFSET(M219,-1,0)) -> 0 | N193: =SUBTOTAL(9,OFFSET(N193,1,0):OFFSET(N219,-1,0)) -> 0 | O193: =SUBTOTAL(9,OFFSET(O193,1,0):OFFSET(O219,-1,0)) -> 0 | P193: =SUBTOTAL(9,OFFSET(P193,1,0):OFFSET(P219,-1,0)) -> 0 | Q193: =SUBTOTAL(9,OFFSET(Q193,1,0):OFFSET(Q219,-1,0)) -> 0 | R193: =SUBTOTAL(9,OFFSET(R193,1,0):OFFSET(R219,-1,0)) -> 0 | S193: =SUBTOTAL(9,OFFSET(S193,1,0):OFFSET(S219,-1,0)) -> 0 | T193: =SUBTOTAL(9,OFFSET(T193,1,0):OFFSET(T219,-1,0)) -> 0 | U193: =SUBTOTAL(9,OFFSET(U193,1,0):OFFSET(U219,-1,0)) -> 0 | V193: =SUBTOTAL(9,OFFSET(V193,1,0):OFFSET(V219,-1,0)) -> 0 | W193: =SUBTOTAL(9,OFFSET(W193,1,0):OFFSET(W219,-1,0)) -> 0 | X193: =SUBTOTAL(9,OFFSET(X193,1,0):OFFSET(X219,-1,0)) -> 0 | Y193: =SUBTOTAL(9,OFFSET(Y193,1,0):OFFSET(Y219,-1,0)) -> 0 | Z193: =SUBTOTAL(9,OFFSET(Z193,1,0):OFFSET(Z219,-1,0)) -> 0 | AA193: =SUBTOTAL(9,OFFSET(AA193,1,0):OFFSET(AA219,-1,0)) -> 0 | AB193: =SUBTOTAL(9,OFFSET(AB193,1,0):OFFSET(AB219,-1,0)) -> 0 | AC193: =SUBTOTAL(9,OFFSET(AC193,1,0):OFFSET(AC219,-1,0)) -> 0 | AD193: =SUBTOTAL(9,OFFSET(AD193,1,0):OFFSET(AD219,-1,0)) -> 0 | AE193: =SUBTOTAL(9,OFFSET(AE193,1,0):OFFSET(AE219,-1,0)) -> 0 | AF193: =SUBTOTAL(9,OFFSET(AF193,1,0):OFFSET(AF219,-1,0)) -> 0 | AG193: =SUBTOTAL(9,OFFSET(AG193,1,0):OFFSET(AG219,-1,0)) -> 0 | AH193: =SUBTOTAL(9,OFFSET(AH193,1,0):OFFSET(AH219,-1,0)) -> 0 | AI193: =SUBTOTAL(9,OFFSET(AI193,1,0):OFFSET(AI219,-1,0)) -> 0 | AJ193: =SUBTOTAL(9,OFFSET(AJ193,1,0):OFFSET(AJ219,-1,0)) -> 0 | AK193: =SUBTOTAL(9,OFFSET(AK193,1,0):OFFSET(AK219,-1,0)) -> 0 | AL193: =SUBTOTAL(9,OFFSET(AL193,1,0):OFFSET(AL219,-1,0)) -> 0 | AM193: =SUBTOTAL(9,OFFSET(AM193,1,0):OFFSET(AM219,-1,0)) -> 0 | AN193: =SUBTOTAL(9,OFFSET(AN193,1,0):OFFSET(AN219,-1,0)) -> 0 | AO193: =SUBTOTAL(9,OFFSET(AO193,1,0):OFFSET(AO219,-1,0)) -> 0 | AP193: =SUBTOTAL(9,OFFSET(AP193,1,0):OFFSET(AP219,-1,0)) -> 0 | AQ193: =SUBTOTAL(9,OFFSET(AQ193,1,0):OFFSET(AQ219,-1,0)) -> 0 | AR193: =SUBTOTAL(9,OFFSET(AR193,1,0):OFFSET(AR219,-1,0)) -> 0 | AS193: =SUBTOTAL(9,OFFSET(AS193,1,0):OFFSET(AS219,-1,0)) -> 0 | AT193: =SUBTOTAL(9,OFFSET(AT193,1,0):OFFSET(AT219,-1,0)) -> 0 | AU193: =SUBTOTAL(9,OFFSET(AU193,1,0):OFFSET(AU219,-1,0)) -> 0 | AV193: =SUBTOTAL(9,OFFSET(AV193,1,0):OFFSET(AV219,-1,0)) -> 0 | AW193: =SUBTOTAL(9,OFFSET(AW193,1,0):OFFSET(AW219,-1,0)) -> 0 | AX193: =SUBTOTAL(9,OFFSET(AX193,1,0):OFFSET(AX219,-1,0)) -> 0 | AY193: =SUBTOTAL(9,OFFSET(AY193,1,0):OFFSET(AY219,-1,0)) -> 0 | AZ193: 0
A194: 404 Permit Application | AZ194: =SUM(INDIRECT("B"&ROW()&":"&ADDRESS(ROW(),COLUMN()-1))) -> 0
A195: Air Quality Impact Analysis | AZ195: 0
A196: Archaeology | AZ196: 0
A197: Architectural History | AZ197: 0
A198: Biological Studies | AZ198: 0
A199: Coordination | AZ199: 0
A200: Cultural Studies | AZ200: 0
A201: Documentation and Report | AZ201: 0
A202: Environmental Impact Study (EIS) | AZ202: 0
... 64 more rows

Sheet Other Direct Costs
A1: Independent Cost Estimate (ICE) - Part 1 (Other Direct Costs)
A2: Local Agency : | B2: =+'LPA Estimate of Hours'!B2 -> 
A3: Project Name : | B3: =+'LPA Estimate of Hours'!B3 -> 
A4: Project Location : | B4: =+'LPA Estimate of Hours'!B4 -> 0
A5: Control No. : | B5: =+'LPA Estimate of Hours'!B5 -> 
A6: Local Agency Responsible Charge : | B6: =+'LPA Estimate of Hours'!B6 -> 0
A7: Phone : | B7: =+'LPA Estimate of Hours'!B7 -> 
A8: E-mail : | B8: =+'LPA Estimate of Hours'!B8 -> 0
A9: Date : | B9: =+'LPA Estimate of Hours'!B9 -> 
A13: Scroll down for example | B13: LOCAL AGENCY (ODC)
A14: Printing and Reproduction | B14: Quantity | C14: Unit Cost (1) | D14: Amount
C15: 0 | D15: =+B15*C15 -> 0
C16: 0 | D16: 0
C17: 0 | D17: 0
C18: 0 | D18: =+B18*C18 -> 0
A19: Double click HERE to insert rows; Ctrl + d to delete rows | B19: SUBTOTAL | D19: =SUM(D$15:OFFSET(D19,-1,0)) -> 0
A21: Mileage/Travel | B21: Quantity | C21: Unit Cost (2) | D21: Amount
C22: 0 | D22: =+B22*C22 -> 0
C23: 0 | D23: 0
C24: 0 | D24: 0
C25: 0 | D25: 0
A26: Double click HERE to insert rows; Ctrl + d to delete rows | B26: SUBTOTAL | D26: =SUM(D$22:OFFSET(D26,-1,0)) -> 0
A29: Lodging/Meals | B29: Quantity | C29: Unit Cost (3) | D29: Amount
C30: 0 | D30: =+B30*C30 -> 0
C31: 0 | D31: 0
C32: 0 | D32: 0
C33: 0 | D33: 0
A34: Double click HERE to insert rows; Ctrl + d to delete rows | B34: SUBTOTAL | D34: =SUM(D$30:OFFSET(D34,-1,0)) -> 0
A36: Other Miscellaneous Costs | B36: Quantity | C36: Unit Cost (4) | D36: Amount
C37: 0 | D37: =+B37*C37 -> 0
C38: 0 | D38: 0
C39: 0 | D39: =+B39*C39 -> 0
C40: 0 | D40: =+B40*C40 -> 0
A41: Double click HERE to insert rows; Ctrl + d to delete rows | B41: SUBTOTAL | D41: =SUM(D$37:OFFSET(D41,-1,0)) -> 0
A43: OTHER DIRECT COSTS (ODC) | D43: Amount
A44: Printing and Reproduction: | D44: =+D19 -> 0
A45: Mileage/Travel: | D45: =+D26 -> 0
A46: Lodging/ Meals: | D46: =+D34 -> 0
A47: Other Miscellaneous Costs: | D47: =+D41 -> 0
B48: TOTAL (OTHER DIRECT COSTS) | D48: =SUM(D44:D47) -> 0
A51: Notes:
A52: (1) Identify the source of unit cost (actual or assumed). Rate should be reasonable.
A53: (2) Mileage and travel shall not exceed rates authorized to be paid to rank and file STATE employees under current California Department of Human Resources (CalHR).
A54: (3) Lodging and meals shall not exceed rates authorized to be paid to rank and file STATE employees under current California Department of Human Resources (CalHR).
A55: (4) Identify the source of unit cost (actual or assumed). Rate should be reasonable.
A57: Printing and Reproduction | B57: Quantity | C57: Unit Cost (1) | D57: Amount
A58: 86 - 34"x22" plan sheets plotted 2 times @ $1.50/plot | B58: =86*2 -> 172 | C58: 1.5 | D58: =+B58*C58 -> 258
A59: 86 - 11"x17" half size plan sheets plotted 10 times @ $0.08/sheet | B59: 860 | C59: 0.08 | D59: =+B59*C59 -> 68.8
A60: 10 displays, 32"x40" @ $1.70/SF mounted | B60: 88.89 | C60: 1.7 | D60: 151.113
A61: 5,000 black & white copies @ $0.05/sheet | B61: 5000 | C61: 0.05 | D61: 250
A62: 2,000 color copies @ $0.18/sheet | B62: 2000 | C62: 0.18 | D62: 360
C63: Subtotal | D63: =SUM(D58:D62) -> 1087.913
A64: Mileage/Travel | B64: Quantity | C64: Unit Cost (2) | D64: Amount
A65: 2 trips to Lincoln @ 120 mi/trip | B65: 240 | C65: 0.58 | D65: =+B65*C65 -> 139.2
A66: 6 trips to Public Works Department @ 14 mi/trip @ $0.575/mi | B66: 84 | C66: 0.58 | D66: =+B66*C66 -> 48.72
A67: 4 trips to project site @ 24 mi/trip | B67: 96 | C67: 0.58 | D67: 55.68
A68: 10 miles traveled on the project site @ $0.575/mi | B68: 10 | C68: 0.58 | D68: 5.8
C69: Subtotal | D69: =SUM(D65:D68) -> 249.4
A70: Lodging/Meals | B70: Quantity | C70: Unit Cost (3) | D70: Amount
A71: Hotel (16 nights @ $96 + $17.43) | B71: 16 | C71: 113.43 | D71: =+B71*C71 -> 1814.88
A72: Meals (6 full days @ $55/day) | B72: 6 | C72: 55 | D72: 330 | P72: `
A73: Meals (4 first/last days @ $41.25/day) | B73: 4 | C73: 41.25 | D73: 165
C74: Subtotal | D74: =SUM(D71:D73) -> 2309.88
A75: Other Miscellaneous Costs | B75: Quantity | C75: Unit Cost (4) | D75: Amount
A76: Miscellaneous Postage, Mailing, Deliveries Etc. | B76: 1 | C76: 125 | D76: =+B76*C76 -> 125
C77: Subtotal | D77: =SUM(D76:D76) -> 125
A79: OTHER DIRECT COSTS (ODC) | D79: Amount
A80: Printing and Reproduction | D80: =+D63 -> 1087.913
A81: Mileage/Travel | D81: =+D69 -> 249.4
A82: Lodging/ Meals | D82: =+D74 -> 2309.88
A83: Other Miscellaneous Costs | D83: =+D77 -> 125
B85: TOTAL OTHER DIRECT COSTS | D85: =SUM(D80:D83) -> 3772.193

Sheet Direct Costs
B1: Independent Cost Estimate - Part 1 (Direct Costs)
B2: Local Agency : | C2: =+'LPA Estimate of Hours'!B2 -> 
B3: Project Name : | C3: =+'LPA Estimate of Hours'!B3 -> 
B4: Project Location : | C4: =+'LPA Estimate of Hours'!B4 -> 0
B5: Control No. : | C5: =+'LPA Estimate of Hours'!B5 -> 
B6: Local Agency Responsible Charge : | C6: =+'LPA Estimate of Hours'!B6 -> 0
B7: Phone : | C7: =+'LPA Estimate of Hours'!B7 -> 
B8: E-mail : | C8: =+'LPA Estimate of Hours'!B8 -> 0
B9: Date : | C9: =+'LPA Estimate of Hours'!B9 -> 
A12: Direct Costs
A13: Code | B13: Title | C13: Hours | D13: Rate | E13: Amount
A14: =IFERROR(INDEX('LPA Estimate of Hours'!$B$17:$AZY$17,ROWS(B$1:B1)),"-") ->  | B14: =IFERROR(VLOOKUP(A14,'Salary Range'!$A$3:$B$100,2,)," ") ->  | C14: =IFERROR(INDEX('LPA Estimate of Hours'!$B$264:$AY$264,ROWS(B$1:B1)),"0") -> 0 | D14: =IF(C14>0,VLOOKUP(A14,WageRates,3,),0) -> 0 | E14: =+C14*D14 -> 0
A15: =IFERROR(INDEX('LPA Estimate of Hours'!$B$17:$AZY$17,ROWS(A$1:A2)),"-") ->  | B15: =IFERROR(VLOOKUP(A15,'Salary Range'!$A$3:$B$100,2,)," ") ->  | C15: =IFERROR(INDEX('LPA Estimate of Hours'!$B$264:$AY$264,ROWS(A$1:A2)),"0") -> 0 | D15: 0 | E15: =+C15*D15 -> 0
A16: =IFERROR(INDEX('LPA Estimate of Hours'!$B$17:$AZY$17,ROWS(A$1:A3)),"-") ->  | B16: =IFERROR(VLOOKUP(A16,'Salary Range'!$A$3:$B$100,2,)," ") ->  | C16: =IFERROR(INDEX('LPA Estimate of Hours'!$B$264:$AY$264,ROWS(A$1:A3)),"0") -> 0 | D16: 0 | E16: 0
A17: =IFERROR(INDEX('LPA Estimate of Hours'!$B$17:$AZY$17,ROWS(A$1:A4)),"-") ->  | B17: =IFERROR(VLOOKUP(A17,'Salary Range'!$A$3:$B$100,2,)," ") ->  | C17: =IFERROR(INDEX('LPA Estimate of Hours'!$B$264:$AY$264,ROWS(A$1:A4)),"0") -> 0 | D17: 0 | E17: 0
A18: =IFERROR(INDEX('LPA Estimate of Hours'!$B$17:$AZY$17,ROWS(A$1:A5)),"-") ->  | B18: =IFERROR(VLOOKUP(A18,'Salary Range'!$A$3:$B$100,2,)," ") ->  | C18: =IFERROR(INDEX('LPA Estimate of Hours'!$B$264:$AY$264,ROWS(A$1:A5)),"0") -> 0 | D18: 0 | E18: 0
A19: =IFERROR(INDEX('LPA Estimate of Hours'!$B$17:$AZY$17,ROWS(A$1:A6)),"-") ->  | B19: =IFERROR(VLOOKUP(A19,'Salary Range'!$A$3:$B$100,2,)," ") ->  | C19: =IFERROR(INDEX('LPA Estimate of Hours'!$B$264:$AY$264,ROWS(A$1:A6)),"0") -> 0 | D19: 0 | E19: 0
A20: =IFERROR(INDEX('LPA Estimate of Hours'!$B$17:$AZY$17,ROWS(A$1:A7)),"-") ->  | B20: =IFERROR(VLOOKUP(A20,'Salary Range'!$A$3:$B$100,2,)," ") ->  | C20: =IFERROR(INDEX('LPA Estimate of Hours'!$B$264:$AY$264,ROWS(A$1:A7)),"0") -> 0 | D20: 0 | E20: 0
A21: =IFERROR(INDEX('LPA Estimate of Hours'!$B$17:$AZY$17,ROWS(A$1:A8)),"-") ->  | B21: =IFERROR(VLOOKUP(A21,'Salary Range'!$A$3:$B$100,2,)," ") ->  | C21: =IFERROR(INDEX('LPA Estimate of Hours'!$B$264:$AY$264,ROWS(A$1:A8)),"0") -> 0 | D21: 0 | E21: 0
A22: =IFERROR(INDEX('LPA Estimate of Hours'!$B$17:$AZY$17,ROWS(A$1:A9)),"-") ->  | B22: =IFERROR(VLOOKUP(A22,'Salary Range'!$A$3:$B$100,2,)," ") ->  | C22: =IFERROR(INDEX('LPA Estimate of Hours'!$B$264:$AY$264,ROWS(A$1:A9)),"0") -> 0 | D22: 0 | E22: 0
A23: =IFERROR(INDEX('LPA Estimate of Hours'!$B$17:$AZY$17,ROWS(A$1:A10)),"-") ->  | B23: =IFERROR(VLOOKUP(A23,'Salary Range'!$A$3:$B$100,2,)," ") ->  | C23: =IFERROR(INDEX('LPA Estimate of Hours'!$B$264:$AY$264,ROWS(A$1:A10)),"0") -> 0 | D23: 0 | E23: 0
A24: =IFERROR(INDEX('LPA Estimate of Hours'!$B$17:$AZY$17,ROWS(A$1:A11)),"-") ->  | B24: =IFERROR(VLOOKUP(A24,'Salary Range'!$A$3:$B$100,2,)," ") ->  | C24: =IFERROR(INDEX('LPA Estimate of Hours'!$B$264:$AY$264,ROWS(A$1:A11)),"0") -> 0 | D24: 0 | E24: 0
A25: =IFERROR(INDEX('LPA Estimate of Hours'!$B$17:$AZY$17,ROWS(A$1:A12)),"-") ->  | B25: =IFERROR(VLOOKUP(A25,'Salary Range'!$A$3:$B$100,2,)," ") ->  | C25: =IFERROR(INDEX('LPA Estimate of Hours'!$B$264:$AY$264,ROWS(A$1:A12)),"0") -> 0 | D25: 0 | E25: 0
A26: =IFERROR(INDEX('LPA Estimate of Hours'!$B$17:$AZY$17,ROWS(A$1:A13)),"-") ->  | B26: =IFERROR(VLOOKUP(A26,'Salary Range'!$A$3:$B$100,2,)," ") ->  | C26: =IFERROR(INDEX('LPA Estimate of Hours'!$B$264:$AY$264,ROWS(A$1:A13)),"0") -> 0 | D26: 0 | E26: 0
A27: =IFERROR(INDEX('LPA Estimate of Hours'!$B$17:$AZY$17,ROWS(A$1:A14)),"-") ->  | B27: =IFERROR(VLOOKUP(A27,'Salary Range'!$A$3:$B$100,2,)," ") ->  | C27: =IFERROR(INDEX('LPA Estimate of Hours'!$B$264:$AY$264,ROWS(A$1:A14)),"0") -> 0 | D27: 0 | E27: 0
A28: =IFERROR(INDEX('LPA Estimate of Hours'!$B$17:$AZY$17,ROWS(A$1:A15)),"-") ->  | B28: =IFERROR(VLOOKUP(A28,'Salary Range'!$A$3:$B$100,2,)," ") ->  | C28: =IFERROR(INDEX('LPA Estimate of Hours'!$B$264:$AY$264,ROWS(A$1:A15)),"0") -> 0 | D28: 0 | E28: 0
A29: =IFERROR(INDEX('LPA Estimate of Hours'!$B$17:$AZY$17,ROWS(A$1:A16)),"-") ->  | B29: =IFERROR(VLOOKUP(A29,'Salary Range'!$A$3:$B$100,2,)," ") ->  | C29: =IFERROR(INDEX('LPA Estimate of Hours'!$B$264:$AY$264,ROWS(A$1:A16)),"0") -> 0 | D29: 0 | E29: 0
A30: =IFERROR(INDEX('LPA Estimate of Hours'!$B$17:$AZY$17,ROWS(A$1:A17)),"-") ->  | B30: =IFERROR(VLOOKUP(A30,'Salary Range'!$A$3:$B$100,2,)," ") ->  | C30: =IFERROR(INDEX('LPA Estimate of Hours'!$B$264:$AY$264,ROWS(A$1:A17)),"0") -> 0 | D30: 0 | E30: 0
A31: =IFERROR(INDEX('LPA Estimate of Hours'!$B$17:$AZY$17,ROWS(A$1:A18)),"-") ->  | B31: =IFERROR(VLOOKUP(A31,'Salary Range'!$A$3:$B$100,2,)," ") ->  | C31: =IFERROR(INDEX('LPA Estimate of Hours'!$B$264:$AY$264,ROWS(A$1:A18)),"0") -> 0 | D31: 0 | E31: 0
A32: =IFERROR(INDEX('LPA Estimate of Hours'!$B$17:$AZY$17,ROWS(A$1:A19)),"-") ->  | B32: =IFERROR(VLOOKUP(A32,'Salary Range'!$A$3:$B$100,2,)," ") ->  | C32: =IFERROR(INDEX('LPA Estimate of Hours'!$B$264:$AY$264,ROWS(A$1:A19)),"0") -> 0 | D32: 0 | E32: 0
A33: =IFERROR(INDEX('LPA Estimate of Hours'!$B$17:$AZY$17,ROWS(A$1:A20)),"-") ->  | B33: =IFERROR(VLOOKUP(A33,'Salary Range'!$A$3:$B$100,2,)," ") ->  | C33: =IFERROR(INDEX('LPA Estimate of Hours'!$B$264:$AY$264,ROWS(A$1:A20)),"0") -> 0 | D33: 0 | E33: 0
A34: =IFERROR(INDEX('LPA Estimate of Hours'!$B$17:$AZY$17,ROWS(A$1:A21)),"-") ->  | B34: =IFERROR(VLOOKUP(A34,'Salary Range'!$A$3:$B$100,2,)," ") ->  | C34: =IFERROR(INDEX('LPA Estimate of Hours'!$B$264:$AY$264,ROWS(A$1:A21)),"0") -> 0 | D34: 0 | E34: 0
A35: =IFERROR(INDEX('LPA Estimate of Hours'!$B$17:$AZY$17,ROWS(A$1:A22)),"-") ->  | B35: =IFERROR(VLOOKUP(A35,'Salary Range'!$A$3:$B$100,2,)," ") ->  | C35: =IFERROR(INDEX('LPA Estimate of Hours'!$B$264:$AY$264,ROWS(A$1:A22)),"0") -> 0 | D35: 0 | E35: 0
A36: =IFERROR(INDEX('LPA Estimate of Hours'!$B$17:$AZY$17,ROWS(A$1:A23)),"-") ->  | B36: =IFERROR(VLOOKUP(A36,'Salary Range'!$A$3:$B$100,2,)," ") ->  | C36: =IFERROR(INDEX('LPA Estimate of Hours'!$B$264:$AY$264,ROWS(A$1:A23)),"0") -> 0 | D36: 0 | E36: 0
A37: =IFERROR(INDEX('LPA Estimate of Hours'!$B$17:$AZY$17,ROWS(A$1:A24)),"-") ->  | B37: =IFERROR(VLOOKUP(A37,'Salary Range'!$A$3:$B$100,2,)," ") ->  | C37: =IFERROR(INDEX('LPA Estimate of Hours'!$B$264:$AY$264,ROWS(A$1:A24)),"0") -> 0 | D37: 0 | E37: 0
A38: =IFERROR(INDEX('LPA Estimate of Hours'!$B$17:$AZY$17,ROWS(A$1:A25)),"-") ->  | B38: =IFERROR(VLOOKUP(A38,'Salary Range'!$A$3:$B$100,2,)," ") ->  | C38: =IFERROR(INDEX('LPA Estimate of Hours'!$B$264:$AY$264,ROWS(A$1:A25)),"0") -> 0 | D38: 0 | E38: 0
A39: =IFERROR(INDEX('LPA Estimate of Hours'!$B$17:$AZY$17,ROWS(A$1:A26)),"-") ->  | B39: =IFERROR(VLOOKUP(A39,'Salary Range'!$A$3:$B$100,2,)," ") ->  | C39: =IFERROR(INDEX('LPA Estimate of Hours'!$B$264:$AY$264,ROWS(A$1:A26)),"0") -> 0 | D39: 0 | E39: 0
A40: =IFERROR(INDEX('LPA Estimate of Hours'!$B$17:$AZY$17,ROWS(A$1:A27)),"-") ->  | B40: =IFERROR(VLOOKUP(A40,'Salary Range'!$A$3:$B$100,2,)," ") ->  | C40: =IFERROR(INDEX('LPA Estimate of Hours'!$B$264:$AY$264,ROWS(A$1:A27)),"0") -> 0 | D40: 0 | E40: 0
A41: =IFERROR(INDEX('LPA Estimate of Hours'!$B$17:$AZY$17,ROWS(A$1:A28)),"-") ->  | B41: =IFERROR(VLOOKUP(A41,'Salary Range'!$A$3:$B$100,2,)," ") ->  | C41: =IFERROR(INDEX('LPA Estimate of Hours'!$B$264:$AY$264,ROWS(A$1:A28)),"0") -> 0 | D41: 0 | E41: 0
A42: =IFERROR(INDEX('LPA Estimate of Hours'!$B$17:$AZY$17,ROWS(A$1:A29)),"-") ->  | B42: =IFERROR(VLOOKUP(A42,'Salary Range'!$A$3:$B$100,2,)," ") ->  | C42: =IFERROR(INDEX('LPA Estimate of Hours'!$B$264:$AY$264,ROWS(A$1:A29)),"0") -> 0 | D42: 0 | E42: 0
A43: =IFERROR(INDEX('LPA Estimate of Hours'!$B$17:$AZY$17,ROWS(A$1:A30)),"-") ->  | B43: =IFERROR(VLOOKUP(A43,'Salary Range'!$A$3:$B$100,2,)," ") ->  | C43: =IFERROR(INDEX('LPA Estimate of Hours'!$B$264:$AY$264,ROWS(A$1:A30)),"0") -> 0 | D43: 0 | E43: 0
A44: =IFERROR(INDEX('LPA Estimate of Hours'!$B$17:$AZY$17,ROWS(A$1:A31)),"-") ->  | B44: =IFERROR(VLOOKUP(A44,'Salary Range'!$A$3:$B$100,2,)," ") ->  | C44: =IFERROR(INDEX('LPA Estimate of Hours'!$B$264:$AY$264,ROWS(A$1:A31)),"0") -> 0 | D44: 0 | E44: 0
A45: =IFERROR(INDEX('LPA Estimate of Hours'!$B$17:$AZY$17,ROWS(A$1:A32)),"-") ->  | B45: =IFERROR(VLOOKUP(A45,'Salary Range'!$A$3:$B$100,2,)," ") ->  | C45: =IFERROR(INDEX('LPA Estimate of Hours'!$B$264:$AY$264,ROWS(A$1:A32)),"0") -> 0 | D45: 0 | E45: 0
A46: =IFERROR(INDEX('LPA Estimate of Hours'!$B$17:$AZY$17,ROWS(A$1:A33)),"-") ->  | B46: =IFERROR(VLOOKUP(A46,'Salary Range'!$A$3:$B$100,2,)," ") ->  | C46: =IFERROR(INDEX('LPA Estimate of Hours'!$B$264:$AY$264,ROWS(A$1:A33)),"0") -> 0 | D46: =IF(C46>0,VLOOKUP(A46,WageRates,3,),0) -> 0 | E46: 0
A47: =IFERROR(INDEX('LPA Estimate of Hours'!$B$17:$AZY$17,ROWS(A$1:A34)),"-") ->  | B47: =IFERROR(VLOOKUP(A47,'Salary Range'!$A$3:$B$100,2,)," ") ->  | C47: =IFERROR(INDEX('LPA Estimate of Hours'!$B$264:$AY$264,ROWS(A$1:A34)),"0") -> 0 | D47: 0 | E47: 0
A48: =IFERROR(INDEX('LPA Estimate of Hours'!$B$17:$AZY$17,ROWS(A$1:A35)),"-") ->  | B48: =IFERROR(VLOOKUP(A48,'Salary Range'!$A$3:$B$100,2,)," ") ->  | C48: =IFERROR(INDEX('LPA Estimate of Hours'!$B$264:$AY$264,ROWS(A$1:A35)),"0") -> 0 | D48: 0 | E48: 0
A49: =IFERROR(INDEX('LPA Estimate of Hours'!$B$17:$AZY$17,ROWS(A$1:A36)),"-") ->  | B49: =IFERROR(VLOOKUP(A49,'Salary Range'!$A$3:$B$100,2,)," ") ->  | C49: =IFERROR(INDEX('LPA Estimate of Hours'!$B$264:$AY$264,ROWS(A$1:A36)),"0") -> 0 | D49: 0 | E49: 0
A50: =IFERROR(INDEX('LPA Estimate of Hours'!$B$17:$AZY$17,ROWS(A$1:A37)),"-") ->  | B50: =IFERROR(VLOOKUP(A50,'Salary Range'!$A$3:$B$100,2,)," ") ->  | C50: =IFERROR(INDEX('LPA Estimate of Hours'!$B$264:$AY$264,ROWS(A$1:A37)),"0") -> 0 | D50: 0 | E50: 0
A51: =IFERROR(INDEX('LPA Estimate of Hours'!$B$17:$AZY$17,ROWS(A$1:A38)),"-") ->  | B51: =IFERROR(VLOOKUP(A51,'Salary Range'!$A$3:$B$100,2,)," ") ->  | C51: =IFERROR(INDEX('LPA Estimate of Hours'!$B$264:$AY$264,ROWS(A$1:A38)),"0") -> 0 | D51: 0 | E51: 0
A52: =IFERROR(INDEX('LPA Estimate of Hours'!$B$17:$AZY$17,ROWS(A$1:A39)),"-") ->  | B52: =IFERROR(VLOOKUP(A52,'Salary Range'!$A$3:$B$100,2,)," ") ->  | C52: =IFERROR(INDEX('LPA Estimate of Hours'!$B$264:$AY$264,ROWS(A$1:A39)),"0") -> 0 | D52: 0 | E52: 0
A53: =IFERROR(INDEX('LPA Estimate of Hours'!$B$17:$AZY$17,ROWS(A$1:A40)),"-") ->  | B53: =IFERROR(VLOOKUP(A53,'Salary Range'!$A$3:$B$100,2,)," ") ->  | C53: =IFERROR(INDEX('LPA Estimate of Hours'!$B$264:$AY$264,ROWS(A$1:A40)),"0") -> 0 | D53: 0 | E53: 0
A54: =IFERROR(INDEX('LPA Estimate of Hours'!$B$17:$AZY$17,ROWS(A$1:A41)),"-") ->  | B54: =IFERROR(VLOOKUP(A54,'Salary Range'!$A$3:$B$100,2,)," ") ->  | C54: =IFERROR(INDEX('LPA Estimate of Hours'!$B$264:$AY$264,ROWS(A$1:A41)),"0") -> 0 | D54: 0 | E54: 0
A55: =IFERROR(INDEX('LPA Estimate of Hours'!$B$17:$AZY$17,ROWS(A$1:A42)),"-") ->  | B55: =IFERROR(VLOOKUP(A55,'Salary Range'!$A$3:$B$100,2,)," ") ->  | C55: =IFERROR(INDEX('LPA Estimate of Hours'!$B$264:$AY$264,ROWS(A$1:A42)),"0") -> 0 | D55: 0 | E55: 0
A56: =IFERROR(INDEX('LPA Estimate of Hours'!$B$17:$AZY$17,ROWS(A$1:A43)),"-") ->  | B56: =IFERROR(VLOOKUP(A56,'Salary Range'!$A$3:$B$100,2,)," ") ->  | C56: =IFERROR(INDEX('LPA Estimate of Hours'!$B$264:$AY$264,ROWS(A$1:A43)),"0") -> 0 | D56: 0 | E56: 0
A57: =IFERROR(INDEX('LPA Estimate of Hours'!$B$17:$AZY$17,ROWS(A$1:A44)),"-") ->  | B57: =IFERROR(VLOOKUP(A57,'Salary Range'!$A$3:$B$100,2,)," ") ->  | C57: =IFERROR(INDEX('LPA Estimate of Hours'!$B$264:$AY$264,ROWS(A$1:A44)),"0") -> 0 | D57: 0 | E57: 0
A58: =IFERROR(INDEX('LPA Estimate of Hours'!$B$17:$AZY$17,ROWS(A$1:A45)),"-") ->  | B58: =IFERROR(VLOOKUP(A58,'Salary Range'!$A$3:$B$100,2,)," ") ->  | C58: =IFERROR(INDEX('LPA Estimate of Hours'!$B$264:$AY$264,ROWS(A$1:A45)),"0") -> 0 | D58: 0 | E58: 0
A59: =IFERROR(INDEX('LPA Estimate of Hours'!$B$17:$AZY$17,ROWS(A$1:A46)),"-") ->  | B59: =IFERROR(VLOOKUP(A59,'Salary Range'!$A$3:$B$100,2,)," ") ->  | C59: =IFERROR(INDEX('LPA Estimate of Hours'!$B$264:$AY$264,ROWS(A$1:A46)),"0") -> 0 | D59: 0 | E59: =+C59*D59 -> 0
A60: =IFERROR(INDEX('LPA Estimate of Hours'!$B$17:$AZY$17,ROWS(A$1:A47)),"-") ->  | B60: =IFERROR(VLOOKUP(A60,'Salary Range'!$A$3:$B$100,2,)," ") ->  | C60: =IFERROR(INDEX('LPA Estimate of Hours'!$B$264:$AY$264,ROWS(A$1:A47)),"0") -> 0 | D60: 0 | E60: 0
A61: =IFERROR(INDEX('LPA Estimate of Hours'!$B$17:$AZY$17,ROWS(A$1:A48)),"-") ->  | B61: =IFERROR(VLOOKUP(A61,'Salary Range'!$A$3:$B$100,2,)," ") ->  | C61: =IFERROR(INDEX('LPA Estimate of Hours'!$B$264:$AY$264,ROWS(A$1:A48)),"0") -> 0 | D61: 0 | E61: 0
A62: =IFERROR(INDEX('LPA Estimate of Hours'!$B$17:$AZY$17,ROWS(A$1:A49)),"-") ->  | B62: =IFERROR(VLOOKUP(A62,'Salary Range'!$A$3:$B$100,2,)," ") ->  | C62: =IFERROR(INDEX('LPA Estimate of Hours'!$B$264:$AY$264,ROWS(A$1:A49)),"0") -> 0 | D62: 0 | E62: 0
A63: =IFERROR(INDEX('LPA Estimate of Hours'!$B$17:$AZY$17,ROWS(A$1:A50)),"-") ->  | B63: =IFERROR(VLOOKUP(A63,'Salary Range'!$A$3:$B$100,2,)," ") ->  | C63: =IFERROR(INDEX('LPA Estimate of Hours'!$B$264:$AY$264,ROWS(A$1:A50)),"0") -> 0 | D63: 0 | E63: =+C63*D63 -> 0
D64: Total Direct Costs | E64: =SUM(E14:E63) -> 0

Sheet Project Cost
A1: Independent Cost Estimate - Part 1 (Project Cost)
A2: Local Agency : | B2: =+'LPA Estimate of Hours'!B2 -> 
A3: Project Name : | B3: =+'LPA Estimate of Hours'!B3 -> 
A4: Project Location : | B4: =+'LPA Estimate of Hours'!B4 -> 0
A5: Control No. : | B5: =+'LPA Estimate of Hours'!B5 -> 
A6: Local Agency Responsible Charge : | B6: =+'LPA Estimate of Hours'!B6 -> 0
A7: Phone : | B7: =+'LPA Estimate of Hours'!B7 -> 
A8: E-mail : | B8: =+'LPA Estimate of Hours'!B8 -> 0
A9: Date : | B9: =+'LPA Estimate of Hours'!B9 -> 
A10: a
A11: a
A12: Direct Costs | B12: Local Agency (ICE)
A13: Title | B13: Hours | C13: Rate | D13: Amount
A14: =+'Direct Costs'!B14 ->  | B14: =+'Direct Costs'!C14 -> 0 | C14: =+'Direct Costs'!D14 -> 0 | D14: =+'Direct Costs'!E14 -> 0
A15: =+'Direct Costs'!B15 ->  | B15: =+'Direct Costs'!C15 -> 0 | C15: =+'Direct Costs'!D15 -> 0 | D15: =+'Direct Costs'!E15 -> 0
A16: =+'Direct Costs'!B16 ->  | B16: =+'Direct Costs'!C16 -> 0 | C16: =+'Direct Costs'!D16 -> 0 | D16: =+'Direct Costs'!E16 -> 0
A17: =+'Direct Costs'!B17 ->  | B17: =+'Direct Costs'!C17 -> 0 | C17: =+'Direct Costs'!D17 -> 0 | D17: =+'Direct Costs'!E17 -> 0
A18: =+'Direct Costs'!B18 ->  | B18: =+'Direct Costs'!C18 -> 0 | C18: =+'Direct Costs'!D18 -> 0 | D18: =+'Direct Costs'!E18 -> 0
A19: =+'Direct Costs'!B19 ->  | B19: =+'Direct Costs'!C19 -> 0 | C19: =+'Direct Costs'!D19 -> 0 | D19: =+'Direct Costs'!E19 -> 0
A20: =+'Direct Costs'!B20 ->  | B20: =+'Direct Costs'!C20 -> 0 | C20: =+'Direct Costs'!D20 -> 0 | D20: =+'Direct Costs'!E20 -> 0
A21: =+'Direct Costs'!B21 ->  | B21: =+'Direct Costs'!C21 -> 0 | C21: =+'Direct Costs'!D21 -> 0 | D21: =+'Direct Costs'!E21 -> 0
A22: =+'Direct Costs'!B22 ->  | B22: =+'Direct Costs'!C22 -> 0 | C22: =+'Direct Costs'!D22 -> 0 | D22: =+'Direct Costs'!E22 -> 0
A23: =+'Direct Costs'!B23 ->  | B23: =+'Direct Costs'!C23 -> 0 | C23: =+'Direct Costs'!D23 -> 0 | D23: =+'Direct Costs'!E23 -> 0
A24: =+'Direct Costs'!B24 ->  | B24: =+'Direct Costs'!C24 -> 0 | C24: =+'Direct Costs'!D24 -> 0 | D24: =+'Direct Costs'!E24 -> 0
A25: =+'Direct Costs'!B25 ->  | B25: =+'Direct Costs'!C25 -> 0 | C25: =+'Direct Costs'!D25 -> 0 | D25: =+'Direct Costs'!E25 -> 0
A26: =+'Direct Costs'!B26 ->  | B26: =+'Direct Costs'!C26 -> 0 | C26: =+'Direct Costs'!D26 -> 0 | D26: =+'Direct Costs'!E26 -> 0
A27: =+'Direct Costs'!B27 ->  | B27: =+'Direct Costs'!C27 -> 0 | C27: =+'Direct Costs'!D27 -> 0 | D27: =+'Direct Costs'!E27 -> 0
A28: =+'Direct Costs'!B28 ->  | B28: =+'Direct Costs'!C28 -> 0 | C28: =+'Direct Costs'!D28 -> 0 | D28: =+'Direct Costs'!E28 -> 0
A29: =+'Direct Costs'!B29 ->  | B29: =+'Direct Costs'!C29 -> 0 | C29: =+'Direct Costs'!D29 -> 0 | D29: =+'Direct Costs'!E29 -> 0
A30: =+'Direct Costs'!B30 ->  | B30: =+'Direct Costs'!C30 -> 0 | C30: =+'Direct Costs'!D30 -> 0 | D30: =+'Direct Costs'!E30 -> 0
A31: =+'Direct Costs'!B31 ->  | B31: =+'Direct Costs'!C31 -> 0 | C31: =+'Direct Costs'!D31 -> 0 | D31: =+'Direct Costs'!E31 -> 0
A32: =+'Direct Costs'!B32 ->  | B32: =+'Direct Costs'!C32 -> 0 | C32: =+'Direct Costs'!D32 -> 0 | D32: =+'Direct Costs'!E32 -> 0
A33: =+'Direct Costs'!B33 ->  | B33: =+'Direct Costs'!C33 -> 0 | C33: =+'Direct Costs'!D33 -> 0 | D33: =+'Direct Costs'!E33 -> 0
A34: =+'Direct Costs'!B34 ->  | B34: =+'Direct Costs'!C34 -> 0 | C34: =+'Direct Costs'!D34 -> 0 | D34: =+'Direct Costs'!E34 -> 0
A35: =+'Direct Costs'!B35 ->  | B35: =+'Direct Costs'!C35 -> 0 | C35: =+'Direct Costs'!D35 -> 0 | D35: =+'Direct Costs'!E35 -> 0
A36: =+'Direct Costs'!B36 ->  | B36: =+'Direct Costs'!C36 -> 0 | C36: =+'Direct Costs'!D36 -> 0 | D36: =+'Direct Costs'!E36 -> 0
A37: =+'Direct Costs'!B37 ->  | B37: =+'Direct Costs'!C37 -> 0 | C37: =+'Direct Costs'!D37 -> 0 | D37: =+'Direct Costs'!E37 -> 0
A38: =+'Direct Costs'!B38 ->  | B38: =+'Direct Costs'!C38 -> 0 | C38: =+'Direct Costs'!D38 -> 0 | D38: =+'Direct Costs'!E38 -> 0
A39: =+'Direct Costs'!B39 ->  | B39: =+'Direct Costs'!C39 -> 0 | C39: =+'Direct Costs'!D39 -> 0 | D39: =+'Direct Costs'!E39 -> 0
A40: =+'Direct Costs'!B40 ->  | B40: =+'Direct Costs'!C40 -> 0 | C40: =+'Direct Costs'!D40 -> 0 | D40: =+'Direct Costs'!E40 -> 0
A41: =+'Direct Costs'!B41 ->  | B41: =+'Direct Costs'!C41 -> 0 | C41: =+'Direct Costs'!D41 -> 0 | D41: =+'Direct Costs'!E41 -> 0
A42: =+'Direct Costs'!B42 ->  | B42: =+'Direct Costs'!C42 -> 0 | C42: =+'Direct Costs'!D42 -> 0 | D42: =+'Direct Costs'!E42 -> 0
A43: =+'Direct Costs'!B43 ->  | B43: =+'Direct Costs'!C43 -> 0 | C43: =+'Direct Costs'!D43 -> 0 | D43: =+'Direct Costs'!E43 -> 0
A44: =+'Direct Costs'!B44 ->  | B44: =+'Direct Costs'!C44 -> 0 | C44: =+'Direct Costs'!D44 -> 0 | D44: =+'Direct Costs'!E44 -> 0
A45: =+'Direct Costs'!B45 ->  | B45: =+'Direct Costs'!C45 -> 0 | C45: =+'Direct Costs'!D45 -> 0 | D45: =+'Direct Costs'!E45 -> 0
A46: =+'Direct Costs'!B46 ->  | B46: =+'Direct Costs'!C46 -> 0 | C46: =+'Direct Costs'!D46 -> 0 | D46: =+'Direct Costs'!E46 -> 0
A47: =+'Direct Costs'!B47 ->  | B47: =+'Direct Costs'!C47 -> 0 | C47: =+'Direct Costs'!D47 -> 0 | D47: =+'Direct Costs'!E47 -> 0
A48: =+'Direct Costs'!B48 ->  | B48: =+'Direct Costs'!C48 -> 0 | C48: =+'Direct Costs'!D48 -> 0 | D48: =+'Direct Costs'!E48 -> 0
A49: =+'Direct Costs'!B49 ->  | B49: =+'Direct Costs'!C49 -> 0 | C49: =+'Direct Costs'!D49 -> 0 | D49: =+'Direct Costs'!E49 -> 0
A50: =+'Direct Costs'!B50 ->  | B50: =+'Direct Costs'!C50 -> 0 | C50: =+'Direct Costs'!D50 -> 0 | D50: =+'Direct Costs'!E50 -> 0
A51: =+'Direct Costs'!B51 ->  | B51: =+'Direct Costs'!C51 -> 0 | C51: =+'Direct Costs'!D51 -> 0 | D51: =+'Direct Costs'!E51 -> 0
A52: =+'Direct Costs'!B52 ->  | B52: =+'Direct Costs'!C52 -> 0 | C52: =+'Direct Costs'!D52 -> 0 | D52: =+'Direct Costs'!E52 -> 0
A53: =+'Direct Costs'!B53 ->  | B53: =+'Direct Costs'!C53 -> 0 | C53: =+'Direct Costs'!D53 -> 0 | D53: =+'Direct Costs'!E53 -> 0
A54: =+'Direct Costs'!B54 ->  | B54: =+'Direct Costs'!C54 -> 0 | C54: =+'Direct Costs'!D54 -> 0 | D54: =+'Direct Costs'!E54 -> 0
A55: =+'Direct Costs'!B55 ->  | B55: =+'Direct Costs'!C55 -> 0 | C55: =+'Direct Costs'!D55 -> 0 | D55: =+'Direct Costs'!E55 -> 0
A56: =+'Direct Costs'!B56 ->  | B56: =+'Direct Costs'!C56 -> 0 | C56: =+'Direct Costs'!D56 -> 0 | D56: =+'Direct Costs'!E56 -> 0
A57: =+'Direct Costs'!B57 ->  | B57: =+'Direct Costs'!C57 -> 0 | C57: =+'Direct Costs'!D57 -> 0 | D57: =+'Direct Costs'!E57 -> 0
A58: =+'Direct Costs'!B58 ->  | B58: =+'Direct Costs'!C58 -> 0 | C58: =+'Direct Costs'!D58 -> 0 | D58: =+'Direct Costs'!E58 -> 0
A59: =+'Direct Costs'!B59 ->  | B59: =+'Direct Costs'!C59 -> 0 | C59: =+'Direct Costs'!D59 -> 0 | D59: =+'Direct Costs'!E59 -> 0
A60: =+'Direct Costs'!B60 ->  | B60: =+'Direct Costs'!C60 -> 0 | C60: =+'Direct Costs'!D60 -> 0 | D60: =+'Direct Costs'!E60 -> 0
A61: =+'Direct Costs'!B61 ->  | B61: =+'Direct Costs'!C61 -> 0 | C61: =+'Direct Costs'!D61 -> 0 | D61: =+'Direct Costs'!E61 -> 0
A62: =+'Direct Costs'!B62 ->  | B62: =+'Direct Costs'!C62 -> 0 | C62: =+'Direct Costs'!D62 -> 0 | D62: =+'Direct Costs'!E62 -> 0
A63: =+'Direct Costs'!B63 ->  | B63: =+'Direct Costs'!C63 -> 0 | C63: =+'Direct Costs'!D63 -> 0 | D63: =+'Direct Costs'!E63 -> 0
A64: Double click HERE to insert rows; Ctrl + d to delete rows | B64: TOTAL (Direct Costs) | D64: =SUM(D14:D63) -> 0
A67: OTHER DIRECT COSTS (ODC) | D67: Amount
A68: Printing and Reproduction: | D68: =+'Other Direct Costs'!D19 -> 0
A69: Mileage/Travel: | D69: =+'Other Direct Costs'!D26 -> 0
A70: Lodging/ Meals: | D70: =+'Other Direct Costs'!D34 -> 0
A71: Other Miscellaneous Costs: | D71: =+'Other Direct Costs'!D41 -> 0
A72: A | B72: TOTAL (Other Direct Costs) | D72: =SUM(D68:D71) -> 0
A73: A
A74: A
A75: TOTAL PROJECT COSTS | D75: Amount
A76: Direct Costs | D76: =+D64 -> 0
A77: ICR @ | B77: =+'LPA Estimate of Hours'!B11 -> 0 | D77: =+D76*B77 -> 0
A78: Fixed Fee @ | B78: =+'LPA Estimate of Hours'!B12 -> 0 | D78: =(D76+D77)*B78 -> 0
A79: Escalation rate | B79: =+'LPA Estimate of Hours'!B13 -> 0 | D79: =D76*B79 -> 0
A80: Other Direct Costs (ODC) | D80: =+D72 -> 0
B81: TOTAL PROJECT COST | D81: =SUM(D76:D80) -> 0

Sheet Cost by Task
A1: Independent Cost Estimate - Part 1 (Cost by Task)
A2: Local Agency : | B2: =+'LPA Estimate of Hours'!B2 -> 
A3: Project Name : | B3: =+'LPA Estimate of Hours'!B3 -> 
A4: Project Location : | B4: =+'LPA Estimate of Hours'!B4 -> 0
A5: Control No. : | B5: =+'LPA Estimate of Hours'!B5 -> 
A6: Local Agency Responsible Charge : | B6: =+'LPA Estimate of Hours'!B6 -> 0
A7: Phone : | B7: =+'LPA Estimate of Hours'!B7 -> 
A8: E-mail : | B8: =+'LPA Estimate of Hours'!B8 -> 0
A9: Date : | B9: =+'LPA Estimate of Hours'!B9 -> 
A14: TASKS | B14: TITLE | BB14: =COUNTA(B15:AY15) -> 50
B15: =+'LPA Estimate of Hours'!B17 ->  | C15: =+'LPA Estimate of Hours'!C17 ->  | D15: =+'LPA Estimate of Hours'!D17 ->  | E15: =+'LPA Estimate of Hours'!E17 ->  | F15: =+'LPA Estimate of Hours'!F17 ->  | G15: =+'LPA Estimate of Hours'!G17 ->  | H15: =+'LPA Estimate of Hours'!H17 ->  | I15: =+'LPA Estimate of Hours'!I17 ->  | J15: =+'LPA Estimate of Hours'!J17 ->  | K15: =+'LPA Estimate of Hours'!K17 ->  | L15: =+'LPA Estimate of Hours'!L17 ->  | M15: =+'LPA Estimate of Hours'!M17 ->  | N15: =+'LPA Estimate of Hours'!N17 ->  | O15: =+'LPA Estimate of Hours'!O17 ->  | P15: =+'LPA Estimate of Hours'!P17 ->  | Q15: =+'LPA Estimate of Hours'!Q17 ->  | R15: =+'LPA Estimate of Hours'!R17 ->  | S15: =+'LPA Estimate of Hours'!S17 ->  | T15: =+'LPA Estimate of Hours'!T17 ->  | U15: =+'LPA Estimate of Hours'!U17 ->  | V15: =+'LPA Estimate of Hours'!V17 ->  | W15: =+'LPA Estimate of Hours'!W17 ->  | X15: =+'LPA Estimate of Hours'!X17 ->  | Y15: =+'LPA Estimate of Hours'!Y17 ->  | Z15: =+'LPA Estimate of Hours'!Z17 ->  | AA15: =+'LPA Estimate of Hours'!AA17 ->  | AB15: =+'LPA Estimate of Hours'!AB17 ->  | AC15: =+'LPA Estimate of Hours'!AC17 ->  | AD15: =+'LPA Estimate of Hours'!AD17 ->  | AE15: =+'LPA Estimate of Hours'!AE17 ->  | AF15: =+'LPA Estimate of Hours'!AF17 ->  | AG15: =+'LPA Estimate of Hours'!AG17 ->  | AH15: =+'LPA Estimate of Hours'!AH17 ->  | AI15: =+'LPA Estimate of Hours'!AI17 ->  | AJ15: =+'LPA Estimate of Hours'!AJ17 ->  | AK15: =+'LPA Estimate of Hours'!AK17 ->  | AL15: =+'LPA Estimate of Hours'!AL17 ->  | AM15: =+'LPA Estimate of Hours'!AM17 ->  | AN15: =+'LPA Estimate of Hours'!AN17 ->  | AO15: =+'LPA Estimate of Hours'!AO17 ->  | AP15: =+'LPA Estimate of Hours'!AP17 ->  | AQ15: =+'LPA Estimate of Hours'!AQ17 ->  | AR15: =+'LPA Estimate of Hours'!AR17 ->  | AS15: =+'LPA Estimate of Hours'!AS17 ->  | AT15: =+'LPA Estimate of Hours'!AT17 ->  | AU15: =+'LPA Estimate of Hours'!AU17 ->  | AV15: =+'LPA Estimate of Hours'!AV17 ->  | AW15: =+'LPA Estimate of Hours'!AW17 ->  | AX15: =+'LPA Estimate of Hours'!AX17 ->  | AY15: =+'LPA Estimate of Hours'!AY17 ->  | AZ15: Total | BB15: =COUNT(B15:AY15) -> 0 | BC15: 1 | BD15: 2 | BE15: 3 | BF15: 4 | BG15: 5 | BH15: 6 | BI15: 7 | BJ15: 8 | BK15: 9 | BL15: 10 | BM15: 11 | BN15: 12 | BO15: 13 | BP15: 14 | BQ15: 15 | BR15: 16 | BS15: 17 | BT15: 18 | BU15: 19 | BV15: 20 | BW15: 21 | BX15: 22 | BY15: 23 | BZ15: 24 | CA15: 25 | CB15: 26 | CC15: 27 | CD15: 28 | CE15: 29 | CF15: 30 | CG15: 31 | CH15: 32 | CI15: 33 | CJ15: 34 | CK15: 35 | CL15: 36 | CM15: 37 | CN15: 38 | CO15: 39 | CP15: 40 | CQ15: 41 | CR15: 42 | CS15: 43 | CT15: 44 | CU15: 45 | CV15: 46 | CW15: 47 | CX15: 48 | CY15: 49 | CZ15: 50
A16: =+'LPA Estimate of Hours'!A18 -> 1. Construction Engineering & Inspection | B16: =+'LPA Estimate of Hours'!B18 -> 0 | C16: =+'LPA Estimate of Hours'!C18 -> 0 | D16: =+'LPA Estimate of Hours'!D18 -> 0 | E16: =+'LPA Estimate of Hours'!E18 -> 0 | F16: =+'LPA Estimate of Hours'!F18 -> 0 | G16: =+'LPA Estimate of Hours'!G18 -> 0 | H16: =+'LPA Estimate of Hours'!H18 -> 0 | I16: =+'LPA Estimate of Hours'!I18 -> 0 | J16: =+'LPA Estimate of Hours'!J18 -> 0 | K16: =+'LPA Estimate of Hours'!K18 -> 0 | L16: =+'LPA Estimate of Hours'!L18 -> 0 | M16: =+'LPA Estimate of Hours'!M18 -> 0 | N16: =+'LPA Estimate of Hours'!N18 -> 0 | O16: =+'LPA Estimate of Hours'!O18 -> 0 | P16: =+'LPA Estimate of Hours'!P18 -> 0 | Q16: =+'LPA Estimate of Hours'!Q18 -> 0 | R16: =+'LPA Estimate of Hours'!R18 -> 0 | S16: =+'LPA Estimate of Hours'!S18 -> 0 | T16: =+'LPA Estimate of Hours'!T18 -> 0 | U16: =+'LPA Estimate of Hours'!U18 -> 0 | V16: =+'LPA Estimate of Hours'!V18 -> 0 | W16: =+'LPA Estimate of Hours'!W18 -> 0 | X16: =+'LPA Estimate of Hours'!X18 -> 0 | Y16: =+'LPA Estimate of Hours'!Y18 -> 0 | Z16: =+'LPA Estimate of Hours'!Z18 -> 0 | AA16: =+'LPA Estimate of Hours'!AA18 -> 0 | AB16: =+'LPA Estimate of Hours'!AB18 -> 0 | AC16: =+'LPA Estimate of Hours'!AC18 -> 0 | AD16: =+'LPA Estimate of Hours'!AD18 -> 0 | AE16: =+'LPA Estimate of Hours'!AE18 -> 0 | AF16: =+'LPA Estimate of Hours'!AF18 -> 0 | AG16: =+'LPA Estimate of Hours'!AG18 -> 0 | AH16: =+'LPA Estimate of Hours'!AH18 -> 0 | AI16: =+'LPA Estimate of Hours'!AI18 -> 0 | AJ16: =+'LPA Estimate of Hours'!AJ18 -> 0 | AK16: =+'LPA Estimate of Hours'!AK18 -> 0 | AL16: =+'LPA Estimate of Hours'!AL18 -> 0 | AM16: =+'LPA Estimate of Hours'!AM18 -> 0 | AN16: =+'LPA Estimate of Hours'!AN18 -> 0 | AO16: =+'LPA Estimate of Hours'!AO18 -> 0 | AP16: =+'LPA Estimate of Hours'!AP18 -> 0 | AQ16: =+'LPA Estimate of Hours'!AQ18 -> 0 | AR16: =+'LPA Estimate of Hours'!AR18 -> 0 | AS16: =+'LPA Estimate of Hours'!AS18 -> 0 | AT16: =+'LPA Estimate of Hours'!AT18 -> 0 | AU16: =+'LPA Estimate of Hours'!AU18 -> 0 | AV16: =+'LPA Estimate of Hours'!AV18 -> 0 | AW16: =+'LPA Estimate of Hours'!AW18 -> 0 | AX16: =+'LPA Estimate of Hours'!AX18 -> 0 | AY16: =+'LPA Estimate of Hours'!AY18 -> 0 | AZ16: =SUM(B16:AY16) -> 0 | BB16: =+A16 -> 1. Construction Engineering & Inspection | BC16: =IF(B15>0,B15,0) ->  | BD16: =IF(C15>0,C15,0) ->  | DA16: =+AZ$15 -> Total
A17: =IFERROR(IF(+'LPA Estimate of Hours'!A19<>0,'LPA Estimate of Hours'!A19),"Row Deleted") -> Check calculations | B17: =IFERROR(IF(+'LPA Estimate of Hours'!B19=0,"",+'LPA Estimate of Hours'!B19),) ->  | C17: =IFERROR(IF(+'LPA Estimate of Hours'!C19=0,"",+'LPA Estimate of Hours'!C19),) ->  | D17: =IFERROR(IF(+'LPA Estimate of Hours'!D19=0,"",+'LPA Estimate of Hours'!D19),) ->  | E17: =IFERROR(IF(+'LPA Estimate of Hours'!E19=0,"",+'LPA Estimate of Hours'!E19),) ->  | F17: =IFERROR(IF(+'LPA Estimate of Hours'!F19=0,"",+'LPA Estimate of Hours'!F19),) ->  | G17: =IFERROR(IF(+'LPA Estimate of Hours'!G19=0,"",+'LPA Estimate of Hours'!G19),) ->  | H17: =IFERROR(IF(+'LPA Estimate of Hours'!H19=0,"",+'LPA Estimate of Hours'!H19),) ->  | I17: =IFERROR(IF(+'LPA Estimate of Hours'!I19=0,"",+'LPA Estimate of Hours'!I19),) ->  | J17: =IFERROR(IF(+'LPA Estimate of Hours'!J19=0,"",+'LPA Estimate of Hours'!J19),) ->  | K17: =IFERROR(IF(+'LPA Estimate of Hours'!K19=0,"",+'LPA Estimate of Hours'!K19),) ->  | L17: =IFERROR(IF(+'LPA Estimate of Hours'!L19=0,"",+'LPA Estimate of Hours'!L19),) ->  | M17: =IFERROR(IF(+'LPA Estimate of Hours'!M19=0,"",+'LPA Estimate of Hours'!M19),) ->  | N17: =IFERROR(IF(+'LPA Estimate of Hours'!N19=0,"",+'LPA Estimate of Hours'!N19),) ->  | O17: =IFERROR(IF(+'LPA Estimate of Hours'!O19=0,"",+'LPA Estimate of Hours'!O19),) ->  | P17: =IFERROR(IF(+'LPA Estimate of Hours'!P19=0,"",+'LPA Estimate of Hours'!P19),) ->  | Q17: =IFERROR(IF(+'LPA Estimate of Hours'!Q19=0,"",+'LPA Estimate of Hours'!Q19),) ->  | R17: =IFERROR(IF(+'LPA Estimate of Hours'!R19=0,"",+'LPA Estimate of Hours'!R19),) ->  | S17: =IFERROR(IF(+'LPA Estimate of Hours'!S19=0,"",+'LPA Estimate of Hours'!S19),) ->  | T17: =IFERROR(IF(+'LPA Estimate of Hours'!T19=0,"",+'LPA Estimate of Hours'!T19),) ->  | U17: =IFERROR(IF(+'LPA Estimate of Hours'!U19=0,"",+'LPA Estimate of Hours'!U19),) ->  | V17: =IFERROR(IF(+'LPA Estimate of Hours'!V19=0,"",+'LPA Estimate of Hours'!V19),) ->  | W17: =IFERROR(IF(+'LPA Estimate of Hours'!W19=0,"",+'LPA Estimate of Hours'!W19),) ->  | X17: =IFERROR(IF(+'LPA Estimate of Hours'!X19=0,"",+'LPA Estimate of Hours'!X19),) ->  | Y17: =IFERROR(IF(+'LPA Estimate of Hours'!Y19=0,"",+'LPA Estimate of Hours'!Y19),) ->  | Z17: =IFERROR(IF(+'LPA Estimate of Hours'!Z19=0,"",+'LPA Estimate of Hours'!Z19),) ->  | AA17: =IFERROR(IF(+'LPA Estimate of Hours'!AA19=0,"",+'LPA Estimate of Hours'!AA19),) ->  | AB17: =IFERROR(IF(+'LPA Estimate of Hours'!AB19=0,"",+'LPA Estimate of Hours'!AB19),) ->  | AC17: =IFERROR(IF(+'LPA Estimate of Hours'!AC19=0,"",+'LPA Estimate of Hours'!AC19),) ->  | AD17: =IFERROR(IF(+'LPA Estimate of Hours'!AD19=0,"",+'LPA Estimate of Hours'!AD19),) ->  | AE17: =IFERROR(IF(+'LPA Estimate of Hours'!AE19=0,"",+'LPA Estimate of Hours'!AE19),) ->  | AF17: =IFERROR(IF(+'LPA Estimate of Hours'!AF19=0,"",+'LPA Estimate of Hours'!AF19),) ->  | AG17: =IFERROR(IF(+'LPA Estimate of Hours'!AG19=0,"",+'LPA Estimate of Hours'!AG19),) ->  | AH17: =IFERROR(IF(+'LPA Estimate of Hours'!AH19=0,"",+'LPA Estimate of Hours'!AH19),) ->  | AI17: =IFERROR(IF(+'LPA Estimate of Hours'!AI19=0,"",+'LPA Estimate of Hours'!AI19),) ->  | AJ17: =IFERROR(IF(+'LPA Estimate of Hours'!AJ19=0,"",+'LPA Estimate of Hours'!AJ19),) ->  | AK17: =IFERROR(IF(+'LPA Estimate of Hours'!AK19=0,"",+'LPA Estimate of Hours'!AK19),) ->  | AL17: =IFERROR(IF(+'LPA Estimate of Hours'!AL19=0,"",+'LPA Estimate of Hours'!AL19),) ->  | AM17: =IFERROR(IF(+'LPA Estimate of Hours'!AM19=0,"",+'LPA Estimate of Hours'!AM19),) ->  | AN17: =IFERROR(IF(+'LPA Estimate of Hours'!AN19=0,"",+'LPA Estimate of Hours'!AN19),) ->  | AO17: =IFERROR(IF(+'LPA Estimate of Hours'!AO19=0,"",+'LPA Estimate of Hours'!AO19),) ->  | AP17: =IFERROR(IF(+'LPA Estimate of Hours'!AP19=0,"",+'LPA Estimate of Hours'!AP19),) ->  | AQ17: =IFERROR(IF(+'LPA Estimate of Hours'!AQ19=0,"",+'LPA Estimate of Hours'!AQ19),) ->  | AR17: =IFERROR(IF(+'LPA Estimate of Hours'!AR19=0,"",+'LPA Estimate of Hours'!AR19),) ->  | AS17: =IFERROR(IF(+'LPA Estimate of Hours'!AS19=0,"",+'LPA Estimate of Hours'!AS19),) ->  | AT17: =IFERROR(IF(+'LPA Estimate of Hours'!AT19=0,"",+'LPA Estimate of Hours'!AT19),) ->  | AU17: =IFERROR(IF(+'LPA Estimate of Hours'!AU19=0,"",+'LPA Estimate of Hours'!AU19),) ->  | AV17: =IFERROR(IF(+'LPA Estimate of Hours'!AV19=0,"",+'LPA Estimate of Hours'!AV19),) ->  | AW17: =IFERROR(IF(+'LPA Estimate of Hours'!AW19=0,"",+'LPA Estimate of Hours'!AW19),) ->  | AX17: =IFERROR(IF(+'LPA Estimate of Hours'!AX19=0,"",+'LPA Estimate of Hours'!AX19),) ->  | AY17: =IFERROR(IF(+'LPA Estimate of Hours'!AY19=0,"",+'LPA Estimate of Hours'!AY19),) ->  | AZ17: 0 | BB17: =SUM(BC17:DA17) -> 0 | BC17: =IF(BC16=" ",0,INDEX('Salary Range'!$C$3:$C$100,MATCH(BC16,'Salary Range'!$A$3:$A$100,0))*B16) -> 0 | BD17: =IF(BD16=" ",0,INDEX('Salary Range'!$C$3:$C$100,MATCH(BD16,'Salary Range'!$A$3:$A$100,0))*C16) -> 0 | BE17: =IF(BE16=" ",0,INDEX('Salary Range'!$C$3:$C$100,MATCH(BE16,'Salary Range'!$A$3:$A$100,0))*D16) -> 0 | BF17: =IF(BF16=" ",0,INDEX('Salary Range'!$C$3:$C$100,MATCH(BF16,'Salary Range'!$A$3:$A$100,0))*E16) -> 0 | BG17: =IF(BG16=" ",0,INDEX('Salary Range'!$C$3:$C$100,MATCH(BG16,'Salary Range'!$A$3:$A$100,0))*F16) -> 0 | BH17: =IF(BH16=" ",0,INDEX('Salary Range'!$C$3:$C$100,MATCH(BH16,'Salary Range'!$A$3:$A$100,0))*G16) -> 0 | BI17: =IF(BI16=" ",0,INDEX('Salary Range'!$C$3:$C$100,MATCH(BI16,'Salary Range'!$A$3:$A$100,0))*H16) -> 0 | BJ17: =IF(BJ16=" ",0,INDEX('Salary Range'!$C$3:$C$100,MATCH(BJ16,'Salary Range'!$A$3:$A$100,0))*I16) -> 0 | BK17: =IF(BK16=" ",0,INDEX('Salary Range'!$C$3:$C$100,MATCH(BK16,'Salary Range'!$A$3:$A$100,0))*J16) -> 0 | BL17: =IF(BL16=" ",0,INDEX('Salary Range'!$C$3:$C$100,MATCH(BL16,'Salary Range'!$A$3:$A$100,0))*K16) -> 0 | BM17: =IF(BM16=" ",0,INDEX('Salary Range'!$C$3:$C$100,MATCH(BM16,'Salary Range'!$A$3:$A$100,0))*L16) -> 0 | BN17: =IF(BN16=" ",0,INDEX('Salary Range'!$C$3:$C$100,MATCH(BN16,'Salary Range'!$A$3:$A$100,0))*M16) -> 0 | BO17: =IF(BO16=" ",0,INDEX('Salary Range'!$C$3:$C$100,MATCH(BO16,'Salary Range'!$A$3:$A$100,0))*N16) -> 0 | BP17: =IF(BP16=" ",0,INDEX('Salary Range'!$C$3:$C$100,MATCH(BP16,'Salary Range'!$A$3:$A$100,0))*O16) -> 0 | BQ17: =IF(BQ16=" ",0,INDEX('Salary Range'!$C$3:$C$100,MATCH(BQ16,'Salary Range'!$A$3:$A$100,0))*P16) -> 0 | BR17: =IF(BR16=" ",0,INDEX('Salary Range'!$C$3:$C$100,MATCH(BR16,'Salary Range'!$A$3:$A$100,0))*Q16) -> 0 | BS17: =IF(BS16=" ",0,INDEX('Salary Range'!$C$3:$C$100,MATCH(BS16,'Salary Range'!$A$3:$A$100,0))*R16) -> 0 | BT17: =IF(BT16=" ",0,INDEX('Salary Range'!$C$3:$C$100,MATCH(BT16,'Salary Range'!$A$3:$A$100,0))*S16) -> 0 | BU17: =IF(BU16=" ",0,INDEX('Salary Range'!$C$3:$C$100,MATCH(BU16,'Salary Range'!$A$3:$A$100,0))*T16) -> 0 | BV17: =IF(BV16=" ",0,INDEX('Salary Range'!$C$3:$C$100,MATCH(BV16,'Salary Range'!$A$3:$A$100,0))*U16) -> 0 | BW17: =IF(BW16=" ",0,INDEX('Salary Range'!$C$3:$C$100,MATCH(BW16,'Salary Range'!$A$3:$A$100,0))*V16) -> 0 | BX17: =IF(BX16=" ",0,INDEX('Salary Range'!$C$3:$C$100,MATCH(BX16,'Salary Range'!$A$3:$A$100,0))*W16) -> 0 | BY17: =IF(BY16=" ",0,INDEX('Salary Range'!$C$3:$C$100,MATCH(BY16,'Salary Range'!$A$3:$A$100,0))*X16) -> 0 | BZ17: =IF(BZ16=" ",0,INDEX('Salary Range'!$C$3:$C$100,MATCH(BZ16,'Salary Range'!$A$3:$A$100,0))*Y16) -> 0 | CA17: =IF(CA16=" ",0,INDEX('Salary Range'!$C$3:$C$100,MATCH(CA16,'Salary Range'!$A$3:$A$100,0))*Z16) -> 0 | CB17: =IF(CB16=" ",0,INDEX('Salary Range'!$C$3:$C$100,MATCH(CB16,'Salary Range'!$A$3:$A$100,0))*AA16) -> 0 | CC17: =IF(CC16=" ",0,INDEX('Salary Range'!$C$3:$C$100,MATCH(CC16,'Salary Range'!$A$3:$A$100,0))*AB16) -> 0 | CD17: =IF(CD16=" ",0,INDEX('Salary Range'!$C$3:$C$100,MATCH(CD16,'Salary Range'!$A$3:$A$100,0))*AC16) -> 0 | CE17: =IF(CE16=" ",0,INDEX('Salary Range'!$C$3:$C$100,MATCH(CE16,'Salary Range'!$A$3:$A$100,0))*AD16) -> 0 | CF17: =IF(CF16=" ",0,INDEX('Salary Range'!$C$3:$C$100,MATCH(CF16,'Salary Range'!$A$3:$A$100,0))*AE16) -> 0 | CG17: =IF(CG16=" ",0,INDEX('Salary Range'!$C$3:$C$100,MATCH(CG16,'Salary Range'!$A$3:$A$100,0))*AF16) -> 0 | CH17: =IF(CH16=" ",0,INDEX('Salary Range'!$C$3:$C$100,MATCH(CH16,'Salary Range'!$A$3:$A$100,0))*AG16) -> 0 | CI17: =IF(CI16=" ",0,INDEX('Salary Range'!$C$3:$C$100,MATCH(CI16,'Salary Range'!$A$3:$A$100,0))*AH16) -> 0 | CJ17: =IF(CJ16=" ",0,INDEX('Salary Range'!$C$3:$C$100,MATCH(CJ16,'Salary Range'!$A$3:$A$100,0))*AI16) -> 0 | CK17: =IF(CK16=" ",0,INDEX('Salary Range'!$C$3:$C$100,MATCH(CK16,'Salary Range'!$A$3:$A$100,0))*AJ16) -> 0 | CL17: =IF(CL16=" ",0,INDEX('Salary Range'!$C$3:$C$100,MATCH(CL16,'Salary Range'!$A$3:$A$100,0))*AK16) -> 0 | CM17: =IF(CM16=" ",0,INDEX('Salary Range'!$C$3:$C$100,MATCH(CM16,'Salary Range'!$A$3:$A$100,0))*AL16) -> 0 | CN17: =IF(CN16=" ",0,INDEX('Salary Range'!$C$3:$C$100,MATCH(CN16,'Salary Range'!$A$3:$A$100,0))*AM16) -> 0 | CO17: =IF(CO16=" ",0,INDEX('Salary Range'!$C$3:$C$100,MATCH(CO16,'Salary Range'!$A$3:$A$100,0))*AN16) -> 0 | CP17: =IF(CP16=" ",0,INDEX('Salary Range'!$C$3:$C$100,MATCH(CP16,'Salary Range'!$A$3:$A$100,0))*AO16) -> 0 | CQ17: =IF(CQ16=" ",0,INDEX('Salary Range'!$C$3:$C$100,MATCH(CQ16,'Salary Range'!$A$3:$A$100,0))*AP16) -> 0 | CR17: =IF(CR16=" ",0,INDEX('Salary Range'!$C$3:$C$100,MATCH(CR16,'Salary Range'!$A$3:$A$100,0))*AQ16) -> 0 | CS17: =IF(CS16=" ",0,INDEX('Salary Range'!$C$3:$C$100,MATCH(CS16,'Salary Range'!$A$3:$A$100,0))*AR16) -> 0 | CT17: =IF(CT16=" ",0,INDEX('Salary Range'!$C$3:$C$100,MATCH(CT16,'Salary Range'!$A$3:$A$100,0))*AS16) -> 0 | CU17: =IF(CU16=" ",0,INDEX('Salary Range'!$C$3:$C$100,MATCH(CU16,'Salary Range'!$A$3:$A$100,0))*AT16) -> 0 | CV17: =IF(CV16=" ",0,INDEX('Salary Range'!$C$3:$C$100,MATCH(CV16,'Salary Range'!$A$3:$A$100,0))*AU16) -> 0 | CW17: =IF(CW16=" ",0,INDEX('Salary Range'!$C$3:$C$100,MATCH(CW16,'Salary Range'!$A$3:$A$100,0))*AV16) -> 0 | CX17: =IF(CX16=" ",0,INDEX('Salary Range'!$C$3:$C$100,MATCH(CX16,'Salary Range'!$A$3:$A$100,0))*AW16) -> 0 | CY17: =IF(CY16=" ",0,INDEX('Salary Range'!$C$3:$C$100,MATCH(CY16,'Salary Range'!$A$3:$A$100,0))*AX16) -> 0 | CZ17: =IF(CZ16=" ",0,INDEX('Salary Range'!$C$3:$C$100,MATCH(CZ16,'Salary Range'!$A$3:$A$100,0))*AW16) -> 0 | DB17: =COUNTA(BC17:CZ17) -> 50
A18: =IFERROR(IF(+'LPA Estimate of Hours'!A20<>0,'LPA Estimate of Hours'!A20),"Row Deleted") -> Construction Inspection | B18: =IFERROR(IF(+'LPA Estimate of Hours'!B20=0,"",+'LPA Estimate of Hours'!B20),) ->  | C18: =IFERROR(IF(+'LPA Estimate of Hours'!C20=0,"",+'LPA Estimate of Hours'!C20),) ->  | D18: =IFERROR(IF(+'LPA Estimate of Hours'!D20=0,"",+'LPA Estimate of Hours'!D20),) ->  | E18: =IFERROR(IF(+'LPA Estimate of Hours'!E20=0,"",+'LPA Estimate of Hours'!E20),) ->  | F18: =IFERROR(IF(+'LPA Estimate of Hours'!F20=0,"",+'LPA Estimate of Hours'!F20),) ->  | G18: =IFERROR(IF(+'LPA Estimate of Hours'!G20=0,"",+'LPA Estimate of Hours'!G20),) ->  | H18: =IFERROR(IF(+'LPA Estimate of Hours'!H20=0,"",+'LPA Estimate of Hours'!H20),) ->  | I18: =IFERROR(IF(+'LPA Estimate of Hours'!I20=0,"",+'LPA Estimate of Hours'!I20),) ->  | J18: =IFERROR(IF(+'LPA Estimate of Hours'!J20=0,"",+'LPA Estimate of Hours'!J20),) ->  | K18: =IFERROR(IF(+'LPA Estimate of Hours'!K20=0,"",+'LPA Estimate of Hours'!K20),) ->  | L18: =IFERROR(IF(+'LPA Estimate of Hours'!L20=0,"",+'LPA Estimate of Hours'!L20),) ->  | M18: =IFERROR(IF(+'LPA Estimate of Hours'!M20=0,"",+'LPA Estimate of Hours'!M20),) ->  | N18: =IFERROR(IF(+'LPA Estimate of Hours'!N20=0,"",+'LPA Estimate of Hours'!N20),) ->  | O18: =IFERROR(IF(+'LPA Estimate of Hours'!O20=0,"",+'LPA Estimate of Hours'!O20),) ->  | P18: =IFERROR(IF(+'LPA Estimate of Hours'!P20=0,"",+'LPA Estimate of Hours'!P20),) ->  | Q18: =IFERROR(IF(+'LPA Estimate of Hours'!Q20=0,"",+'LPA Estimate of Hours'!Q20),) ->  | R18: =IFERROR(IF(+'LPA Estimate of Hours'!R20=0,"",+'LPA Estimate of Hours'!R20),) ->  | S18: =IFERROR(IF(+'LPA Estimate of Hours'!S20=0,"",+'LPA Estimate of Hours'!S20),) ->  | T18: =IFERROR(IF(+'LPA Estimate of Hours'!T20=0,"",+'LPA Estimate of Hours'!T20),) ->  | U18: =IFERROR(IF(+'LPA Estimate of Hours'!U20=0,"",+'LPA Estimate of Hours'!U20),) ->  | V18: =IFERROR(IF(+'LPA Estimate of Hours'!V20=0,"",+'LPA Estimate of Hours'!V20),) ->  | W18: =IFERROR(IF(+'LPA Estimate of Hours'!W20=0,"",+'LPA Estimate of Hours'!W20),) ->  | X18: =IFERROR(IF(+'LPA Estimate of Hours'!X20=0,"",+'LPA Estimate of Hours'!X20),) ->  | Y18: =IFERROR(IF(+'LPA Estimate of Hours'!Y20=0,"",+'LPA Estimate of Hours'!Y20),) ->  | Z18: =IFERROR(IF(+'LPA Estimate of Hours'!Z20=0,"",+'LPA Estimate of Hours'!Z20),) ->  | AA18: =IFERROR(IF(+'LPA Estimate of Hours'!AA20=0,"",+'LPA Estimate of Hours'!AA20),) ->  | AB18: =IFERROR(IF(+'LPA Estimate of Hours'!AB20=0,"",+'LPA Estimate of Hours'!AB20),) ->  | AC18: =IFERROR(IF(+'LPA Estimate of Hours'!AC20=0,"",+'LPA Estimate of Hours'!AC20),) ->  | AD18: =IFERROR(IF(+'LPA Estimate of Hours'!AD20=0,"",+'LPA Estimate of Hours'!AD20),) ->  | AE18: =IFERROR(IF(+'LPA Estimate of Hours'!AE20=0,"",+'LPA Estimate of Hours'!AE20),) ->  | AF18: =IFERROR(IF(+'LPA Estimate of Hours'!AF20=0,"",+'LPA Estimate of Hours'!AF20),) ->  | AG18: =IFERROR(IF(+'LPA Estimate of Hours'!AG20=0,"",+'LPA Estimate of Hours'!AG20),) ->  | AH18: =IFERROR(IF(+'LPA Estimate of Hours'!AH20=0,"",+'LPA Estimate of Hours'!AH20),) ->  | AI18: =IFERROR(IF(+'LPA Estimate of Hours'!AI20=0,"",+'LPA Estimate of Hours'!AI20),) ->  | AJ18: =IFERROR(IF(+'LPA Estimate of Hours'!AJ20=0,"",+'LPA Estimate of Hours'!AJ20),) ->  | AK18: =IFERROR(IF(+'LPA Estimate of Hours'!AK20=0,"",+'LPA Estimate of Hours'!AK20),) ->  | AL18: =IFERROR(IF(+'LPA Estimate of Hours'!AL20=0,"",+'LPA Estimate of Hours'!AL20),) ->  | AM18: =IFERROR(IF(+'LPA Estimate of Hours'!AM20=0,"",+'LPA Estimate of Hours'!AM20),) ->  | AN18: =IFERROR(IF(+'LPA Estimate of Hours'!AN20=0,"",+'LPA Estimate of Hours'!AN20),) ->  | AO18: =IFERROR(IF(+'LPA Estimate of Hours'!AO20=0,"",+'LPA Estimate of Hours'!AO20),) ->  | AP18: =IFERROR(IF(+'LPA Estimate of Hours'!AP20=0,"",+'LPA Estimate of Hours'!AP20),) ->  | AQ18: =IFERROR(IF(+'LPA Estimate of Hours'!AQ20=0,"",+'LPA Estimate of Hours'!AQ20),) ->  | AR18: =IFERROR(IF(+'LPA Estimate of Hours'!AR20=0,"",+'LPA Estimate of Hours'!AR20),) ->  | AS18: =IFERROR(IF(+'LPA Estimate of Hours'!AS20=0,"",+'LPA Estimate of Hours'!AS20),) ->  | AT18: =IFERROR(IF(+'LPA Estimate of Hours'!AT20=0,"",+'LPA Estimate of Hours'!AT20),) ->  | AU18: =IFERROR(IF(+'LPA Estimate of Hours'!AU20=0,"",+'LPA Estimate of Hours'!AU20),) ->  | AV18: =IFERROR(IF(+'LPA Estimate of Hours'!AV20=0,"",+'LPA Estimate of Hours'!AV20),) ->  | AW18: =IFERROR(IF(+'LPA Estimate of Hours'!AW20=0,"",+'LPA Estimate of Hours'!AW20),) ->  | AX18: =IFERROR(IF(+'LPA Estimate of Hours'!AX20=0,"",+'LPA Estimate of Hours'!AX20),) ->  | AY18: =IFERROR(IF(+'LPA Estimate of Hours'!AY20=0,"",+'LPA Estimate of Hours'!AY20),) ->  | AZ18: 0
A19: =IFERROR(IF(+'LPA Estimate of Hours'!A21<>0,'LPA Estimate of Hours'!A21),"Row Deleted") -> Construction Materials Testing | B19: =IFERROR(IF(+'LPA Estimate of Hours'!B21=0,"",+'LPA Estimate of Hours'!B21),) ->  | C19: =IFERROR(IF(+'LPA Estimate of Hours'!C21=0,"",+'LPA Estimate of Hours'!C21),) ->  | D19: =IFERROR(IF(+'LPA Estimate of Hours'!D21=0,"",+'LPA Estimate of Hours'!D21),) ->  | E19: =IFERROR(IF(+'LPA Estimate of Hours'!E21=0,"",+'LPA Estimate of Hours'!E21),) ->  | F19: =IFERROR(IF(+'LPA Estimate of Hours'!F21=0,"",+'LPA Estimate of Hours'!F21),) ->  | G19: =IFERROR(IF(+'LPA Estimate of Hours'!G21=0,"",+'LPA Estimate of Hours'!G21),) ->  | H19: =IFERROR(IF(+'LPA Estimate of Hours'!H21=0,"",+'LPA Estimate of Hours'!H21),) ->  | I19: =IFERROR(IF(+'LPA Estimate of Hours'!I21=0,"",+'LPA Estimate of Hours'!I21),) ->  | J19: =IFERROR(IF(+'LPA Estimate of Hours'!J21=0,"",+'LPA Estimate of Hours'!J21),) ->  | K19: =IFERROR(IF(+'LPA Estimate of Hours'!K21=0,"",+'LPA Estimate of Hours'!K21),) ->  | L19: =IFERROR(IF(+'LPA Estimate of Hours'!L21=0,"",+'LPA Estimate of Hours'!L21),) ->  | M19: =IFERROR(IF(+'LPA Estimate of Hours'!M21=0,"",+'LPA Estimate of Hours'!M21),) ->  | N19: =IFERROR(IF(+'LPA Estimate of Hours'!N21=0,"",+'LPA Estimate of Hours'!N21),) ->  | O19: =IFERROR(IF(+'LPA Estimate of Hours'!O21=0,"",+'LPA Estimate of Hours'!O21),) ->  | P19: =IFERROR(IF(+'LPA Estimate of Hours'!P21=0,"",+'LPA Estimate of Hours'!P21),) ->  | Q19: =IFERROR(IF(+'LPA Estimate of Hours'!Q21=0,"",+'LPA Estimate of Hours'!Q21),) ->  | R19: =IFERROR(IF(+'LPA Estimate of Hours'!R21=0,"",+'LPA Estimate of Hours'!R21),) ->  | S19: =IFERROR(IF(+'LPA Estimate of Hours'!S21=0,"",+'LPA Estimate of Hours'!S21),) ->  | T19: =IFERROR(IF(+'LPA Estimate of Hours'!T21=0,"",+'LPA Estimate of Hours'!T21),) ->  | U19: =IFERROR(IF(+'LPA Estimate of Hours'!U21=0,"",+'LPA Estimate of Hours'!U21),) ->  | V19: =IFERROR(IF(+'LPA Estimate of Hours'!V21=0,"",+'LPA Estimate of Hours'!V21),) ->  | W19: =IFERROR(IF(+'LPA Estimate of Hours'!W21=0,"",+'LPA Estimate of Hours'!W21),) ->  | X19: =IFERROR(IF(+'LPA Estimate of Hours'!X21=0,"",+'LPA Estimate of Hours'!X21),) ->  | Y19: =IFERROR(IF(+'LPA Estimate of Hours'!Y21=0,"",+'LPA Estimate of Hours'!Y21),) ->  | Z19: =IFERROR(IF(+'LPA Estimate of Hours'!Z21=0,"",+'LPA Estimate of Hours'!Z21),) ->  | AA19: =IFERROR(IF(+'LPA Estimate of Hours'!AA21=0,"",+'LPA Estimate of Hours'!AA21),) ->  | AB19: =IFERROR(IF(+'LPA Estimate of Hours'!AB21=0,"",+'LPA Estimate of Hours'!AB21),) ->  | AC19: =IFERROR(IF(+'LPA Estimate of Hours'!AC21=0,"",+'LPA Estimate of Hours'!AC21),) ->  | AD19: =IFERROR(IF(+'LPA Estimate of Hours'!AD21=0,"",+'LPA Estimate of Hours'!AD21),) ->  | AE19: =IFERROR(IF(+'LPA Estimate of Hours'!AE21=0,"",+'LPA Estimate of Hours'!AE21),) ->  | AF19: =IFERROR(IF(+'LPA Estimate of Hours'!AF21=0,"",+'LPA Estimate of Hours'!AF21),) ->  | AG19: =IFERROR(IF(+'LPA Estimate of Hours'!AG21=0,"",+'LPA Estimate of Hours'!AG21),) ->  | AH19: =IFERROR(IF(+'LPA Estimate of Hours'!AH21=0,"",+'LPA Estimate of Hours'!AH21),) ->  | AI19: =IFERROR(IF(+'LPA Estimate of Hours'!AI21=0,"",+'LPA Estimate of Hours'!AI21),) ->  | AJ19: =IFERROR(IF(+'LPA Estimate of Hours'!AJ21=0,"",+'LPA Estimate of Hours'!AJ21),) ->  | AK19: =IFERROR(IF(+'LPA Estimate of Hours'!AK21=0,"",+'LPA Estimate of Hours'!AK21),) ->  | AL19: =IFERROR(IF(+'LPA Estimate of Hours'!AL21=0,"",+'LPA Estimate of Hours'!AL21),) ->  | AM19: =IFERROR(IF(+'LPA Estimate of Hours'!AM21=0,"",+'LPA Estimate of Hours'!AM21),) ->  | AN19: =IFERROR(IF(+'LPA Estimate of Hours'!AN21=0,"",+'LPA Estimate of Hours'!AN21),) ->  | AO19: =IFERROR(IF(+'LPA Estimate of Hours'!AO21=0,"",+'LPA Estimate of Hours'!AO21),) ->  | AP19: =IFERROR(IF(+'LPA Estimate of Hours'!AP21=0,"",+'LPA Estimate of Hours'!AP21),) ->  | AQ19: =IFERROR(IF(+'LPA Estimate of Hours'!AQ21=0,"",+'LPA Estimate of Hours'!AQ21),) ->  | AR19: =IFERROR(IF(+'LPA Estimate of Hours'!AR21=0,"",+'LPA Estimate of Hours'!AR21),) ->  | AS19: =IFERROR(IF(+'LPA Estimate of Hours'!AS21=0,"",+'LPA Estimate of Hours'!AS21),) ->  | AT19: =IFERROR(IF(+'LPA Estimate of Hours'!AT21=0,"",+'LPA Estimate of Hours'!AT21),) ->  | AU19: =IFERROR(IF(+'LPA Estimate of Hours'!AU21=0,"",+'LPA Estimate of Hours'!AU21),) ->  | AV19: =IFERROR(IF(+'LPA Estimate of Hours'!AV21=0,"",+'LPA Estimate of Hours'!AV21),) ->  | AW19: =IFERROR(IF(+'LPA Estimate of Hours'!AW21=0,"",+'LPA Estimate of Hours'!AW21),) ->  | AX19: =IFERROR(IF(+'LPA Estimate of Hours'!AX21=0,"",+'LPA Estimate of Hours'!AX21),) ->  | AY19: =IFERROR(IF(+'LPA Estimate of Hours'!AY21=0,"",+'LPA Estimate of Hours'!AY21),) ->  | AZ19: 0
A20: =IFERROR(IF(+'LPA Estimate of Hours'!A22<>0,'LPA Estimate of Hours'!A22),"Row Deleted") -> Inspect change orders | B20: =IFERROR(IF(+'LPA Estimate of Hours'!B22=0,"",+'LPA Estimate of Hours'!B22),) ->  | C20: =IFERROR(IF(+'LPA Estimate of Hours'!C22=0,"",+'LPA Estimate of Hours'!C22),) ->  | D20: =IFERROR(IF(+'LPA Estimate of Hours'!D22=0,"",+'LPA Estimate of Hours'!D22),) ->  | E20: =IFERROR(IF(+'LPA Estimate of Hours'!E22=0,"",+'LPA Estimate of Hours'!E22),) ->  | F20: =IFERROR(IF(+'LPA Estimate of Hours'!F22=0,"",+'LPA Estimate of Hours'!F22),) ->  | G20: =IFERROR(IF(+'LPA Estimate of Hours'!G22=0,"",+'LPA Estimate of Hours'!G22),) ->  | H20: =IFERROR(IF(+'LPA Estimate of Hours'!H22=0,"",+'LPA Estimate of Hours'!H22),) ->  | I20: =IFERROR(IF(+'LPA Estimate of Hours'!I22=0,"",+'LPA Estimate of Hours'!I22),) ->  | J20: =IFERROR(IF(+'LPA Estimate of Hours'!J22=0,"",+'LPA Estimate of Hours'!J22),) ->  | K20: =IFERROR(IF(+'LPA Estimate of Hours'!K22=0,"",+'LPA Estimate of Hours'!K22),) ->  | L20: =IFERROR(IF(+'LPA Estimate of Hours'!L22=0,"",+'LPA Estimate of Hours'!L22),) ->  | M20: =IFERROR(IF(+'LPA Estimate of Hours'!M22=0,"",+'LPA Estimate of Hours'!M22),) ->  | N20: =IFERROR(IF(+'LPA Estimate of Hours'!N22=0,"",+'LPA Estimate of Hours'!N22),) ->  | O20: =IFERROR(IF(+'LPA Estimate of Hours'!O22=0,"",+'LPA Estimate of Hours'!O22),) ->  | P20: =IFERROR(IF(+'LPA Estimate of Hours'!P22=0,"",+'LPA Estimate of Hours'!P22),) ->  | Q20: =IFERROR(IF(+'LPA Estimate of Hours'!Q22=0,"",+'LPA Estimate of Hours'!Q22),) ->  | R20: =IFERROR(IF(+'LPA Estimate of Hours'!R22=0,"",+'LPA Estimate of Hours'!R22),) ->  | S20: =IFERROR(IF(+'LPA Estimate of Hours'!S22=0,"",+'LPA Estimate of Hours'!S22),) ->  | T20: =IFERROR(IF(+'LPA Estimate of Hours'!T22=0,"",+'LPA Estimate of Hours'!T22),) ->  | U20: =IFERROR(IF(+'LPA Estimate of Hours'!U22=0,"",+'LPA Estimate of Hours'!U22),) ->  | V20: =IFERROR(IF(+'LPA Estimate of Hours'!V22=0,"",+'LPA Estimate of Hours'!V22),) ->  | W20: =IFERROR(IF(+'LPA Estimate of Hours'!W22=0,"",+'LPA Estimate of Hours'!W22),) ->  | X20: =IFERROR(IF(+'LPA Estimate of Hours'!X22=0,"",+'LPA Estimate of Hours'!X22),) ->  | Y20: =IFERROR(IF(+'LPA Estimate of Hours'!Y22=0,"",+'LPA Estimate of Hours'!Y22),) ->  | Z20: =IFERROR(IF(+'LPA Estimate of Hours'!Z22=0,"",+'LPA Estimate of Hours'!Z22),) ->  | AA20: =IFERROR(IF(+'LPA Estimate of Hours'!AA22=0,"",+'LPA Estimate of Hours'!AA22),) ->  | AB20: =IFERROR(IF(+'LPA Estimate of Hours'!AB22=0,"",+'LPA Estimate of Hours'!AB22),) ->  | AC20: =IFERROR(IF(+'LPA Estimate of Hours'!AC22=0,"",+'LPA Estimate of Hours'!AC22),) ->  | AD20: =IFERROR(IF(+'LPA Estimate of Hours'!AD22=0,"",+'LPA Estimate of Hours'!AD22),) ->  | AE20: =IFERROR(IF(+'LPA Estimate of Hours'!AE22=0,"",+'LPA Estimate of Hours'!AE22),) ->  | AF20: =IFERROR(IF(+'LPA Estimate of Hours'!AF22=0,"",+'LPA Estimate of Hours'!AF22),) ->  | AG20: =IFERROR(IF(+'LPA Estimate of Hours'!AG22=0,"",+'LPA Estimate of Hours'!AG22),) ->  | AH20: =IFERROR(IF(+'LPA Estimate of Hours'!AH22=0,"",+'LPA Estimate of Hours'!AH22),) ->  | AI20: =IFERROR(IF(+'LPA Estimate of Hours'!AI22=0,"",+'LPA Estimate of Hours'!AI22),) ->  | AJ20: =IFERROR(IF(+'LPA Estimate of Hours'!AJ22=0,"",+'LPA Estimate of Hours'!AJ22),) ->  | AK20: =IFERROR(IF(+'LPA Estimate of Hours'!AK22=0,"",+'LPA Estimate of Hours'!AK22),) ->  | AL20: =IFERROR(IF(+'LPA Estimate of Hours'!AL22=0,"",+'LPA Estimate of Hours'!AL22),) ->  | AM20: =IFERROR(IF(+'LPA Estimate of Hours'!AM22=0,"",+'LPA Estimate of Hours'!AM22),) ->  | AN20: =IFERROR(IF(+'LPA Estimate of Hours'!AN22=0,"",+'LPA Estimate of Hours'!AN22),) ->  | AO20: =IFERROR(IF(+'LPA Estimate of Hours'!AO22=0,"",+'LPA Estimate of Hours'!AO22),) ->  | AP20: =IFERROR(IF(+'LPA Estimate of Hours'!AP22=0,"",+'LPA Estimate of Hours'!AP22),) ->  | AQ20: =IFERROR(IF(+'LPA Estimate of Hours'!AQ22=0,"",+'LPA Estimate of Hours'!AQ22),) ->  | AR20: =IFERROR(IF(+'LPA Estimate of Hours'!AR22=0,"",+'LPA Estimate of Hours'!AR22),) ->  | AS20: =IFERROR(IF(+'LPA Estimate of Hours'!AS22=0,"",+'LPA Estimate of Hours'!AS22),) ->  | AT20: =IFERROR(IF(+'LPA Estimate of Hours'!AT22=0,"",+'LPA Estimate of Hours'!AT22),) ->  | AU20: =IFERROR(IF(+'LPA Estimate of Hours'!AU22=0,"",+'LPA Estimate of Hours'!AU22),) ->  | AV20: =IFERROR(IF(+'LPA Estimate of Hours'!AV22=0,"",+'LPA Estimate of Hours'!AV22),) ->  | AW20: =IFERROR(IF(+'LPA Estimate of Hours'!AW22=0,"",+'LPA Estimate of Hours'!AW22),) ->  | AX20: =IFERROR(IF(+'LPA Estimate of Hours'!AX22=0,"",+'LPA Estimate of Hours'!AX22),) ->  | AY20: =IFERROR(IF(+'LPA Estimate of Hours'!AY22=0,"",+'LPA Estimate of Hours'!AY22),) ->  | AZ20: 0
A21: =IFERROR(IF(+'LPA Estimate of Hours'!A23<>0,'LPA Estimate of Hours'!A23),"Row Deleted") -> Monitor compliance regulations | B21: =IFERROR(IF(+'LPA Estimate of Hours'!B23=0,"",+'LPA Estimate of Hours'!B23),) ->  | C21: =IFERROR(IF(+'LPA Estimate of Hours'!C23=0,"",+'LPA Estimate of Hours'!C23),) ->  | D21: =IFERROR(IF(+'LPA Estimate of Hours'!D23=0,"",+'LPA Estimate of Hours'!D23),) ->  | E21: =IFERROR(IF(+'LPA Estimate of Hours'!E23=0,"",+'LPA Estimate of Hours'!E23),) ->  | F21: =IFERROR(IF(+'LPA Estimate of Hours'!F23=0,"",+'LPA Estimate of Hours'!F23),) ->  | G21: =IFERROR(IF(+'LPA Estimate of Hours'!G23=0,"",+'LPA Estimate of Hours'!G23),) ->  | H21: =IFERROR(IF(+'LPA Estimate of Hours'!H23=0,"",+'LPA Estimate of Hours'!H23),) ->  | I21: =IFERROR(IF(+'LPA Estimate of Hours'!I23=0,"",+'LPA Estimate of Hours'!I23),) ->  | J21: =IFERROR(IF(+'LPA Estimate of Hours'!J23=0,"",+'LPA Estimate of Hours'!J23),) ->  | K21: =IFERROR(IF(+'LPA Estimate of Hours'!K23=0,"",+'LPA Estimate of Hours'!K23),) ->  | L21: =IFERROR(IF(+'LPA Estimate of Hours'!L23=0,"",+'LPA Estimate of Hours'!L23),) ->  | M21: =IFERROR(IF(+'LPA Estimate of Hours'!M23=0,"",+'LPA Estimate of Hours'!M23),) ->  | N21: =IFERROR(IF(+'LPA Estimate of Hours'!N23=0,"",+'LPA Estimate of Hours'!N23),) ->  | O21: =IFERROR(IF(+'LPA Estimate of Hours'!O23=0,"",+'LPA Estimate of Hours'!O23),) ->  | P21: =IFERROR(IF(+'LPA Estimate of Hours'!P23=0,"",+'LPA Estimate of Hours'!P23),) ->  | Q21: =IFERROR(IF(+'LPA Estimate of Hours'!Q23=0,"",+'LPA Estimate of Hours'!Q23),) ->  | R21: =IFERROR(IF(+'LPA Estimate of Hours'!R23=0,"",+'LPA Estimate of Hours'!R23),) ->  | S21: =IFERROR(IF(+'LPA Estimate of Hours'!S23=0,"",+'LPA Estimate of Hours'!S23),) ->  | T21: =IFERROR(IF(+'LPA Estimate of Hours'!T23=0,"",+'LPA Estimate of Hours'!T23),) ->  | U21: =IFERROR(IF(+'LPA Estimate of Hours'!U23=0,"",+'LPA Estimate of Hours'!U23),) ->  | V21: =IFERROR(IF(+'LPA Estimate of Hours'!V23=0,"",+'LPA Estimate of Hours'!V23),) ->  | W21: =IFERROR(IF(+'LPA Estimate of Hours'!W23=0,"",+'LPA Estimate of Hours'!W23),) ->  | X21: =IFERROR(IF(+'LPA Estimate of Hours'!X23=0,"",+'LPA Estimate of Hours'!X23),) ->  | Y21: =IFERROR(IF(+'LPA Estimate of Hours'!Y23=0,"",+'LPA Estimate of Hours'!Y23),) ->  | Z21: =IFERROR(IF(+'LPA Estimate of Hours'!Z23=0,"",+'LPA Estimate of Hours'!Z23),) ->  | AA21: =IFERROR(IF(+'LPA Estimate of Hours'!AA23=0,"",+'LPA Estimate of Hours'!AA23),) ->  | AB21: =IFERROR(IF(+'LPA Estimate of Hours'!AB23=0,"",+'LPA Estimate of Hours'!AB23),) ->  | AC21: =IFERROR(IF(+'LPA Estimate of Hours'!AC23=0,"",+'LPA Estimate of Hours'!AC23),) ->  | AD21: =IFERROR(IF(+'LPA Estimate of Hours'!AD23=0,"",+'LPA Estimate of Hours'!AD23),) ->  | AE21: =IFERROR(IF(+'LPA Estimate of Hours'!AE23=0,"",+'LPA Estimate of Hours'!AE23),) ->  | AF21: =IFERROR(IF(+'LPA Estimate of Hours'!AF23=0,"",+'LPA Estimate of Hours'!AF23),) ->  | AG21: =IFERROR(IF(+'LPA Estimate of Hours'!AG23=0,"",+'LPA Estimate of Hours'!AG23),) ->  | AH21: =IFERROR(IF(+'LPA Estimate of Hours'!AH23=0,"",+'LPA Estimate of Hours'!AH23),) ->  | AI21: =IFERROR(IF(+'LPA Estimate of Hours'!AI23=0,"",+'LPA Estimate of Hours'!AI23),) ->  | AJ21: =IFERROR(IF(+'LPA Estimate of Hours'!AJ23=0,"",+'LPA Estimate of Hours'!AJ23),) ->  | AK21: =IFERROR(IF(+'LPA Estimate of Hours'!AK23=0,"",+'LPA Estimate of Hours'!AK23),) ->  | AL21: =IFERROR(IF(+'LPA Estimate of Hours'!AL23=0,"",+'LPA Estimate of Hours'!AL23),) ->  | AM21: =IFERROR(IF(+'LPA Estimate of Hours'!AM23=0,"",+'LPA Estimate of Hours'!AM23),) ->  | AN21: =IFERROR(IF(+'LPA Estimate of Hours'!AN23=0,"",+'LPA Estimate of Hours'!AN23),) ->  | AO21: =IFERROR(IF(+'LPA Estimate of Hours'!AO23=0,"",+'LPA Estimate of Hours'!AO23),) ->  | AP21: =IFERROR(IF(+'LPA Estimate of Hours'!AP23=0,"",+'LPA Estimate of Hours'!AP23),) ->  | AQ21: =IFERROR(IF(+'LPA Estimate of Hours'!AQ23=0,"",+'LPA Estimate of Hours'!AQ23),) ->  | AR21: =IFERROR(IF(+'LPA Estimate of Hours'!AR23=0,"",+'LPA Estimate of Hours'!AR23),) ->  | AS21: =IFERROR(IF(+'LPA Estimate of Hours'!AS23=0,"",+'LPA Estimate of Hours'!AS23),) ->  | AT21: =IFERROR(IF(+'LPA Estimate of Hours'!AT23=0,"",+'LPA Estimate of Hours'!AT23),) ->  | AU21: =IFERROR(IF(+'LPA Estimate of Hours'!AU23=0,"",+'LPA Estimate of Hours'!AU23),) ->  | AV21: =IFERROR(IF(+'LPA Estimate of Hours'!AV23=0,"",+'LPA Estimate of Hours'!AV23),) ->  | AW21: =IFERROR(IF(+'LPA Estimate of Hours'!AW23=0,"",+'LPA Estimate of Hours'!AW23),) ->  | AX21: =IFERROR(IF(+'LPA Estimate of Hours'!AX23=0,"",+'LPA Estimate of Hours'!AX23),) ->  | AY21: =IFERROR(IF(+'LPA Estimate of Hours'!AY23=0,"",+'LPA Estimate of Hours'!AY23),) ->  | AZ21: 0
A22: =IFERROR(IF(+'LPA Estimate of Hours'!A24<>0,'LPA Estimate of Hours'!A24),"Row Deleted") -> Prepare construciton reports | B22: =IFERROR(IF(+'LPA Estimate of Hours'!B24=0,"",+'LPA Estimate of Hours'!B24),) ->  | C22: =IFERROR(IF(+'LPA Estimate of Hours'!C24=0,"",+'LPA Estimate of Hours'!C24),) ->  | D22: =IFERROR(IF(+'LPA Estimate of Hours'!D24=0,"",+'LPA Estimate of Hours'!D24),) ->  | E22: =IFERROR(IF(+'LPA Estimate of Hours'!E24=0,"",+'LPA Estimate of Hours'!E24),) ->  | F22: =IFERROR(IF(+'LPA Estimate of Hours'!F24=0,"",+'LPA Estimate of Hours'!F24),) ->  | G22: =IFERROR(IF(+'LPA Estimate of Hours'!G24=0,"",+'LPA Estimate of Hours'!G24),) ->  | H22: =IFERROR(IF(+'LPA Estimate of Hours'!H24=0,"",+'LPA Estimate of Hours'!H24),) ->  | I22: =IFERROR(IF(+'LPA Estimate of Hours'!I24=0,"",+'LPA Estimate of Hours'!I24),) ->  | J22: =IFERROR(IF(+'LPA Estimate of Hours'!J24=0,"",+'LPA Estimate of Hours'!J24),) ->  | K22: =IFERROR(IF(+'LPA Estimate of Hours'!K24=0,"",+'LPA Estimate of Hours'!K24),) ->  | L22: =IFERROR(IF(+'LPA Estimate of Hours'!L24=0,"",+'LPA Estimate of Hours'!L24),) ->  | M22: =IFERROR(IF(+'LPA Estimate of Hours'!M24=0,"",+'LPA Estimate of Hours'!M24),) ->  | N22: =IFERROR(IF(+'LPA Estimate of Hours'!N24=0,"",+'LPA Estimate of Hours'!N24),) ->  | O22: =IFERROR(IF(+'LPA Estimate of Hours'!O24=0,"",+'LPA Estimate of Hours'!O24),) ->  | P22: =IFERROR(IF(+'LPA Estimate of Hours'!P24=0,"",+'LPA Estimate of Hours'!P24),) ->  | Q22: =IFERROR(IF(+'LPA Estimate of Hours'!Q24=0,"",+'LPA Estimate of Hours'!Q24),) ->  | R22: =IFERROR(IF(+'LPA Estimate of Hours'!R24=0,"",+'LPA Estimate of Hours'!R24),) ->  | S22: =IFERROR(IF(+'LPA Estimate of Hours'!S24=0,"",+'LPA Estimate of Hours'!S24),) ->  | T22: =IFERROR(IF(+'LPA Estimate of Hours'!T24=0,"",+'LPA Estimate of Hours'!T24),) ->  | U22: =IFERROR(IF(+'LPA Estimate of Hours'!U24=0,"",+'LPA Estimate of Hours'!U24),) ->  | V22: =IFERROR(IF(+'LPA Estimate of Hours'!V24=0,"",+'LPA Estimate of Hours'!V24),) ->  | W22: =IFERROR(IF(+'LPA Estimate of Hours'!W24=0,"",+'LPA Estimate of Hours'!W24),) ->  | X22: =IFERROR(IF(+'LPA Estimate of Hours'!X24=0,"",+'LPA Estimate of Hours'!X24),) ->  | Y22: =IFERROR(IF(+'LPA Estimate of Hours'!Y24=0,"",+'LPA Estimate of Hours'!Y24),) ->  | Z22: =IFERROR(IF(+'LPA Estimate of Hours'!Z24=0,"",+'LPA Estimate of Hours'!Z24),) ->  | AA22: =IFERROR(IF(+'LPA Estimate of Hours'!AA24=0,"",+'LPA Estimate of Hours'!AA24),) ->  | AB22: =IFERROR(IF(+'LPA Estimate of Hours'!AB24=0,"",+'LPA Estimate of Hours'!AB24),) ->  | AC22: =IFERROR(IF(+'LPA Estimate of Hours'!AC24=0,"",+'LPA Estimate of Hours'!AC24),) ->  | AD22: =IFERROR(IF(+'LPA Estimate of Hours'!AD24=0,"",+'LPA Estimate of Hours'!AD24),) ->  | AE22: =IFERROR(IF(+'LPA Estimate of Hours'!AE24=0,"",+'LPA Estimate of Hours'!AE24),) ->  | AF22: =IFERROR(IF(+'LPA Estimate of Hours'!AF24=0,"",+'LPA Estimate of Hours'!AF24),) ->  | AG22: =IFERROR(IF(+'LPA Estimate of Hours'!AG24=0,"",+'LPA Estimate of Hours'!AG24),) ->  | AH22: =IFERROR(IF(+'LPA Estimate of Hours'!AH24=0,"",+'LPA Estimate of Hours'!AH24),) ->  | AI22: =IFERROR(IF(+'LPA Estimate of Hours'!AI24=0,"",+'LPA Estimate of Hours'!AI24),) ->  | AJ22: =IFERROR(IF(+'LPA Estimate of Hours'!AJ24=0,"",+'LPA Estimate of Hours'!AJ24),) ->  | AK22: =IFERROR(IF(+'LPA Estimate of Hours'!AK24=0,"",+'LPA Estimate of Hours'!AK24),) ->  | AL22: =IFERROR(IF(+'LPA Estimate of Hours'!AL24=0,"",+'LPA Estimate of Hours'!AL24),) ->  | AM22: =IFERROR(IF(+'LPA Estimate of Hours'!AM24=0,"",+'LPA Estimate of Hours'!AM24),) ->  | AN22: =IFERROR(IF(+'LPA Estimate of Hours'!AN24=0,"",+'LPA Estimate of Hours'!AN24),) ->  | AO22: =IFERROR(IF(+'LPA Estimate of Hours'!AO24=0,"",+'LPA Estimate of Hours'!AO24),) ->  | AP22: =IFERROR(IF(+'LPA Estimate of Hours'!AP24=0,"",+'LPA Estimate of Hours'!AP24),) ->  | AQ22: =IFERROR(IF(+'LPA Estimate of Hours'!AQ24=0,"",+'LPA Estimate of Hours'!AQ24),) ->  | AR22: =IFERROR(IF(+'LPA Estimate of Hours'!AR24=0,"",+'LPA Estimate of Hours'!AR24),) ->  | AS22: =IFERROR(IF(+'LPA Estimate of Hours'!AS24=0,"",+'LPA Estimate of Hours'!AS24),) ->  | AT22: =IFERROR(IF(+'LPA Estimate of Hours'!AT24=0,"",+'LPA Estimate of Hours'!AT24),) ->  | AU22: =IFERROR(IF(+'LPA Estimate of Hours'!AU24=0,"",+'LPA Estimate of Hours'!AU24),) ->  | AV22: =IFERROR(IF(+'LPA Estimate of Hours'!AV24=0,"",+'LPA Estimate of Hours'!AV24),) ->  | AW22: =IFERROR(IF(+'LPA Estimate of Hours'!AW24=0,"",+'LPA Estimate of Hours'!AW24),) ->  | AX22: =IFERROR(IF(+'LPA Estimate of Hours'!AX24=0,"",+'LPA Estimate of Hours'!AX24),) ->  | AY22: =IFERROR(IF(+'LPA Estimate of Hours'!AY24=0,"",+'LPA Estimate of Hours'!AY24),) ->  | AZ22: 0
A23: =IFERROR(IF(+'LPA Estimate of Hours'!A25<>0,'LPA Estimate of Hours'!A25),"Row Deleted") -> Project coordination | B23: =IFERROR(IF(+'LPA Estimate of Hours'!B25=0,"",+'LPA Estimate of Hours'!B25),) ->  | C23: =IFERROR(IF(+'LPA Estimate of Hours'!C25=0,"",+'LPA Estimate of Hours'!C25),) ->  | D23: =IFERROR(IF(+'LPA Estimate of Hours'!D25=0,"",+'LPA Estimate of Hours'!D25),) ->  | E23: =IFERROR(IF(+'LPA Estimate of Hours'!E25=0,"",+'LPA Estimate of Hours'!E25),) ->  | F23: =IFERROR(IF(+'LPA Estimate of Hours'!F25=0,"",+'LPA Estimate of Hours'!F25),) ->  | G23: =IFERROR(IF(+'LPA Estimate of Hours'!G25=0,"",+'LPA Estimate of Hours'!G25),) ->  | H23: =IFERROR(IF(+'LPA Estimate of Hours'!H25=0,"",+'LPA Estimate of Hours'!H25),) ->  | I23: =IFERROR(IF(+'LPA Estimate of Hours'!I25=0,"",+'LPA Estimate of Hours'!I25),) ->  | J23: =IFERROR(IF(+'LPA Estimate of Hours'!J25=0,"",+'LPA Estimate of Hours'!J25),) ->  | K23: =IFERROR(IF(+'LPA Estimate of Hours'!K25=0,"",+'LPA Estimate of Hours'!K25),) ->  | L23: =IFERROR(IF(+'LPA Estimate of Hours'!L25=0,"",+'LPA Estimate of Hours'!L25),) ->  | M23: =IFERROR(IF(+'LPA Estimate of Hours'!M25=0,"",+'LPA Estimate of Hours'!M25),) ->  | N23: =IFERROR(IF(+'LPA Estimate of Hours'!N25=0,"",+'LPA Estimate of Hours'!N25),) ->  | O23: =IFERROR(IF(+'LPA Estimate of Hours'!O25=0,"",+'LPA Estimate of Hours'!O25),) ->  | P23: =IFERROR(IF(+'LPA Estimate of Hours'!P25=0,"",+'LPA Estimate of Hours'!P25),) ->  | Q23: =IFERROR(IF(+'LPA Estimate of Hours'!Q25=0,"",+'LPA Estimate of Hours'!Q25),) ->  | R23: =IFERROR(IF(+'LPA Estimate of Hours'!R25=0,"",+'LPA Estimate of Hours'!R25),) ->  | S23: =IFERROR(IF(+'LPA Estimate of Hours'!S25=0,"",+'LPA Estimate of Hours'!S25),) ->  | T23: =IFERROR(IF(+'LPA Estimate of Hours'!T25=0,"",+'LPA Estimate of Hours'!T25),) ->  | U23: =IFERROR(IF(+'LPA Estimate of Hours'!U25=0,"",+'LPA Estimate of Hours'!U25),) ->  | V23: =IFERROR(IF(+'LPA Estimate of Hours'!V25=0,"",+'LPA Estimate of Hours'!V25),) ->  | W23: =IFERROR(IF(+'LPA Estimate of Hours'!W25=0,"",+'LPA Estimate of Hours'!W25),) ->  | X23: =IFERROR(IF(+'LPA Estimate of Hours'!X25=0,"",+'LPA Estimate of Hours'!X25),) ->  | Y23: =IFERROR(IF(+'LPA Estimate of Hours'!Y25=0,"",+'LPA Estimate of Hours'!Y25),) ->  | Z23: =IFERROR(IF(+'LPA Estimate of Hours'!Z25=0,"",+'LPA Estimate of Hours'!Z25),) ->  | AA23: =IFERROR(IF(+'LPA Estimate of Hours'!AA25=0,"",+'LPA Estimate of Hours'!AA25),) ->  | AB23: =IFERROR(IF(+'LPA Estimate of Hours'!AB25=0,"",+'LPA Estimate of Hours'!AB25),) ->  | AC23: =IFERROR(IF(+'LPA Estimate of Hours'!AC25=0,"",+'LPA Estimate of Hours'!AC25),) ->  | AD23: =IFERROR(IF(+'LPA Estimate of Hours'!AD25=0,"",+'LPA Estimate of Hours'!AD25),) ->  | AE23: =IFERROR(IF(+'LPA Estimate of Hours'!AE25=0,"",+'LPA Estimate of Hours'!AE25),) ->  | AF23: =IFERROR(IF(+'LPA Estimate of Hours'!AF25=0,"",+'LPA Estimate of Hours'!AF25),) ->  | AG23: =IFERROR(IF(+'LPA Estimate of Hours'!AG25=0,"",+'LPA Estimate of Hours'!AG25),) ->  | AH23: =IFERROR(IF(+'LPA Estimate of Hours'!AH25=0,"",+'LPA Estimate of Hours'!AH25),) ->  | AI23: =IFERROR(IF(+'LPA Estimate of Hours'!AI25=0,"",+'LPA Estimate of Hours'!AI25),) ->  | AJ23: =IFERROR(IF(+'LPA Estimate of Hours'!AJ25=0,"",+'LPA Estimate of Hours'!AJ25),) ->  | AK23: =IFERROR(IF(+'LPA Estimate of Hours'!AK25=0,"",+'LPA Estimate of Hours'!AK25),) ->  | AL23: =IFERROR(IF(+'LPA Estimate of Hours'!AL25=0,"",+'LPA Estimate of Hours'!AL25),) ->  | AM23: =IFERROR(IF(+'LPA Estimate of Hours'!AM25=0,"",+'LPA Estimate of Hours'!AM25),) ->  | AN23: =IFERROR(IF(+'LPA Estimate of Hours'!AN25=0,"",+'LPA Estimate of Hours'!AN25),) ->  | AO23: =IFERROR(IF(+'LPA Estimate of Hours'!AO25=0,"",+'LPA Estimate of Hours'!AO25),) ->  | AP23: =IFERROR(IF(+'LPA Estimate of Hours'!AP25=0,"",+'LPA Estimate of Hours'!AP25),) ->  | AQ23: =IFERROR(IF(+'LPA Estimate of Hours'!AQ25=0,"",+'LPA Estimate of Hours'!AQ25),) ->  | AR23: =IFERROR(IF(+'LPA Estimate of Hours'!AR25=0,"",+'LPA Estimate of Hours'!AR25),) ->  | AS23: =IFERROR(IF(+'LPA Estimate of Hours'!AS25=0,"",+'LPA Estimate of Hours'!AS25),) ->  | AT23: =IFERROR(IF(+'LPA Estimate of Hours'!AT25=0,"",+'LPA Estimate of Hours'!AT25),) ->  | AU23: =IFERROR(IF(+'LPA Estimate of Hours'!AU25=0,"",+'LPA Estimate of Hours'!AU25),) ->  | AV23: =IFERROR(IF(+'LPA Estimate of Hours'!AV25=0,"",+'LPA Estimate of Hours'!AV25),) ->  | AW23: =IFERROR(IF(+'LPA Estimate of Hours'!AW25=0,"",+'LPA Estimate of Hours'!AW25),) ->  | AX23: =IFERROR(IF(+'LPA Estimate of Hours'!AX25=0,"",+'LPA Estimate of Hours'!AX25),) ->  | AY23: =IFERROR(IF(+'LPA Estimate of Hours'!AY25=0,"",+'LPA Estimate of Hours'!AY25),) ->  | AZ23: 0
A24: =IFERROR(IF(+'LPA Estimate of Hours'!A26<>0,'LPA Estimate of Hours'!A26),"Row Deleted") -> Project Management | B24: =IFERROR(IF(+'LPA Estimate of Hours'!B26=0,"",+'LPA Estimate of Hours'!B26),) ->  | C24: =IFERROR(IF(+'LPA Estimate of Hours'!C26=0,"",+'LPA Estimate of Hours'!C26),) ->  | D24: =IFERROR(IF(+'LPA Estimate of Hours'!D26=0,"",+'LPA Estimate of Hours'!D26),) ->  | E24: =IFERROR(IF(+'LPA Estimate of Hours'!E26=0,"",+'LPA Estimate of Hours'!E26),) ->  | F24: =IFERROR(IF(+'LPA Estimate of Hours'!F26=0,"",+'LPA Estimate of Hours'!F26),) ->  | G24: =IFERROR(IF(+'LPA Estimate of Hours'!G26=0,"",+'LPA Estimate of Hours'!G26),) ->  | H24: =IFERROR(IF(+'LPA Estimate of Hours'!H26=0,"",+'LPA Estimate of Hours'!H26),) ->  | I24: =IFERROR(IF(+'LPA Estimate of Hours'!I26=0,"",+'LPA Estimate of Hours'!I26),) ->  | J24: =IFERROR(IF(+'LPA Estimate of Hours'!J26=0,"",+'LPA Estimate of Hours'!J26),) ->  | K24: =IFERROR(IF(+'LPA Estimate of Hours'!K26=0,"",+'LPA Estimate of Hours'!K26),) ->  | L24: =IFERROR(IF(+'LPA Estimate of Hours'!L26=0,"",+'LPA Estimate of Hours'!L26),) ->  | M24: =IFERROR(IF(+'LPA Estimate of Hours'!M26=0,"",+'LPA Estimate of Hours'!M26),) ->  | N24: =IFERROR(IF(+'LPA Estimate of Hours'!N26=0,"",+'LPA Estimate of Hours'!N26),) ->  | O24: =IFERROR(IF(+'LPA Estimate of Hours'!O26=0,"",+'LPA Estimate of Hours'!O26),) ->  | P24: =IFERROR(IF(+'LPA Estimate of Hours'!P26=0,"",+'LPA Estimate of Hours'!P26),) ->  | Q24: =IFERROR(IF(+'LPA Estimate of Hours'!Q26=0,"",+'LPA Estimate of Hours'!Q26),) ->  | R24: =IFERROR(IF(+'LPA Estimate of Hours'!R26=0,"",+'LPA Estimate of Hours'!R26),) ->  | S24: =IFERROR(IF(+'LPA Estimate of Hours'!S26=0,"",+'LPA Estimate of Hours'!S26),) ->  | T24: =IFERROR(IF(+'LPA Estimate of Hours'!T26=0,"",+'LPA Estimate of Hours'!T26),) ->  | U24: =IFERROR(IF(+'LPA Estimate of Hours'!U26=0,"",+'LPA Estimate of Hours'!U26),) ->  | V24: =IFERROR(IF(+'LPA Estimate of Hours'!V26=0,"",+'LPA Estimate of Hours'!V26),) ->  | W24: =IFERROR(IF(+'LPA Estimate of Hours'!W26=0,"",+'LPA Estimate of Hours'!W26),) ->  | X24: =IFERROR(IF(+'LPA Estimate of Hours'!X26=0,"",+'LPA Estimate of Hours'!X26),) ->  | Y24: =IFERROR(IF(+'LPA Estimate of Hours'!Y26=0,"",+'LPA Estimate of Hours'!Y26),) ->  | Z24: =IFERROR(IF(+'LPA Estimate of Hours'!Z26=0,"",+'LPA Estimate of Hours'!Z26),) ->  | AA24: =IFERROR(IF(+'LPA Estimate of Hours'!AA26=0,"",+'LPA Estimate of Hours'!AA26),) ->  | AB24: =IFERROR(IF(+'LPA Estimate of Hours'!AB26=0,"",+'LPA Estimate of Hours'!AB26),) ->  | AC24: =IFERROR(IF(+'LPA Estimate of Hours'!AC26=0,"",+'LPA Estimate of Hours'!AC26),) ->  | AD24: =IFERROR(IF(+'LPA Estimate of Hours'!AD26=0,"",+'LPA Estimate of Hours'!AD26),) ->  | AE24: =IFERROR(IF(+'LPA Estimate of Hours'!AE26=0,"",+'LPA Estimate of Hours'!AE26),) ->  | AF24: =IFERROR(IF(+'LPA Estimate of Hours'!AF26=0,"",+'LPA Estimate of Hours'!AF26),) ->  | AG24: =IFERROR(IF(+'LPA Estimate of Hours'!AG26=0,"",+'LPA Estimate of Hours'!AG26),) ->  | AH24: =IFERROR(IF(+'LPA Estimate of Hours'!AH26=0,"",+'LPA Estimate of Hours'!AH26),) ->  | AI24: =IFERROR(IF(+'LPA Estimate of Hours'!AI26=0,"",+'LPA Estimate of Hours'!AI26),) ->  | AJ24: =IFERROR(IF(+'LPA Estimate of Hours'!AJ26=0,"",+'LPA Estimate of Hours'!AJ26),) ->  | AK24: =IFERROR(IF(+'LPA Estimate of Hours'!AK26=0,"",+'LPA Estimate of Hours'!AK26),) ->  | AL24: =IFERROR(IF(+'LPA Estimate of Hours'!AL26=0,"",+'LPA Estimate of Hours'!AL26),) ->  | AM24: =IFERROR(IF(+'LPA Estimate of Hours'!AM26=0,"",+'LPA Estimate of Hours'!AM26),) ->  | AN24: =IFERROR(IF(+'LPA Estimate of Hours'!AN26=0,"",+'LPA Estimate of Hours'!AN26),) ->  | AO24: =IFERROR(IF(+'LPA Estimate of Hours'!AO26=0,"",+'LPA Estimate of Hours'!AO26),) ->  | AP24: =IFERROR(IF(+'LPA Estimate of Hours'!AP26=0,"",+'LPA Estimate of Hours'!AP26),) ->  | AQ24: =IFERROR(IF(+'LPA Estimate of Hours'!AQ26=0,"",+'LPA Estimate of Hours'!AQ26),) ->  | AR24: =IFERROR(IF(+'LPA Estimate of Hours'!AR26=0,"",+'LPA Estimate of Hours'!AR26),) ->  | AS24: =IFERROR(IF(+'LPA Estimate of Hours'!AS26=0,"",+'LPA Estimate of Hours'!AS26),) ->  | AT24: =IFERROR(IF(+'LPA Estimate of Hours'!AT26=0,"",+'LPA Estimate of Hours'!AT26),) ->  | AU24: =IFERROR(IF(+'LPA Estimate of Hours'!AU26=0,"",+'LPA Estimate of Hours'!AU26),) ->  | AV24: =IFERROR(IF(+'LPA Estimate of Hours'!AV26=0,"",+'LPA Estimate of Hours'!AV26),) ->  | AW24: =IFERROR(IF(+'LPA Estimate of Hours'!AW26=0,"",+'LPA Estimate of Hours'!AW26),) ->  | AX24: =IFERROR(IF(+'LPA Estimate of Hours'!AX26=0,"",+'LPA Estimate of Hours'!AX26),) ->  | AY24: =IFERROR(IF(+'LPA Estimate of Hours'!AY26=0,"",+'LPA Estimate of Hours'!AY26),) ->  | AZ24: 0
A25: =IFERROR(IF(+'LPA Estimate of Hours'!A27<>0,'LPA Estimate of Hours'!A27),"Row Deleted") -> Review engineering shop drawings | B25: =IFERROR(IF(+'LPA Estimate of Hours'!B27=0,"",+'LPA Estimate of Hours'!B27),) ->  | C25: =IFERROR(IF(+'LPA Estimate of Hours'!C27=0,"",+'LPA Estimate of Hours'!C27),) ->  | D25: =IFERROR(IF(+'LPA Estimate of Hours'!D27=0,"",+'LPA Estimate of Hours'!D27),) ->  | E25: =IFERROR(IF(+'LPA Estimate of Hours'!E27=0,"",+'LPA Estimate of Hours'!E27),) ->  | F25: =IFERROR(IF(+'LPA Estimate of Hours'!F27=0,"",+'LPA Estimate of Hours'!F27),) ->  | G25: =IFERROR(IF(+'LPA Estimate of Hours'!G27=0,"",+'LPA Estimate of Hours'!G27),) ->  | H25: =IFERROR(IF(+'LPA Estimate of Hours'!H27=0,"",+'LPA Estimate of Hours'!H27),) ->  | I25: =IFERROR(IF(+'LPA Estimate of Hours'!I27=0,"",+'LPA Estimate of Hours'!I27),) ->  | J25: =IFERROR(IF(+'LPA Estimate of Hours'!J27=0,"",+'LPA Estimate of Hours'!J27),) ->  | K25: =IFERROR(IF(+'LPA Estimate of Hours'!K27=0,"",+'LPA Estimate of Hours'!K27),) ->  | L25: =IFERROR(IF(+'LPA Estimate of Hours'!L27=0,"",+'LPA Estimate of Hours'!L27),) ->  | M25: =IFERROR(IF(+'LPA Estimate of Hours'!M27=0,"",+'LPA Estimate of Hours'!M27),) ->  | N25: =IFERROR(IF(+'LPA Estimate of Hours'!N27=0,"",+'LPA Estimate of Hours'!N27),) ->  | O25: =IFERROR(IF(+'LPA Estimate of Hours'!O27=0,"",+'LPA Estimate of Hours'!O27),) ->  | P25: =IFERROR(IF(+'LPA Estimate of Hours'!P27=0,"",+'LPA Estimate of Hours'!P27),) ->  | Q25: =IFERROR(IF(+'LPA Estimate of Hours'!Q27=0,"",+'LPA Estimate of Hours'!Q27),) ->  | R25: =IFERROR(IF(+'LPA Estimate of Hours'!R27=0,"",+'LPA Estimate of Hours'!R27),) ->  | S25: =IFERROR(IF(+'LPA Estimate of Hours'!S27=0,"",+'LPA Estimate of Hours'!S27),) ->  | T25: =IFERROR(IF(+'LPA Estimate of Hours'!T27=0,"",+'LPA Estimate of Hours'!T27),) ->  | U25: =IFERROR(IF(+'LPA Estimate of Hours'!U27=0,"",+'LPA Estimate of Hours'!U27),) ->  | V25: =IFERROR(IF(+'LPA Estimate of Hours'!V27=0,"",+'LPA Estimate of Hours'!V27),) ->  | W25: =IFERROR(IF(+'LPA Estimate of Hours'!W27=0,"",+'LPA Estimate of Hours'!W27),) ->  | X25: =IFERROR(IF(+'LPA Estimate of Hours'!X27=0,"",+'LPA Estimate of Hours'!X27),) ->  | Y25: =IFERROR(IF(+'LPA Estimate of Hours'!Y27=0,"",+'LPA Estimate of Hours'!Y27),) ->  | Z25: =IFERROR(IF(+'LPA Estimate of Hours'!Z27=0,"",+'LPA Estimate of Hours'!Z27),) ->  | AA25: =IFERROR(IF(+'LPA Estimate of Hours'!AA27=0,"",+'LPA Estimate of Hours'!AA27),) ->  | AB25: =IFERROR(IF(+'LPA Estimate of Hours'!AB27=0,"",+'LPA Estimate of Hours'!AB27),) ->  | AC25: =IFERROR(IF(+'LPA Estimate of Hours'!AC27=0,"",+'LPA Estimate of Hours'!AC27),) ->  | AD25: =IFERROR(IF(+'LPA Estimate of Hours'!AD27=0,"",+'LPA Estimate of Hours'!AD27),) ->  | AE25: =IFERROR(IF(+'LPA Estimate of Hours'!AE27=0,"",+'LPA Estimate of Hours'!AE27),) ->  | AF25: =IFERROR(IF(+'LPA Estimate of Hours'!AF27=0,"",+'LPA Estimate of Hours'!AF27),) ->  | AG25: =IFERROR(IF(+'LPA Estimate of Hours'!AG27=0,"",+'LPA Estimate of Hours'!AG27),) ->  | AH25: =IFERROR(IF(+'LPA Estimate of Hours'!AH27=0,"",+'LPA Estimate of Hours'!AH27),) ->  | AI25: =IFERROR(IF(+'LPA Estimate of Hours'!AI27=0,"",+'LPA Estimate of Hours'!AI27),) ->  | AJ25: =IFERROR(IF(+'LPA Estimate of Hours'!AJ27=0,"",+'LPA Estimate of Hours'!AJ27),) ->  | AK25: =IFERROR(IF(+'LPA Estimate of Hours'!AK27=0,"",+'LPA Estimate of Hours'!AK27),) ->  | AL25: =IFERROR(IF(+'LPA Estimate of Hours'!AL27=0,"",+'LPA Estimate of Hours'!AL27),) ->  | AM25: =IFERROR(IF(+'LPA Estimate of Hours'!AM27=0,"",+'LPA Estimate of Hours'!AM27),) ->  | AN25: =IFERROR(IF(+'LPA Estimate of Hours'!AN27=0,"",+'LPA Estimate of Hours'!AN27),) ->  | AO25: =IFERROR(IF(+'LPA Estimate of Hours'!AO27=0,"",+'LPA Estimate of Hours'!AO27),) ->  | AP25: =IFERROR(IF(+'LPA Estimate of Hours'!AP27=0,"",+'LPA Estimate of Hours'!AP27),) ->  | AQ25: =IFERROR(IF(+'LPA Estimate of Hours'!AQ27=0,"",+'LPA Estimate of Hours'!AQ27),) ->  | AR25: =IFERROR(IF(+'LPA Estimate of Hours'!AR27=0,"",+'LPA Estimate of Hours'!AR27),) ->  | AS25: =IFERROR(IF(+'LPA Estimate of Hours'!AS27=0,"",+'LPA Estimate of Hours'!AS27),) ->  | AT25: =IFERROR(IF(+'LPA Estimate of Hours'!AT27=0,"",+'LPA Estimate of Hours'!AT27),) ->  | AU25: =IFERROR(IF(+'LPA Estimate of Hours'!AU27=0,"",+'LPA Estimate of Hours'!AU27),) ->  | AV25: =IFERROR(IF(+'LPA Estimate of Hours'!AV27=0,"",+'LPA Estimate of Hours'!AV27),) ->  | AW25: =IFERROR(IF(+'LPA Estimate of Hours'!AW27=0,"",+'LPA Estimate of Hours'!AW27),) ->  | AX25: =IFERROR(IF(+'LPA Estimate of Hours'!AX27=0,"",+'LPA Estimate of Hours'!AX27),) ->  | AY25: =IFERROR(IF(+'LPA Estimate of Hours'!AY27=0,"",+'LPA Estimate of Hours'!AY27),) ->  | AZ25: 0
A26: =IFERROR(IF(+'LPA Estimate of Hours'!A28<>0,'LPA Estimate of Hours'!A28),"Row Deleted") -> Schedule development | B26: =IFERROR(IF(+'LPA Estimate of Hours'!B28=0,"",+'LPA Estimate of Hours'!B28),) ->  | C26: =IFERROR(IF(+'LPA Estimate of Hours'!C28=0,"",+'LPA Estimate of Hours'!C28),) ->  | D26: =IFERROR(IF(+'LPA Estimate of Hours'!D28=0,"",+'LPA Estimate of Hours'!D28),) ->  | E26: =IFERROR(IF(+'LPA Estimate of Hours'!E28=0,"",+'LPA Estimate of Hours'!E28),) ->  | F26: =IFERROR(IF(+'LPA Estimate of Hours'!F28=0,"",+'LPA Estimate of Hours'!F28),) ->  | G26: =IFERROR(IF(+'LPA Estimate of Hours'!G28=0,"",+'LPA Estimate of Hours'!G28),) ->  | H26: =IFERROR(IF(+'LPA Estimate of Hours'!H28=0,"",+'LPA Estimate of Hours'!H28),) ->  | I26: =IFERROR(IF(+'LPA Estimate of Hours'!I28=0,"",+'LPA Estimate of Hours'!I28),) ->  | J26: =IFERROR(IF(+'LPA Estimate of Hours'!J28=0,"",+'LPA Estimate of Hours'!J28),) ->  | K26: =IFERROR(IF(+'LPA Estimate of Hours'!K28=0,"",+'LPA Estimate of Hours'!K28),) ->  | L26: =IFERROR(IF(+'LPA Estimate of Hours'!L28=0,"",+'LPA Estimate of Hours'!L28),) ->  | M26: =IFERROR(IF(+'LPA Estimate of Hours'!M28=0,"",+'LPA Estimate of Hours'!M28),) ->  | N26: =IFERROR(IF(+'LPA Estimate of Hours'!N28=0,"",+'LPA Estimate of Hours'!N28),) ->  | O26: =IFERROR(IF(+'LPA Estimate of Hours'!O28=0,"",+'LPA Estimate of Hours'!O28),) ->  | P26: =IFERROR(IF(+'LPA Estimate of Hours'!P28=0,"",+'LPA Estimate of Hours'!P28),) ->  | Q26: =IFERROR(IF(+'LPA Estimate of Hours'!Q28=0,"",+'LPA Estimate of Hours'!Q28),) ->  | R26: =IFERROR(IF(+'LPA Estimate of Hours'!R28=0,"",+'LPA Estimate of Hours'!R28),) ->  | S26: =IFERROR(IF(+'LPA Estimate of Hours'!S28=0,"",+'LPA Estimate of Hours'!S28),) ->  | T26: =IFERROR(IF(+'LPA Estimate of Hours'!T28=0,"",+'LPA Estimate of Hours'!T28),) ->  | U26: =IFERROR(IF(+'LPA Estimate of Hours'!U28=0,"",+'LPA Estimate of Hours'!U28),) ->  | V26: =IFERROR(IF(+'LPA Estimate of Hours'!V28=0,"",+'LPA Estimate of Hours'!V28),) ->  | W26: =IFERROR(IF(+'LPA Estimate of Hours'!W28=0,"",+'LPA Estimate of Hours'!W28),) ->  | X26: =IFERROR(IF(+'LPA Estimate of Hours'!X28=0,"",+'LPA Estimate of Hours'!X28),) ->  | Y26: =IFERROR(IF(+'LPA Estimate of Hours'!Y28=0,"",+'LPA Estimate of Hours'!Y28),) ->  | Z26: =IFERROR(IF(+'LPA Estimate of Hours'!Z28=0,"",+'LPA Estimate of Hours'!Z28),) ->  | AA26: =IFERROR(IF(+'LPA Estimate of Hours'!AA28=0,"",+'LPA Estimate of Hours'!AA28),) ->  | AB26: =IFERROR(IF(+'LPA Estimate of Hours'!AB28=0,"",+'LPA Estimate of Hours'!AB28),) ->  | AC26: =IFERROR(IF(+'LPA Estimate of Hours'!AC28=0,"",+'LPA Estimate of Hours'!AC28),) ->  | AD26: =IFERROR(IF(+'LPA Estimate of Hours'!AD28=0,"",+'LPA Estimate of Hours'!AD28),) ->  | AE26: =IFERROR(IF(+'LPA Estimate of Hours'!AE28=0,"",+'LPA Estimate of Hours'!AE28),) ->  | AF26: =IFERROR(IF(+'LPA Estimate of Hours'!AF28=0,"",+'LPA Estimate of Hours'!AF28),) ->  | AG26: =IFERROR(IF(+'LPA Estimate of Hours'!AG28=0,"",+'LPA Estimate of Hours'!AG28),) ->  | AH26: =IFERROR(IF(+'LPA Estimate of Hours'!AH28=0,"",+'LPA Estimate of Hours'!AH28),) ->  | AI26: =IFERROR(IF(+'LPA Estimate of Hours'!AI28=0,"",+'LPA Estimate of Hours'!AI28),) ->  | AJ26: =IFERROR(IF(+'LPA Estimate of Hours'!AJ28=0,"",+'LPA Estimate of Hours'!AJ28),) ->  | AK26: =IFERROR(IF(+'LPA Estimate of Hours'!AK28=0,"",+'LPA Estimate of Hours'!AK28),) ->  | AL26: =IFERROR(IF(+'LPA Estimate of Hours'!AL28=0,"",+'LPA Estimate of Hours'!AL28),) ->  | AM26: =IFERROR(IF(+'LPA Estimate of Hours'!AM28=0,"",+'LPA Estimate of Hours'!AM28),) ->  | AN26: =IFERROR(IF(+'LPA Estimate of Hours'!AN28=0,"",+'LPA Estimate of Hours'!AN28),) ->  | AO26: =IFERROR(IF(+'LPA Estimate of Hours'!AO28=0,"",+'LPA Estimate of Hours'!AO28),) ->  | AP26: =IFERROR(IF(+'LPA Estimate of Hours'!AP28=0,"",+'LPA Estimate of Hours'!AP28),) ->  | AQ26: =IFERROR(IF(+'LPA Estimate of Hours'!AQ28=0,"",+'LPA Estimate of Hours'!AQ28),) ->  | AR26: =IFERROR(IF(+'LPA Estimate of Hours'!AR28=0,"",+'LPA Estimate of Hours'!AR28),) ->  | AS26: =IFERROR(IF(+'LPA Estimate of Hours'!AS28=0,"",+'LPA Estimate of Hours'!AS28),) ->  | AT26: =IFERROR(IF(+'LPA Estimate of Hours'!AT28=0,"",+'LPA Estimate of Hours'!AT28),) ->  | AU26: =IFERROR(IF(+'LPA Estimate of Hours'!AU28=0,"",+'LPA Estimate of Hours'!AU28),) ->  | AV26: =IFERROR(IF(+'LPA Estimate of Hours'!AV28=0,"",+'LPA Estimate of Hours'!AV28),) ->  | AW26: =IFERROR(IF(+'LPA Estimate of Hours'!AW28=0,"",+'LPA Estimate of Hours'!AW28),) ->  | AX26: =IFERROR(IF(+'LPA Estimate of Hours'!AX28=0,"",+'LPA Estimate of Hours'!AX28),) ->  | AY26: =IFERROR(IF(+'LPA Estimate of Hours'!AY28=0,"",+'LPA Estimate of Hours'!AY28),) ->  | AZ26: 0
A27: =IFERROR(IF(+'LPA Estimate of Hours'!A29<>0,'LPA Estimate of Hours'!A29),"Row Deleted") -> Reserve | B27: =IFERROR(IF(+'LPA Estimate of Hours'!B29=0,"",+'LPA Estimate of Hours'!B29),) ->  | C27: =IFERROR(IF(+'LPA Estimate of Hours'!C29=0,"",+'LPA Estimate of Hours'!C29),) ->  | D27: =IFERROR(IF(+'LPA Estimate of Hours'!D29=0,"",+'LPA Estimate of Hours'!D29),) ->  | E27: =IFERROR(IF(+'LPA Estimate of Hours'!E29=0,"",+'LPA Estimate of Hours'!E29),) ->  | F27: =IFERROR(IF(+'LPA Estimate of Hours'!F29=0,"",+'LPA Estimate of Hours'!F29),) ->  | G27: =IFERROR(IF(+'LPA Estimate of Hours'!G29=0,"",+'LPA Estimate of Hours'!G29),) ->  | H27: =IFERROR(IF(+'LPA Estimate of Hours'!H29=0,"",+'LPA Estimate of Hours'!H29),) ->  | I27: =IFERROR(IF(+'LPA Estimate of Hours'!I29=0,"",+'LPA Estimate of Hours'!I29),) ->  | J27: =IFERROR(IF(+'LPA Estimate of Hours'!J29=0,"",+'LPA Estimate of Hours'!J29),) ->  | K27: =IFERROR(IF(+'LPA Estimate of Hours'!K29=0,"",+'LPA Estimate of Hours'!K29),) ->  | L27: =IFERROR(IF(+'LPA Estimate of Hours'!L29=0,"",+'LPA Estimate of Hours'!L29),) ->  | M27: =IFERROR(IF(+'LPA Estimate of Hours'!M29=0,"",+'LPA Estimate of Hours'!M29),) ->  | N27: =IFERROR(IF(+'LPA Estimate of Hours'!N29=0,"",+'LPA Estimate of Hours'!N29),) ->  | O27: =IFERROR(IF(+'LPA Estimate of Hours'!O29=0,"",+'LPA Estimate of Hours'!O29),) ->  | P27: =IFERROR(IF(+'LPA Estimate of Hours'!P29=0,"",+'LPA Estimate of Hours'!P29),) ->  | Q27: =IFERROR(IF(+'LPA Estimate of Hours'!Q29=0,"",+'LPA Estimate of Hours'!Q29),) ->  | R27: =IFERROR(IF(+'LPA Estimate of Hours'!R29=0,"",+'LPA Estimate of Hours'!R29),) ->  | S27: =IFERROR(IF(+'LPA Estimate of Hours'!S29=0,"",+'LPA Estimate of Hours'!S29),) ->  | T27: =IFERROR(IF(+'LPA Estimate of Hours'!T29=0,"",+'LPA Estimate of Hours'!T29),) ->  | U27: =IFERROR(IF(+'LPA Estimate of Hours'!U29=0,"",+'LPA Estimate of Hours'!U29),) ->  | V27: =IFERROR(IF(+'LPA Estimate of Hours'!V29=0,"",+'LPA Estimate of Hours'!V29),) ->  | W27: =IFERROR(IF(+'LPA Estimate of Hours'!W29=0,"",+'LPA Estimate of Hours'!W29),) ->  | X27: =IFERROR(IF(+'LPA Estimate of Hours'!X29=0,"",+'LPA Estimate of Hours'!X29),) ->  | Y27: =IFERROR(IF(+'LPA Estimate of Hours'!Y29=0,"",+'LPA Estimate of Hours'!Y29),) ->  | Z27: =IFERROR(IF(+'LPA Estimate of Hours'!Z29=0,"",+'LPA Estimate of Hours'!Z29),) ->  | AA27: =IFERROR(IF(+'LPA Estimate of Hours'!AA29=0,"",+'LPA Estimate of Hours'!AA29),) ->  | AB27: =IFERROR(IF(+'LPA Estimate of Hours'!AB29=0,"",+'LPA Estimate of Hours'!AB29),) ->  | AC27: =IFERROR(IF(+'LPA Estimate of Hours'!AC29=0,"",+'LPA Estimate of Hours'!AC29),) ->  | AD27: =IFERROR(IF(+'LPA Estimate of Hours'!AD29=0,"",+'LPA Estimate of Hours'!AD29),) ->  | AE27: =IFERROR(IF(+'LPA Estimate of Hours'!AE29=0,"",+'LPA Estimate of Hours'!AE29),) ->  | AF27: =IFERROR(IF(+'LPA Estimate of Hours'!AF29=0,"",+'LPA Estimate of Hours'!AF29),) ->  | AG27: =IFERROR(IF(+'LPA Estimate of Hours'!AG29=0,"",+'LPA Estimate of Hours'!AG29),) ->  | AH27: =IFERROR(IF(+'LPA Estimate of Hours'!AH29=0,"",+'LPA Estimate of Hours'!AH29),) ->  | AI27: =IFERROR(IF(+'LPA Estimate of Hours'!AI29=0,"",+'LPA Estimate of Hours'!AI29),) ->  | AJ27: =IFERROR(IF(+'LPA Estimate of Hours'!AJ29=0,"",+'LPA Estimate of Hours'!AJ29),) ->  | AK27: =IFERROR(IF(+'LPA Estimate of Hours'!AK29=0,"",+'LPA Estimate of Hours'!AK29),) ->  | AL27: =IFERROR(IF(+'LPA Estimate of Hours'!AL29=0,"",+'LPA Estimate of Hours'!AL29),) ->  | AM27: =IFERROR(IF(+'LPA Estimate of Hours'!AM29=0,"",+'LPA Estimate of Hours'!AM29),) ->  | AN27: =IFERROR(IF(+'LPA Estimate of Hours'!AN29=0,"",+'LPA Estimate of Hours'!AN29),) ->  | AO27: =IFERROR(IF(+'LPA Estimate of Hours'!AO29=0,"",+'LPA Estimate of Hours'!AO29),) ->  | AP27: =IFERROR(IF(+'LPA Estimate of Hours'!AP29=0,"",+'LPA Estimate of Hours'!AP29),) ->  | AQ27: =IFERROR(IF(+'LPA Estimate of Hours'!AQ29=0,"",+'LPA Estimate of Hours'!AQ29),) ->  | AR27: =IFERROR(IF(+'LPA Estimate of Hours'!AR29=0,"",+'LPA Estimate of Hours'!AR29),) ->  | AS27: =IFERROR(IF(+'LPA Estimate of Hours'!AS29=0,"",+'LPA Estimate of Hours'!AS29),) ->  | AT27: =IFERROR(IF(+'LPA Estimate of Hours'!AT29=0,"",+'LPA Estimate of Hours'!AT29),) ->  | AU27: =IFERROR(IF(+'LPA Estimate of Hours'!AU29=0,"",+'LPA Estimate of Hours'!AU29),) ->  | AV27: =IFERROR(IF(+'LPA Estimate of Hours'!AV29=0,"",+'LPA Estimate of Hours'!AV29),) ->  | AW27: =IFERROR(IF(+'LPA Estimate of Hours'!AW29=0,"",+'LPA Estimate of Hours'!AW29),) ->  | AX27: =IFERROR(IF(+'LPA Estimate of Hours'!AX29=0,"",+'LPA Estimate of Hours'!AX29),) ->  | AY27: =IFERROR(IF(+'LPA Estimate of Hours'!AY29=0,"",+'LPA Estimate of Hours'!AY29),) ->  | AZ27: 0
A28: =IFERROR(IF(+'LPA Estimate of Hours'!A30<>0,'LPA Estimate of Hours'!A30),"Row Deleted") -> Reserve | B28: =IFERROR(IF(+'LPA Estimate of Hours'!B30=0,"",+'LPA Estimate of Hours'!B30),) ->  | C28: =IFERROR(IF(+'LPA Estimate of Hours'!C30=0,"",+'LPA Estimate of Hours'!C30),) ->  | D28: =IFERROR(IF(+'LPA Estimate of Hours'!D30=0,"",+'LPA Estimate of Hours'!D30),) ->  | E28: =IFERROR(IF(+'LPA Estimate of Hours'!E30=0,"",+'LPA Estimate of Hours'!E30),) ->  | F28: =IFERROR(IF(+'LPA Estimate of Hours'!F30=0,"",+'LPA Estimate of Hours'!F30),) ->  | G28: =IFERROR(IF(+'LPA Estimate of Hours'!G30=0,"",+'LPA Estimate of Hours'!G30),) ->  | H28: =IFERROR(IF(+'LPA Estimate of Hours'!H30=0,"",+'LPA Estimate of Hours'!H30),) ->  | I28: =IFERROR(IF(+'LPA Estimate of Hours'!I30=0,"",+'LPA Estimate of Hours'!I30),) ->  | J28: =IFERROR(IF(+'LPA Estimate of Hours'!J30=0,"",+'LPA Estimate of Hours'!J30),) ->  | K28: =IFERROR(IF(+'LPA Estimate of Hours'!K30=0,"",+'LPA Estimate of Hours'!K30),) ->  | L28: =IFERROR(IF(+'LPA Estimate of Hours'!L30=0,"",+'LPA Estimate of Hours'!L30),) ->  | M28: =IFERROR(IF(+'LPA Estimate of Hours'!M30=0,"",+'LPA Estimate of Hours'!M30),) ->  | N28: =IFERROR(IF(+'LPA Estimate of Hours'!N30=0,"",+'LPA Estimate of Hours'!N30),) ->  | O28: =IFERROR(IF(+'LPA Estimate of Hours'!O30=0,"",+'LPA Estimate of Hours'!O30),) ->  | P28: =IFERROR(IF(+'LPA Estimate of Hours'!P30=0,"",+'LPA Estimate of Hours'!P30),) ->  | Q28: =IFERROR(IF(+'LPA Estimate of Hours'!Q30=0,"",+'LPA Estimate of Hours'!Q30),) ->  | R28: =IFERROR(IF(+'LPA Estimate of Hours'!R30=0,"",+'LPA Estimate of Hours'!R30),) ->  | S28: =IFERROR(IF(+'LPA Estimate of Hours'!S30=0,"",+'LPA Estimate of Hours'!S30),) ->  | T28: =IFERROR(IF(+'LPA Estimate of Hours'!T30=0,"",+'LPA Estimate of Hours'!T30),) ->  | U28: =IFERROR(IF(+'LPA Estimate of Hours'!U30=0,"",+'LPA Estimate of Hours'!U30),) ->  | V28: =IFERROR(IF(+'LPA Estimate of Hours'!V30=0,"",+'LPA Estimate of Hours'!V30),) ->  | W28: =IFERROR(IF(+'LPA Estimate of Hours'!W30=0,"",+'LPA Estimate of Hours'!W30),) ->  | X28: =IFERROR(IF(+'LPA Estimate of Hours'!X30=0,"",+'LPA Estimate of Hours'!X30),) ->  | Y28: =IFERROR(IF(+'LPA Estimate of Hours'!Y30=0,"",+'LPA Estimate of Hours'!Y30),) ->  | Z28: =IFERROR(IF(+'LPA Estimate of Hours'!Z30=0,"",+'LPA Estimate of Hours'!Z30),) ->  | AA28: =IFERROR(IF(+'LPA Estimate of Hours'!AA30=0,"",+'LPA Estimate of Hours'!AA30),) ->  | AB28: =IFERROR(IF(+'LPA Estimate of Hours'!AB30=0,"",+'LPA Estimate of Hours'!AB30),) ->  | AC28: =IFERROR(IF(+'LPA Estimate of Hours'!AC30=0,"",+'LPA Estimate of Hours'!AC30),) ->  | AD28: =IFERROR(IF(+'LPA Estimate of Hours'!AD30=0,"",+'LPA Estimate of Hours'!AD30),) ->  | AE28: =IFERROR(IF(+'LPA Estimate of Hours'!AE30=0,"",+'LPA Estimate of Hours'!AE30),) ->  | AF28: =IFERROR(IF(+'LPA Estimate of Hours'!AF30=0,"",+'LPA Estimate of Hours'!AF30),) ->  | AG28: =IFERROR(IF(+'LPA Estimate of Hours'!AG30=0,"",+'LPA Estimate of Hours'!AG30),) ->  | AH28: =IFERROR(IF(+'LPA Estimate of Hours'!AH30=0,"",+'LPA Estimate of Hours'!AH30),) ->  | AI28: =IFERROR(IF(+'LPA Estimate of Hours'!AI30=0,"",+'LPA Estimate of Hours'!AI30),) ->  | AJ28: =IFERROR(IF(+'LPA Estimate of Hours'!AJ30=0,"",+'LPA Estimate of Hours'!AJ30),) ->  | AK28: =IFERROR(IF(+'LPA Estimate of Hours'!AK30=0,"",+'LPA Estimate of Hours'!AK30),) ->  | AL28: =IFERROR(IF(+'LPA Estimate of Hours'!AL30=0,"",+'LPA Estimate of Hours'!AL30),) ->  | AM28: =IFERROR(IF(+'LPA Estimate of Hours'!AM30=0,"",+'LPA Estimate of Hours'!AM30),) ->  | AN28: =IFERROR(IF(+'LPA Estimate of Hours'!AN30=0,"",+'LPA Estimate of Hours'!AN30),) ->  | AO28: =IFERROR(IF(+'LPA Estimate of Hours'!AO30=0,"",+'LPA Estimate of Hours'!AO30),) ->  | AP28: =IFERROR(IF(+'LPA Estimate of Hours'!AP30=0,"",+'LPA Estimate of Hours'!AP30),) ->  | AQ28: =IFERROR(IF(+'LPA Estimate of Hours'!AQ30=0,"",+'LPA Estimate of Hours'!AQ30),) ->  | AR28: =IFERROR(IF(+'LPA Estimate of Hours'!AR30=0,"",+'LPA Estimate of Hours'!AR30),) ->  | AS28: =IFERROR(IF(+'LPA Estimate of Hours'!AS30=0,"",+'LPA Estimate of Hours'!AS30),) ->  | AT28: =IFERROR(IF(+'LPA Estimate of Hours'!AT30=0,"",+'LPA Estimate of Hours'!AT30),) ->  | AU28: =IFERROR(IF(+'LPA Estimate of Hours'!AU30=0,"",+'LPA Estimate of Hours'!AU30),) ->  | AV28: =IFERROR(IF(+'LPA Estimate of Hours'!AV30=0,"",+'LPA Estimate of Hours'!AV30),) ->  | AW28: =IFERROR(IF(+'LPA Estimate of Hours'!AW30=0,"",+'LPA Estimate of Hours'!AW30),) ->  | AX28: =IFERROR(IF(+'LPA Estimate of Hours'!AX30=0,"",+'LPA Estimate of Hours'!AX30),) ->  | AY28: =IFERROR(IF(+'LPA Estimate of Hours'!AY30=0,"",+'LPA Estimate of Hours'!AY30),) ->  | AZ28: 0
A29: =IFERROR(IF(+'LPA Estimate of Hours'!A31<>0,'LPA Estimate of Hours'!A31),"Row Deleted") -> Reserve | B29: =IFERROR(IF(+'LPA Estimate of Hours'!B31=0,"",+'LPA Estimate of Hours'!B31),) ->  | C29: =IFERROR(IF(+'LPA Estimate of Hours'!C31=0,"",+'LPA Estimate of Hours'!C31),) ->  | D29: =IFERROR(IF(+'LPA Estimate of Hours'!D31=0,"",+'LPA Estimate of Hours'!D31),) ->  | E29: =IFERROR(IF(+'LPA Estimate of Hours'!E31=0,"",+'LPA Estimate of Hours'!E31),) ->  | F29: =IFERROR(IF(+'LPA Estimate of Hours'!F31=0,"",+'LPA Estimate of Hours'!F31),) ->  | G29: =IFERROR(IF(+'LPA Estimate of Hours'!G31=0,"",+'LPA Estimate of Hours'!G31),) ->  | H29: =IFERROR(IF(+'LPA Estimate of Hours'!H31=0,"",+'LPA Estimate of Hours'!H31),) ->  | I29: =IFERROR(IF(+'LPA Estimate of Hours'!I31=0,"",+'LPA Estimate of Hours'!I31),) ->  | J29: =IFERROR(IF(+'LPA Estimate of Hours'!J31=0,"",+'LPA Estimate of Hours'!J31),) ->  | K29: =IFERROR(IF(+'LPA Estimate of Hours'!K31=0,"",+'LPA Estimate of Hours'!K31),) ->  | L29: =IFERROR(IF(+'LPA Estimate of Hours'!L31=0,"",+'LPA Estimate of Hours'!L31),) ->  | M29: =IFERROR(IF(+'LPA Estimate of Hours'!M31=0,"",+'LPA Estimate of Hours'!M31),) ->  | N29: =IFERROR(IF(+'LPA Estimate of Hours'!N31=0,"",+'LPA Estimate of Hours'!N31),) ->  | O29: =IFERROR(IF(+'LPA Estimate of Hours'!O31=0,"",+'LPA Estimate of Hours'!O31),) ->  | P29: =IFERROR(IF(+'LPA Estimate of Hours'!P31=0,"",+'LPA Estimate of Hours'!P31),) ->  | Q29: =IFERROR(IF(+'LPA Estimate of Hours'!Q31=0,"",+'LPA Estimate of Hours'!Q31),) ->  | R29: =IFERROR(IF(+'LPA Estimate of Hours'!R31=0,"",+'LPA Estimate of Hours'!R31),) ->  | S29: =IFERROR(IF(+'LPA Estimate of Hours'!S31=0,"",+'LPA Estimate of Hours'!S31),) ->  | T29: =IFERROR(IF(+'LPA Estimate of Hours'!T31=0,"",+'LPA Estimate of Hours'!T31),) ->  | U29: =IFERROR(IF(+'LPA Estimate of Hours'!U31=0,"",+'LPA Estimate of Hours'!U31),) ->  | V29: =IFERROR(IF(+'LPA Estimate of Hours'!V31=0,"",+'LPA Estimate of Hours'!V31),) ->  | W29: =IFERROR(IF(+'LPA Estimate of Hours'!W31=0,"",+'LPA Estimate of Hours'!W31),) ->  | X29: =IFERROR(IF(+'LPA Estimate of Hours'!X31=0,"",+'LPA Estimate of Hours'!X31),) ->  | Y29: =IFERROR(IF(+'LPA Estimate of Hours'!Y31=0,"",+'LPA Estimate of Hours'!Y31),) ->  | Z29: =IFERROR(IF(+'LPA Estimate of Hours'!Z31=0,"",+'LPA Estimate of Hours'!Z31),) ->  | AA29: =IFERROR(IF(+'LPA Estimate of Hours'!AA31=0,"",+'LPA Estimate of Hours'!AA31),) ->  | AB29: =IFERROR(IF(+'LPA Estimate of Hours'!AB31=0,"",+'LPA Estimate of Hours'!AB31),) ->  | AC29: =IFERROR(IF(+'LPA Estimate of Hours'!AC31=0,"",+'LPA Estimate of Hours'!AC31),) ->  | AD29: =IFERROR(IF(+'LPA Estimate of Hours'!AD31=0,"",+'LPA Estimate of Hours'!AD31),) ->  | AE29: =IFERROR(IF(+'LPA Estimate of Hours'!AE31=0,"",+'LPA Estimate of Hours'!AE31),) ->  | AF29: =IFERROR(IF(+'LPA Estimate of Hours'!AF31=0,"",+'LPA Estimate of Hours'!AF31),) ->  | AG29: =IFERROR(IF(+'LPA Estimate of Hours'!AG31=0,"",+'LPA Estimate of Hours'!AG31),) ->  | AH29: =IFERROR(IF(+'LPA Estimate of Hours'!AH31=0,"",+'LPA Estimate of Hours'!AH31),) ->  | AI29: =IFERROR(IF(+'LPA Estimate of Hours'!AI31=0,"",+'LPA Estimate of Hours'!AI31),) ->  | AJ29: =IFERROR(IF(+'LPA Estimate of Hours'!AJ31=0,"",+'LPA Estimate of Hours'!AJ31),) ->  | AK29: =IFERROR(IF(+'LPA Estimate of Hours'!AK31=0,"",+'LPA Estimate of Hours'!AK31),) ->  | AL29: =IFERROR(IF(+'LPA Estimate of Hours'!AL31=0,"",+'LPA Estimate of Hours'!AL31),) ->  | AM29: =IFERROR(IF(+'LPA Estimate of Hours'!AM31=0,"",+'LPA Estimate of Hours'!AM31),) ->  | AN29: =IFERROR(IF(+'LPA Estimate of Hours'!AN31=0,"",+'LPA Estimate of Hours'!AN31),) ->  | AO29: =IFERROR(IF(+'LPA Estimate of Hours'!AO31=0,"",+'LPA Estimate of Hours'!AO31),) ->  | AP29: =IFERROR(IF(+'LPA Estimate of Hours'!AP31=0,"",+'LPA Estimate of Hours'!AP31),) ->  | AQ29: =IFERROR(IF(+'LPA Estimate of Hours'!AQ31=0,"",+'LPA Estimate of Hours'!AQ31),) ->  | AR29: =IFERROR(IF(+'LPA Estimate of Hours'!AR31=0,"",+'LPA Estimate of Hours'!AR31),) ->  | AS29: =IFERROR(IF(+'LPA Estimate of Hours'!AS31=0,"",+'LPA Estimate of Hours'!AS31),) ->  | AT29: =IFERROR(IF(+'LPA Estimate of Hours'!AT31=0,"",+'LPA Estimate of Hours'!AT31),) ->  | AU29: =IFERROR(IF(+'LPA Estimate of Hours'!AU31=0,"",+'LPA Estimate of Hours'!AU31),) ->  | AV29: =IFERROR(IF(+'LPA Estimate of Hours'!AV31=0,"",+'LPA Estimate of Hours'!AV31),) ->  | AW29: =IFERROR(IF(+'LPA Estimate of Hours'!AW31=0,"",+'LPA Estimate of Hours'!AW31),) ->  | AX29: =IFERROR(IF(+'LPA Estimate of Hours'!AX31=0,"",+'LPA Estimate of Hours'!AX31),) ->  | AY29: =IFERROR(IF(+'LPA Estimate of Hours'!AY31=0,"",+'LPA Estimate of Hours'!AY31),) ->  | AZ29: 0
A30: =IFERROR(IF(+'LPA Estimate of Hours'!A32<>0,'LPA Estimate of Hours'!A32),"Row Deleted") -> Reserve | B30: =IFERROR(IF(+'LPA Estimate of Hours'!B32=0,"",+'LPA Estimate of Hours'!B32),) ->  | C30: =IFERROR(IF(+'LPA Estimate of Hours'!C32=0,"",+'LPA Estimate of Hours'!C32),) ->  | D30: =IFERROR(IF(+'LPA Estimate of Hours'!D32=0,"",+'LPA Estimate of Hours'!D32),) ->  | E30: =IFERROR(IF(+'LPA Estimate of Hours'!E32=0,"",+'LPA Estimate of Hours'!E32),) ->  | F30: =IFERROR(IF(+'LPA Estimate of Hours'!F32=0,"",+'LPA Estimate of Hours'!F32),) ->  | G30: =IFERROR(IF(+'LPA Estimate of Hours'!G32=0,"",+'LPA Estimate of Hours'!G32),) ->  | H30: =IFERROR(IF(+'LPA Estimate of Hours'!H32=0,"",+'LPA Estimate of Hours'!H32),) ->  | I30: =IFERROR(IF(+'LPA Estimate of Hours'!I32=0,"",+'LPA Estimate of Hours'!I32),) ->  | J30: =IFERROR(IF(+'LPA Estimate of Hours'!J32=0,"",+'LPA Estimate of Hours'!J32),) ->  | K30: =IFERROR(IF(+'LPA Estimate of Hours'!K32=0,"",+'LPA Estimate of Hours'!K32),) ->  | L30: =IFERROR(IF(+'LPA Estimate of Hours'!L32=0,"",+'LPA Estimate of Hours'!L32),) ->  | M30: =IFERROR(IF(+'LPA Estimate of Hours'!M32=0,"",+'LPA Estimate of Hours'!M32),) ->  | N30: =IFERROR(IF(+'LPA Estimate of Hours'!N32=0,"",+'LPA Estimate of Hours'!N32),) ->  | O30: =IFERROR(IF(+'LPA Estimate of Hours'!O32=0,"",+'LPA Estimate of Hours'!O32),) ->  | P30: =IFERROR(IF(+'LPA Estimate of Hours'!P32=0,"",+'LPA Estimate of Hours'!P32),) ->  | Q30: =IFERROR(IF(+'LPA Estimate of Hours'!Q32=0,"",+'LPA Estimate of Hours'!Q32),) ->  | R30: =IFERROR(IF(+'LPA Estimate of Hours'!R32=0,"",+'LPA Estimate of Hours'!R32),) ->  | S30: =IFERROR(IF(+'LPA Estimate of Hours'!S32=0,"",+'LPA Estimate of Hours'!S32),) ->  | T30: =IFERROR(IF(+'LPA Estimate of Hours'!T32=0,"",+'LPA Estimate of Hours'!T32),) ->  | U30: =IFERROR(IF(+'LPA Estimate of Hours'!U32=0,"",+'LPA Estimate of Hours'!U32),) ->  | V30: =IFERROR(IF(+'LPA Estimate of Hours'!V32=0,"",+'LPA Estimate of Hours'!V32),) ->  | W30: =IFERROR(IF(+'LPA Estimate of Hours'!W32=0,"",+'LPA Estimate of Hours'!W32),) ->  | X30: =IFERROR(IF(+'LPA Estimate of Hours'!X32=0,"",+'LPA Estimate of Hours'!X32),) ->  | Y30: =IFERROR(IF(+'LPA Estimate of Hours'!Y32=0,"",+'LPA Estimate of Hours'!Y32),) ->  | Z30: =IFERROR(IF(+'LPA Estimate of Hours'!Z32=0,"",+'LPA Estimate of Hours'!Z32),) ->  | AA30: =IFERROR(IF(+'LPA Estimate of Hours'!AA32=0,"",+'LPA Estimate of Hours'!AA32),) ->  | AB30: =IFERROR(IF(+'LPA Estimate of Hours'!AB32=0,"",+'LPA Estimate of Hours'!AB32),) ->  | AC30: =IFERROR(IF(+'LPA Estimate of Hours'!AC32=0,"",+'LPA Estimate of Hours'!AC32),) ->  | AD30: =IFERROR(IF(+'LPA Estimate of Hours'!AD32=0,"",+'LPA Estimate of Hours'!AD32),) ->  | AE30: =IFERROR(IF(+'LPA Estimate of Hours'!AE32=0,"",+'LPA Estimate of Hours'!AE32),) ->  | AF30: =IFERROR(IF(+'LPA Estimate of Hours'!AF32=0,"",+'LPA Estimate of Hours'!AF32),) ->  | AG30: =IFERROR(IF(+'LPA Estimate of Hours'!AG32=0,"",+'LPA Estimate of Hours'!AG32),) ->  | AH30: =IFERROR(IF(+'LPA Estimate of Hours'!AH32=0,"",+'LPA Estimate of Hours'!AH32),) ->  | AI30: =IFERROR(IF(+'LPA Estimate of Hours'!AI32=0,"",+'LPA Estimate of Hours'!AI32),) ->  | AJ30: =IFERROR(IF(+'LPA Estimate of Hours'!AJ32=0,"",+'LPA Estimate of Hours'!AJ32),) ->  | AK30: =IFERROR(IF(+'LPA Estimate of Hours'!AK32=0,"",+'LPA Estimate of Hours'!AK32),) ->  | AL30: =IFERROR(IF(+'LPA Estimate of Hours'!AL32=0,"",+'LPA Estimate of Hours'!AL32),) ->  | AM30: =IFERROR(IF(+'LPA Estimate of Hours'!AM32=0,"",+'LPA Estimate of Hours'!AM32),) ->  | AN30: =IFERROR(IF(+'LPA Estimate of Hours'!AN32=0,"",+'LPA Estimate of Hours'!AN32),) ->  | AO30: =IFERROR(IF(+'LPA Estimate of Hours'!AO32=0,"",+'LPA Estimate of Hours'!AO32),) ->  | AP30: =IFERROR(IF(+'LPA Estimate of Hours'!AP32=0,"",+'LPA Estimate of Hours'!AP32),) ->  | AQ30: =IFERROR(IF(+'LPA Estimate of Hours'!AQ32=0,"",+'LPA Estimate of Hours'!AQ32),) ->  | AR30: =IFERROR(IF(+'LPA Estimate of Hours'!AR32=0,"",+'LPA Estimate of Hours'!AR32),) ->  | AS30: =IFERROR(IF(+'LPA Estimate of Hours'!AS32=0,"",+'LPA Estimate of Hours'!AS32),) ->  | AT30: =IFERROR(IF(+'LPA Estimate of Hours'!AT32=0,"",+'LPA Estimate of Hours'!AT32),) ->  | AU30: =IFERROR(IF(+'LPA Estimate of Hours'!AU32=0,"",+'LPA Estimate of Hours'!AU32),) ->  | AV30: =IFERROR(IF(+'LPA Estimate of Hours'!AV32=0,"",+'LPA Estimate of Hours'!AV32),) ->  | AW30: =IFERROR(IF(+'LPA Estimate of Hours'!AW32=0,"",+'LPA Estimate of Hours'!AW32),) ->  | AX30: =IFERROR(IF(+'LPA Estimate of Hours'!AX32=0,"",+'LPA Estimate of Hours'!AX32),) ->  | AY30: =IFERROR(IF(+'LPA Estimate of Hours'!AY32=0,"",+'LPA Estimate of Hours'!AY32),) ->  | AZ30: 0
A31: =IFERROR(IF(+'LPA Estimate of Hours'!A33<>0,'LPA Estimate of Hours'!A33),"Row Deleted") -> Reserve | B31: =IFERROR(IF(+'LPA Estimate of Hours'!B33=0,"",+'LPA Estimate of Hours'!B33),) ->  | C31: =IFERROR(IF(+'LPA Estimate of Hours'!C33=0,"",+'LPA Estimate of Hours'!C33),) ->  | D31: =IFERROR(IF(+'LPA Estimate of Hours'!D33=0,"",+'LPA Estimate of Hours'!D33),) ->  | E31: =IFERROR(IF(+'LPA Estimate of Hours'!E33=0,"",+'LPA Estimate of Hours'!E33),) ->  | F31: =IFERROR(IF(+'LPA Estimate of Hours'!F33=0,"",+'LPA Estimate of Hours'!F33),) ->  | G31: =IFERROR(IF(+'LPA Estimate of Hours'!G33=0,"",+'LPA Estimate of Hours'!G33),) ->  | H31: =IFERROR(IF(+'LPA Estimate of Hours'!H33=0,"",+'LPA Estimate of Hours'!H33),) ->  | I31: =IFERROR(IF(+'LPA Estimate of Hours'!I33=0,"",+'LPA Estimate of Hours'!I33),) ->  | J31: =IFERROR(IF(+'LPA Estimate of Hours'!J33=0,"",+'LPA Estimate of Hours'!J33),) ->  | K31: =IFERROR(IF(+'LPA Estimate of Hours'!K33=0,"",+'LPA Estimate of Hours'!K33),) ->  | L31: =IFERROR(IF(+'LPA Estimate of Hours'!L33=0,"",+'LPA Estimate of Hours'!L33),) ->  | M31: =IFERROR(IF(+'LPA Estimate of Hours'!M33=0,"",+'LPA Estimate of Hours'!M33),) ->  | N31: =IFERROR(IF(+'LPA Estimate of Hours'!N33=0,"",+'LPA Estimate of Hours'!N33),) ->  | O31: =IFERROR(IF(+'LPA Estimate of Hours'!O33=0,"",+'LPA Estimate of Hours'!O33),) ->  | P31: =IFERROR(IF(+'LPA Estimate of Hours'!P33=0,"",+'LPA Estimate of Hours'!P33),) ->  | Q31: =IFERROR(IF(+'LPA Estimate of Hours'!Q33=0,"",+'LPA Estimate of Hours'!Q33),) ->  | R31: =IFERROR(IF(+'LPA Estimate of Hours'!R33=0,"",+'LPA Estimate of Hours'!R33),) ->  | S31: =IFERROR(IF(+'LPA Estimate of Hours'!S33=0,"",+'LPA Estimate of Hours'!S33),) ->  | T31: =IFERROR(IF(+'LPA Estimate of Hours'!T33=0,"",+'LPA Estimate of Hours'!T33),) ->  | U31: =IFERROR(IF(+'LPA Estimate of Hours'!U33=0,"",+'LPA Estimate of Hours'!U33),) ->  | V31: =IFERROR(IF(+'LPA Estimate of Hours'!V33=0,"",+'LPA Estimate of Hours'!V33),) ->  | W31: =IFERROR(IF(+'LPA Estimate of Hours'!W33=0,"",+'LPA Estimate of Hours'!W33),) ->  | X31: =IFERROR(IF(+'LPA Estimate of Hours'!X33=0,"",+'LPA Estimate of Hours'!X33),) ->  | Y31: =IFERROR(IF(+'LPA Estimate of Hours'!Y33=0,"",+'LPA Estimate of Hours'!Y33),) ->  | Z31: =IFERROR(IF(+'LPA Estimate of Hours'!Z33=0,"",+'LPA Estimate of Hours'!Z33),) ->  | AA31: =IFERROR(IF(+'LPA Estimate of Hours'!AA33=0,"",+'LPA Estimate of Hours'!AA33),) ->  | AB31: =IFERROR(IF(+'LPA Estimate of Hours'!AB33=0,"",+'LPA Estimate of Hours'!AB33),) ->  | AC31: =IFERROR(IF(+'LPA Estimate of Hours'!AC33=0,"",+'LPA Estimate of Hours'!AC33),) ->  | AD31: =IFERROR(IF(+'LPA Estimate of Hours'!AD33=0,"",+'LPA Estimate of Hours'!AD33),) ->  | AE31: =IFERROR(IF(+'LPA Estimate of Hours'!AE33=0,"",+'LPA Estimate of Hours'!AE33),) ->  | AF31: =IFERROR(IF(+'LPA Estimate of Hours'!AF33=0,"",+'LPA Estimate of Hours'!AF33),) ->  | AG31: =IFERROR(IF(+'LPA Estimate of Hours'!AG33=0,"",+'LPA Estimate of Hours'!AG33),) ->  | AH31: =IFERROR(IF(+'LPA Estimate of Hours'!AH33=0,"",+'LPA Estimate of Hours'!AH33),) ->  | AI31: =IFERROR(IF(+'LPA Estimate of Hours'!AI33=0,"",+'LPA Estimate of Hours'!AI33),) ->  | AJ31: =IFERROR(IF(+'LPA Estimate of Hours'!AJ33=0,"",+'LPA Estimate of Hours'!AJ33),) ->  | AK31: =IFERROR(IF(+'LPA Estimate of Hours'!AK33=0,"",+'LPA Estimate of Hours'!AK33),) ->  | AL31: =IFERROR(IF(+'LPA Estimate of Hours'!AL33=0,"",+'LPA Estimate of Hours'!AL33),) ->  | AM31: =IFERROR(IF(+'LPA Estimate of Hours'!AM33=0,"",+'LPA Estimate of Hours'!AM33),) ->  | AN31: =IFERROR(IF(+'LPA Estimate of Hours'!AN33=0,"",+'LPA Estimate of Hours'!AN33),) ->  | AO31: =IFERROR(IF(+'LPA Estimate of Hours'!AO33=0,"",+'LPA Estimate of Hours'!AO33),) ->  | AP31: =IFERROR(IF(+'LPA Estimate of Hours'!AP33=0,"",+'LPA Estimate of Hours'!AP33),) ->  | AQ31: =IFERROR(IF(+'LPA Estimate of Hours'!AQ33=0,"",+'LPA Estimate of Hours'!AQ33),) ->  | AR31: =IFERROR(IF(+'LPA Estimate of Hours'!AR33=0,"",+'LPA Estimate of Hours'!AR33),) ->  | AS31: =IFERROR(IF(+'LPA Estimate of Hours'!AS33=0,"",+'LPA Estimate of Hours'!AS33),) ->  | AT31: =IFERROR(IF(+'LPA Estimate of Hours'!AT33=0,"",+'LPA Estimate of Hours'!AT33),) ->  | AU31: =IFERROR(IF(+'LPA Estimate of Hours'!AU33=0,"",+'LPA Estimate of Hours'!AU33),) ->  | AV31: =IFERROR(IF(+'LPA Estimate of Hours'!AV33=0,"",+'LPA Estimate of Hours'!AV33),) ->  | AW31: =IFERROR(IF(+'LPA Estimate of Hours'!AW33=0,"",+'LPA Estimate of Hours'!AW33),) ->  | AX31: =IFERROR(IF(+'LPA Estimate of Hours'!AX33=0,"",+'LPA Estimate of Hours'!AX33),) ->  | AY31: =IFERROR(IF(+'LPA Estimate of Hours'!AY33=0,"",+'LPA Estimate of Hours'!AY33),) ->  | AZ31: 0
A32: =+'LPA Estimate of Hours'!A34 -> 2. Project Management and QC | B32: =+'LPA Estimate of Hours'!B34 -> 0 | C32: =+'LPA Estimate of Hours'!C34 -> 0 | D32: =+'LPA Estimate of Hours'!D34 -> 0 | E32: =+'LPA Estimate of Hours'!E34 -> 0 | F32: =+'LPA Estimate of Hours'!F34 -> 0 | G32: =+'LPA Estimate of Hours'!G34 -> 0 | H32: =+'LPA Estimate of Hours'!H34 -> 0 | I32: =+'LPA Estimate of Hours'!I34 -> 0 | J32: =+'LPA Estimate of Hours'!J34 -> 0 | K32: =+'LPA Estimate of Hours'!K34 -> 0 | L32: =+'LPA Estimate of Hours'!L34 -> 0 | M32: =+'LPA Estimate of Hours'!M34 -> 0 | N32: =+'LPA Estimate of Hours'!N34 -> 0 | O32: =+'LPA Estimate of Hours'!O34 -> 0 | P32: =+'LPA Estimate of Hours'!P34 -> 0 | Q32: =+'LPA Estimate of Hours'!Q34 -> 0 | R32: =+'LPA Estimate of Hours'!R34 -> 0 | S32: =+'LPA Estimate of Hours'!S34 -> 0 | T32: =+'LPA Estimate of Hours'!T34 -> 0 | U32: =+'LPA Estimate of Hours'!U34 -> 0 | V32: =+'LPA Estimate of Hours'!V34 -> 0 | W32: =+'LPA Estimate of Hours'!W34 -> 0 | X32: =+'LPA Estimate of Hours'!X34 -> 0 | Y32: =+'LPA Estimate of Hours'!Y34 -> 0 | Z32: =+'LPA Estimate of Hours'!Z34 -> 0 | AA32: =+'LPA Estimate of Hours'!AA34 -> 0 | AB32: =+'LPA Estimate of Hours'!AB34 -> 0 | AC32: =+'LPA Estimate of Hours'!AC34 -> 0 | AD32: =+'LPA Estimate of Hours'!AD34 -> 0 | AE32: =+'LPA Estimate of Hours'!AE34 -> 0 | AF32: =+'LPA Estimate of Hours'!AF34 -> 0 | AG32: =+'LPA Estimate of Hours'!AG34 -> 0 | AH32: =+'LPA Estimate of Hours'!AH34 -> 0 | AI32: =+'LPA Estimate of Hours'!AI34 -> 0 | AJ32: =+'LPA Estimate of Hours'!AJ34 -> 0 | AK32: =+'LPA Estimate of Hours'!AK34 -> 0 | AL32: =+'LPA Estimate of Hours'!AL34 -> 0 | AM32: =+'LPA Estimate of Hours'!AM34 -> 0 | AN32: =+'LPA Estimate of Hours'!AN34 -> 0 | AO32: =+'LPA Estimate of Hours'!AO34 -> 0 | AP32: =+'LPA Estimate of Hours'!AP34 -> 0 | AQ32: =+'LPA Estimate of Hours'!AQ34 -> 0 | AR32: =+'LPA Estimate of Hours'!AR34 -> 0 | AS32: =+'LPA Estimate of Hours'!AS34 -> 0 | AT32: =+'LPA Estimate of Hours'!AT34 -> 0 | AU32: =+'LPA Estimate of Hours'!AU34 -> 0 | AV32: =+'LPA Estimate of Hours'!AV34 -> 0 | AW32: =+'LPA Estimate of Hours'!AW34 -> 0 | AX32: =+'LPA Estimate of Hours'!AX34 -> 0 | AY32: =+'LPA Estimate of Hours'!AY34 -> 0 | AZ32: 0 | BB32: =+A32 -> 2. Project Management and QC | BC32: =+B$15 ->  | BD32: =+C$15 ->  | BE32: =+D$15 ->  | DA32: =+AZ$15 -> Total
A33: =IFERROR(IF(+'LPA Estimate of Hours'!A35<>0,'LPA Estimate of Hours'!A35),"Row Deleted") -> Final Deliverables | B33: =IFERROR(IF(+'LPA Estimate of Hours'!B35=0,"",+'LPA Estimate of Hours'!B35),) ->  | C33: =IFERROR(IF(+'LPA Estimate of Hours'!C35=0,"",+'LPA Estimate of Hours'!C35),) ->  | D33: =IFERROR(IF(+'LPA Estimate of Hours'!D35=0,"",+'LPA Estimate of Hours'!D35),) ->  | E33: =IFERROR(IF(+'LPA Estimate of Hours'!E35=0,"",+'LPA Estimate of Hours'!E35),) ->  | F33: =IFERROR(IF(+'LPA Estimate of Hours'!F35=0,"",+'LPA Estimate of Hours'!F35),) ->  | G33: =IFERROR(IF(+'LPA Estimate of Hours'!G35=0,"",+'LPA Estimate of Hours'!G35),) ->  | H33: =IFERROR(IF(+'LPA Estimate of Hours'!H35=0,"",+'LPA Estimate of Hours'!H35),) ->  | I33: =IFERROR(IF(+'LPA Estimate of Hours'!I35=0,"",+'LPA Estimate of Hours'!I35),) ->  | J33: =IFERROR(IF(+'LPA Estimate of Hours'!J35=0,"",+'LPA Estimate of Hours'!J35),) ->  | K33: =IFERROR(IF(+'LPA Estimate of Hours'!K35=0,"",+'LPA Estimate of Hours'!K35),) ->  | L33: =IFERROR(IF(+'LPA Estimate of Hours'!L35=0,"",+'LPA Estimate of Hours'!L35),) ->  | M33: =IFERROR(IF(+'LPA Estimate of Hours'!M35=0,"",+'LPA Estimate of Hours'!M35),) ->  | N33: =IFERROR(IF(+'LPA Estimate of Hours'!N35=0,"",+'LPA Estimate of Hours'!N35),) ->  | O33: =IFERROR(IF(+'LPA Estimate of Hours'!O35=0,"",+'LPA Estimate of Hours'!O35),) ->  | P33: =IFERROR(IF(+'LPA Estimate of Hours'!P35=0,"",+'LPA Estimate of Hours'!P35),) ->  | Q33: =IFERROR(IF(+'LPA Estimate of Hours'!Q35=0,"",+'LPA Estimate of Hours'!Q35),) ->  | R33: =IFERROR(IF(+'LPA Estimate of Hours'!R35=0,"",+'LPA Estimate of Hours'!R35),) ->  | S33: =IFERROR(IF(+'LPA Estimate of Hours'!S35=0,"",+'LPA Estimate of Hours'!S35),) ->  | T33: =IFERROR(IF(+'LPA Estimate of Hours'!T35=0,"",+'LPA Estimate of Hours'!T35),) ->  | U33: =IFERROR(IF(+'LPA Estimate of Hours'!U35=0,"",+'LPA Estimate of Hours'!U35),) ->  | V33: =IFERROR(IF(+'LPA Estimate of Hours'!V35=0,"",+'LPA Estimate of Hours'!V35),) ->  | W33: =IFERROR(IF(+'LPA Estimate of Hours'!W35=0,"",+'LPA Estimate of Hours'!W35),) ->  | X33: =IFERROR(IF(+'LPA Estimate of Hours'!X35=0,"",+'LPA Estimate of Hours'!X35),) ->  | Y33: =IFERROR(IF(+'LPA Estimate of Hours'!Y35=0,"",+'LPA Estimate of Hours'!Y35),) ->  | Z33: =IFERROR(IF(+'LPA Estimate of Hours'!Z35=0,"",+'LPA Estimate of Hours'!Z35),) ->  | AA33: =IFERROR(IF(+'LPA Estimate of Hours'!AA35=0,"",+'LPA Estimate of Hours'!AA35),) ->  | AB33: =IFERROR(IF(+'LPA Estimate of Hours'!AB35=0,"",+'LPA Estimate of Hours'!AB35),) ->  | AC33: =IFERROR(IF(+'LPA Estimate of Hours'!AC35=0,"",+'LPA Estimate of Hours'!AC35),) ->  | AD33: =IFERROR(IF(+'LPA Estimate of Hours'!AD35=0,"",+'LPA Estimate of Hours'!AD35),) ->  | AE33: =IFERROR(IF(+'LPA Estimate of Hours'!AE35=0,"",+'LPA Estimate of Hours'!AE35),) ->  | AF33: =IFERROR(IF(+'LPA Estimate of Hours'!AF35=0,"",+'LPA Estimate of Hours'!AF35),) ->  | AG33: =IFERROR(IF(+'LPA Estimate of Hours'!AG35=0,"",+'LPA Estimate of Hours'!AG35),) ->  | AH33: =IFERROR(IF(+'LPA Estimate of Hours'!AH35=0,"",+'LPA Estimate of Hours'!AH35),) ->  | AI33: =IFERROR(IF(+'LPA Estimate of Hours'!AI35=0,"",+'LPA Estimate of Hours'!AI35),) ->  | AJ33: =IFERROR(IF(+'LPA Estimate of Hours'!AJ35=0,"",+'LPA Estimate of Hours'!AJ35),) ->  | AK33: =IFERROR(IF(+'LPA Estimate of Hours'!AK35=0,"",+'LPA Estimate of Hours'!AK35),) ->  | AL33: =IFERROR(IF(+'LPA Estimate of Hours'!AL35=0,"",+'LPA Estimate of Hours'!AL35),) ->  | AM33: =IFERROR(IF(+'LPA Estimate of Hours'!AM35=0,"",+'LPA Estimate of Hours'!AM35),) ->  | AN33: =IFERROR(IF(+'LPA Estimate of Hours'!AN35=0,"",+'LPA Estimate of Hours'!AN35),) ->  | AO33: =IFERROR(IF(+'LPA Estimate of Hours'!AO35=0,"",+'LPA Estimate of Hours'!AO35),) ->  | AP33: =IFERROR(IF(+'LPA Estimate of Hours'!AP35=0,"",+'LPA Estimate of Hours'!AP35),) ->  | AQ33: =IFERROR(IF(+'LPA Estimate of Hours'!AQ35=0,"",+'LPA Estimate of Hours'!AQ35),) ->  | AR33: =IFERROR(IF(+'LPA Estimate of Hours'!AR35=0,"",+'LPA Estimate of Hours'!AR35),) ->  | AS33: =IFERROR(IF(+'LPA Estimate of Hours'!AS35=0,"",+'LPA Estimate of Hours'!AS35),) ->  | AT33: =IFERROR(IF(+'LPA Estimate of Hours'!AT35=0,"",+'LPA Estimate of Hours'!AT35),) ->  | AU33: =IFERROR(IF(+'LPA Estimate of Hours'!AU35=0,"",+'LPA Estimate of Hours'!AU35),) ->  | AV33: =IFERROR(IF(+'LPA Estimate of Hours'!AV35=0,"",+'LPA Estimate of Hours'!AV35),) ->  | AW33: =IFERROR(IF(+'LPA Estimate of Hours'!AW35=0,"",+'LPA Estimate of Hours'!AW35),) ->  | AX33: =IFERROR(IF(+'LPA Estimate of Hours'!AX35=0,"",+'LPA Estimate of Hours'!AX35),) ->  | AY33: =IFERROR(IF(+'LPA Estimate of Hours'!AY35=0,"",+'LPA Estimate of Hours'!AY35),) ->  | AZ33: 0 | BB33: =SUM(BC33:DA33) -> 0 | BC33: =IF(BC32=" ",0,INDEX('Salary Range'!$C$3:$C$100,MATCH(BC32,'Salary Range'!$A$3:$A$100,0))*B32) -> 0 | BD33: =IF(BD32=" ",0,INDEX('Salary Range'!$C$3:$C$100,MATCH(BD32,'Salary Range'!$A$3:$A$100,0))*C32) -> 0 | BE33: =IF(BE32=" ",0,INDEX('Salary Range'!$C$3:$C$100,MATCH(BE32,'Salary Range'!$A$3:$A$100,0))*D32) -> 0 | BF33: =IF(BF32=" ",0,INDEX('Salary Range'!$C$3:$C$100,MATCH(BF32,'Salary Range'!$A$3:$A$100,0))*E32) -> 0 | BG33: =IF(BG32=" ",0,INDEX('Salary Range'!$C$3:$C$100,MATCH(BG32,'Salary Range'!$A$3:$A$100,0))*F32) -> 0 | BH33: =IF(BH32=" ",0,INDEX('Salary Range'!$C$3:$C$100,MATCH(BH32,'Salary Range'!$A$3:$A$100,0))*G32) -> 0 | BI33: =IF(BI32=" ",0,INDEX('Salary Range'!$C$3:$C$100,MATCH(BI32,'Salary Range'!$A$3:$A$100,0))*H32) -> 0 | BJ33: =IF(BJ32=" ",0,INDEX('Salary Range'!$C$3:$C$100,MATCH(BJ32,'Salary Range'!$A$3:$A$100,0))*I32) -> 0 | BK33: =IF(BK32=" ",0,INDEX('Salary Range'!$C$3:$C$100,MATCH(BK32,'Salary Range'!$A$3:$A$100,0))*J32) -> 0 | BL33: =IF(BL32=" ",0,INDEX('Salary Range'!$C$3:$C$100,MATCH(BL32,'Salary Range'!$A$3:$A$100,0))*K32) -> 0 | BM33: =IF(BM32=" ",0,INDEX('Salary Range'!$C$3:$C$100,MATCH(BM32,'Salary Range'!$A$3:$A$100,0))*L32) -> 0 | BN33: =IF(BN32=" ",0,INDEX('Salary Range'!$C$3:$C$100,MATCH(BN32,'Salary Range'!$A$3:$A$100,0))*M32) -> 0 | BO33: =IF(BO32=" ",0,INDEX('Salary Range'!$C$3:$C$100,MATCH(BO32,'Salary Range'!$A$3:$A$100,0))*N32) -> 0 | BP33: =IF(BP32=" ",0,INDEX('Salary Range'!$C$3:$C$100,MATCH(BP32,'Salary Range'!$A$3:$A$100,0))*O32) -> 0 | BQ33: =IF(BQ32=" ",0,INDEX('Salary Range'!$C$3:$C$100,MATCH(BQ32,'Salary Range'!$A$3:$A$100,0))*P32) -> 0 | BR33: =IF(BR32=" ",0,INDEX('Salary Range'!$C$3:$C$100,MATCH(BR32,'Salary Range'!$A$3:$A$100,0))*Q32) -> 0 | BS33: =IF(BS32=" ",0,INDEX('Salary Range'!$C$3:$C$100,MATCH(BS32,'Salary Range'!$A$3:$A$100,0))*R32) -> 0 | BT33: =IF(BT32=" ",0,INDEX('Salary Range'!$C$3:$C$100,MATCH(BT32,'Salary Range'!$A$3:$A$100,0))*S32) -> 0 | BU33: =IF(BU32=" ",0,INDEX('Salary Range'!$C$3:$C$100,MATCH(BU32,'Salary Range'!$A$3:$A$100,0))*T32) -> 0 | BV33: =IF(BV32=" ",0,INDEX('Salary Range'!$C$3:$C$100,MATCH(BV32,'Salary Range'!$A$3:$A$100,0))*U32) -> 0 | BW33: =IF(BW32=" ",0,INDEX('Salary Range'!$C$3:$C$100,MATCH(BW32,'Salary Range'!$A$3:$A$100,0))*V32) -> 0 | BX33: =IF(BX32=" ",0,INDEX('Salary Range'!$C$3:$C$100,MATCH(BX32,'Salary Range'!$A$3:$A$100,0))*W32) -> 0 | BY33: =IF(BY32=" ",0,INDEX('Salary Range'!$C$3:$C$100,MATCH(BY32,'Salary Range'!$A$3:$A$100,0))*X32) -> 0 | BZ33: =IF(BZ32=" ",0,INDEX('Salary Range'!$C$3:$C$100,MATCH(BZ32,'Salary Range'!$A$3:$A$100,0))*Y32) -> 0 | CA33: =IF(CA32=" ",0,INDEX('Salary Range'!$C$3:$C$100,MATCH(CA32,'Salary Range'!$A$3:$A$100,0))*Z32) -> 0 | CB33: =IF(CB32=" ",0,INDEX('Salary Range'!$C$3:$C$100,MATCH(CB32,'Salary Range'!$A$3:$A$100,0))*AA32) -> 0 | CC33: =IF(CC32=" ",0,INDEX('Salary Range'!$C$3:$C$100,MATCH(CC32,'Salary Range'!$A$3:$A$100,0))*AB32) -> 0 | CD33: =IF(CD32=" ",0,INDEX('Salary Range'!$C$3:$C$100,MATCH(CD32,'Salary Range'!$A$3:$A$100,0))*AC32) -> 0 | CE33: =IF(CE32=" ",0,INDEX('Salary Range'!$C$3:$C$100,MATCH(CE32,'Salary Range'!$A$3:$A$100,0))*AD32) -> 0 | CF33: =IF(CF32=" ",0,INDEX('Salary Range'!$C$3:$C$100,MATCH(CF32,'Salary Range'!$A$3:$A$100,0))*AE32) -> 0 | CG33: =IF(CG32=" ",0,INDEX('Salary Range'!$C$3:$C$100,MATCH(CG32,'Salary Range'!$A$3:$A$100,0))*AF32) -> 0 | CH33: =IF(CH32=" ",0,INDEX('Salary Range'!$C$3:$C$100,MATCH(CH32,'Salary Range'!$A$3:$A$100,0))*AG32) -> 0 | CI33: =IF(CI32=" ",0,INDEX('Salary Range'!$C$3:$C$100,MATCH(CI32,'Salary Range'!$A$3:$A$100,0))*AH32) -> 0 | CJ33: =IF(CJ32=" ",0,INDEX('Salary Range'!$C$3:$C$100,MATCH(CJ32,'Salary Range'!$A$3:$A$100,0))*AI32) -> 0 | CK33: =IF(CK32=" ",0,INDEX('Salary Range'!$C$3:$C$100,MATCH(CK32,'Salary Range'!$A$3:$A$100,0))*AJ32) -> 0 | CL33: =IF(CL32=" ",0,INDEX('Salary Range'!$C$3:$C$100,MATCH(CL32,'Salary Range'!$A$3:$A$100,0))*AK32) -> 0 | CM33: =IF(CM32=" ",0,INDEX('Salary Range'!$C$3:$C$100,MATCH(CM32,'Salary Range'!$A$3:$A$100,0))*AL32) -> 0 | CN33: =IF(CN32=" ",0,INDEX('Salary Range'!$C$3:$C$100,MATCH(CN32,'Salary Range'!$A$3:$A$100,0))*AM32) -> 0 | CO33: =IF(CO32=" ",0,INDEX('Salary Range'!$C$3:$C$100,MATCH(CO32,'Salary Range'!$A$3:$A$100,0))*AN32) -> 0 | CP33: =IF(CP32=" ",0,INDEX('Salary Range'!$C$3:$C$100,MATCH(CP32,'Salary Range'!$A$3:$A$100,0))*AO32) -> 0 | CQ33: =IF(CQ32=" ",0,INDEX('Salary Range'!$C$3:$C$100,MATCH(CQ32,'Salary Range'!$A$3:$A$100,0))*AP32) -> 0 | CR33: =IF(CR32=" ",0,INDEX('Salary Range'!$C$3:$C$100,MATCH(CR32,'Salary Range'!$A$3:$A$100,0))*AQ32) -> 0 | CS33: =IF(CS32=" ",0,INDEX('Salary Range'!$C$3:$C$100,MATCH(CS32,'Salary Range'!$A$3:$A$100,0))*AR32) -> 0 | CT33: =IF(CT32=" ",0,INDEX('Salary Range'!$C$3:$C$100,MATCH(CT32,'Salary Range'!$A$3:$A$100,0))*AS32) -> 0 | CU33: =IF(CU32=" ",0,INDEX('Salary Range'!$C$3:$C$100,MATCH(CU32,'Salary Range'!$A$3:$A$100,0))*AT32) -> 0 | CV33: =IF(CV32=" ",0,INDEX('Salary Range'!$C$3:$C$100,MATCH(CV32,'Salary Range'!$A$3:$A$100,0))*AU32) -> 0 | CW33: =IF(CW32=" ",0,INDEX('Salary Range'!$C$3:$C$100,MATCH(CW32,'Salary Range'!$A$3:$A$100,0))*AV32) -> 0 | CX33: =IF(CX32=" ",0,INDEX('Salary Range'!$C$3:$C$100,MATCH(CX32,'Salary Range'!$A$3:$A$100,0))*AW32) -> 0 | CY33: =IF(CY32=" ",0,INDEX('Salary Range'!$C$3:$C$100,MATCH(CY32,'Salary Range'!$A$3:$A$100,0))*AX32) -> 0 | CZ33: =IF(CZ32=" ",0,INDEX('Salary Range'!$C$3:$C$100,MATCH(CZ32,'Salary Range'!$A$3:$A$100,0))*AY32) -> 0
A34: =IFERROR(IF(+'LPA Estimate of Hours'!A36<>0,'LPA Estimate of Hours'!A36),"Row Deleted") -> Project Management | B34: =IFERROR(IF(+'LPA Estimate of Hours'!B36=0,"",+'LPA Estimate of Hours'!B36),) ->  | C34: =IFERROR(IF(+'LPA Estimate of Hours'!C36=0,"",+'LPA Estimate of Hours'!C36),) ->  | D34: =IFERROR(IF(+'LPA Estimate of Hours'!D36=0,"",+'LPA Estimate of Hours'!D36),) ->  | E34: =IFERROR(IF(+'LPA Estimate of Hours'!E36=0,"",+'LPA Estimate of Hours'!E36),) ->  | F34: =IFERROR(IF(+'LPA Estimate of Hours'!F36=0,"",+'LPA Estimate of Hours'!F36),) ->  | G34: =IFERROR(IF(+'LPA Estimate of Hours'!G36=0,"",+'LPA Estimate of Hours'!G36),) ->  | H34: =IFERROR(IF(+'LPA Estimate of Hours'!H36=0,"",+'LPA Estimate of Hours'!H36),) ->  | I34: =IFERROR(IF(+'LPA Estimate of Hours'!I36=0,"",+'LPA Estimate of Hours'!I36),) ->  | J34: =IFERROR(IF(+'LPA Estimate of Hours'!J36=0,"",+'LPA Estimate of Hours'!J36),) ->  | K34: =IFERROR(IF(+'LPA Estimate of Hours'!K36=0,"",+'LPA Estimate of Hours'!K36),) ->  | L34: =IFERROR(IF(+'LPA Estimate of Hours'!L36=0,"",+'LPA Estimate of Hours'!L36),) ->  | M34: =IFERROR(IF(+'LPA Estimate of Hours'!M36=0,"",+'LPA Estimate of Hours'!M36),) ->  | N34: =IFERROR(IF(+'LPA Estimate of Hours'!N36=0,"",+'LPA Estimate of Hours'!N36),) ->  | O34: =IFERROR(IF(+'LPA Estimate of Hours'!O36=0,"",+'LPA Estimate of Hours'!O36),) ->  | P34: =IFERROR(IF(+'LPA Estimate of Hours'!P36=0,"",+'LPA Estimate of Hours'!P36),) ->  | Q34: =IFERROR(IF(+'LPA Estimate of Hours'!Q36=0,"",+'LPA Estimate of Hours'!Q36),) ->  | R34: =IFERROR(IF(+'LPA Estimate of Hours'!R36=0,"",+'LPA Estimate of Hours'!R36),) ->  | S34: =IFERROR(IF(+'LPA Estimate of Hours'!S36=0,"",+'LPA Estimate of Hours'!S36),) ->  | T34: =IFERROR(IF(+'LPA Estimate of Hours'!T36=0,"",+'LPA Estimate of Hours'!T36),) ->  | U34: =IFERROR(IF(+'LPA Estimate of Hours'!U36=0,"",+'LPA Estimate of Hours'!U36),) ->  | V34: =IFERROR(IF(+'LPA Estimate of Hours'!V36=0,"",+'LPA Estimate of Hours'!V36),) ->  | W34: =IFERROR(IF(+'LPA Estimate of Hours'!W36=0,"",+'LPA Estimate of Hours'!W36),) ->  | X34: =IFERROR(IF(+'LPA Estimate of Hours'!X36=0,"",+'LPA Estimate of Hours'!X36),) ->  | Y34: =IFERROR(IF(+'LPA Estimate of Hours'!Y36=0,"",+'LPA Estimate of Hours'!Y36),) ->  | Z34: =IFERROR(IF(+'LPA Estimate of Hours'!Z36=0,"",+'LPA Estimate of Hours'!Z36),) ->  | AA34: =IFERROR(IF(+'LPA Estimate of Hours'!AA36=0,"",+'LPA Estimate of Hours'!AA36),) ->  | AB34: =IFERROR(IF(+'LPA Estimate of Hours'!AB36=0,"",+'LPA Estimate of Hours'!AB36),) ->  | AC34: =IFERROR(IF(+'LPA Estimate of Hours'!AC36=0,"",+'LPA Estimate of Hours'!AC36),) ->  | AD34: =IFERROR(IF(+'LPA Estimate of Hours'!AD36=0,"",+'LPA Estimate of Hours'!AD36),) ->  | AE34: =IFERROR(IF(+'LPA Estimate of Hours'!AE36=0,"",+'LPA Estimate of Hours'!AE36),) ->  | AF34: =IFERROR(IF(+'LPA Estimate of Hours'!AF36=0,"",+'LPA Estimate of Hours'!AF36),) ->  | AG34: =IFERROR(IF(+'LPA Estimate of Hours'!AG36=0,"",+'LPA Estimate of Hours'!AG36),) ->  | AH34: =IFERROR(IF(+'LPA Estimate of Hours'!AH36=0,"",+'LPA Estimate of Hours'!AH36),) ->  | AI34: =IFERROR(IF(+'LPA Estimate of Hours'!AI36=0,"",+'LPA Estimate of Hours'!AI36),) ->  | AJ34: =IFERROR(IF(+'LPA Estimate of Hours'!AJ36=0,"",+'LPA Estimate of Hours'!AJ36),) ->  | AK34: =IFERROR(IF(+'LPA Estimate of Hours'!AK36=0,"",+'LPA Estimate of Hours'!AK36),) ->  | AL34: =IFERROR(IF(+'LPA Estimate of Hours'!AL36=0,"",+'LPA Estimate of Hours'!AL36),) ->  | AM34: =IFERROR(IF(+'LPA Estimate of Hours'!AM36=0,"",+'LPA Estimate of Hours'!AM36),) ->  | AN34: =IFERROR(IF(+'LPA Estimate of Hours'!AN36=0,"",+'LPA Estimate of Hours'!AN36),) ->  | AO34: =IFERROR(IF(+'LPA Estimate of Hours'!AO36=0,"",+'LPA Estimate of Hours'!AO36),) ->  | AP34: =IFERROR(IF(+'LPA Estimate of Hours'!AP36=0,"",+'LPA Estimate of Hours'!AP36),) ->  | AQ34: =IFERROR(IF(+'LPA Estimate of Hours'!AQ36=0,"",+'LPA Estimate of Hours'!AQ36),) ->  | AR34: =IFERROR(IF(+'LPA Estimate of Hours'!AR36=0,"",+'LPA Estimate of Hours'!AR36),) ->  | AS34: =IFERROR(IF(+'LPA Estimate of Hours'!AS36=0,"",+'LPA Estimate of Hours'!AS36),) ->  | AT34: =IFERROR(IF(+'LPA Estimate of Hours'!AT36=0,"",+'LPA Estimate of Hours'!AT36),) ->  | AU34: =IFERROR(IF(+'LPA Estimate of Hours'!AU36=0,"",+'LPA Estimate of Hours'!AU36),) ->  | AV34: =IFERROR(IF(+'LPA Estimate of Hours'!AV36=0,"",+'LPA Estimate of Hours'!AV36),) ->  | AW34: =IFERROR(IF(+'LPA Estimate of Hours'!AW36=0,"",+'LPA Estimate of Hours'!AW36),) ->  | AX34: =IFERROR(IF(+'LPA Estimate of Hours'!AX36=0,"",+'LPA Estimate of Hours'!AX36),) ->  | AY34: =IFERROR(IF(+'LPA Estimate of Hours'!AY36=0,"",+'LPA Estimate of Hours'!AY36),) ->  | AZ34: 0
A35: =IFERROR(IF(+'LPA Estimate of Hours'!A37<>0,'LPA Estimate of Hours'!A37),"Row Deleted") -> Quality Assurance/Quality Control | B35: =IFERROR(IF(+'LPA Estimate of Hours'!B37=0,"",+'LPA Estimate of Hours'!B37),) ->  | C35: =IFERROR(IF(+'LPA Estimate of Hours'!C37=0,"",+'LPA Estimate of Hours'!C37),) ->  | D35: =IFERROR(IF(+'LPA Estimate of Hours'!D37=0,"",+'LPA Estimate of Hours'!D37),) ->  | E35: =IFERROR(IF(+'LPA Estimate of Hours'!E37=0,"",+'LPA Estimate of Hours'!E37),) ->  | F35: =IFERROR(IF(+'LPA Estimate of Hours'!F37=0,"",+'LPA Estimate of Hours'!F37),) ->  | G35: =IFERROR(IF(+'LPA Estimate of Hours'!G37=0,"",+'LPA Estimate of Hours'!G37),) ->  | H35: =IFERROR(IF(+'LPA Estimate of Hours'!H37=0,"",+'LPA Estimate of Hours'!H37),) ->  | I35: =IFERROR(IF(+'LPA Estimate of Hours'!I37=0,"",+'LPA Estimate of Hours'!I37),) ->  | J35: =IFERROR(IF(+'LPA Estimate of Hours'!J37=0,"",+'LPA Estimate of Hours'!J37),) ->  | K35: =IFERROR(IF(+'LPA Estimate of Hours'!K37=0,"",+'LPA Estimate of Hours'!K37),) ->  | L35: =IFERROR(IF(+'LPA Estimate of Hours'!L37=0,"",+'LPA Estimate of Hours'!L37),) ->  | M35: =IFERROR(IF(+'LPA Estimate of Hours'!M37=0,"",+'LPA Estimate of Hours'!M37),) ->  | N35: =IFERROR(IF(+'LPA Estimate of Hours'!N37=0,"",+'LPA Estimate of Hours'!N37),) ->  | O35: =IFERROR(IF(+'LPA Estimate of Hours'!O37=0,"",+'LPA Estimate of Hours'!O37),) ->  | P35: =IFERROR(IF(+'LPA Estimate of Hours'!P37=0,"",+'LPA Estimate of Hours'!P37),) ->  | Q35: =IFERROR(IF(+'LPA Estimate of Hours'!Q37=0,"",+'LPA Estimate of Hours'!Q37),) ->  | R35: =IFERROR(IF(+'LPA Estimate of Hours'!R37=0,"",+'LPA Estimate of Hours'!R37),) ->  | S35: =IFERROR(IF(+'LPA Estimate of Hours'!S37=0,"",+'LPA Estimate of Hours'!S37),) ->  | T35: =IFERROR(IF(+'LPA Estimate of Hours'!T37=0,"",+'LPA Estimate of Hours'!T37),) ->  | U35: =IFERROR(IF(+'LPA Estimate of Hours'!U37=0,"",+'LPA Estimate of Hours'!U37),) ->  | V35: =IFERROR(IF(+'LPA Estimate of Hours'!V37=0,"",+'LPA Estimate of Hours'!V37),) ->  | W35: =IFERROR(IF(+'LPA Estimate of Hours'!W37=0,"",+'LPA Estimate of Hours'!W37),) ->  | X35: =IFERROR(IF(+'LPA Estimate of Hours'!X37=0,"",+'LPA Estimate of Hours'!X37),) ->  | Y35: =IFERROR(IF(+'LPA Estimate of Hours'!Y37=0,"",+'LPA Estimate of Hours'!Y37),) ->  | Z35: =IFERROR(IF(+'LPA Estimate of Hours'!Z37=0,"",+'LPA Estimate of Hours'!Z37),) ->  | AA35: =IFERROR(IF(+'LPA Estimate of Hours'!AA37=0,"",+'LPA Estimate of Hours'!AA37),) ->  | AB35: =IFERROR(IF(+'LPA Estimate of Hours'!AB37=0,"",+'LPA Estimate of Hours'!AB37),) ->  | AC35: =IFERROR(IF(+'LPA Estimate of Hours'!AC37=0,"",+'LPA Estimate of Hours'!AC37),) ->  | AD35: =IFERROR(IF(+'LPA Estimate of Hours'!AD37=0,"",+'LPA Estimate of Hours'!AD37),) ->  | AE35: =IFERROR(IF(+'LPA Estimate of Hours'!AE37=0,"",+'LPA Estimate of Hours'!AE37),) ->  | AF35: =IFERROR(IF(+'LPA Estimate of Hours'!AF37=0,"",+'LPA Estimate of Hours'!AF37),) ->  | AG35: =IFERROR(IF(+'LPA Estimate of Hours'!AG37=0,"",+'LPA Estimate of Hours'!AG37),) ->  | AH35: =IFERROR(IF(+'LPA Estimate of Hours'!AH37=0,"",+'LPA Estimate of Hours'!AH37),) ->  | AI35: =IFERROR(IF(+'LPA Estimate of Hours'!AI37=0,"",+'LPA Estimate of Hours'!AI37),) ->  | AJ35: =IFERROR(IF(+'LPA Estimate of Hours'!AJ37=0,"",+'LPA Estimate of Hours'!AJ37),) ->  | AK35: =IFERROR(IF(+'LPA Estimate of Hours'!AK37=0,"",+'LPA Estimate of Hours'!AK37),) ->  | AL35: =IFERROR(IF(+'LPA Estimate of Hours'!AL37=0,"",+'LPA Estimate of Hours'!AL37),) ->  | AM35: =IFERROR(IF(+'LPA Estimate of Hours'!AM37=0,"",+'LPA Estimate of Hours'!AM37),) ->  | AN35: =IFERROR(IF(+'LPA Estimate of Hours'!AN37=0,"",+'LPA Estimate of Hours'!AN37),) ->  | AO35: =IFERROR(IF(+'LPA Estimate of Hours'!AO37=0,"",+'LPA Estimate of Hours'!AO37),) ->  | AP35: =IFERROR(IF(+'LPA Estimate of Hours'!AP37=0,"",+'LPA Estimate of Hours'!AP37),) ->  | AQ35: =IFERROR(IF(+'LPA Estimate of Hours'!AQ37=0,"",+'LPA Estimate of Hours'!AQ37),) ->  | AR35: =IFERROR(IF(+'LPA Estimate of Hours'!AR37=0,"",+'LPA Estimate of Hours'!AR37),) ->  | AS35: =IFERROR(IF(+'LPA Estimate of Hours'!AS37=0,"",+'LPA Estimate of Hours'!AS37),) ->  | AT35: =IFERROR(IF(+'LPA Estimate of Hours'!AT37=0,"",+'LPA Estimate of Hours'!AT37),) ->  | AU35: =IFERROR(IF(+'LPA Estimate of Hours'!AU37=0,"",+'LPA Estimate of Hours'!AU37),) ->  | AV35: =IFERROR(IF(+'LPA Estimate of Hours'!AV37=0,"",+'LPA Estimate of Hours'!AV37),) ->  | AW35: =IFERROR(IF(+'LPA Estimate of Hours'!AW37=0,"",+'LPA Estimate of Hours'!AW37),) ->  | AX35: =IFERROR(IF(+'LPA Estimate of Hours'!AX37=0,"",+'LPA Estimate of Hours'!AX37),) ->  | AY35: =IFERROR(IF(+'LPA Estimate of Hours'!AY37=0,"",+'LPA Estimate of Hours'!AY37),) ->  | AZ35: 0
A36: =IFERROR(IF(+'LPA Estimate of Hours'!A38<>0,'LPA Estimate of Hours'!A38),"Row Deleted") -> Reserve | B36: =IFERROR(IF(+'LPA Estimate of Hours'!B38=0,"",+'LPA Estimate of Hours'!B38),) ->  | C36: =IFERROR(IF(+'LPA Estimate of Hours'!C38=0,"",+'LPA Estimate of Hours'!C38),) ->  | D36: =IFERROR(IF(+'LPA Estimate of Hours'!D38=0,"",+'LPA Estimate of Hours'!D38),) ->  | E36: =IFERROR(IF(+'LPA Estimate of Hours'!E38=0,"",+'LPA Estimate of Hours'!E38),) ->  | F36: =IFERROR(IF(+'LPA Estimate of Hours'!F38=0,"",+'LPA Estimate of Hours'!F38),) ->  | G36: =IFERROR(IF(+'LPA Estimate of Hours'!G38=0,"",+'LPA Estimate of Hours'!G38),) ->  | H36: =IFERROR(IF(+'LPA Estimate of Hours'!H38=0,"",+'LPA Estimate of Hours'!H38),) ->  | I36: =IFERROR(IF(+'LPA Estimate of Hours'!I38=0,"",+'LPA Estimate of Hours'!I38),) ->  | J36: =IFERROR(IF(+'LPA Estimate of Hours'!J38=0,"",+'LPA Estimate of Hours'!J38),) ->  | K36: =IFERROR(IF(+'LPA Estimate of Hours'!K38=0,"",+'LPA Estimate of Hours'!K38),) ->  | L36: =IFERROR(IF(+'LPA Estimate of Hours'!L38=0,"",+'LPA Estimate of Hours'!L38),) ->  | M36: =IFERROR(IF(+'LPA Estimate of Hours'!M38=0,"",+'LPA Estimate of Hours'!M38),) ->  | N36: =IFERROR(IF(+'LPA Estimate of Hours'!N38=0,"",+'LPA Estimate of Hours'!N38),) ->  | O36: =IFERROR(IF(+'LPA Estimate of Hours'!O38=0,"",+'LPA Estimate of Hours'!O38),) ->  | P36: =IFERROR(IF(+'LPA Estimate of Hours'!P38=0,"",+'LPA Estimate of Hours'!P38),) ->  | Q36: =IFERROR(IF(+'LPA Estimate of Hours'!Q38=0,"",+'LPA Estimate of Hours'!Q38),) ->  | R36: =IFERROR(IF(+'LPA Estimate of Hours'!R38=0,"",+'LPA Estimate of Hours'!R38),) ->  | S36: =IFERROR(IF(+'LPA Estimate of Hours'!S38=0,"",+'LPA Estimate of Hours'!S38),) ->  | T36: =IFERROR(IF(+'LPA Estimate of Hours'!T38=0,"",+'LPA Estimate of Hours'!T38),) ->  | U36: =IFERROR(IF(+'LPA Estimate of Hours'!U38=0,"",+'LPA Estimate of Hours'!U38),) ->  | V36: =IFERROR(IF(+'LPA Estimate of Hours'!V38=0,"",+'LPA Estimate of Hours'!V38),) ->  | W36: =IFERROR(IF(+'LPA Estimate of Hours'!W38=0,"",+'LPA Estimate of Hours'!W38),) ->  | X36: =IFERROR(IF(+'LPA Estimate of Hours'!X38=0,"",+'LPA Estimate of Hours'!X38),) ->  | Y36: =IFERROR(IF(+'LPA Estimate of Hours'!Y38=0,"",+'LPA Estimate of Hours'!Y38),) ->  | Z36: =IFERROR(IF(+'LPA Estimate of Hours'!Z38=0,"",+'LPA Estimate of Hours'!Z38),) ->  | AA36: =IFERROR(IF(+'LPA Estimate of Hours'!AA38=0,"",+'LPA Estimate of Hours'!AA38),) ->  | AB36: =IFERROR(IF(+'LPA Estimate of Hours'!AB38=0,"",+'LPA Estimate of Hours'!AB38),) ->  | AC36: =IFERROR(IF(+'LPA Estimate of Hours'!AC38=0,"",+'LPA Estimate of Hours'!AC38),) ->  | AD36: =IFERROR(IF(+'LPA Estimate of Hours'!AD38=0,"",+'LPA Estimate of Hours'!AD38),) ->  | AE36: =IFERROR(IF(+'LPA Estimate of Hours'!AE38=0,"",+'LPA Estimate of Hours'!AE38),) ->  | AF36: =IFERROR(IF(+'LPA Estimate of Hours'!AF38=0,"",+'LPA Estimate of Hours'!AF38),) ->  | AG36: =IFERROR(IF(+'LPA Estimate of Hours'!AG38=0,"",+'LPA Estimate of Hours'!AG38),) ->  | AH36: =IFERROR(IF(+'LPA Estimate of Hours'!AH38=0,"",+'LPA Estimate of Hours'!AH38),) ->  | AI36: =IFERROR(IF(+'LPA Estimate of Hours'!AI38=0,"",+'LPA Estimate of Hours'!AI38),) ->  | AJ36: =IFERROR(IF(+'LPA Estimate of Hours'!AJ38=0,"",+'LPA Estimate of Hours'!AJ38),) ->  | AK36: =IFERROR(IF(+'LPA Estimate of Hours'!AK38=0,"",+'LPA Estimate of Hours'!AK38),) ->  | AL36: =IFERROR(IF(+'LPA Estimate of Hours'!AL38=0,"",+'LPA Estimate of Hours'!AL38),) ->  | AM36: =IFERROR(IF(+'LPA Estimate of Hours'!AM38=0,"",+'LPA Estimate of Hours'!AM38),) ->  | AN36: =IFERROR(IF(+'LPA Estimate of Hours'!AN38=0,"",+'LPA Estimate of Hours'!AN38),) ->  | AO36: =IFERROR(IF(+'LPA Estimate of Hours'!AO38=0,"",+'LPA Estimate of Hours'!AO38),) ->  | AP36: =IFERROR(IF(+'LPA Estimate of Hours'!AP38=0,"",+'LPA Estimate of Hours'!AP38),) ->  | AQ36: =IFERROR(IF(+'LPA Estimate of Hours'!AQ38=0,"",+'LPA Estimate of Hours'!AQ38),) ->  | AR36: =IFERROR(IF(+'LPA Estimate of Hours'!AR38=0,"",+'LPA Estimate of Hours'!AR38),) ->  | AS36: =IFERROR(IF(+'LPA Estimate of Hours'!AS38=0,"",+'LPA Estimate of Hours'!AS38),) ->  | AT36: =IFERROR(IF(+'LPA Estimate of Hours'!AT38=0,"",+'LPA Estimate of Hours'!AT38),) ->  | AU36: =IFERROR(IF(+'LPA Estimate of Hours'!AU38=0,"",+'LPA Estimate of Hours'!AU38),) ->  | AV36: =IFERROR(IF(+'LPA Estimate of Hours'!AV38=0,"",+'LPA Estimate of Hours'!AV38),) ->  | AW36: =IFERROR(IF(+'LPA Estimate of Hours'!AW38=0,"",+'LPA Estimate of Hours'!AW38),) ->  | AX36: =IFERROR(IF(+'LPA Estimate of Hours'!AX38=0,"",+'LPA Estimate of Hours'!AX38),) ->  | AY36: =IFERROR(IF(+'LPA Estimate of Hours'!AY38=0,"",+'LPA Estimate of Hours'!AY38),) ->  | AZ36: 0
A37: =IFERROR(IF(+'LPA Estimate of Hours'!A39<>0,'LPA Estimate of Hours'!A39),"Row Deleted") -> Reserve | B37: =IFERROR(IF(+'LPA Estimate of Hours'!B39=0,"",+'LPA Estimate of Hours'!B39),) ->  | C37: =IFERROR(IF(+'LPA Estimate of Hours'!C39=0,"",+'LPA Estimate of Hours'!C39),) ->  | D37: =IFERROR(IF(+'LPA Estimate of Hours'!D39=0,"",+'LPA Estimate of Hours'!D39),) ->  | E37: =IFERROR(IF(+'LPA Estimate of Hours'!E39=0,"",+'LPA Estimate of Hours'!E39),) ->  | F37: =IFERROR(IF(+'LPA Estimate of Hours'!F39=0,"",+'LPA Estimate of Hours'!F39),) ->  | G37: =IFERROR(IF(+'LPA Estimate of Hours'!G39=0,"",+'LPA Estimate of Hours'!G39),) ->  | H37: =IFERROR(IF(+'LPA Estimate of Hours'!H39=0,"",+'LPA Estimate of Hours'!H39),) ->  | I37: =IFERROR(IF(+'LPA Estimate of Hours'!I39=0,"",+'LPA Estimate of Hours'!I39),) ->  | J37: =IFERROR(IF(+'LPA Estimate of Hours'!J39=0,"",+'LPA Estimate of Hours'!J39),) ->  | K37: =IFERROR(IF(+'LPA Estimate of Hours'!K39=0,"",+'LPA Estimate of Hours'!K39),) ->  | L37: =IFERROR(IF(+'LPA Estimate of Hours'!L39=0,"",+'LPA Estimate of Hours'!L39),) ->  | M37: =IFERROR(IF(+'LPA Estimate of Hours'!M39=0,"",+'LPA Estimate of Hours'!M39),) ->  | N37: =IFERROR(IF(+'LPA Estimate of Hours'!N39=0,"",+'LPA Estimate of Hours'!N39),) ->  | O37: =IFERROR(IF(+'LPA Estimate of Hours'!O39=0,"",+'LPA Estimate of Hours'!O39),) ->  | P37: =IFERROR(IF(+'LPA Estimate of Hours'!P39=0,"",+'LPA Estimate of Hours'!P39),) ->  | Q37: =IFERROR(IF(+'LPA Estimate of Hours'!Q39=0,"",+'LPA Estimate of Hours'!Q39),) ->  | R37: =IFERROR(IF(+'LPA Estimate of Hours'!R39=0,"",+'LPA Estimate of Hours'!R39),) ->  | S37: =IFERROR(IF(+'LPA Estimate of Hours'!S39=0,"",+'LPA Estimate of Hours'!S39),) ->  | T37: =IFERROR(IF(+'LPA Estimate of Hours'!T39=0,"",+'LPA Estimate of Hours'!T39),) ->  | U37: =IFERROR(IF(+'LPA Estimate of Hours'!U39=0,"",+'LPA Estimate of Hours'!U39),) ->  | V37: =IFERROR(IF(+'LPA Estimate of Hours'!V39=0,"",+'LPA Estimate of Hours'!V39),) ->  | W37: =IFERROR(IF(+'LPA Estimate of Hours'!W39=0,"",+'LPA Estimate of Hours'!W39),) ->  | X37: =IFERROR(IF(+'LPA Estimate of Hours'!X39=0,"",+'LPA Estimate of Hours'!X39),) ->  | Y37: =IFERROR(IF(+'LPA Estimate of Hours'!Y39=0,"",+'LPA Estimate of Hours'!Y39),) ->  | Z37: =IFERROR(IF(+'LPA Estimate of Hours'!Z39=0,"",+'LPA Estimate of Hours'!Z39),) ->  | AA37: =IFERROR(IF(+'LPA Estimate of Hours'!AA39=0,"",+'LPA Estimate of Hours'!AA39),) ->  | AB37: =IFERROR(IF(+'LPA Estimate of Hours'!AB39=0,"",+'LPA Estimate of Hours'!AB39),) ->  | AC37: =IFERROR(IF(+'LPA Estimate of Hours'!AC39=0,"",+'LPA Estimate of Hours'!AC39),) ->  | AD37: =IFERROR(IF(+'LPA Estimate of Hours'!AD39=0,"",+'LPA Estimate of Hours'!AD39),) ->  | AE37: =IFERROR(IF(+'LPA Estimate of Hours'!AE39=0,"",+'LPA Estimate of Hours'!AE39),) ->  | AF37: =IFERROR(IF(+'LPA Estimate of Hours'!AF39=0,"",+'LPA Estimate of Hours'!AF39),) ->  | AG37: =IFERROR(IF(+'LPA Estimate of Hours'!AG39=0,"",+'LPA Estimate of Hours'!AG39),) ->  | AH37: =IFERROR(IF(+'LPA Estimate of Hours'!AH39=0,"",+'LPA Estimate of Hours'!AH39),) ->  | AI37: =IFERROR(IF(+'LPA Estimate of Hours'!AI39=0,"",+'LPA Estimate of Hours'!AI39),) ->  | AJ37: =IFERROR(IF(+'LPA Estimate of Hours'!AJ39=0,"",+'LPA Estimate of Hours'!AJ39),) ->  | AK37: =IFERROR(IF(+'LPA Estimate of Hours'!AK39=0,"",+'LPA Estimate of Hours'!AK39),) ->  | AL37: =IFERROR(IF(+'LPA Estimate of Hours'!AL39=0,"",+'LPA Estimate of Hours'!AL39),) ->  | AM37: =IFERROR(IF(+'LPA Estimate of Hours'!AM39=0,"",+'LPA Estimate of Hours'!AM39),) ->  | AN37: =IFERROR(IF(+'LPA Estimate of Hours'!AN39=0,"",+'LPA Estimate of Hours'!AN39),) ->  | AO37: =IFERROR(IF(+'LPA Estimate of Hours'!AO39=0,"",+'LPA Estimate of Hours'!AO39),) ->  | AP37: =IFERROR(IF(+'LPA Estimate of Hours'!AP39=0,"",+'LPA Estimate of Hours'!AP39),) ->  | AQ37: =IFERROR(IF(+'LPA Estimate of Hours'!AQ39=0,"",+'LPA Estimate of Hours'!AQ39),) ->  | AR37: =IFERROR(IF(+'LPA Estimate of Hours'!AR39=0,"",+'LPA Estimate of Hours'!AR39),) ->  | AS37: =IFERROR(IF(+'LPA Estimate of Hours'!AS39=0,"",+'LPA Estimate of Hours'!AS39),) ->  | AT37: =IFERROR(IF(+'LPA Estimate of Hours'!AT39=0,"",+'LPA Estimate of Hours'!AT39),) ->  | AU37: =IFERROR(IF(+'LPA Estimate of Hours'!AU39=0,"",+'LPA Estimate of Hours'!AU39),) ->  | AV37: =IFERROR(IF(+'LPA Estimate of Hours'!AV39=0,"",+'LPA Estimate of Hours'!AV39),) ->  | AW37: =IFERROR(IF(+'LPA Estimate of Hours'!AW39=0,"",+'LPA Estimate of Hours'!AW39),) ->  | AX37: =IFERROR(IF(+'LPA Estimate of Hours'!AX39=0,"",+'LPA Estimate of Hours'!AX39),) ->  | AY37: =IFERROR(IF(+'LPA Estimate of Hours'!AY39=0,"",+'LPA Estimate of Hours'!AY39),) ->  | AZ37: 0
A38: =IFERROR(IF(+'LPA Estimate of Hours'!A40<>0,'LPA Estimate of Hours'!A40),"Row Deleted") -> Reserve | B38: =IFERROR(IF(+'LPA Estimate of Hours'!B40=0,"",+'LPA Estimate of Hours'!B40),) ->  | C38: =IFERROR(IF(+'LPA Estimate of Hours'!C40=0,"",+'LPA Estimate of Hours'!C40),) ->  | D38: =IFERROR(IF(+'LPA Estimate of Hours'!D40=0,"",+'LPA Estimate of Hours'!D40),) ->  | E38: =IFERROR(IF(+'LPA Estimate of Hours'!E40=0,"",+'LPA Estimate of Hours'!E40),) ->  | F38: =IFERROR(IF(+'LPA Estimate of Hours'!F40=0,"",+'LPA Estimate of Hours'!F40),) ->  | G38: =IFERROR(IF(+'LPA Estimate of Hours'!G40=0,"",+'LPA Estimate of Hours'!G40),) ->  | H38: =IFERROR(IF(+'LPA Estimate of Hours'!H40=0,"",+'LPA Estimate of Hours'!H40),) ->  | I38: =IFERROR(IF(+'LPA Estimate of Hours'!I40=0,"",+'LPA Estimate of Hours'!I40),) ->  | J38: =IFERROR(IF(+'LPA Estimate of Hours'!J40=0,"",+'LPA Estimate of Hours'!J40),) ->  | K38: =IFERROR(IF(+'LPA Estimate of Hours'!K40=0,"",+'LPA Estimate of Hours'!K40),) ->  | L38: =IFERROR(IF(+'LPA Estimate of Hours'!L40=0,"",+'LPA Estimate of Hours'!L40),) ->  | M38: =IFERROR(IF(+'LPA Estimate of Hours'!M40=0,"",+'LPA Estimate of Hours'!M40),) ->  | N38: =IFERROR(IF(+'LPA Estimate of Hours'!N40=0,"",+'LPA Estimate of Hours'!N40),) ->  | O38: =IFERROR(IF(+'LPA Estimate of Hours'!O40=0,"",+'LPA Estimate of Hours'!O40),) ->  | P38: =IFERROR(IF(+'LPA Estimate of Hours'!P40=0,"",+'LPA Estimate of Hours'!P40),) ->  | Q38: =IFERROR(IF(+'LPA Estimate of Hours'!Q40=0,"",+'LPA Estimate of Hours'!Q40),) ->  | R38: =IFERROR(IF(+'LPA Estimate of Hours'!R40=0,"",+'LPA Estimate of Hours'!R40),) ->  | S38: =IFERROR(IF(+'LPA Estimate of Hours'!S40=0,"",+'LPA Estimate of Hours'!S40),) ->  | T38: =IFERROR(IF(+'LPA Estimate of Hours'!T40=0,"",+'LPA Estimate of Hours'!T40),) ->  | U38: =IFERROR(IF(+'LPA Estimate of Hours'!U40=0,"",+'LPA Estimate of Hours'!U40),) ->  | V38: =IFERROR(IF(+'LPA Estimate of Hours'!V40=0,"",+'LPA Estimate of Hours'!V40),) ->  | W38: =IFERROR(IF(+'LPA Estimate of Hours'!W40=0,"",+'LPA Estimate of Hours'!W40),) ->  | X38: =IFERROR(IF(+'LPA Estimate of Hours'!X40=0,"",+'LPA Estimate of Hours'!X40),) ->  | Y38: =IFERROR(IF(+'LPA Estimate of Hours'!Y40=0,"",+'LPA Estimate of Hours'!Y40),) ->  | Z38: =IFERROR(IF(+'LPA Estimate of Hours'!Z40=0,"",+'LPA Estimate of Hours'!Z40),) ->  | AA38: =IFERROR(IF(+'LPA Estimate of Hours'!AA40=0,"",+'LPA Estimate of Hours'!AA40),) ->  | AB38: =IFERROR(IF(+'LPA Estimate of Hours'!AB40=0,"",+'LPA Estimate of Hours'!AB40),) ->  | AC38: =IFERROR(IF(+'LPA Estimate of Hours'!AC40=0,"",+'LPA Estimate of Hours'!AC40),) ->  | AD38: =IFERROR(IF(+'LPA Estimate of Hours'!AD40=0,"",+'LPA Estimate of Hours'!AD40),) ->  | AE38: =IFERROR(IF(+'LPA Estimate of Hours'!AE40=0,"",+'LPA Estimate of Hours'!AE40),) ->  | AF38: =IFERROR(IF(+'LPA Estimate of Hours'!AF40=0,"",+'LPA Estimate of Hours'!AF40),) ->  | AG38: =IFERROR(IF(+'LPA Estimate of Hours'!AG40=0,"",+'LPA Estimate of Hours'!AG40),) ->  | AH38: =IFERROR(IF(+'LPA Estimate of Hours'!AH40=0,"",+'LPA Estimate of Hours'!AH40),) ->  | AI38: =IFERROR(IF(+'LPA Estimate of Hours'!AI40=0,"",+'LPA Estimate of Hours'!AI40),) ->  | AJ38: =IFERROR(IF(+'LPA Estimate of Hours'!AJ40=0,"",+'LPA Estimate of Hours'!AJ40),) ->  | AK38: =IFERROR(IF(+'LPA Estimate of Hours'!AK40=0,"",+'LPA Estimate of Hours'!AK40),) ->  | AL38: =IFERROR(IF(+'LPA Estimate of Hours'!AL40=0,"",+'LPA Estimate of Hours'!AL40),) ->  | AM38: =IFERROR(IF(+'LPA Estimate of Hours'!AM40=0,"",+'LPA Estimate of Hours'!AM40),) ->  | AN38: =IFERROR(IF(+'LPA Estimate of Hours'!AN40=0,"",+'LPA Estimate of Hours'!AN40),) ->  | AO38: =IFERROR(IF(+'LPA Estimate of Hours'!AO40=0,"",+'LPA Estimate of Hours'!AO40),) ->  | AP38: =IFERROR(IF(+'LPA Estimate of Hours'!AP40=0,"",+'LPA Estimate of Hours'!AP40),) ->  | AQ38: =IFERROR(IF(+'LPA Estimate of Hours'!AQ40=0,"",+'LPA Estimate of Hours'!AQ40),) ->  | AR38: =IFERROR(IF(+'LPA Estimate of Hours'!AR40=0,"",+'LPA Estimate of Hours'!AR40),) ->  | AS38: =IFERROR(IF(+'LPA Estimate of Hours'!AS40=0,"",+'LPA Estimate of Hours'!AS40),) ->  | AT38: =IFERROR(IF(+'LPA Estimate of Hours'!AT40=0,"",+'LPA Estimate of Hours'!AT40),) ->  | AU38: =IFERROR(IF(+'LPA Estimate of Hours'!AU40=0,"",+'LPA Estimate of Hours'!AU40),) ->  | AV38: =IFERROR(IF(+'LPA Estimate of Hours'!AV40=0,"",+'LPA Estimate of Hours'!AV40),) ->  | AW38: =IFERROR(IF(+'LPA Estimate of Hours'!AW40=0,"",+'LPA Estimate of Hours'!AW40),) ->  | AX38: =IFERROR(IF(+'LPA Estimate of Hours'!AX40=0,"",+'LPA Estimate of Hours'!AX40),) ->  | AY38: =IFERROR(IF(+'LPA Estimate of Hours'!AY40=0,"",+'LPA Estimate of Hours'!AY40),) ->  | AZ38: 0
A39: =IFERROR(IF(+'LPA Estimate of Hours'!A41<>0,'LPA Estimate of Hours'!A41),"Row Deleted") -> Reserve | B39: =IFERROR(IF(+'LPA Estimate of Hours'!B41=0,"",+'LPA Estimate of Hours'!B41),) ->  | C39: =IFERROR(IF(+'LPA Estimate of Hours'!C41=0,"",+'LPA Estimate of Hours'!C41),) ->  | D39: =IFERROR(IF(+'LPA Estimate of Hours'!D41=0,"",+'LPA Estimate of Hours'!D41),) ->  | E39: =IFERROR(IF(+'LPA Estimate of Hours'!E41=0,"",+'LPA Estimate of Hours'!E41),) ->  | F39: =IFERROR(IF(+'LPA Estimate of Hours'!F41=0,"",+'LPA Estimate of Hours'!F41),) ->  | G39: =IFERROR(IF(+'LPA Estimate of Hours'!G41=0,"",+'LPA Estimate of Hours'!G41),) ->  | H39: =IFERROR(IF(+'LPA Estimate of Hours'!H41=0,"",+'LPA Estimate of Hours'!H41),) ->  | I39: =IFERROR(IF(+'LPA Estimate of Hours'!I41=0,"",+'LPA Estimate of Hours'!I41),) ->  | J39: =IFERROR(IF(+'LPA Estimate of Hours'!J41=0,"",+'LPA Estimate of Hours'!J41),) ->  | K39: =IFERROR(IF(+'LPA Estimate of Hours'!K41=0,"",+'LPA Estimate of Hours'!K41),) ->  | L39: =IFERROR(IF(+'LPA Estimate of Hours'!L41=0,"",+'LPA Estimate of Hours'!L41),) ->  | M39: =IFERROR(IF(+'LPA Estimate of Hours'!M41=0,"",+'LPA Estimate of Hours'!M41),) ->  | N39: =IFERROR(IF(+'LPA Estimate of Hours'!N41=0,"",+'LPA Estimate of Hours'!N41),) ->  | O39: =IFERROR(IF(+'LPA Estimate of Hours'!O41=0,"",+'LPA Estimate of Hours'!O41),) ->  | P39: =IFERROR(IF(+'LPA Estimate of Hours'!P41=0,"",+'LPA Estimate of Hours'!P41),) ->  | Q39: =IFERROR(IF(+'LPA Estimate of Hours'!Q41=0,"",+'LPA Estimate of Hours'!Q41),) ->  | R39: =IFERROR(IF(+'LPA Estimate of Hours'!R41=0,"",+'LPA Estimate of Hours'!R41),) ->  | S39: =IFERROR(IF(+'LPA Estimate of Hours'!S41=0,"",+'LPA Estimate of Hours'!S41),) ->  | T39: =IFERROR(IF(+'LPA Estimate of Hours'!T41=0,"",+'LPA Estimate of Hours'!T41),) ->  | U39: =IFERROR(IF(+'LPA Estimate of Hours'!U41=0,"",+'LPA Estimate of Hours'!U41),) ->  | V39: =IFERROR(IF(+'LPA Estimate of Hours'!V41=0,"",+'LPA Estimate of Hours'!V41),) ->  | W39: =IFERROR(IF(+'LPA Estimate of Hours'!W41=0,"",+'LPA Estimate of Hours'!W41),) ->  | X39: =IFERROR(IF(+'LPA Estimate of Hours'!X41=0,"",+'LPA Estimate of Hours'!X41),) ->  | Y39: =IFERROR(IF(+'LPA Estimate of Hours'!Y41=0,"",+'LPA Estimate of Hours'!Y41),) ->  | Z39: =IFERROR(IF(+'LPA Estimate of Hours'!Z41=0,"",+'LPA Estimate of Hours'!Z41),) ->  | AA39: =IFERROR(IF(+'LPA Estimate of Hours'!AA41=0,"",+'LPA Estimate of Hours'!AA41),) ->  | AB39: =IFERROR(IF(+'LPA Estimate of Hours'!AB41=0,"",+'LPA Estimate of Hours'!AB41),) ->  | AC39: =IFERROR(IF(+'LPA Estimate of Hours'!AC41=0,"",+'LPA Estimate of Hours'!AC41),) ->  | AD39: =IFERROR(IF(+'LPA Estimate of Hours'!AD41=0,"",+'LPA Estimate of Hours'!AD41),) ->  | AE39: =IFERROR(IF(+'LPA Estimate of Hours'!AE41=0,"",+'LPA Estimate of Hours'!AE41),) ->  | AF39: =IFERROR(IF(+'LPA Estimate of Hours'!AF41=0,"",+'LPA Estimate of Hours'!AF41),) ->  | AG39: =IFERROR(IF(+'LPA Estimate of Hours'!AG41=0,"",+'LPA Estimate of Hours'!AG41),) ->  | AH39: =IFERROR(IF(+'LPA Estimate of Hours'!AH41=0,"",+'LPA Estimate of Hours'!AH41),) ->  | AI39: =IFERROR(IF(+'LPA Estimate of Hours'!AI41=0,"",+'LPA Estimate of Hours'!AI41),) ->  | AJ39: =IFERROR(IF(+'LPA Estimate of Hours'!AJ41=0,"",+'LPA Estimate of Hours'!AJ41),) ->  | AK39: =IFERROR(IF(+'LPA Estimate of Hours'!AK41=0,"",+'LPA Estimate of Hours'!AK41),) ->  | AL39: =IFERROR(IF(+'LPA Estimate of Hours'!AL41=0,"",+'LPA Estimate of Hours'!AL41),) ->  | AM39: =IFERROR(IF(+'LPA Estimate of Hours'!AM41=0,"",+'LPA Estimate of Hours'!AM41),) ->  | AN39: =IFERROR(IF(+'LPA Estimate of Hours'!AN41=0,"",+'LPA Estimate of Hours'!AN41),) ->  | AO39: =IFERROR(IF(+'LPA Estimate of Hours'!AO41=0,"",+'LPA Estimate of Hours'!AO41),) ->  | AP39: =IFERROR(IF(+'LPA Estimate of Hours'!AP41=0,"",+'LPA Estimate of Hours'!AP41),) ->  | AQ39: =IFERROR(IF(+'LPA Estimate of Hours'!AQ41=0,"",+'LPA Estimate of Hours'!AQ41),) ->  | AR39: =IFERROR(IF(+'LPA Estimate of Hours'!AR41=0,"",+'LPA Estimate of Hours'!AR41),) ->  | AS39: =IFERROR(IF(+'LPA Estimate of Hours'!AS41=0,"",+'LPA Estimate of Hours'!AS41),) ->  | AT39: =IFERROR(IF(+'LPA Estimate of Hours'!AT41=0,"",+'LPA Estimate of Hours'!AT41),) ->  | AU39: =IFERROR(IF(+'LPA Estimate of Hours'!AU41=0,"",+'LPA Estimate of Hours'!AU41),) ->  | AV39: =IFERROR(IF(+'LPA Estimate of Hours'!AV41=0,"",+'LPA Estimate of Hours'!AV41),) ->  | AW39: =IFERROR(IF(+'LPA Estimate of Hours'!AW41=0,"",+'LPA Estimate of Hours'!AW41),) ->  | AX39: =IFERROR(IF(+'LPA Estimate of Hours'!AX41=0,"",+'LPA Estimate of Hours'!AX41),) ->  | AY39: =IFERROR(IF(+'LPA Estimate of Hours'!AY41=0,"",+'LPA Estimate of Hours'!AY41),) ->  | AZ39: 0
A40: =IFERROR(IF(+'LPA Estimate of Hours'!A42<>0,'LPA Estimate of Hours'!A42),"Row Deleted") -> Reserve | B40: =IFERROR(IF(+'LPA Estimate of Hours'!B42=0,"",+'LPA Estimate of Hours'!B42),) ->  | C40: =IFERROR(IF(+'LPA Estimate of Hours'!C42=0,"",+'LPA Estimate of Hours'!C42),) ->  | D40: =IFERROR(IF(+'LPA Estimate of Hours'!D42=0,"",+'LPA Estimate of Hours'!D42),) ->  | E40: =IFERROR(IF(+'LPA Estimate of Hours'!E42=0,"",+'LPA Estimate of Hours'!E42),) ->  | F40: =IFERROR(IF(+'LPA Estimate of Hours'!F42=0,"",+'LPA Estimate of Hours'!F42),) ->  | G40: =IFERROR(IF(+'LPA Estimate of Hours'!G42=0,"",+'LPA Estimate of Hours'!G42),) ->  | H40: =IFERROR(IF(+'LPA Estimate of Hours'!H42=0,"",+'LPA Estimate of Hours'!H42),) ->  | I40: =IFERROR(IF(+'LPA Estimate of Hours'!I42=0,"",+'LPA Estimate of Hours'!I42),) ->  | J40: =IFERROR(IF(+'LPA Estimate of Hours'!J42=0,"",+'LPA Estimate of Hours'!J42),) ->  | K40: =IFERROR(IF(+'LPA Estimate of Hours'!K42=0,"",+'LPA Estimate of Hours'!K42),) ->  | L40: =IFERROR(IF(+'LPA Estimate of Hours'!L42=0,"",+'LPA Estimate of Hours'!L42),) ->  | M40: =IFERROR(IF(+'LPA Estimate of Hours'!M42=0,"",+'LPA Estimate of Hours'!M42),) ->  | N40: =IFERROR(IF(+'LPA Estimate of Hours'!N42=0,"",+'LPA Estimate of Hours'!N42),) ->  | O40: =IFERROR(IF(+'LPA Estimate of Hours'!O42=0,"",+'LPA Estimate of Hours'!O42),) ->  | P40: =IFERROR(IF(+'LPA Estimate of Hours'!P42=0,"",+'LPA Estimate of Hours'!P42),) ->  | Q40: =IFERROR(IF(+'LPA Estimate of Hours'!Q42=0,"",+'LPA Estimate of Hours'!Q42),) ->  | R40: =IFERROR(IF(+'LPA Estimate of Hours'!R42=0,"",+'LPA Estimate of Hours'!R42),) ->  | S40: =IFERROR(IF(+'LPA Estimate of Hours'!S42=0,"",+'LPA Estimate of Hours'!S42),) ->  | T40: =IFERROR(IF(+'LPA Estimate of Hours'!T42=0,"",+'LPA Estimate of Hours'!T42),) ->  | U40: =IFERROR(IF(+'LPA Estimate of Hours'!U42=0,"",+'LPA Estimate of Hours'!U42),) ->  | V40: =IFERROR(IF(+'LPA Estimate of Hours'!V42=0,"",+'LPA Estimate of Hours'!V42),) ->  | W40: =IFERROR(IF(+'LPA Estimate of Hours'!W42=0,"",+'LPA Estimate of Hours'!W42),) ->  | X40: =IFERROR(IF(+'LPA Estimate of Hours'!X42=0,"",+'LPA Estimate of Hours'!X42),) ->  | Y40: =IFERROR(IF(+'LPA Estimate of Hours'!Y42=0,"",+'LPA Estimate of Hours'!Y42),) ->  | Z40: =IFERROR(IF(+'LPA Estimate of Hours'!Z42=0,"",+'LPA Estimate of Hours'!Z42),) ->  | AA40: =IFERROR(IF(+'LPA Estimate of Hours'!AA42=0,"",+'LPA Estimate of Hours'!AA42),) ->  | AB40: =IFERROR(IF(+'LPA Estimate of Hours'!AB42=0,"",+'LPA Estimate of Hours'!AB42),) ->  | AC40: =IFERROR(IF(+'LPA Estimate of Hours'!AC42=0,"",+'LPA Estimate of Hours'!AC42),) ->  | AD40: =IFERROR(IF(+'LPA Estimate of Hours'!AD42=0,"",+'LPA Estimate of Hours'!AD42),) ->  | AE40: =IFERROR(IF(+'LPA Estimate of Hours'!AE42=0,"",+'LPA Estimate of Hours'!AE42),) ->  | AF40: =IFERROR(IF(+'LPA Estimate of Hours'!AF42=0,"",+'LPA Estimate of Hours'!AF42),) ->  | AG40: =IFERROR(IF(+'LPA Estimate of Hours'!AG42=0,"",+'LPA Estimate of Hours'!AG42),) ->  | AH40: =IFERROR(IF(+'LPA Estimate of Hours'!AH42=0,"",+'LPA Estimate of Hours'!AH42),) ->  | AI40: =IFERROR(IF(+'LPA Estimate of Hours'!AI42=0,"",+'LPA Estimate of Hours'!AI42),) ->  | AJ40: =IFERROR(IF(+'LPA Estimate of Hours'!AJ42=0,"",+'LPA Estimate of Hours'!AJ42),) ->  | AK40: =IFERROR(IF(+'LPA Estimate of Hours'!AK42=0,"",+'LPA Estimate of Hours'!AK42),) ->  | AL40: =IFERROR(IF(+'LPA Estimate of Hours'!AL42=0,"",+'LPA Estimate of Hours'!AL42),) ->  | AM40: =IFERROR(IF(+'LPA Estimate of Hours'!AM42=0,"",+'LPA Estimate of Hours'!AM42),) ->  | AN40: =IFERROR(IF(+'LPA Estimate of Hours'!AN42=0,"",+'LPA Estimate of Hours'!AN42),) ->  | AO40: =IFERROR(IF(+'LPA Estimate of Hours'!AO42=0,"",+'LPA Estimate of Hours'!AO42),) ->  | AP40: =IFERROR(IF(+'LPA Estimate of Hours'!AP42=0,"",+'LPA Estimate of Hours'!AP42),) ->  | AQ40: =IFERROR(IF(+'LPA Estimate of Hours'!AQ42=0,"",+'LPA Estimate of Hours'!AQ42),) ->  | AR40: =IFERROR(IF(+'LPA Estimate of Hours'!AR42=0,"",+'LPA Estimate of Hours'!AR42),) ->  | AS40: =IFERROR(IF(+'LPA Estimate of Hours'!AS42=0,"",+'LPA Estimate of Hours'!AS42),) ->  | AT40: =IFERROR(IF(+'LPA Estimate of Hours'!AT42=0,"",+'LPA Estimate of Hours'!AT42),) ->  | AU40: =IFERROR(IF(+'LPA Estimate of Hours'!AU42=0,"",+'LPA Estimate of Hours'!AU42),) ->  | AV40: =IFERROR(IF(+'LPA Estimate of Hours'!AV42=0,"",+'LPA Estimate of Hours'!AV42),) ->  | AW40: =IFERROR(IF(+'LPA Estimate of Hours'!AW42=0,"",+'LPA Estimate of Hours'!AW42),) ->  | AX40: =IFERROR(IF(+'LPA Estimate of Hours'!AX42=0,"",+'LPA Estimate of Hours'!AX42),) ->  | AY40: =IFERROR(IF(+'LPA Estimate of Hours'!AY42=0,"",+'LPA Estimate of Hours'!AY42),) ->  | AZ40: 0
A41: =IFERROR(IF(+'LPA Estimate of Hours'!A43<>0,'LPA Estimate of Hours'!A43),"Row Deleted") -> Reserve | B41: =IFERROR(IF(+'LPA Estimate of Hours'!B43=0,"",+'LPA Estimate of Hours'!B43),) ->  | C41: =IFERROR(IF(+'LPA Estimate of Hours'!C43=0,"",+'LPA Estimate of Hours'!C43),) ->  | D41: =IFERROR(IF(+'LPA Estimate of Hours'!D43=0,"",+'LPA Estimate of Hours'!D43),) ->  | E41: =IFERROR(IF(+'LPA Estimate of Hours'!E43=0,"",+'LPA Estimate of Hours'!E43),) ->  | F41: =IFERROR(IF(+'LPA Estimate of Hours'!F43=0,"",+'LPA Estimate of Hours'!F43),) ->  | G41: =IFERROR(IF(+'LPA Estimate of Hours'!G43=0,"",+'LPA Estimate of Hours'!G43),) ->  | H41: =IFERROR(IF(+'LPA Estimate of Hours'!H43=0,"",+'LPA Estimate of Hours'!H43),) ->  | I41: =IFERROR(IF(+'LPA Estimate of Hours'!I43=0,"",+'LPA Estimate of Hours'!I43),) ->  | J41: =IFERROR(IF(+'LPA Estimate of Hours'!J43=0,"",+'LPA Estimate of Hours'!J43),) ->  | K41: =IFERROR(IF(+'LPA Estimate of Hours'!K43=0,"",+'LPA Estimate of Hours'!K43),) ->  | L41: =IFERROR(IF(+'LPA Estimate of Hours'!L43=0,"",+'LPA Estimate of Hours'!L43),) ->  | M41: =IFERROR(IF(+'LPA Estimate of Hours'!M43=0,"",+'LPA Estimate of Hours'!M43),) ->  | N41: =IFERROR(IF(+'LPA Estimate of Hours'!N43=0,"",+'LPA Estimate of Hours'!N43),) ->  | O41: =IFERROR(IF(+'LPA Estimate of Hours'!O43=0,"",+'LPA Estimate of Hours'!O43),) ->  | P41: =IFERROR(IF(+'LPA Estimate of Hours'!P43=0,"",+'LPA Estimate of Hours'!P43),) ->  | Q41: =IFERROR(IF(+'LPA Estimate of Hours'!Q43=0,"",+'LPA Estimate of Hours'!Q43),) ->  | R41: =IFERROR(IF(+'LPA Estimate of Hours'!R43=0,"",+'LPA Estimate of Hours'!R43),) ->  | S41: =IFERROR(IF(+'LPA Estimate of Hours'!S43=0,"",+'LPA Estimate of Hours'!S43),) ->  | T41: =IFERROR(IF(+'LPA Estimate of Hours'!T43=0,"",+'LPA Estimate of Hours'!T43),) ->  | U41: =IFERROR(IF(+'LPA Estimate of Hours'!U43=0,"",+'LPA Estimate of Hours'!U43),) ->  | V41: =IFERROR(IF(+'LPA Estimate of Hours'!V43=0,"",+'LPA Estimate of Hours'!V43),) ->  | W41: =IFERROR(IF(+'LPA Estimate of Hours'!W43=0,"",+'LPA Estimate of Hours'!W43),) ->  | X41: =IFERROR(IF(+'LPA Estimate of Hours'!X43=0,"",+'LPA Estimate of Hours'!X43),) ->  | Y41: =IFERROR(IF(+'LPA Estimate of Hours'!Y43=0,"",+'LPA Estimate of Hours'!Y43),) ->  | Z41: =IFERROR(IF(+'LPA Estimate of Hours'!Z43=0,"",+'LPA Estimate of Hours'!Z43),) ->  | AA41: =IFERROR(IF(+'LPA Estimate of Hours'!AA43=0,"",+'LPA Estimate of Hours'!AA43),) ->  | AB41: =IFERROR(IF(+'LPA Estimate of Hours'!AB43=0,"",+'LPA Estimate of Hours'!AB43),) ->  | AC41: =IFERROR(IF(+'LPA Estimate of Hours'!AC43=0,"",+'LPA Estimate of Hours'!AC43),) ->  | AD41: =IFERROR(IF(+'LPA Estimate of Hours'!AD43=0,"",+'LPA Estimate of Hours'!AD43),) ->  | AE41: =IFERROR(IF(+'LPA Estimate of Hours'!AE43=0,"",+'LPA Estimate of Hours'!AE43),) ->  | AF41: =IFERROR(IF(+'LPA Estimate of Hours'!AF43=0,"",+'LPA Estimate of Hours'!AF43),) ->  | AG41: =IFERROR(IF(+'LPA Estimate of Hours'!AG43=0,"",+'LPA Estimate of Hours'!AG43),) ->  | AH41: =IFERROR(IF(+'LPA Estimate of Hours'!AH43=0,"",+'LPA Estimate of Hours'!AH43),) ->  | AI41: =IFERROR(IF(+'LPA Estimate of Hours'!AI43=0,"",+'LPA Estimate of Hours'!AI43),) ->  | AJ41: =IFERROR(IF(+'LPA Estimate of Hours'!AJ43=0,"",+'LPA Estimate of Hours'!AJ43),) ->  | AK41: =IFERROR(IF(+'LPA Estimate of Hours'!AK43=0,"",+'LPA Estimate of Hours'!AK43),) ->  | AL41: =IFERROR(IF(+'LPA Estimate of Hours'!AL43=0,"",+'LPA Estimate of Hours'!AL43),) ->  | AM41: =IFERROR(IF(+'LPA Estimate of Hours'!AM43=0,"",+'LPA Estimate of Hours'!AM43),) ->  | AN41: =IFERROR(IF(+'LPA Estimate of Hours'!AN43=0,"",+'LPA Estimate of Hours'!AN43),) ->  | AO41: =IFERROR(IF(+'LPA Estimate of Hours'!AO43=0,"",+'LPA Estimate of Hours'!AO43),) ->  | AP41: =IFERROR(IF(+'LPA Estimate of Hours'!AP43=0,"",+'LPA Estimate of Hours'!AP43),) ->  | AQ41: =IFERROR(IF(+'LPA Estimate of Hours'!AQ43=0,"",+'LPA Estimate of Hours'!AQ43),) ->  | AR41: =IFERROR(IF(+'LPA Estimate of Hours'!AR43=0,"",+'LPA Estimate of Hours'!AR43),) ->  | AS41: =IFERROR(IF(+'LPA Estimate of Hours'!AS43=0,"",+'LPA Estimate of Hours'!AS43),) ->  | AT41: =IFERROR(IF(+'LPA Estimate of Hours'!AT43=0,"",+'LPA Estimate of Hours'!AT43),) ->  | AU41: =IFERROR(IF(+'LPA Estimate of Hours'!AU43=0,"",+'LPA Estimate of Hours'!AU43),) ->  | AV41: =IFERROR(IF(+'LPA Estimate of Hours'!AV43=0,"",+'LPA Estimate of Hours'!AV43),) ->  | AW41: =IFERROR(IF(+'LPA Estimate of Hours'!AW43=0,"",+'LPA Estimate of Hours'!AW43),) ->  | AX41: =IFERROR(IF(+'LPA Estimate of Hours'!AX43=0,"",+'LPA Estimate of Hours'!AX43),) ->  | AY41: =IFERROR(IF(+'LPA Estimate of Hours'!AY43=0,"",+'LPA Estimate of Hours'!AY43),) ->  | AZ41: 0
A42: =IFERROR(IF(+'LPA Estimate of Hours'!A44<>0,'LPA Estimate of Hours'!A44),"Row Deleted") -> Reserve | B42: =IFERROR(IF(+'LPA Estimate of Hours'!B44=0,"",+'LPA Estimate of Hours'!B44),) ->  | C42: =IFERROR(IF(+'LPA Estimate of Hours'!C44=0,"",+'LPA Estimate of Hours'!C44),) ->  | D42: =IFERROR(IF(+'LPA Estimate of Hours'!D44=0,"",+'LPA Estimate of Hours'!D44),) ->  | E42: =IFERROR(IF(+'LPA Estimate of Hours'!E44=0,"",+'LPA Estimate of Hours'!E44),) ->  | F42: =IFERROR(IF(+'LPA Estimate of Hours'!F44=0,"",+'LPA Estimate of Hours'!F44),) ->  | G42: =IFERROR(IF(+'LPA Estimate of Hours'!G44=0,"",+'LPA Estimate of Hours'!G44),) ->  | H42: =IFERROR(IF(+'LPA Estimate of Hours'!H44=0,"",+'LPA Estimate of Hours'!H44),) ->  | I42: =IFERROR(IF(+'LPA Estimate of Hours'!I44=0,"",+'LPA Estimate of Hours'!I44),) ->  | J42: =IFERROR(IF(+'LPA Estimate of Hours'!J44=0,"",+'LPA Estimate of Hours'!J44),) ->  | K42: =IFERROR(IF(+'LPA Estimate of Hours'!K44=0,"",+'LPA Estimate of Hours'!K44),) ->  | L42: =IFERROR(IF(+'LPA Estimate of Hours'!L44=0,"",+'LPA Estimate of Hours'!L44),) ->  | M42: =IFERROR(IF(+'LPA Estimate of Hours'!M44=0,"",+'LPA Estimate of Hours'!M44),) ->  | N42: =IFERROR(IF(+'LPA Estimate of Hours'!N44=0,"",+'LPA Estimate of Hours'!N44),) ->  | O42: =IFERROR(IF(+'LPA Estimate of Hours'!O44=0,"",+'LPA Estimate of Hours'!O44),) ->  | P42: =IFERROR(IF(+'LPA Estimate of Hours'!P44=0,"",+'LPA Estimate of Hours'!P44),) ->  | Q42: =IFERROR(IF(+'LPA Estimate of Hours'!Q44=0,"",+'LPA Estimate of Hours'!Q44),) ->  | R42: =IFERROR(IF(+'LPA Estimate of Hours'!R44=0,"",+'LPA Estimate of Hours'!R44),) ->  | S42: =IFERROR(IF(+'LPA Estimate of Hours'!S44=0,"",+'LPA Estimate of Hours'!S44),) ->  | T42: =IFERROR(IF(+'LPA Estimate of Hours'!T44=0,"",+'LPA Estimate of Hours'!T44),) ->  | U42: =IFERROR(IF(+'LPA Estimate of Hours'!U44=0,"",+'LPA Estimate of Hours'!U44),) ->  | V42: =IFERROR(IF(+'LPA Estimate of Hours'!V44=0,"",+'LPA Estimate of Hours'!V44),) ->  | W42: =IFERROR(IF(+'LPA Estimate of Hours'!W44=0,"",+'LPA Estimate of Hours'!W44),) ->  | X42: =IFERROR(IF(+'LPA Estimate of Hours'!X44=0,"",+'LPA Estimate of Hours'!X44),) ->  | Y42: =IFERROR(IF(+'LPA Estimate of Hours'!Y44=0,"",+'LPA Estimate of Hours'!Y44),) ->  | Z42: =IFERROR(IF(+'LPA Estimate of Hours'!Z44=0,"",+'LPA Estimate of Hours'!Z44),) ->  | AA42: =IFERROR(IF(+'LPA Estimate of Hours'!AA44=0,"",+'LPA Estimate of Hours'!AA44),) ->  | AB42: =IFERROR(IF(+'LPA Estimate of Hours'!AB44=0,"",+'LPA Estimate of Hours'!AB44),) ->  | AC42: =IFERROR(IF(+'LPA Estimate of Hours'!AC44=0,"",+'LPA Estimate of Hours'!AC44),) ->  | AD42: =IFERROR(IF(+'LPA Estimate of Hours'!AD44=0,"",+'LPA Estimate of Hours'!AD44),) ->  | AE42: =IFERROR(IF(+'LPA Estimate of Hours'!AE44=0,"",+'LPA Estimate of Hours'!AE44),) ->  | AF42: =IFERROR(IF(+'LPA Estimate of Hours'!AF44=0,"",+'LPA Estimate of Hours'!AF44),) ->  | AG42: =IFERROR(IF(+'LPA Estimate of Hours'!AG44=0,"",+'LPA Estimate of Hours'!AG44),) ->  | AH42: =IFERROR(IF(+'LPA Estimate of Hours'!AH44=0,"",+'LPA Estimate of Hours'!AH44),) ->  | AI42: =IFERROR(IF(+'LPA Estimate of Hours'!AI44=0,"",+'LPA Estimate of Hours'!AI44),) ->  | AJ42: =IFERROR(IF(+'LPA Estimate of Hours'!AJ44=0,"",+'LPA Estimate of Hours'!AJ44),) ->  | AK42: =IFERROR(IF(+'LPA Estimate of Hours'!AK44=0,"",+'LPA Estimate of Hours'!AK44),) ->  | AL42: =IFERROR(IF(+'LPA Estimate of Hours'!AL44=0,"",+'LPA Estimate of Hours'!AL44),) ->  | AM42: =IFERROR(IF(+'LPA Estimate of Hours'!AM44=0,"",+'LPA Estimate of Hours'!AM44),) ->  | AN42: =IFERROR(IF(+'LPA Estimate of Hours'!AN44=0,"",+'LPA Estimate of Hours'!AN44),) ->  | AO42: =IFERROR(IF(+'LPA Estimate of Hours'!AO44=0,"",+'LPA Estimate of Hours'!AO44),) ->  | AP42: =IFERROR(IF(+'LPA Estimate of Hours'!AP44=0,"",+'LPA Estimate of Hours'!AP44),) ->  | AQ42: =IFERROR(IF(+'LPA Estimate of Hours'!AQ44=0,"",+'LPA Estimate of Hours'!AQ44),) ->  | AR42: =IFERROR(IF(+'LPA Estimate of Hours'!AR44=0,"",+'LPA Estimate of Hours'!AR44),) ->  | AS42: =IFERROR(IF(+'LPA Estimate of Hours'!AS44=0,"",+'LPA Estimate of Hours'!AS44),) ->  | AT42: =IFERROR(IF(+'LPA Estimate of Hours'!AT44=0,"",+'LPA Estimate of Hours'!AT44),) ->  | AU42: =IFERROR(IF(+'LPA Estimate of Hours'!AU44=0,"",+'LPA Estimate of Hours'!AU44),) ->  | AV42: =IFERROR(IF(+'LPA Estimate of Hours'!AV44=0,"",+'LPA Estimate of Hours'!AV44),) ->  | AW42: =IFERROR(IF(+'LPA Estimate of Hours'!AW44=0,"",+'LPA Estimate of Hours'!AW44),) ->  | AX42: =IFERROR(IF(+'LPA Estimate of Hours'!AX44=0,"",+'LPA Estimate of Hours'!AX44),) ->  | AY42: =IFERROR(IF(+'LPA Estimate of Hours'!AY44=0,"",+'LPA Estimate of Hours'!AY44),) ->  | AZ42: 0
A43: =IFERROR(IF(+'LPA Estimate of Hours'!A45<>0,'LPA Estimate of Hours'!A45),"Row Deleted") -> Reserve | B43: =IFERROR(IF(+'LPA Estimate of Hours'!B45=0,"",+'LPA Estimate of Hours'!B45),) ->  | C43: =IFERROR(IF(+'LPA Estimate of Hours'!C45=0,"",+'LPA Estimate of Hours'!C45),) ->  | D43: =IFERROR(IF(+'LPA Estimate of Hours'!D45=0,"",+'LPA Estimate of Hours'!D45),) ->  | E43: =IFERROR(IF(+'LPA Estimate of Hours'!E45=0,"",+'LPA Estimate of Hours'!E45),) ->  | F43: =IFERROR(IF(+'LPA Estimate of Hours'!F45=0,"",+'LPA Estimate of Hours'!F45),) ->  | G43: =IFERROR(IF(+'LPA Estimate of Hours'!G45=0,"",+'LPA Estimate of Hours'!G45),) ->  | H43: =IFERROR(IF(+'LPA Estimate of Hours'!H45=0,"",+'LPA Estimate of Hours'!H45),) ->  | I43: =IFERROR(IF(+'LPA Estimate of Hours'!I45=0,"",+'LPA Estimate of Hours'!I45),) ->  | J43: =IFERROR(IF(+'LPA Estimate of Hours'!J45=0,"",+'LPA Estimate of Hours'!J45),) ->  | K43: =IFERROR(IF(+'LPA Estimate of Hours'!K45=0,"",+'LPA Estimate of Hours'!K45),) ->  | L43: =IFERROR(IF(+'LPA Estimate of Hours'!L45=0,"",+'LPA Estimate of Hours'!L45),) ->  | M43: =IFERROR(IF(+'LPA Estimate of Hours'!M45=0,"",+'LPA Estimate of Hours'!M45),) ->  | N43: =IFERROR(IF(+'LPA Estimate of Hours'!N45=0,"",+'LPA Estimate of Hours'!N45),) ->  | O43: =IFERROR(IF(+'LPA Estimate of Hours'!O45=0,"",+'LPA Estimate of Hours'!O45),) ->  | P43: =IFERROR(IF(+'LPA Estimate of Hours'!P45=0,"",+'LPA Estimate of Hours'!P45),) ->  | Q43: =IFERROR(IF(+'LPA Estimate of Hours'!Q45=0,"",+'LPA Estimate of Hours'!Q45),) ->  | R43: =IFERROR(IF(+'LPA Estimate of Hours'!R45=0,"",+'LPA Estimate of Hours'!R45),) ->  | S43: =IFERROR(IF(+'LPA Estimate of Hours'!S45=0,"",+'LPA Estimate of Hours'!S45),) ->  | T43: =IFERROR(IF(+'LPA Estimate of Hours'!T45=0,"",+'LPA Estimate of Hours'!T45),) ->  | U43: =IFERROR(IF(+'LPA Estimate of Hours'!U45=0,"",+'LPA Estimate of Hours'!U45),) ->  | V43: =IFERROR(IF(+'LPA Estimate of Hours'!V45=0,"",+'LPA Estimate of Hours'!V45),) ->  | W43: =IFERROR(IF(+'LPA Estimate of Hours'!W45=0,"",+'LPA Estimate of Hours'!W45),) ->  | X43: =IFERROR(IF(+'LPA Estimate of Hours'!X45=0,"",+'LPA Estimate of Hours'!X45),) ->  | Y43: =IFERROR(IF(+'LPA Estimate of Hours'!Y45=0,"",+'LPA Estimate of Hours'!Y45),) ->  | Z43: =IFERROR(IF(+'LPA Estimate of Hours'!Z45=0,"",+'LPA Estimate of Hours'!Z45),) ->  | AA43: =IFERROR(IF(+'LPA Estimate of Hours'!AA45=0,"",+'LPA Estimate of Hours'!AA45),) ->  | AB43: =IFERROR(IF(+'LPA Estimate of Hours'!AB45=0,"",+'LPA Estimate of Hours'!AB45),) ->  | AC43: =IFERROR(IF(+'LPA Estimate of Hours'!AC45=0,"",+'LPA Estimate of Hours'!AC45),) ->  | AD43: =IFERROR(IF(+'LPA Estimate of Hours'!AD45=0,"",+'LPA Estimate of Hours'!AD45),) ->  | AE43: =IFERROR(IF(+'LPA Estimate of Hours'!AE45=0,"",+'LPA Estimate of Hours'!AE45),) ->  | AF43: =IFERROR(IF(+'LPA Estimate of Hours'!AF45=0,"",+'LPA Estimate of Hours'!AF45),) ->  | AG43: =IFERROR(IF(+'LPA Estimate of Hours'!AG45=0,"",+'LPA Estimate of Hours'!AG45),) ->  | AH43: =IFERROR(IF(+'LPA Estimate of Hours'!AH45=0,"",+'LPA Estimate of Hours'!AH45),) ->  | AI43: =IFERROR(IF(+'LPA Estimate of Hours'!AI45=0,"",+'LPA Estimate of Hours'!AI45),) ->  | AJ43: =IFERROR(IF(+'LPA Estimate of Hours'!AJ45=0,"",+'LPA Estimate of Hours'!AJ45),) ->  | AK43: =IFERROR(IF(+'LPA Estimate of Hours'!AK45=0,"",+'LPA Estimate of Hours'!AK45),) ->  | AL43: =IFERROR(IF(+'LPA Estimate of Hours'!AL45=0,"",+'LPA Estimate of Hours'!AL45),) ->  | AM43: =IFERROR(IF(+'LPA Estimate of Hours'!AM45=0,"",+'LPA Estimate of Hours'!AM45),) ->  | AN43: =IFERROR(IF(+'LPA Estimate of Hours'!AN45=0,"",+'LPA Estimate of Hours'!AN45),) ->  | AO43: =IFERROR(IF(+'LPA Estimate of Hours'!AO45=0,"",+'LPA Estimate of Hours'!AO45),) ->  | AP43: =IFERROR(IF(+'LPA Estimate of Hours'!AP45=0,"",+'LPA Estimate of Hours'!AP45),) ->  | AQ43: =IFERROR(IF(+'LPA Estimate of Hours'!AQ45=0,"",+'LPA Estimate of Hours'!AQ45),) ->  | AR43: =IFERROR(IF(+'LPA Estimate of Hours'!AR45=0,"",+'LPA Estimate of Hours'!AR45),) ->  | AS43: =IFERROR(IF(+'LPA Estimate of Hours'!AS45=0,"",+'LPA Estimate of Hours'!AS45),) ->  | AT43: =IFERROR(IF(+'LPA Estimate of Hours'!AT45=0,"",+'LPA Estimate of Hours'!AT45),) ->  | AU43: =IFERROR(IF(+'LPA Estimate of Hours'!AU45=0,"",+'LPA Estimate of Hours'!AU45),) ->  | AV43: =IFERROR(IF(+'LPA Estimate of Hours'!AV45=0,"",+'LPA Estimate of Hours'!AV45),) ->  | AW43: =IFERROR(IF(+'LPA Estimate of Hours'!AW45=0,"",+'LPA Estimate of Hours'!AW45),) ->  | AX43: =IFERROR(IF(+'LPA Estimate of Hours'!AX45=0,"",+'LPA Estimate of Hours'!AX45),) ->  | AY43: =IFERROR(IF(+'LPA Estimate of Hours'!AY45=0,"",+'LPA Estimate of Hours'!AY45),) ->  | AZ43: 0
A44: =IFERROR(IF(+'LPA Estimate of Hours'!A46<>0,'LPA Estimate of Hours'!A46),"Row Deleted") -> Reserve | B44: =IFERROR(IF(+'LPA Estimate of Hours'!B46=0,"",+'LPA Estimate of Hours'!B46),) ->  | C44: =IFERROR(IF(+'LPA Estimate of Hours'!C46=0,"",+'LPA Estimate of Hours'!C46),) ->  | D44: =IFERROR(IF(+'LPA Estimate of Hours'!D46=0,"",+'LPA Estimate of Hours'!D46),) ->  | E44: =IFERROR(IF(+'LPA Estimate of Hours'!E46=0,"",+'LPA Estimate of Hours'!E46),) ->  | F44: =IFERROR(IF(+'LPA Estimate of Hours'!F46=0,"",+'LPA Estimate of Hours'!F46),) ->  | G44: =IFERROR(IF(+'LPA Estimate of Hours'!G46=0,"",+'LPA Estimate of Hours'!G46),) ->  | H44: =IFERROR(IF(+'LPA Estimate of Hours'!H46=0,"",+'LPA Estimate of Hours'!H46),) ->  | I44: =IFERROR(IF(+'LPA Estimate of Hours'!I46=0,"",+'LPA Estimate of Hours'!I46),) ->  | J44: =IFERROR(IF(+'LPA Estimate of Hours'!J46=0,"",+'LPA Estimate of Hours'!J46),) ->  | K44: =IFERROR(IF(+'LPA Estimate of Hours'!K46=0,"",+'LPA Estimate of Hours'!K46),) ->  | L44: =IFERROR(IF(+'LPA Estimate of Hours'!L46=0,"",+'LPA Estimate of Hours'!L46),) ->  | M44: =IFERROR(IF(+'LPA Estimate of Hours'!M46=0,"",+'LPA Estimate of Hours'!M46),) ->  | N44: =IFERROR(IF(+'LPA Estimate of Hours'!N46=0,"",+'LPA Estimate of Hours'!N46),) ->  | O44: =IFERROR(IF(+'LPA Estimate of Hours'!O46=0,"",+'LPA Estimate of Hours'!O46),) ->  | P44: =IFERROR(IF(+'LPA Estimate of Hours'!P46=0,"",+'LPA Estimate of Hours'!P46),) ->  | Q44: =IFERROR(IF(+'LPA Estimate of Hours'!Q46=0,"",+'LPA Estimate of Hours'!Q46),) ->  | R44: =IFERROR(IF(+'LPA Estimate of Hours'!R46=0,"",+'LPA Estimate of Hours'!R46),) ->  | S44: =IFERROR(IF(+'LPA Estimate of Hours'!S46=0,"",+'LPA Estimate of Hours'!S46),) ->  | T44: =IFERROR(IF(+'LPA Estimate of Hours'!T46=0,"",+'LPA Estimate of Hours'!T46),) ->  | U44: =IFERROR(IF(+'LPA Estimate of Hours'!U46=0,"",+'LPA Estimate of Hours'!U46),) ->  | V44: =IFERROR(IF(+'LPA Estimate of Hours'!V46=0,"",+'LPA Estimate of Hours'!V46),) ->  | W44: =IFERROR(IF(+'LPA Estimate of Hours'!W46=0,"",+'LPA Estimate of Hours'!W46),) ->  | X44: =IFERROR(IF(+'LPA Estimate of Hours'!X46=0,"",+'LPA Estimate of Hours'!X46),) ->  | Y44: =IFERROR(IF(+'LPA Estimate of Hours'!Y46=0,"",+'LPA Estimate of Hours'!Y46),) ->  | Z44: =IFERROR(IF(+'LPA Estimate of Hours'!Z46=0,"",+'LPA Estimate of Hours'!Z46),) ->  | AA44: =IFERROR(IF(+'LPA Estimate of Hours'!AA46=0,"",+'LPA Estimate of Hours'!AA46),) ->  | AB44: =IFERROR(IF(+'LPA Estimate of Hours'!AB46=0,"",+'LPA Estimate of Hours'!AB46),) ->  | AC44: =IFERROR(IF(+'LPA Estimate of Hours'!AC46=0,"",+'LPA Estimate of Hours'!AC46),) ->  | AD44: =IFERROR(IF(+'LPA Estimate of Hours'!AD46=0,"",+'LPA Estimate of Hours'!AD46),) ->  | AE44: =IFERROR(IF(+'LPA Estimate of Hours'!AE46=0,"",+'LPA Estimate of Hours'!AE46),) ->  | AF44: =IFERROR(IF(+'LPA Estimate of Hours'!AF46=0,"",+'LPA Estimate of Hours'!AF46),) ->  | AG44: =IFERROR(IF(+'LPA Estimate of Hours'!AG46=0,"",+'LPA Estimate of Hours'!AG46),) ->  | AH44: =IFERROR(IF(+'LPA Estimate of Hours'!AH46=0,"",+'LPA Estimate of Hours'!AH46),) ->  | AI44: =IFERROR(IF(+'LPA Estimate of Hours'!AI46=0,"",+'LPA Estimate of Hours'!AI46),) ->  | AJ44: =IFERROR(IF(+'LPA Estimate of Hours'!AJ46=0,"",+'LPA Estimate of Hours'!AJ46),) ->  | AK44: =IFERROR(IF(+'LPA Estimate of Hours'!AK46=0,"",+'LPA Estimate of Hours'!AK46),) ->  | AL44: =IFERROR(IF(+'LPA Estimate of Hours'!AL46=0,"",+'LPA Estimate of Hours'!AL46),) ->  | AM44: =IFERROR(IF(+'LPA Estimate of Hours'!AM46=0,"",+'LPA Estimate of Hours'!AM46),) ->  | AN44: =IFERROR(IF(+'LPA Estimate of Hours'!AN46=0,"",+'LPA Estimate of Hours'!AN46),) ->  | AO44: =IFERROR(IF(+'LPA Estimate of Hours'!AO46=0,"",+'LPA Estimate of Hours'!AO46),) ->  | AP44: =IFERROR(IF(+'LPA Estimate of Hours'!AP46=0,"",+'LPA Estimate of Hours'!AP46),) ->  | AQ44: =IFERROR(IF(+'LPA Estimate of Hours'!AQ46=0,"",+'LPA Estimate of Hours'!AQ46),) ->  | AR44: =IFERROR(IF(+'LPA Estimate of Hours'!AR46=0,"",+'LPA Estimate of Hours'!AR46),) ->  | AS44: =IFERROR(IF(+'LPA Estimate of Hours'!AS46=0,"",+'LPA Estimate of Hours'!AS46),) ->  | AT44: =IFERROR(IF(+'LPA Estimate of Hours'!AT46=0,"",+'LPA Estimate of Hours'!AT46),) ->  | AU44: =IFERROR(IF(+'LPA Estimate of Hours'!AU46=0,"",+'LPA Estimate of Hours'!AU46),) ->  | AV44: =IFERROR(IF(+'LPA Estimate of Hours'!AV46=0,"",+'LPA Estimate of Hours'!AV46),) ->  | AW44: =IFERROR(IF(+'LPA Estimate of Hours'!AW46=0,"",+'LPA Estimate of Hours'!AW46),) ->  | AX44: =IFERROR(IF(+'LPA Estimate of Hours'!AX46=0,"",+'LPA Estimate of Hours'!AX46),) ->  | AY44: =IFERROR(IF(+'LPA Estimate of Hours'!AY46=0,"",+'LPA Estimate of Hours'!AY46),) ->  | AZ44: 0
A45: =IFERROR(IF(+'LPA Estimate of Hours'!A47<>0,'LPA Estimate of Hours'!A47),"Row Deleted") -> Reserve | B45: =IFERROR(IF(+'LPA Estimate of Hours'!B47=0,"",+'LPA Estimate of Hours'!B47),) ->  | C45: =IFERROR(IF(+'LPA Estimate of Hours'!C47=0,"",+'LPA Estimate of Hours'!C47),) ->  | D45: =IFERROR(IF(+'LPA Estimate of Hours'!D47=0,"",+'LPA Estimate of Hours'!D47),) ->  | E45: =IFERROR(IF(+'LPA Estimate of Hours'!E47=0,"",+'LPA Estimate of Hours'!E47),) ->  | F45: =IFERROR(IF(+'LPA Estimate of Hours'!F47=0,"",+'LPA Estimate of Hours'!F47),) ->  | G45: =IFERROR(IF(+'LPA Estimate of Hours'!G47=0,"",+'LPA Estimate of Hours'!G47),) ->  | H45: =IFERROR(IF(+'LPA Estimate of Hours'!H47=0,"",+'LPA Estimate of Hours'!H47),) ->  | I45: =IFERROR(IF(+'LPA Estimate of Hours'!I47=0,"",+'LPA Estimate of Hours'!I47),) ->  | J45: =IFERROR(IF(+'LPA Estimate of Hours'!J47=0,"",+'LPA Estimate of Hours'!J47),) ->  | K45: =IFERROR(IF(+'LPA Estimate of Hours'!K47=0,"",+'LPA Estimate of Hours'!K47),) ->  | L45: =IFERROR(IF(+'LPA Estimate of Hours'!L47=0,"",+'LPA Estimate of Hours'!L47),) ->  | M45: =IFERROR(IF(+'LPA Estimate of Hours'!M47=0,"",+'LPA Estimate of Hours'!M47),) ->  | N45: =IFERROR(IF(+'LPA Estimate of Hours'!N47=0,"",+'LPA Estimate of Hours'!N47),) ->  | O45: =IFERROR(IF(+'LPA Estimate of Hours'!O47=0,"",+'LPA Estimate of Hours'!O47),) ->  | P45: =IFERROR(IF(+'LPA Estimate of Hours'!P47=0,"",+'LPA Estimate of Hours'!P47),) ->  | Q45: =IFERROR(IF(+'LPA Estimate of Hours'!Q47=0,"",+'LPA Estimate of Hours'!Q47),) ->  | R45: =IFERROR(IF(+'LPA Estimate of Hours'!R47=0,"",+'LPA Estimate of Hours'!R47),) ->  | S45: =IFERROR(IF(+'LPA Estimate of Hours'!S47=0,"",+'LPA Estimate of Hours'!S47),) ->  | T45: =IFERROR(IF(+'LPA Estimate of Hours'!T47=0,"",+'LPA Estimate of Hours'!T47),) ->  | U45: =IFERROR(IF(+'LPA Estimate of Hours'!U47=0,"",+'LPA Estimate of Hours'!U47),) ->  | V45: =IFERROR(IF(+'LPA Estimate of Hours'!V47=0,"",+'LPA Estimate of Hours'!V47),) ->  | W45: =IFERROR(IF(+'LPA Estimate of Hours'!W47=0,"",+'LPA Estimate of Hours'!W47),) ->  | X45: =IFERROR(IF(+'LPA Estimate of Hours'!X47=0,"",+'LPA Estimate of Hours'!X47),) ->  | Y45: =IFERROR(IF(+'LPA Estimate of Hours'!Y47=0,"",+'LPA Estimate of Hours'!Y47),) ->  | Z45: =IFERROR(IF(+'LPA Estimate of Hours'!Z47=0,"",+'LPA Estimate of Hours'!Z47),) ->  | AA45: =IFERROR(IF(+'LPA Estimate of Hours'!AA47=0,"",+'LPA Estimate of Hours'!AA47),) ->  | AB45: =IFERROR(IF(+'LPA Estimate of Hours'!AB47=0,"",+'LPA Estimate of Hours'!AB47),) ->  | AC45: =IFERROR(IF(+'LPA Estimate of Hours'!AC47=0,"",+'LPA Estimate of Hours'!AC47),) ->  | AD45: =IFERROR(IF(+'LPA Estimate of Hours'!AD47=0,"",+'LPA Estimate of Hours'!AD47),) ->  | AE45: =IFERROR(IF(+'LPA Estimate of Hours'!AE47=0,"",+'LPA Estimate of Hours'!AE47),) ->  | AF45: =IFERROR(IF(+'LPA Estimate of Hours'!AF47=0,"",+'LPA Estimate of Hours'!AF47),) ->  | AG45: =IFERROR(IF(+'LPA Estimate of Hours'!AG47=0,"",+'LPA Estimate of Hours'!AG47),) ->  | AH45: =IFERROR(IF(+'LPA Estimate of Hours'!AH47=0,"",+'LPA Estimate of Hours'!AH47),) ->  | AI45: =IFERROR(IF(+'LPA Estimate of Hours'!AI47=0,"",+'LPA Estimate of Hours'!AI47),) ->  | AJ45: =IFERROR(IF(+'LPA Estimate of Hours'!AJ47=0,"",+'LPA Estimate of Hours'!AJ47),) ->  | AK45: =IFERROR(IF(+'LPA Estimate of Hours'!AK47=0,"",+'LPA Estimate of Hours'!AK47),) ->  | AL45: =IFERROR(IF(+'LPA Estimate of Hours'!AL47=0,"",+'LPA Estimate of Hours'!AL47),) ->  | AM45: =IFERROR(IF(+'LPA Estimate of Hours'!AM47=0,"",+'LPA Estimate of Hours'!AM47),) ->  | AN45: =IFERROR(IF(+'LPA Estimate of Hours'!AN47=0,"",+'LPA Estimate of Hours'!AN47),) ->  | AO45: =IFERROR(IF(+'LPA Estimate of Hours'!AO47=0,"",+'LPA Estimate of Hours'!AO47),) ->  | AP45: =IFERROR(IF(+'LPA Estimate of Hours'!AP47=0,"",+'LPA Estimate of Hours'!AP47),) ->  | AQ45: =IFERROR(IF(+'LPA Estimate of Hours'!AQ47=0,"",+'LPA Estimate of Hours'!AQ47),) ->  | AR45: =IFERROR(IF(+'LPA Estimate of Hours'!AR47=0,"",+'LPA Estimate of Hours'!AR47),) ->  | AS45: =IFERROR(IF(+'LPA Estimate of Hours'!AS47=0,"",+'LPA Estimate of Hours'!AS47),) ->  | AT45: =IFERROR(IF(+'LPA Estimate of Hours'!AT47=0,"",+'LPA Estimate of Hours'!AT47),) ->  | AU45: =IFERROR(IF(+'LPA Estimate of Hours'!AU47=0,"",+'LPA Estimate of Hours'!AU47),) ->  | AV45: =IFERROR(IF(+'LPA Estimate of Hours'!AV47=0,"",+'LPA Estimate of Hours'!AV47),) ->  | AW45: =IFERROR(IF(+'LPA Estimate of Hours'!AW47=0,"",+'LPA Estimate of Hours'!AW47),) ->  | AX45: =IFERROR(IF(+'LPA Estimate of Hours'!AX47=0,"",+'LPA Estimate of Hours'!AX47),) ->  | AY45: =IFERROR(IF(+'LPA Estimate of Hours'!AY47=0,"",+'LPA Estimate of Hours'!AY47),) ->  | AZ45: 0
A46: =IFERROR(IF(+'LPA Estimate of Hours'!A48<>0,'LPA Estimate of Hours'!A48),"Row Deleted") -> Reserve | B46: =IFERROR(IF(+'LPA Estimate of Hours'!B48=0,"",+'LPA Estimate of Hours'!B48),) ->  | C46: =IFERROR(IF(+'LPA Estimate of Hours'!C48=0,"",+'LPA Estimate of Hours'!C48),) ->  | D46: =IFERROR(IF(+'LPA Estimate of Hours'!D48=0,"",+'LPA Estimate of Hours'!D48),) ->  | E46: =IFERROR(IF(+'LPA Estimate of Hours'!E48=0,"",+'LPA Estimate of Hours'!E48),) ->  | F46: =IFERROR(IF(+'LPA Estimate of Hours'!F48=0,"",+'LPA Estimate of Hours'!F48),) ->  | G46: =IFERROR(IF(+'LPA Estimate of Hours'!G48=0,"",+'LPA Estimate of Hours'!G48),) ->  | H46: =IFERROR(IF(+'LPA Estimate of Hours'!H48=0,"",+'LPA Estimate of Hours'!H48),) ->  | I46: =IFERROR(IF(+'LPA Estimate of Hours'!I48=0,"",+'LPA Estimate of Hours'!I48),) ->  | J46: =IFERROR(IF(+'LPA Estimate of Hours'!J48=0,"",+'LPA Estimate of Hours'!J48),) ->  | K46: =IFERROR(IF(+'LPA Estimate of Hours'!K48=0,"",+'LPA Estimate of Hours'!K48),) ->  | L46: =IFERROR(IF(+'LPA Estimate of Hours'!L48=0,"",+'LPA Estimate of Hours'!L48),) ->  | M46: =IFERROR(IF(+'LPA Estimate of Hours'!M48=0,"",+'LPA Estimate of Hours'!M48),) ->  | N46: =IFERROR(IF(+'LPA Estimate of Hours'!N48=0,"",+'LPA Estimate of Hours'!N48),) ->  | O46: =IFERROR(IF(+'LPA Estimate of Hours'!O48=0,"",+'LPA Estimate of Hours'!O48),) ->  | P46: =IFERROR(IF(+'LPA Estimate of Hours'!P48=0,"",+'LPA Estimate of Hours'!P48),) ->  | Q46: =IFERROR(IF(+'LPA Estimate of Hours'!Q48=0,"",+'LPA Estimate of Hours'!Q48),) ->  | R46: =IFERROR(IF(+'LPA Estimate of Hours'!R48=0,"",+'LPA Estimate of Hours'!R48),) ->  | S46: =IFERROR(IF(+'LPA Estimate of Hours'!S48=0,"",+'LPA Estimate of Hours'!S48),) ->  | T46: =IFERROR(IF(+'LPA Estimate of Hours'!T48=0,"",+'LPA Estimate of Hours'!T48),) ->  | U46: =IFERROR(IF(+'LPA Estimate of Hours'!U48=0,"",+'LPA Estimate of Hours'!U48),) ->  | V46: =IFERROR(IF(+'LPA Estimate of Hours'!V48=0,"",+'LPA Estimate of Hours'!V48),) ->  | W46: =IFERROR(IF(+'LPA Estimate of Hours'!W48=0,"",+'LPA Estimate of Hours'!W48),) ->  | X46: =IFERROR(IF(+'LPA Estimate of Hours'!X48=0,"",+'LPA Estimate of Hours'!X48),) ->  | Y46: =IFERROR(IF(+'LPA Estimate of Hours'!Y48=0,"",+'LPA Estimate of Hours'!Y48),) ->  | Z46: =IFERROR(IF(+'LPA Estimate of Hours'!Z48=0,"",+'LPA Estimate of Hours'!Z48),) ->  | AA46: =IFERROR(IF(+'LPA Estimate of Hours'!AA48=0,"",+'LPA Estimate of Hours'!AA48),) ->  | AB46: =IFERROR(IF(+'LPA Estimate of Hours'!AB48=0,"",+'LPA Estimate of Hours'!AB48),) ->  | AC46: =IFERROR(IF(+'LPA Estimate of Hours'!AC48=0,"",+'LPA Estimate of Hours'!AC48),) ->  | AD46: =IFERROR(IF(+'LPA Estimate of Hours'!AD48=0,"",+'LPA Estimate of Hours'!AD48),) ->  | AE46: =IFERROR(IF(+'LPA Estimate of Hours'!AE48=0,"",+'LPA Estimate of Hours'!AE48),) ->  | AF46: =IFERROR(IF(+'LPA Estimate of Hours'!AF48=0,"",+'LPA Estimate of Hours'!AF48),) ->  | AG46: =IFERROR(IF(+'LPA Estimate of Hours'!AG48=0,"",+'LPA Estimate of Hours'!AG48),) ->  | AH46: =IFERROR(IF(+'LPA Estimate of Hours'!AH48=0,"",+'LPA Estimate of Hours'!AH48),) ->  | AI46: =IFERROR(IF(+'LPA Estimate of Hours'!AI48=0,"",+'LPA Estimate of Hours'!AI48),) ->  | AJ46: =IFERROR(IF(+'LPA Estimate of Hours'!AJ48=0,"",+'LPA Estimate of Hours'!AJ48),) ->  | AK46: =IFERROR(IF(+'LPA Estimate of Hours'!AK48=0,"",+'LPA Estimate of Hours'!AK48),) ->  | AL46: =IFERROR(IF(+'LPA Estimate of Hours'!AL48=0,"",+'LPA Estimate of Hours'!AL48),) ->  | AM46: =IFERROR(IF(+'LPA Estimate of Hours'!AM48=0,"",+'LPA Estimate of Hours'!AM48),) ->  | AN46: =IFERROR(IF(+'LPA Estimate of Hours'!AN48=0,"",+'LPA Estimate of Hours'!AN48),) ->  | AO46: =IFERROR(IF(+'LPA Estimate of Hours'!AO48=0,"",+'LPA Estimate of Hours'!AO48),) ->  | AP46: =IFERROR(IF(+'LPA Estimate of Hours'!AP48=0,"",+'LPA Estimate of Hours'!AP48),) ->  | AQ46: =IFERROR(IF(+'LPA Estimate of Hours'!AQ48=0,"",+'LPA Estimate of Hours'!AQ48),) ->  | AR46: =IFERROR(IF(+'LPA Estimate of Hours'!AR48=0,"",+'LPA Estimate of Hours'!AR48),) ->  | AS46: =IFERROR(IF(+'LPA Estimate of Hours'!AS48=0,"",+'LPA Estimate of Hours'!AS48),) ->  | AT46: =IFERROR(IF(+'LPA Estimate of Hours'!AT48=0,"",+'LPA Estimate of Hours'!AT48),) ->  | AU46: =IFERROR(IF(+'LPA Estimate of Hours'!AU48=0,"",+'LPA Estimate of Hours'!AU48),) ->  | AV46: =IFERROR(IF(+'LPA Estimate of Hours'!AV48=0,"",+'LPA Estimate of Hours'!AV48),) ->  | AW46: =IFERROR(IF(+'LPA Estimate of Hours'!AW48=0,"",+'LPA Estimate of Hours'!AW48),) ->  | AX46: =IFERROR(IF(+'LPA Estimate of Hours'!AX48=0,"",+'LPA Estimate of Hours'!AX48),) ->  | AY46: =IFERROR(IF(+'LPA Estimate of Hours'!AY48=0,"",+'LPA Estimate of Hours'!AY48),) ->  | AZ46: 0 | BB46: =IFERROR(IF(INDEX('Cost by Task'!$O$16:$O$219,MATCH(#REF!,'Cost by Task'!$O$15:$O$219,0))="","",INDEX('Cost by Task'!$O$16:$O$219,MATCH(#REF!,'Cost by Task'!$O$15:$O$219,0))),"") -> 
A47: =IFERROR(IF(+'LPA Estimate of Hours'!A49<>0,'LPA Estimate of Hours'!A49),"Row Deleted") -> Reserve | B47: =IFERROR(IF(+'LPA Estimate of Hours'!B49=0,"",+'LPA Estimate of Hours'!B49),) ->  | C47: =IFERROR(IF(+'LPA Estimate of Hours'!C49=0,"",+'LPA Estimate of Hours'!C49),) ->  | D47: =IFERROR(IF(+'LPA Estimate of Hours'!D49=0,"",+'LPA Estimate of Hours'!D49),) ->  | E47: =IFERROR(IF(+'LPA Estimate of Hours'!E49=0,"",+'LPA Estimate of Hours'!E49),) ->  | F47: =IFERROR(IF(+'LPA Estimate of Hours'!F49=0,"",+'LPA Estimate of Hours'!F49),) ->  | G47: =IFERROR(IF(+'LPA Estimate of Hours'!G49=0,"",+'LPA Estimate of Hours'!G49),) ->  | H47: =IFERROR(IF(+'LPA Estimate of Hours'!H49=0,"",+'LPA Estimate of Hours'!H49),) ->  | I47: =IFERROR(IF(+'LPA Estimate of Hours'!I49=0,"",+'LPA Estimate of Hours'!I49),) ->  | J47: =IFERROR(IF(+'LPA Estimate of Hours'!J49=0,"",+'LPA Estimate of Hours'!J49),) ->  | K47: =IFERROR(IF(+'LPA Estimate of Hours'!K49=0,"",+'LPA Estimate of Hours'!K49),) ->  | L47: =IFERROR(IF(+'LPA Estimate of Hours'!L49=0,"",+'LPA Estimate of Hours'!L49),) ->  | M47: =IFERROR(IF(+'LPA Estimate of Hours'!M49=0,"",+'LPA Estimate of Hours'!M49),) ->  | N47: =IFERROR(IF(+'LPA Estimate of Hours'!N49=0,"",+'LPA Estimate of Hours'!N49),) ->  | O47: =IFERROR(IF(+'LPA Estimate of Hours'!O49=0,"",+'LPA Estimate of Hours'!O49),) ->  | P47: =IFERROR(IF(+'LPA Estimate of Hours'!P49=0,"",+'LPA Estimate of Hours'!P49),) ->  | Q47: =IFERROR(IF(+'LPA Estimate of Hours'!Q49=0,"",+'LPA Estimate of Hours'!Q49),) ->  | R47: =IFERROR(IF(+'LPA Estimate of Hours'!R49=0,"",+'LPA Estimate of Hours'!R49),) ->  | S47: =IFERROR(IF(+'LPA Estimate of Hours'!S49=0,"",+'LPA Estimate of Hours'!S49),) ->  | T47: =IFERROR(IF(+'LPA Estimate of Hours'!T49=0,"",+'LPA Estimate of Hours'!T49),) ->  | U47: =IFERROR(IF(+'LPA Estimate of Hours'!U49=0,"",+'LPA Estimate of Hours'!U49),) ->  | V47: =IFERROR(IF(+'LPA Estimate of Hours'!V49=0,"",+'LPA Estimate of Hours'!V49),) ->  | W47: =IFERROR(IF(+'LPA Estimate of Hours'!W49=0,"",+'LPA Estimate of Hours'!W49),) ->  | X47: =IFERROR(IF(+'LPA Estimate of Hours'!X49=0,"",+'LPA Estimate of Hours'!X49),) ->  | Y47: =IFERROR(IF(+'LPA Estimate of Hours'!Y49=0,"",+'LPA Estimate of Hours'!Y49),) ->  | Z47: =IFERROR(IF(+'LPA Estimate of Hours'!Z49=0,"",+'LPA Estimate of Hours'!Z49),) ->  | AA47: =IFERROR(IF(+'LPA Estimate of Hours'!AA49=0,"",+'LPA Estimate of Hours'!AA49),) ->  | AB47: =IFERROR(IF(+'LPA Estimate of Hours'!AB49=0,"",+'LPA Estimate of Hours'!AB49),) ->  | AC47: =IFERROR(IF(+'LPA Estimate of Hours'!AC49=0,"",+'LPA Estimate of Hours'!AC49),) ->  | AD47: =IFERROR(IF(+'LPA Estimate of Hours'!AD49=0,"",+'LPA Estimate of Hours'!AD49),) ->  | AE47: =IFERROR(IF(+'LPA Estimate of Hours'!AE49=0,"",+'LPA Estimate of Hours'!AE49),) ->  | AF47: =IFERROR(IF(+'LPA Estimate of Hours'!AF49=0,"",+'LPA Estimate of Hours'!AF49),) ->  | AG47: =IFERROR(IF(+'LPA Estimate of Hours'!AG49=0,"",+'LPA Estimate of Hours'!AG49),) ->  | AH47: =IFERROR(IF(+'LPA Estimate of Hours'!AH49=0,"",+'LPA Estimate of Hours'!AH49),) ->  | AI47: =IFERROR(IF(+'LPA Estimate of Hours'!AI49=0,"",+'LPA Estimate of Hours'!AI49),) ->  | AJ47: =IFERROR(IF(+'LPA Estimate of Hours'!AJ49=0,"",+'LPA Estimate of Hours'!AJ49),) ->  | AK47: =IFERROR(IF(+'LPA Estimate of Hours'!AK49=0,"",+'LPA Estimate of Hours'!AK49),) ->  | AL47: =IFERROR(IF(+'LPA Estimate of Hours'!AL49=0,"",+'LPA Estimate of Hours'!AL49),) ->  | AM47: =IFERROR(IF(+'LPA Estimate of Hours'!AM49=0,"",+'LPA Estimate of Hours'!AM49),) ->  | AN47: =IFERROR(IF(+'LPA Estimate of Hours'!AN49=0,"",+'LPA Estimate of Hours'!AN49),) ->  | AO47: =IFERROR(IF(+'LPA Estimate of Hours'!AO49=0,"",+'LPA Estimate of Hours'!AO49),) ->  | AP47: =IFERROR(IF(+'LPA Estimate of Hours'!AP49=0,"",+'LPA Estimate of Hours'!AP49),) ->  | AQ47: =IFERROR(IF(+'LPA Estimate of Hours'!AQ49=0,"",+'LPA Estimate of Hours'!AQ49),) ->  | AR47: =IFERROR(IF(+'LPA Estimate of Hours'!AR49=0,"",+'LPA Estimate of Hours'!AR49),) ->  | AS47: =IFERROR(IF(+'LPA Estimate of Hours'!AS49=0,"",+'LPA Estimate of Hours'!AS49),) ->  | AT47: =IFERROR(IF(+'LPA Estimate of Hours'!AT49=0,"",+'LPA Estimate of Hours'!AT49),) ->  | AU47: =IFERROR(IF(+'LPA Estimate of Hours'!AU49=0,"",+'LPA Estimate of Hours'!AU49),) ->  | AV47: =IFERROR(IF(+'LPA Estimate of Hours'!AV49=0,"",+'LPA Estimate of Hours'!AV49),) ->  | AW47: =IFERROR(IF(+'LPA Estimate of Hours'!AW49=0,"",+'LPA Estimate of Hours'!AW49),) ->  | AX47: =IFERROR(IF(+'LPA Estimate of Hours'!AX49=0,"",+'LPA Estimate of Hours'!AX49),) ->  | AY47: =IFERROR(IF(+'LPA Estimate of Hours'!AY49=0,"",+'LPA Estimate of Hours'!AY49),) ->  | AZ47: 0
A48: =IFERROR(IF(+'LPA Estimate of Hours'!A50<>0,'LPA Estimate of Hours'!A50),"Row Deleted") -> Reserve | B48: =IFERROR(IF(+'LPA Estimate of Hours'!B50=0,"",+'LPA Estimate of Hours'!B50),) ->  | C48: =IFERROR(IF(+'LPA Estimate of Hours'!C50=0,"",+'LPA Estimate of Hours'!C50),) ->  | D48: =IFERROR(IF(+'LPA Estimate of Hours'!D50=0,"",+'LPA Estimate of Hours'!D50),) ->  | E48: =IFERROR(IF(+'LPA Estimate of Hours'!E50=0,"",+'LPA Estimate of Hours'!E50),) ->  | F48: =IFERROR(IF(+'LPA Estimate of Hours'!F50=0,"",+'LPA Estimate of Hours'!F50),) ->  | G48: =IFERROR(IF(+'LPA Estimate of Hours'!G50=0,"",+'LPA Estimate of Hours'!G50),) ->  | H48: =IFERROR(IF(+'LPA Estimate of Hours'!H50=0,"",+'LPA Estimate of Hours'!H50),) ->  | I48: =IFERROR(IF(+'LPA Estimate of Hours'!I50=0,"",+'LPA Estimate of Hours'!I50),) ->  | J48: =IFERROR(IF(+'LPA Estimate of Hours'!J50=0,"",+'LPA Estimate of Hours'!J50),) ->  | K48: =IFERROR(IF(+'LPA Estimate of Hours'!K50=0,"",+'LPA Estimate of Hours'!K50),) ->  | L48: =IFERROR(IF(+'LPA Estimate of Hours'!L50=0,"",+'LPA Estimate of Hours'!L50),) ->  | M48: =IFERROR(IF(+'LPA Estimate of Hours'!M50=0,"",+'LPA Estimate of Hours'!M50),) ->  | N48: =IFERROR(IF(+'LPA Estimate of Hours'!N50=0,"",+'LPA Estimate of Hours'!N50),) ->  | O48: =IFERROR(IF(+'LPA Estimate of Hours'!O50=0,"",+'LPA Estimate of Hours'!O50),) ->  | P48: =IFERROR(IF(+'LPA Estimate of Hours'!P50=0,"",+'LPA Estimate of Hours'!P50),) ->  | Q48: =IFERROR(IF(+'LPA Estimate of Hours'!Q50=0,"",+'LPA Estimate of Hours'!Q50),) ->  | R48: =IFERROR(IF(+'LPA Estimate of Hours'!R50=0,"",+'LPA Estimate of Hours'!R50),) ->  | S48: =IFERROR(IF(+'LPA Estimate of Hours'!S50=0,"",+'LPA Estimate of Hours'!S50),) ->  | T48: =IFERROR(IF(+'LPA Estimate of Hours'!T50=0,"",+'LPA Estimate of Hours'!T50),) ->  | U48: =IFERROR(IF(+'LPA Estimate of Hours'!U50=0,"",+'LPA Estimate of Hours'!U50),) ->  | V48: =IFERROR(IF(+'LPA Estimate of Hours'!V50=0,"",+'LPA Estimate of Hours'!V50),) ->  | W48: =IFERROR(IF(+'LPA Estimate of Hours'!W50=0,"",+'LPA Estimate of Hours'!W50),) ->  | X48: =IFERROR(IF(+'LPA Estimate of Hours'!X50=0,"",+'LPA Estimate of Hours'!X50),) ->  | Y48: =IFERROR(IF(+'LPA Estimate of Hours'!Y50=0,"",+'LPA Estimate of Hours'!Y50),) ->  | Z48: =IFERROR(IF(+'LPA Estimate of Hours'!Z50=0,"",+'LPA Estimate of Hours'!Z50),) ->  | AA48: =IFERROR(IF(+'LPA Estimate of Hours'!AA50=0,"",+'LPA Estimate of Hours'!AA50),) ->  | AB48: =IFERROR(IF(+'LPA Estimate of Hours'!AB50=0,"",+'LPA Estimate of Hours'!AB50),) ->  | AC48: =IFERROR(IF(+'LPA Estimate of Hours'!AC50=0,"",+'LPA Estimate of Hours'!AC50),) ->  | AD48: =IFERROR(IF(+'LPA Estimate of Hours'!AD50=0,"",+'LPA Estimate of Hours'!AD50),) ->  | AE48: =IFERROR(IF(+'LPA Estimate of Hours'!AE50=0,"",+'LPA Estimate of Hours'!AE50),) ->  | AF48: =IFERROR(IF(+'LPA Estimate of Hours'!AF50=0,"",+'LPA Estimate of Hours'!AF50),) ->  | AG48: =IFERROR(IF(+'LPA Estimate of Hours'!AG50=0,"",+'LPA Estimate of Hours'!AG50),) ->  | AH48: =IFERROR(IF(+'LPA Estimate of Hours'!AH50=0,"",+'LPA Estimate of Hours'!AH50),) ->  | AI48: =IFERROR(IF(+'LPA Estimate of Hours'!AI50=0,"",+'LPA Estimate of Hours'!AI50),) ->  | AJ48: =IFERROR(IF(+'LPA Estimate of Hours'!AJ50=0,"",+'LPA Estimate of Hours'!AJ50),) ->  | AK48: =IFERROR(IF(+'LPA Estimate of Hours'!AK50=0,"",+'LPA Estimate of Hours'!AK50),) ->  | AL48: =IFERROR(IF(+'LPA Estimate of Hours'!AL50=0,"",+'LPA Estimate of Hours'!AL50),) ->  | AM48: =IFERROR(IF(+'LPA Estimate of Hours'!AM50=0,"",+'LPA Estimate of Hours'!AM50),) ->  | AN48: =IFERROR(IF(+'LPA Estimate of Hours'!AN50=0,"",+'LPA Estimate of Hours'!AN50),) ->  | AO48: =IFERROR(IF(+'LPA Estimate of Hours'!AO50=0,"",+'LPA Estimate of Hours'!AO50),) ->  | AP48: =IFERROR(IF(+'LPA Estimate of Hours'!AP50=0,"",+'LPA Estimate of Hours'!AP50),) ->  | AQ48: =IFERROR(IF(+'LPA Estimate of Hours'!AQ50=0,"",+'LPA Estimate of Hours'!AQ50),) ->  | AR48: =IFERROR(IF(+'LPA Estimate of Hours'!AR50=0,"",+'LPA Estimate of Hours'!AR50),) ->  | AS48: =IFERROR(IF(+'LPA Estimate of Hours'!AS50=0,"",+'LPA Estimate of Hours'!AS50),) ->  | AT48: =IFERROR(IF(+'LPA Estimate of Hours'!AT50=0,"",+'LPA Estimate of Hours'!AT50),) ->  | AU48: =IFERROR(IF(+'LPA Estimate of Hours'!AU50=0,"",+'LPA Estimate of Hours'!AU50),) ->  | AV48: =IFERROR(IF(+'LPA Estimate of Hours'!AV50=0,"",+'LPA Estimate of Hours'!AV50),) ->  | AW48: =IFERROR(IF(+'LPA Estimate of Hours'!AW50=0,"",+'LPA Estimate of Hours'!AW50),) ->  | AX48: =IFERROR(IF(+'LPA Estimate of Hours'!AX50=0,"",+'LPA Estimate of Hours'!AX50),) ->  | AY48: =IFERROR(IF(+'LPA Estimate of Hours'!AY50=0,"",+'LPA Estimate of Hours'!AY50),) ->  | AZ48: 0
A49: =IFERROR(IF(+'LPA Estimate of Hours'!A51<>0,'LPA Estimate of Hours'!A51),"Row Deleted") -> Reserve | B49: =IFERROR(IF(+'LPA Estimate of Hours'!B51=0,"",+'LPA Estimate of Hours'!B51),) ->  | C49: =IFERROR(IF(+'LPA Estimate of Hours'!C51=0,"",+'LPA Estimate of Hours'!C51),) ->  | D49: =IFERROR(IF(+'LPA Estimate of Hours'!D51=0,"",+'LPA Estimate of Hours'!D51),) ->  | E49: =IFERROR(IF(+'LPA Estimate of Hours'!E51=0,"",+'LPA Estimate of Hours'!E51),) ->  | F49: =IFERROR(IF(+'LPA Estimate of Hours'!F51=0,"",+'LPA Estimate of Hours'!F51),) ->  | G49: =IFERROR(IF(+'LPA Estimate of Hours'!G51=0,"",+'LPA Estimate of Hours'!G51),) ->  | H49: =IFERROR(IF(+'LPA Estimate of Hours'!H51=0,"",+'LPA Estimate of Hours'!H51),) ->  | I49: =IFERROR(IF(+'LPA Estimate of Hours'!I51=0,"",+'LPA Estimate of Hours'!I51),) ->  | J49: =IFERROR(IF(+'LPA Estimate of Hours'!J51=0,"",+'LPA Estimate of Hours'!J51),) ->  | K49: =IFERROR(IF(+'LPA Estimate of Hours'!K51=0,"",+'LPA Estimate of Hours'!K51),) ->  | L49: =IFERROR(IF(+'LPA Estimate of Hours'!L51=0,"",+'LPA Estimate of Hours'!L51),) ->  | M49: =IFERROR(IF(+'LPA Estimate of Hours'!M51=0,"",+'LPA Estimate of Hours'!M51),) ->  | N49: =IFERROR(IF(+'LPA Estimate of Hours'!N51=0,"",+'LPA Estimate of Hours'!N51),) ->  | O49: =IFERROR(IF(+'LPA Estimate of Hours'!O51=0,"",+'LPA Estimate of Hours'!O51),) ->  | P49: =IFERROR(IF(+'LPA Estimate of Hours'!P51=0,"",+'LPA Estimate of Hours'!P51),) ->  | Q49: =IFERROR(IF(+'LPA Estimate of Hours'!Q51=0,"",+'LPA Estimate of Hours'!Q51),) ->  | R49: =IFERROR(IF(+'LPA Estimate of Hours'!R51=0,"",+'LPA Estimate of Hours'!R51),) ->  | S49: =IFERROR(IF(+'LPA Estimate of Hours'!S51=0,"",+'LPA Estimate of Hours'!S51),) ->  | T49: =IFERROR(IF(+'LPA Estimate of Hours'!T51=0,"",+'LPA Estimate of Hours'!T51),) ->  | U49: =IFERROR(IF(+'LPA Estimate of Hours'!U51=0,"",+'LPA Estimate of Hours'!U51),) ->  | V49: =IFERROR(IF(+'LPA Estimate of Hours'!V51=0,"",+'LPA Estimate of Hours'!V51),) ->  | W49: =IFERROR(IF(+'LPA Estimate of Hours'!W51=0,"",+'LPA Estimate of Hours'!W51),) ->  | X49: =IFERROR(IF(+'LPA Estimate of Hours'!X51=0,"",+'LPA Estimate of Hours'!X51),) ->  | Y49: =IFERROR(IF(+'LPA Estimate of Hours'!Y51=0,"",+'LPA Estimate of Hours'!Y51),) ->  | Z49: =IFERROR(IF(+'LPA Estimate of Hours'!Z51=0,"",+'LPA Estimate of Hours'!Z51),) ->  | AA49: =IFERROR(IF(+'LPA Estimate of Hours'!AA51=0,"",+'LPA Estimate of Hours'!AA51),) ->  | AB49: =IFERROR(IF(+'LPA Estimate of Hours'!AB51=0,"",+'LPA Estimate of Hours'!AB51),) ->  | AC49: =IFERROR(IF(+'LPA Estimate of Hours'!AC51=0,"",+'LPA Estimate of Hours'!AC51),) ->  | AD49: =IFERROR(IF(+'LPA Estimate of Hours'!AD51=0,"",+'LPA Estimate of Hours'!AD51),) ->  | AE49: =IFERROR(IF(+'LPA Estimate of Hours'!AE51=0,"",+'LPA Estimate of Hours'!AE51),) ->  | AF49: =IFERROR(IF(+'LPA Estimate of Hours'!AF51=0,"",+'LPA Estimate of Hours'!AF51),) ->  | AG49: =IFERROR(IF(+'LPA Estimate of Hours'!AG51=0,"",+'LPA Estimate of Hours'!AG51),) ->  | AH49: =IFERROR(IF(+'LPA Estimate of Hours'!AH51=0,"",+'LPA Estimate of Hours'!AH51),) ->  | AI49: =IFERROR(IF(+'LPA Estimate of Hours'!AI51=0,"",+'LPA Estimate of Hours'!AI51),) ->  | AJ49: =IFERROR(IF(+'LPA Estimate of Hours'!AJ51=0,"",+'LPA Estimate of Hours'!AJ51),) ->  | AK49: =IFERROR(IF(+'LPA Estimate of Hours'!AK51=0,"",+'LPA Estimate of Hours'!AK51),) ->  | AL49: =IFERROR(IF(+'LPA Estimate of Hours'!AL51=0,"",+'LPA Estimate of Hours'!AL51),) ->  | AM49: =IFERROR(IF(+'LPA Estimate of Hours'!AM51=0,"",+'LPA Estimate of Hours'!AM51),) ->  | AN49: =IFERROR(IF(+'LPA Estimate of Hours'!AN51=0,"",+'LPA Estimate of Hours'!AN51),) ->  | AO49: =IFERROR(IF(+'LPA Estimate of Hours'!AO51=0,"",+'LPA Estimate of Hours'!AO51),) ->  | AP49: =IFERROR(IF(+'LPA Estimate of Hours'!AP51=0,"",+'LPA Estimate of Hours'!AP51),) ->  | AQ49: =IFERROR(IF(+'LPA Estimate of Hours'!AQ51=0,"",+'LPA Estimate of Hours'!AQ51),) ->  | AR49: =IFERROR(IF(+'LPA Estimate of Hours'!AR51=0,"",+'LPA Estimate of Hours'!AR51),) ->  | AS49: =IFERROR(IF(+'LPA Estimate of Hours'!AS51=0,"",+'LPA Estimate of Hours'!AS51),) ->  | AT49: =IFERROR(IF(+'LPA Estimate of Hours'!AT51=0,"",+'LPA Estimate of Hours'!AT51),) ->  | AU49: =IFERROR(IF(+'LPA Estimate of Hours'!AU51=0,"",+'LPA Estimate of Hours'!AU51),) ->  | AV49: =IFERROR(IF(+'LPA Estimate of Hours'!AV51=0,"",+'LPA Estimate of Hours'!AV51),) ->  | AW49: =IFERROR(IF(+'LPA Estimate of Hours'!AW51=0,"",+'LPA Estimate of Hours'!AW51),) ->  | AX49: =IFERROR(IF(+'LPA Estimate of Hours'!AX51=0,"",+'LPA Estimate of Hours'!AX51),) ->  | AY49: =IFERROR(IF(+'LPA Estimate of Hours'!AY51=0,"",+'LPA Estimate of Hours'!AY51),) ->  | AZ49: 0
A50: =IFERROR(IF(+'LPA Estimate of Hours'!A52<>0,'LPA Estimate of Hours'!A52),"Row Deleted") -> Reserve | B50: =IFERROR(IF(+'LPA Estimate of Hours'!B52=0,"",+'LPA Estimate of Hours'!B52),) ->  | C50: =IFERROR(IF(+'LPA Estimate of Hours'!C52=0,"",+'LPA Estimate of Hours'!C52),) ->  | D50: =IFERROR(IF(+'LPA Estimate of Hours'!D52=0,"",+'LPA Estimate of Hours'!D52),) ->  | E50: =IFERROR(IF(+'LPA Estimate of Hours'!E52=0,"",+'LPA Estimate of Hours'!E52),) ->  | F50: =IFERROR(IF(+'LPA Estimate of Hours'!F52=0,"",+'LPA Estimate of Hours'!F52),) ->  | G50: =IFERROR(IF(+'LPA Estimate of Hours'!G52=0,"",+'LPA Estimate of Hours'!G52),) ->  | H50: =IFERROR(IF(+'LPA Estimate of Hours'!H52=0,"",+'LPA Estimate of Hours'!H52),) ->  | I50: =IFERROR(IF(+'LPA Estimate of Hours'!I52=0,"",+'LPA Estimate of Hours'!I52),) ->  | J50: =IFERROR(IF(+'LPA Estimate of Hours'!J52=0,"",+'LPA Estimate of Hours'!J52),) ->  | K50: =IFERROR(IF(+'LPA Estimate of Hours'!K52=0,"",+'LPA Estimate of Hours'!K52),) ->  | L50: =IFERROR(IF(+'LPA Estimate of Hours'!L52=0,"",+'LPA Estimate of Hours'!L52),) ->  | M50: =IFERROR(IF(+'LPA Estimate of Hours'!M52=0,"",+'LPA Estimate of Hours'!M52),) ->  | N50: =IFERROR(IF(+'LPA Estimate of Hours'!N52=0,"",+'LPA Estimate of Hours'!N52),) ->  | O50: =IFERROR(IF(+'LPA Estimate of Hours'!O52=0,"",+'LPA Estimate of Hours'!O52),) ->  | P50: =IFERROR(IF(+'LPA Estimate of Hours'!P52=0,"",+'LPA Estimate of Hours'!P52),) ->  | Q50: =IFERROR(IF(+'LPA Estimate of Hours'!Q52=0,"",+'LPA Estimate of Hours'!Q52),) ->  | R50: =IFERROR(IF(+'LPA Estimate of Hours'!R52=0,"",+'LPA Estimate of Hours'!R52),) ->  | S50: =IFERROR(IF(+'LPA Estimate of Hours'!S52=0,"",+'LPA Estimate of Hours'!S52),) ->  | T50: =IFERROR(IF(+'LPA Estimate of Hours'!T52=0,"",+'LPA Estimate of Hours'!T52),) ->  | U50: =IFERROR(IF(+'LPA Estimate of Hours'!U52=0,"",+'LPA Estimate of Hours'!U52),) ->  | V50: =IFERROR(IF(+'LPA Estimate of Hours'!V52=0,"",+'LPA Estimate of Hours'!V52),) ->  | W50: =IFERROR(IF(+'LPA Estimate of Hours'!W52=0,"",+'LPA Estimate of Hours'!W52),) ->  | X50: =IFERROR(IF(+'LPA Estimate of Hours'!X52=0,"",+'LPA Estimate of Hours'!X52),) ->  | Y50: =IFERROR(IF(+'LPA Estimate of Hours'!Y52=0,"",+'LPA Estimate of Hours'!Y52),) ->  | Z50: =IFERROR(IF(+'LPA Estimate of Hours'!Z52=0,"",+'LPA Estimate of Hours'!Z52),) ->  | AA50: =IFERROR(IF(+'LPA Estimate of Hours'!AA52=0,"",+'LPA Estimate of Hours'!AA52),) ->  | AB50: =IFERROR(IF(+'LPA Estimate of Hours'!AB52=0,"",+'LPA Estimate of Hours'!AB52),) ->  | AC50: =IFERROR(IF(+'LPA Estimate of Hours'!AC52=0,"",+'LPA Estimate of Hours'!AC52),) ->  | AD50: =IFERROR(IF(+'LPA Estimate of Hours'!AD52=0,"",+'LPA Estimate of Hours'!AD52),) ->  | AE50: =IFERROR(IF(+'LPA Estimate of Hours'!AE52=0,"",+'LPA Estimate of Hours'!AE52),) ->  | AF50: =IFERROR(IF(+'LPA Estimate of Hours'!AF52=0,"",+'LPA Estimate of Hours'!AF52),) ->  | AG50: =IFERROR(IF(+'LPA Estimate of Hours'!AG52=0,"",+'LPA Estimate of Hours'!AG52),) ->  | AH50: =IFERROR(IF(+'LPA Estimate of Hours'!AH52=0,"",+'LPA Estimate of Hours'!AH52),) ->  | AI50: =IFERROR(IF(+'LPA Estimate of Hours'!AI52=0,"",+'LPA Estimate of Hours'!AI52),) ->  | AJ50: =IFERROR(IF(+'LPA Estimate of Hours'!AJ52=0,"",+'LPA Estimate of Hours'!AJ52),) ->  | AK50: =IFERROR(IF(+'LPA Estimate of Hours'!AK52=0,"",+'LPA Estimate of Hours'!AK52),) ->  | AL50: =IFERROR(IF(+'LPA Estimate of Hours'!AL52=0,"",+'LPA Estimate of Hours'!AL52),) ->  | AM50: =IFERROR(IF(+'LPA Estimate of Hours'!AM52=0,"",+'LPA Estimate of Hours'!AM52),) ->  | AN50: =IFERROR(IF(+'LPA Estimate of Hours'!AN52=0,"",+'LPA Estimate of Hours'!AN52),) ->  | AO50: =IFERROR(IF(+'LPA Estimate of Hours'!AO52=0,"",+'LPA Estimate of Hours'!AO52),) ->  | AP50: =IFERROR(IF(+'LPA Estimate of Hours'!AP52=0,"",+'LPA Estimate of Hours'!AP52),) ->  | AQ50: =IFERROR(IF(+'LPA Estimate of Hours'!AQ52=0,"",+'LPA Estimate of Hours'!AQ52),) ->  | AR50: =IFERROR(IF(+'LPA Estimate of Hours'!AR52=0,"",+'LPA Estimate of Hours'!AR52),) ->  | AS50: =IFERROR(IF(+'LPA Estimate of Hours'!AS52=0,"",+'LPA Estimate of Hours'!AS52),) ->  | AT50: =IFERROR(IF(+'LPA Estimate of Hours'!AT52=0,"",+'LPA Estimate of Hours'!AT52),) ->  | AU50: =IFERROR(IF(+'LPA Estimate of Hours'!AU52=0,"",+'LPA Estimate of Hours'!AU52),) ->  | AV50: =IFERROR(IF(+'LPA Estimate of Hours'!AV52=0,"",+'LPA Estimate of Hours'!AV52),) ->  | AW50: =IFERROR(IF(+'LPA Estimate of Hours'!AW52=0,"",+'LPA Estimate of Hours'!AW52),) ->  | AX50: =IFERROR(IF(+'LPA Estimate of Hours'!AX52=0,"",+'LPA Estimate of Hours'!AX52),) ->  | AY50: =IFERROR(IF(+'LPA Estimate of Hours'!AY52=0,"",+'LPA Estimate of Hours'!AY52),) ->  | AZ50: 0
A51: =IFERROR(IF(+'LPA Estimate of Hours'!A53<>0,'LPA Estimate of Hours'!A53),"Row Deleted") -> Reserve | B51: =IFERROR(IF(+'LPA Estimate of Hours'!B53=0,"",+'LPA Estimate of Hours'!B53),) ->  | C51: =IFERROR(IF(+'LPA Estimate of Hours'!C53=0,"",+'LPA Estimate of Hours'!C53),) ->  | D51: =IFERROR(IF(+'LPA Estimate of Hours'!D53=0,"",+'LPA Estimate of Hours'!D53),) ->  | E51: =IFERROR(IF(+'LPA Estimate of Hours'!E53=0,"",+'LPA Estimate of Hours'!E53),) ->  | F51: =IFERROR(IF(+'LPA Estimate of Hours'!F53=0,"",+'LPA Estimate of Hours'!F53),) ->  | G51: =IFERROR(IF(+'LPA Estimate of Hours'!G53=0,"",+'LPA Estimate of Hours'!G53),) ->  | H51: =IFERROR(IF(+'LPA Estimate of Hours'!H53=0,"",+'LPA Estimate of Hours'!H53),) ->  | I51: =IFERROR(IF(+'LPA Estimate of Hours'!I53=0,"",+'LPA Estimate of Hours'!I53),) ->  | J51: =IFERROR(IF(+'LPA Estimate of Hours'!J53=0,"",+'LPA Estimate of Hours'!J53),) ->  | K51: =IFERROR(IF(+'LPA Estimate of Hours'!K53=0,"",+'LPA Estimate of Hours'!K53),) ->  | L51: =IFERROR(IF(+'LPA Estimate of Hours'!L53=0,"",+'LPA Estimate of Hours'!L53),) ->  | M51: =IFERROR(IF(+'LPA Estimate of Hours'!M53=0,"",+'LPA Estimate of Hours'!M53),) ->  | N51: =IFERROR(IF(+'LPA Estimate of Hours'!N53=0,"",+'LPA Estimate of Hours'!N53),) ->  | O51: =IFERROR(IF(+'LPA Estimate of Hours'!O53=0,"",+'LPA Estimate of Hours'!O53),) ->  | P51: =IFERROR(IF(+'LPA Estimate of Hours'!P53=0,"",+'LPA Estimate of Hours'!P53),) ->  | Q51: =IFERROR(IF(+'LPA Estimate of Hours'!Q53=0,"",+'LPA Estimate of Hours'!Q53),) ->  | R51: =IFERROR(IF(+'LPA Estimate of Hours'!R53=0,"",+'LPA Estimate of Hours'!R53),) ->  | S51: =IFERROR(IF(+'LPA Estimate of Hours'!S53=0,"",+'LPA Estimate of Hours'!S53),) ->  | T51: =IFERROR(IF(+'LPA Estimate of Hours'!T53=0,"",+'LPA Estimate of Hours'!T53),) ->  | U51: =IFERROR(IF(+'LPA Estimate of Hours'!U53=0,"",+'LPA Estimate of Hours'!U53),) ->  | V51: =IFERROR(IF(+'LPA Estimate of Hours'!V53=0,"",+'LPA Estimate of Hours'!V53),) ->  | W51: =IFERROR(IF(+'LPA Estimate of Hours'!W53=0,"",+'LPA Estimate of Hours'!W53),) ->  | X51: =IFERROR(IF(+'LPA Estimate of Hours'!X53=0,"",+'LPA Estimate of Hours'!X53),) ->  | Y51: =IFERROR(IF(+'LPA Estimate of Hours'!Y53=0,"",+'LPA Estimate of Hours'!Y53),) ->  | Z51: =IFERROR(IF(+'LPA Estimate of Hours'!Z53=0,"",+'LPA Estimate of Hours'!Z53),) ->  | AA51: =IFERROR(IF(+'LPA Estimate of Hours'!AA53=0,"",+'LPA Estimate of Hours'!AA53),) ->  | AB51: =IFERROR(IF(+'LPA Estimate of Hours'!AB53=0,"",+'LPA Estimate of Hours'!AB53),) ->  | AC51: =IFERROR(IF(+'LPA Estimate of Hours'!AC53=0,"",+'LPA Estimate of Hours'!AC53),) ->  | AD51: =IFERROR(IF(+'LPA Estimate of Hours'!AD53=0,"",+'LPA Estimate of Hours'!AD53),) ->  | AE51: =IFERROR(IF(+'LPA Estimate of Hours'!AE53=0,"",+'LPA Estimate of Hours'!AE53),) ->  | AF51: =IFERROR(IF(+'LPA Estimate of Hours'!AF53=0,"",+'LPA Estimate of Hours'!AF53),) ->  | AG51: =IFERROR(IF(+'LPA Estimate of Hours'!AG53=0,"",+'LPA Estimate of Hours'!AG53),) ->  | AH51: =IFERROR(IF(+'LPA Estimate of Hours'!AH53=0,"",+'LPA Estimate of Hours'!AH53),) ->  | AI51: =IFERROR(IF(+'LPA Estimate of Hours'!AI53=0,"",+'LPA Estimate of Hours'!AI53),) ->  | AJ51: =IFERROR(IF(+'LPA Estimate of Hours'!AJ53=0,"",+'LPA Estimate of Hours'!AJ53),) ->  | AK51: =IFERROR(IF(+'LPA Estimate of Hours'!AK53=0,"",+'LPA Estimate of Hours'!AK53),) ->  | AL51: =IFERROR(IF(+'LPA Estimate of Hours'!AL53=0,"",+'LPA Estimate of Hours'!AL53),) ->  | AM51: =IFERROR(IF(+'LPA Estimate of Hours'!AM53=0,"",+'LPA Estimate of Hours'!AM53),) ->  | AN51: =IFERROR(IF(+'LPA Estimate of Hours'!AN53=0,"",+'LPA Estimate of Hours'!AN53),) ->  | AO51: =IFERROR(IF(+'LPA Estimate of Hours'!AO53=0,"",+'LPA Estimate of Hours'!AO53),) ->  | AP51: =IFERROR(IF(+'LPA Estimate of Hours'!AP53=0,"",+'LPA Estimate of Hours'!AP53),) ->  | AQ51: =IFERROR(IF(+'LPA Estimate of Hours'!AQ53=0,"",+'LPA Estimate of Hours'!AQ53),) ->  | AR51: =IFERROR(IF(+'LPA Estimate of Hours'!AR53=0,"",+'LPA Estimate of Hours'!AR53),) ->  | AS51: =IFERROR(IF(+'LPA Estimate of Hours'!AS53=0,"",+'LPA Estimate of Hours'!AS53),) ->  | AT51: =IFERROR(IF(+'LPA Estimate of Hours'!AT53=0,"",+'LPA Estimate of Hours'!AT53),) ->  | AU51: =IFERROR(IF(+'LPA Estimate of Hours'!AU53=0,"",+'LPA Estimate of Hours'!AU53),) ->  | AV51: =IFERROR(IF(+'LPA Estimate of Hours'!AV53=0,"",+'LPA Estimate of Hours'!AV53),) ->  | AW51: =IFERROR(IF(+'LPA Estimate of Hours'!AW53=0,"",+'LPA Estimate of Hours'!AW53),) ->  | AX51: =IFERROR(IF(+'LPA Estimate of Hours'!AX53=0,"",+'LPA Estimate of Hours'!AX53),) ->  | AY51: =IFERROR(IF(+'LPA Estimate of Hours'!AY53=0,"",+'LPA Estimate of Hours'!AY53),) ->  | AZ51: 0
A52: =IFERROR(IF(+'LPA Estimate of Hours'!A54<>0,'LPA Estimate of Hours'!A54),"Row Deleted") -> Reserve | B52: =IFERROR(IF(+'LPA Estimate of Hours'!B54=0,"",+'LPA Estimate of Hours'!B54),) ->  | C52: =IFERROR(IF(+'LPA Estimate of Hours'!C54=0,"",+'LPA Estimate of Hours'!C54),) ->  | D52: =IFERROR(IF(+'LPA Estimate of Hours'!D54=0,"",+'LPA Estimate of Hours'!D54),) ->  | E52: =IFERROR(IF(+'LPA Estimate of Hours'!E54=0,"",+'LPA Estimate of Hours'!E54),) ->  | F52: =IFERROR(IF(+'LPA Estimate of Hours'!F54=0,"",+'LPA Estimate of Hours'!F54),) ->  | G52: =IFERROR(IF(+'LPA Estimate of Hours'!G54=0,"",+'LPA Estimate of Hours'!G54),) ->  | H52: =IFERROR(IF(+'LPA Estimate of Hours'!H54=0,"",+'LPA Estimate of Hours'!H54),) ->  | I52: =IFERROR(IF(+'LPA Estimate of Hours'!I54=0,"",+'LPA Estimate of Hours'!I54),) ->  | J52: =IFERROR(IF(+'LPA Estimate of Hours'!J54=0,"",+'LPA Estimate of Hours'!J54),) ->  | K52: =IFERROR(IF(+'LPA Estimate of Hours'!K54=0,"",+'LPA Estimate of Hours'!K54),) ->  | L52: =IFERROR(IF(+'LPA Estimate of Hours'!L54=0,"",+'LPA Estimate of Hours'!L54),) ->  | M52: =IFERROR(IF(+'LPA Estimate of Hours'!M54=0,"",+'LPA Estimate of Hours'!M54),) ->  | N52: =IFERROR(IF(+'LPA Estimate of Hours'!N54=0,"",+'LPA Estimate of Hours'!N54),) ->  | O52: =IFERROR(IF(+'LPA Estimate of Hours'!O54=0,"",+'LPA Estimate of Hours'!O54),) ->  | P52: =IFERROR(IF(+'LPA Estimate of Hours'!P54=0,"",+'LPA Estimate of Hours'!P54),) ->  | Q52: =IFERROR(IF(+'LPA Estimate of Hours'!Q54=0,"",+'LPA Estimate of Hours'!Q54),) ->  | R52: =IFERROR(IF(+'LPA Estimate of Hours'!R54=0,"",+'LPA Estimate of Hours'!R54),) ->  | S52: =IFERROR(IF(+'LPA Estimate of Hours'!S54=0,"",+'LPA Estimate of Hours'!S54),) ->  | T52: =IFERROR(IF(+'LPA Estimate of Hours'!T54=0,"",+'LPA Estimate of Hours'!T54),) ->  | U52: =IFERROR(IF(+'LPA Estimate of Hours'!U54=0,"",+'LPA Estimate of Hours'!U54),) ->  | V52: =IFERROR(IF(+'LPA Estimate of Hours'!V54=0,"",+'LPA Estimate of Hours'!V54),) ->  | W52: =IFERROR(IF(+'LPA Estimate of Hours'!W54=0,"",+'LPA Estimate of Hours'!W54),) ->  | X52: =IFERROR(IF(+'LPA Estimate of Hours'!X54=0,"",+'LPA Estimate of Hours'!X54),) ->  | Y52: =IFERROR(IF(+'LPA Estimate of Hours'!Y54=0,"",+'LPA Estimate of Hours'!Y54),) ->  | Z52: =IFERROR(IF(+'LPA Estimate of Hours'!Z54=0,"",+'LPA Estimate of Hours'!Z54),) ->  | AA52: =IFERROR(IF(+'LPA Estimate of Hours'!AA54=0,"",+'LPA Estimate of Hours'!AA54),) ->  | AB52: =IFERROR(IF(+'LPA Estimate of Hours'!AB54=0,"",+'LPA Estimate of Hours'!AB54),) ->  | AC52: =IFERROR(IF(+'LPA Estimate of Hours'!AC54=0,"",+'LPA Estimate of Hours'!AC54),) ->  | AD52: =IFERROR(IF(+'LPA Estimate of Hours'!AD54=0,"",+'LPA Estimate of Hours'!AD54),) ->  | AE52: =IFERROR(IF(+'LPA Estimate of Hours'!AE54=0,"",+'LPA Estimate of Hours'!AE54),) ->  | AF52: =IFERROR(IF(+'LPA Estimate of Hours'!AF54=0,"",+'LPA Estimate of Hours'!AF54),) ->  | AG52: =IFERROR(IF(+'LPA Estimate of Hours'!AG54=0,"",+'LPA Estimate of Hours'!AG54),) ->  | AH52: =IFERROR(IF(+'LPA Estimate of Hours'!AH54=0,"",+'LPA Estimate of Hours'!AH54),) ->  | AI52: =IFERROR(IF(+'LPA Estimate of Hours'!AI54=0,"",+'LPA Estimate of Hours'!AI54),) ->  | AJ52: =IFERROR(IF(+'LPA Estimate of Hours'!AJ54=0,"",+'LPA Estimate of Hours'!AJ54),) ->  | AK52: =IFERROR(IF(+'LPA Estimate of Hours'!AK54=0,"",+'LPA Estimate of Hours'!AK54),) ->  | AL52: =IFERROR(IF(+'LPA Estimate of Hours'!AL54=0,"",+'LPA Estimate of Hours'!AL54),) ->  | AM52: =IFERROR(IF(+'LPA Estimate of Hours'!AM54=0,"",+'LPA Estimate of Hours'!AM54),) ->  | AN52: =IFERROR(IF(+'LPA Estimate of Hours'!AN54=0,"",+'LPA Estimate of Hours'!AN54),) ->  | AO52: =IFERROR(IF(+'LPA Estimate of Hours'!AO54=0,"",+'LPA Estimate of Hours'!AO54),) ->  | AP52: =IFERROR(IF(+'LPA Estimate of Hours'!AP54=0,"",+'LPA Estimate of Hours'!AP54),) ->  | AQ52: =IFERROR(IF(+'LPA Estimate of Hours'!AQ54=0,"",+'LPA Estimate of Hours'!AQ54),) ->  | AR52: =IFERROR(IF(+'LPA Estimate of Hours'!AR54=0,"",+'LPA Estimate of Hours'!AR54),) ->  | AS52: =IFERROR(IF(+'LPA Estimate of Hours'!AS54=0,"",+'LPA Estimate of Hours'!AS54),) ->  | AT52: =IFERROR(IF(+'LPA Estimate of Hours'!AT54=0,"",+'LPA Estimate of Hours'!AT54),) ->  | AU52: =IFERROR(IF(+'LPA Estimate of Hours'!AU54=0,"",+'LPA Estimate of Hours'!AU54),) ->  | AV52: =IFERROR(IF(+'LPA Estimate of Hours'!AV54=0,"",+'LPA Estimate of Hours'!AV54),) ->  | AW52: =IFERROR(IF(+'LPA Estimate of Hours'!AW54=0,"",+'LPA Estimate of Hours'!AW54),) ->  | AX52: =IFERROR(IF(+'LPA Estimate of Hours'!AX54=0,"",+'LPA Estimate of Hours'!AX54),) ->  | AY52: =IFERROR(IF(+'LPA Estimate of Hours'!AY54=0,"",+'LPA Estimate of Hours'!AY54),) ->  | AZ52: 0
A53: =+'LPA Estimate of Hours'!A55 -> 3. Roadway Design | B53: =+'LPA Estimate of Hours'!B55 -> 0 | C53: =+'LPA Estimate of Hours'!C55 -> 0 | D53: =+'LPA Estimate of Hours'!D55 -> 0 | E53: =+'LPA Estimate of Hours'!E55 -> 0 | F53: =+'LPA Estimate of Hours'!F55 -> 0 | G53: =+'LPA Estimate of Hours'!G55 -> 0 | H53: =+'LPA Estimate of Hours'!H55 -> 0 | I53: =+'LPA Estimate of Hours'!I55 -> 0 | J53: =+'LPA Estimate of Hours'!J55 -> 0 | K53: =+'LPA Estimate of Hours'!K55 -> 0 | L53: =+'LPA Estimate of Hours'!L55 -> 0 | M53: =+'LPA Estimate of Hours'!M55 -> 0 | N53: =+'LPA Estimate of Hours'!N55 -> 0 | O53: =+'LPA Estimate of Hours'!O55 -> 0 | P53: =+'LPA Estimate of Hours'!P55 -> 0 | Q53: =+'LPA Estimate of Hours'!Q55 -> 0 | R53: =+'LPA Estimate of Hours'!R55 -> 0 | S53: =+'LPA Estimate of Hours'!S55 -> 0 | T53: =+'LPA Estimate of Hours'!T55 -> 0 | U53: =+'LPA Estimate of Hours'!U55 -> 0 | V53: =+'LPA Estimate of Hours'!V55 -> 0 | W53: =+'LPA Estimate of Hours'!W55 -> 0 | X53: =+'LPA Estimate of Hours'!X55 -> 0 | Y53: =+'LPA Estimate of Hours'!Y55 -> 0 | Z53: =+'LPA Estimate of Hours'!Z55 -> 0 | AA53: =+'LPA Estimate of Hours'!AA55 -> 0 | AB53: =+'LPA Estimate of Hours'!AB55 -> 0 | AC53: =+'LPA Estimate of Hours'!AC55 -> 0 | AD53: =+'LPA Estimate of Hours'!AD55 -> 0 | AE53: =+'LPA Estimate of Hours'!AE55 -> 0 | AF53: =+'LPA Estimate of Hours'!AF55 -> 0 | AG53: =+'LPA Estimate of Hours'!AG55 -> 0 | AH53: =+'LPA Estimate of Hours'!AH55 -> 0 | AI53: =+'LPA Estimate of Hours'!AI55 -> 0 | AJ53: =+'LPA Estimate of Hours'!AJ55 -> 0 | AK53: =+'LPA Estimate of Hours'!AK55 -> 0 | AL53: =+'LPA Estimate of Hours'!AL55 -> 0 | AM53: =+'LPA Estimate of Hours'!AM55 -> 0 | AN53: =+'LPA Estimate of Hours'!AN55 -> 0 | AO53: =+'LPA Estimate of Hours'!AO55 -> 0 | AP53: =+'LPA Estimate of Hours'!AP55 -> 0 | AQ53: =+'LPA Estimate of Hours'!AQ55 -> 0 | AR53: =+'LPA Estimate of Hours'!AR55 -> 0 | AS53: =+'LPA Estimate of Hours'!AS55 -> 0 | AT53: =+'LPA Estimate of Hours'!AT55 -> 0 | AU53: =+'LPA Estimate of Hours'!AU55 -> 0 | AV53: =+'LPA Estimate of Hours'!AV55 -> 0 | AW53: =+'LPA Estimate of Hours'!AW55 -> 0 | AX53: =+'LPA Estimate of Hours'!AX55 -> 0 | AY53: =+'LPA Estimate of Hours'!AY55 -> 0 | AZ53: =SUM(B53:AY53) -> 0 | BB53: =+A53 -> 3. Roadway Design | BC53: =+B$15 ->  | BD53: =+C$15 ->  | BE53: =+D$15 ->  | BF53: =+E$15 ->  | BG53: =+F$15 ->  | BH53: =+G$15 ->  | BI53: =+H$15 ->  | BJ53: =+I$15 ->  | BK53: =+J$15 ->  | BL53: =+K$15 ->  | BM53: =+L$15 ->  | BN53: =+M$15 ->  | BO53: =+N$15 ->  | BP53: =+O$15 ->  | BQ53: =+P$15 ->  | BR53: =+Q$15 ->  | BS53: =+R$15 ->  | BT53: =+S$15 ->  | BU53: =+T$15 ->  | BV53: =+U$15 ->  | BW53: =+V$15 ->  | BX53: =+W$15 ->  | BY53: =+X$15 ->  | BZ53: =+Y$15 ->  | CA53: =+Z$15 ->  | CB53: =+AA$15 ->  | CC53: =+AB$15 ->  | CD53: =+AC$15 ->  | CE53: =+AD$15 ->  | CF53: =+AE$15 ->  | CG53: =+AF$15 ->  | CH53: =+AG$15 ->  | CI53: =+AH$15 ->  | CJ53: =+AI$15 ->  | CK53: =+AJ$15 ->  | CL53: =+AK$15 ->  | CM53: =+AL$15 ->  | CN53: =+AM$15 ->  | CO53: =+AN$15 ->  | CP53: =+AO$15 ->  | CQ53: =+AP$15 ->  | CR53: =+AQ$15 ->  | CS53: =+AR$15 ->  | CT53: =+AS$15 ->  | CU53: =+AT$15 ->  | CV53: =+AU$15 ->  | CW53: =+AV$15 ->  | CX53: =+AW$15 ->  | CY53: =+AX$15 ->  | CZ53: =+AY$15 ->  | DA53: =+AZ$15 -> Total
A54: =IFERROR(IF(+'LPA Estimate of Hours'!A56<>0,'LPA Estimate of Hours'!A56),"Row Deleted") -> Construction Phasing | B54: =IFERROR(IF(+'LPA Estimate of Hours'!B56=0,"",+'LPA Estimate of Hours'!B56),) ->  | C54: =IFERROR(IF(+'LPA Estimate of Hours'!C56=0,"",+'LPA Estimate of Hours'!C56),) ->  | D54: =IFERROR(IF(+'LPA Estimate of Hours'!D56=0,"",+'LPA Estimate of Hours'!D56),) ->  | E54: =IFERROR(IF(+'LPA Estimate of Hours'!E56=0,"",+'LPA Estimate of Hours'!E56),) ->  | F54: =IFERROR(IF(+'LPA Estimate of Hours'!F56=0,"",+'LPA Estimate of Hours'!F56),) ->  | G54: =IFERROR(IF(+'LPA Estimate of Hours'!G56=0,"",+'LPA Estimate of Hours'!G56),) ->  | H54: =IFERROR(IF(+'LPA Estimate of Hours'!H56=0,"",+'LPA Estimate of Hours'!H56),) ->  | I54: =IFERROR(IF(+'LPA Estimate of Hours'!I56=0,"",+'LPA Estimate of Hours'!I56),) ->  | J54: =IFERROR(IF(+'LPA Estimate of Hours'!J56=0,"",+'LPA Estimate of Hours'!J56),) ->  | K54: =IFERROR(IF(+'LPA Estimate of Hours'!K56=0,"",+'LPA Estimate of Hours'!K56),) ->  | L54: =IFERROR(IF(+'LPA Estimate of Hours'!L56=0,"",+'LPA Estimate of Hours'!L56),) ->  | M54: =IFERROR(IF(+'LPA Estimate of Hours'!M56=0,"",+'LPA Estimate of Hours'!M56),) ->  | N54: =IFERROR(IF(+'LPA Estimate of Hours'!N56=0,"",+'LPA Estimate of Hours'!N56),) ->  | O54: =IFERROR(IF(+'LPA Estimate of Hours'!O56=0,"",+'LPA Estimate of Hours'!O56),) ->  | P54: =IFERROR(IF(+'LPA Estimate of Hours'!P56=0,"",+'LPA Estimate of Hours'!P56),) ->  | Q54: =IFERROR(IF(+'LPA Estimate of Hours'!Q56=0,"",+'LPA Estimate of Hours'!Q56),) ->  | R54: =IFERROR(IF(+'LPA Estimate of Hours'!R56=0,"",+'LPA Estimate of Hours'!R56),) ->  | S54: =IFERROR(IF(+'LPA Estimate of Hours'!S56=0,"",+'LPA Estimate of Hours'!S56),) ->  | T54: =IFERROR(IF(+'LPA Estimate of Hours'!T56=0,"",+'LPA Estimate of Hours'!T56),) ->  | U54: =IFERROR(IF(+'LPA Estimate of Hours'!U56=0,"",+'LPA Estimate of Hours'!U56),) ->  | V54: =IFERROR(IF(+'LPA Estimate of Hours'!V56=0,"",+'LPA Estimate of Hours'!V56),) ->  | W54: =IFERROR(IF(+'LPA Estimate of Hours'!W56=0,"",+'LPA Estimate of Hours'!W56),) ->  | X54: =IFERROR(IF(+'LPA Estimate of Hours'!X56=0,"",+'LPA Estimate of Hours'!X56),) ->  | Y54: =IFERROR(IF(+'LPA Estimate of Hours'!Y56=0,"",+'LPA Estimate of Hours'!Y56),) ->  | Z54: =IFERROR(IF(+'LPA Estimate of Hours'!Z56=0,"",+'LPA Estimate of Hours'!Z56),) ->  | AA54: =IFERROR(IF(+'LPA Estimate of Hours'!AA56=0,"",+'LPA Estimate of Hours'!AA56),) ->  | AB54: =IFERROR(IF(+'LPA Estimate of Hours'!AB56=0,"",+'LPA Estimate of Hours'!AB56),) ->  | AC54: =IFERROR(IF(+'LPA Estimate of Hours'!AC56=0,"",+'LPA Estimate of Hours'!AC56),) ->  | AD54: =IFERROR(IF(+'LPA Estimate of Hours'!AD56=0,"",+'LPA Estimate of Hours'!AD56),) ->  | AE54: =IFERROR(IF(+'LPA Estimate of Hours'!AE56=0,"",+'LPA Estimate of Hours'!AE56),) ->  | AF54: =IFERROR(IF(+'LPA Estimate of Hours'!AF56=0,"",+'LPA Estimate of Hours'!AF56),) ->  | AG54: =IFERROR(IF(+'LPA Estimate of Hours'!AG56=0,"",+'LPA Estimate of Hours'!AG56),) ->  | AH54: =IFERROR(IF(+'LPA Estimate of Hours'!AH56=0,"",+'LPA Estimate of Hours'!AH56),) ->  | AI54: =IFERROR(IF(+'LPA Estimate of Hours'!AI56=0,"",+'LPA Estimate of Hours'!AI56),) ->  | AJ54: =IFERROR(IF(+'LPA Estimate of Hours'!AJ56=0,"",+'LPA Estimate of Hours'!AJ56),) ->  | AK54: =IFERROR(IF(+'LPA Estimate of Hours'!AK56=0,"",+'LPA Estimate of Hours'!AK56),) ->  | AL54: =IFERROR(IF(+'LPA Estimate of Hours'!AL56=0,"",+'LPA Estimate of Hours'!AL56),) ->  | AM54: =IFERROR(IF(+'LPA Estimate of Hours'!AM56=0,"",+'LPA Estimate of Hours'!AM56),) ->  | AN54: =IFERROR(IF(+'LPA Estimate of Hours'!AN56=0,"",+'LPA Estimate of Hours'!AN56),) ->  | AO54: =IFERROR(IF(+'LPA Estimate of Hours'!AO56=0,"",+'LPA Estimate of Hours'!AO56),) ->  | AP54: =IFERROR(IF(+'LPA Estimate of Hours'!AP56=0,"",+'LPA Estimate of Hours'!AP56),) ->  | AQ54: =IFERROR(IF(+'LPA Estimate of Hours'!AQ56=0,"",+'LPA Estimate of Hours'!AQ56),) ->  | AR54: =IFERROR(IF(+'LPA Estimate of Hours'!AR56=0,"",+'LPA Estimate of Hours'!AR56),) ->  | AS54: =IFERROR(IF(+'LPA Estimate of Hours'!AS56=0,"",+'LPA Estimate of Hours'!AS56),) ->  | AT54: =IFERROR(IF(+'LPA Estimate of Hours'!AT56=0,"",+'LPA Estimate of Hours'!AT56),) ->  | AU54: =IFERROR(IF(+'LPA Estimate of Hours'!AU56=0,"",+'LPA Estimate of Hours'!AU56),) ->  | AV54: =IFERROR(IF(+'LPA Estimate of Hours'!AV56=0,"",+'LPA Estimate of Hours'!AV56),) ->  | AW54: =IFERROR(IF(+'LPA Estimate of Hours'!AW56=0,"",+'LPA Estimate of Hours'!AW56),) ->  | AX54: =IFERROR(IF(+'LPA Estimate of Hours'!AX56=0,"",+'LPA Estimate of Hours'!AX56),) ->  | AY54: =IFERROR(IF(+'LPA Estimate of Hours'!AY56=0,"",+'LPA Estimate of Hours'!AY56),) ->  | AZ54: 0 | BB54: =SUM(BC54:DA54) -> 0 | BC54: =IF(BC53=" ",0,INDEX('Salary Range'!$C$3:$C$100,MATCH(BC53,'Salary Range'!$A$3:$A$100,0))*B53) -> 0 | BD54: =IF(BD53=" ",0,INDEX('Salary Range'!$C$3:$C$100,MATCH(BD53,'Salary Range'!$A$3:$A$100,0))*C53) -> 0 | BE54: =IF(BE53=" ",0,INDEX('Salary Range'!$C$3:$C$100,MATCH(BE53,'Salary Range'!$A$3:$A$100,0))*D53) -> 0 | BF54: =IF(BF53=" ",0,INDEX('Salary Range'!$C$3:$C$100,MATCH(BF53,'Salary Range'!$A$3:$A$100,0))*E53) -> 0 | BG54: =IF(BG53=" ",0,INDEX('Salary Range'!$C$3:$C$100,MATCH(BG53,'Salary Range'!$A$3:$A$100,0))*F53) -> 0 | BH54: =IF(BH53=" ",0,INDEX('Salary Range'!$C$3:$C$100,MATCH(BH53,'Salary Range'!$A$3:$A$100,0))*G53) -> 0 | BI54: =IF(BI53=" ",0,INDEX('Salary Range'!$C$3:$C$100,MATCH(BI53,'Salary Range'!$A$3:$A$100,0))*H53) -> 0 | BJ54: =IF(BJ53=" ",0,INDEX('Salary Range'!$C$3:$C$100,MATCH(BJ53,'Salary Range'!$A$3:$A$100,0))*I53) -> 0 | BK54: =IF(BK53=" ",0,INDEX('Salary Range'!$C$3:$C$100,MATCH(BK53,'Salary Range'!$A$3:$A$100,0))*J53) -> 0 | BL54: =IF(BL53=" ",0,INDEX('Salary Range'!$C$3:$C$100,MATCH(BL53,'Salary Range'!$A$3:$A$100,0))*K53) -> 0 | BM54: =IF(BM53=" ",0,INDEX('Salary Range'!$C$3:$C$100,MATCH(BM53,'Salary Range'!$A$3:$A$100,0))*L53) -> 0 | BN54: =IF(BN53=" ",0,INDEX('Salary Range'!$C$3:$C$100,MATCH(BN53,'Salary Range'!$A$3:$A$100,0))*M53) -> 0 | BO54: =IF(BO53=" ",0,INDEX('Salary Range'!$C$3:$C$100,MATCH(BO53,'Salary Range'!$A$3:$A$100,0))*N53) -> 0 | BP54: =IF(BP53=" ",0,INDEX('Salary Range'!$C$3:$C$100,MATCH(BP53,'Salary Range'!$A$3:$A$100,0))*O53) -> 0 | BQ54: =IF(BQ53=" ",0,INDEX('Salary Range'!$C$3:$C$100,MATCH(BQ53,'Salary Range'!$A$3:$A$100,0))*P53) -> 0 | BR54: =IF(BR53=" ",0,INDEX('Salary Range'!$C$3:$C$100,MATCH(BR53,'Salary Range'!$A$3:$A$100,0))*Q53) -> 0 | BS54: =IF(BS53=" ",0,INDEX('Salary Range'!$C$3:$C$100,MATCH(BS53,'Salary Range'!$A$3:$A$100,0))*R53) -> 0 | BT54: =IF(BT53=" ",0,INDEX('Salary Range'!$C$3:$C$100,MATCH(BT53,'Salary Range'!$A$3:$A$100,0))*S53) -> 0 | BU54: =IF(BU53=" ",0,INDEX('Salary Range'!$C$3:$C$100,MATCH(BU53,'Salary Range'!$A$3:$A$100,0))*T53) -> 0 | BV54: =IF(BV53=" ",0,INDEX('Salary Range'!$C$3:$C$100,MATCH(BV53,'Salary Range'!$A$3:$A$100,0))*U53) -> 0 | BW54: =IF(BW53=" ",0,INDEX('Salary Range'!$C$3:$C$100,MATCH(BW53,'Salary Range'!$A$3:$A$100,0))*V53) -> 0 | BX54: =IF(BX53=" ",0,INDEX('Salary Range'!$C$3:$C$100,MATCH(BX53,'Salary Range'!$A$3:$A$100,0))*W53) -> 0 | BY54: =IF(BY53=" ",0,INDEX('Salary Range'!$C$3:$C$100,MATCH(BY53,'Salary Range'!$A$3:$A$100,0))*X53) -> 0 | BZ54: =IF(BZ53=" ",0,INDEX('Salary Range'!$C$3:$C$100,MATCH(BZ53,'Salary Range'!$A$3:$A$100,0))*Y53) -> 0 | CA54: =IF(CA53=" ",0,INDEX('Salary Range'!$C$3:$C$100,MATCH(CA53,'Salary Range'!$A$3:$A$100,0))*Z53) -> 0 | CB54: =IF(CB53=" ",0,INDEX('Salary Range'!$C$3:$C$100,MATCH(CB53,'Salary Range'!$A$3:$A$100,0))*AA53) -> 0 | CC54: =IF(CC53=" ",0,INDEX('Salary Range'!$C$3:$C$100,MATCH(CC53,'Salary Range'!$A$3:$A$100,0))*AB53) -> 0 | CD54: =IF(CD53=" ",0,INDEX('Salary Range'!$C$3:$C$100,MATCH(CD53,'Salary Range'!$A$3:$A$100,0))*AC53) -> 0 | CE54: =IF(CE53=" ",0,INDEX('Salary Range'!$C$3:$C$100,MATCH(CE53,'Salary Range'!$A$3:$A$100,0))*AD53) -> 0 | CF54: =IF(CF53=" ",0,INDEX('Salary Range'!$C$3:$C$100,MATCH(CF53,'Salary Range'!$A$3:$A$100,0))*AE53) -> 0 | CG54: =IF(CG53=" ",0,INDEX('Salary Range'!$C$3:$C$100,MATCH(CG53,'Salary Range'!$A$3:$A$100,0))*AF53) -> 0 | CH54: =IF(CH53=" ",0,INDEX('Salary Range'!$C$3:$C$100,MATCH(CH53,'Salary Range'!$A$3:$A$100,0))*AG53) -> 0 | CI54: =IF(CI53=" ",0,INDEX('Salary Range'!$C$3:$C$100,MATCH(CI53,'Salary Range'!$A$3:$A$100,0))*AH53) -> 0 | CJ54: =IF(CJ53=" ",0,INDEX('Salary Range'!$C$3:$C$100,MATCH(CJ53,'Salary Range'!$A$3:$A$100,0))*AI53) -> 0 | CK54: =IF(CK53=" ",0,INDEX('Salary Range'!$C$3:$C$100,MATCH(CK53,'Salary Range'!$A$3:$A$100,0))*AJ53) -> 0 | CL54: =IF(CL53=" ",0,INDEX('Salary Range'!$C$3:$C$100,MATCH(CL53,'Salary Range'!$A$3:$A$100,0))*AK53) -> 0 | CM54: =IF(CM53=" ",0,INDEX('Salary Range'!$C$3:$C$100,MATCH(CM53,'Salary Range'!$A$3:$A$100,0))*AL53) -> 0 | CN54: =IF(CN53=" ",0,INDEX('Salary Range'!$C$3:$C$100,MATCH(CN53,'Salary Range'!$A$3:$A$100,0))*AM53) -> 0 | CO54: =IF(CO53=" ",0,INDEX('Salary Range'!$C$3:$C$100,MATCH(CO53,'Salary Range'!$A$3:$A$100,0))*AN53) -> 0 | CP54: =IF(CP53=" ",0,INDEX('Salary Range'!$C$3:$C$100,MATCH(CP53,'Salary Range'!$A$3:$A$100,0))*AO53) -> 0 | CQ54: =IF(CQ53=" ",0,INDEX('Salary Range'!$C$3:$C$100,MATCH(CQ53,'Salary Range'!$A$3:$A$100,0))*AP53) -> 0 | CR54: =IF(CR53=" ",0,INDEX('Salary Range'!$C$3:$C$100,MATCH(CR53,'Salary Range'!$A$3:$A$100,0))*AQ53) -> 0 | CS54: =IF(CS53=" ",0,INDEX('Salary Range'!$C$3:$C$100,MATCH(CS53,'Salary Range'!$A$3:$A$100,0))*AR53) -> 0 | CT54: =IF(CT53=" ",0,INDEX('Salary Range'!$C$3:$C$100,MATCH(CT53,'Salary Range'!$A$3:$A$100,0))*AD53) -> 0 | CU54: =IF(CU53=" ",0,INDEX('Salary Range'!$C$3:$C$100,MATCH(CU53,'Salary Range'!$A$3:$A$100,0))*AE53) -> 0 | CV54: =IF(CV53=" ",0,INDEX('Salary Range'!$C$3:$C$100,MATCH(CV53,'Salary Range'!$A$3:$A$100,0))*AF53) -> 0 | CW54: =IF(CW53=" ",0,INDEX('Salary Range'!$C$3:$C$100,MATCH(CW53,'Salary Range'!$A$3:$A$100,0))*AG53) -> 0 | CX54: =IF(CX53=" ",0,INDEX('Salary Range'!$C$3:$C$100,MATCH(CX53,'Salary Range'!$A$3:$A$100,0))*AH53) -> 0 | CY54: =IF(CY53=" ",0,INDEX('Salary Range'!$C$3:$C$100,MATCH(CY53,'Salary Range'!$A$3:$A$100,0))*AI53) -> 0 | CZ54: =IF(CZ53=" ",0,INDEX('Salary Range'!$C$3:$C$100,MATCH(CZ53,'Salary Range'!$A$3:$A$100,0))*AH53) -> 0
A55: =IFERROR(IF(+'LPA Estimate of Hours'!A57<>0,'LPA Estimate of Hours'!A57),"Row Deleted") -> Coordination | B55: =IFERROR(IF(+'LPA Estimate of Hours'!B57=0,"",+'LPA Estimate of Hours'!B57),) ->  | C55: =IFERROR(IF(+'LPA Estimate of Hours'!C57=0,"",+'LPA Estimate of Hours'!C57),) ->  | D55: =IFERROR(IF(+'LPA Estimate of Hours'!D57=0,"",+'LPA Estimate of Hours'!D57),) ->  | E55: =IFERROR(IF(+'LPA Estimate of Hours'!E57=0,"",+'LPA Estimate of Hours'!E57),) ->  | F55: =IFERROR(IF(+'LPA Estimate of Hours'!F57=0,"",+'LPA Estimate of Hours'!F57),) ->  | G55: =IFERROR(IF(+'LPA Estimate of Hours'!G57=0,"",+'LPA Estimate of Hours'!G57),) ->  | H55: =IFERROR(IF(+'LPA Estimate of Hours'!H57=0,"",+'LPA Estimate of Hours'!H57),) ->  | I55: =IFERROR(IF(+'LPA Estimate of Hours'!I57=0,"",+'LPA Estimate of Hours'!I57),) ->  | J55: =IFERROR(IF(+'LPA Estimate of Hours'!J57=0,"",+'LPA Estimate of Hours'!J57),) ->  | K55: =IFERROR(IF(+'LPA Estimate of Hours'!K57=0,"",+'LPA Estimate of Hours'!K57),) ->  | L55: =IFERROR(IF(+'LPA Estimate of Hours'!L57=0,"",+'LPA Estimate of Hours'!L57),) ->  | M55: =IFERROR(IF(+'LPA Estimate of Hours'!M57=0,"",+'LPA Estimate of Hours'!M57),) ->  | N55: =IFERROR(IF(+'LPA Estimate of Hours'!N57=0,"",+'LPA Estimate of Hours'!N57),) ->  | O55: =IFERROR(IF(+'LPA Estimate of Hours'!O57=0,"",+'LPA Estimate of Hours'!O57),) ->  | P55: =IFERROR(IF(+'LPA Estimate of Hours'!P57=0,"",+'LPA Estimate of Hours'!P57),) ->  | Q55: =IFERROR(IF(+'LPA Estimate of Hours'!Q57=0,"",+'LPA Estimate of Hours'!Q57),) ->  | R55: =IFERROR(IF(+'LPA Estimate of Hours'!R57=0,"",+'LPA Estimate of Hours'!R57),) ->  | S55: =IFERROR(IF(+'LPA Estimate of Hours'!S57=0,"",+'LPA Estimate of Hours'!S57),) ->  | T55: =IFERROR(IF(+'LPA Estimate of Hours'!T57=0,"",+'LPA Estimate of Hours'!T57),) ->  | U55: =IFERROR(IF(+'LPA Estimate of Hours'!U57=0,"",+'LPA Estimate of Hours'!U57),) ->  | V55: =IFERROR(IF(+'LPA Estimate of Hours'!V57=0,"",+'LPA Estimate of Hours'!V57),) ->  | W55: =IFERROR(IF(+'LPA Estimate of Hours'!W57=0,"",+'LPA Estimate of Hours'!W57),) ->  | X55: =IFERROR(IF(+'LPA Estimate of Hours'!X57=0,"",+'LPA Estimate of Hours'!X57),) ->  | Y55: =IFERROR(IF(+'LPA Estimate of Hours'!Y57=0,"",+'LPA Estimate of Hours'!Y57),) ->  | Z55: =IFERROR(IF(+'LPA Estimate of Hours'!Z57=0,"",+'LPA Estimate of Hours'!Z57),) ->  | AA55: =IFERROR(IF(+'LPA Estimate of Hours'!AA57=0,"",+'LPA Estimate of Hours'!AA57),) ->  | AB55: =IFERROR(IF(+'LPA Estimate of Hours'!AB57=0,"",+'LPA Estimate of Hours'!AB57),) ->  | AC55: =IFERROR(IF(+'LPA Estimate of Hours'!AC57=0,"",+'LPA Estimate of Hours'!AC57),) ->  | AD55: =IFERROR(IF(+'LPA Estimate of Hours'!AD57=0,"",+'LPA Estimate of Hours'!AD57),) ->  | AE55: =IFERROR(IF(+'LPA Estimate of Hours'!AE57=0,"",+'LPA Estimate of Hours'!AE57),) ->  | AF55: =IFERROR(IF(+'LPA Estimate of Hours'!AF57=0,"",+'LPA Estimate of Hours'!AF57),) ->  | AG55: =IFERROR(IF(+'LPA Estimate of Hours'!AG57=0,"",+'LPA Estimate of Hours'!AG57),) ->  | AH55: =IFERROR(IF(+'LPA Estimate of Hours'!AH57=0,"",+'LPA Estimate of Hours'!AH57),) ->  | AI55: =IFERROR(IF(+'LPA Estimate of Hours'!AI57=0,"",+'LPA Estimate of Hours'!AI57),) ->  | AJ55: =IFERROR(IF(+'LPA Estimate of Hours'!AJ57=0,"",+'LPA Estimate of Hours'!AJ57),) ->  | AK55: =IFERROR(IF(+'LPA Estimate of Hours'!AK57=0,"",+'LPA Estimate of Hours'!AK57),) ->  | AL55: =IFERROR(IF(+'LPA Estimate of Hours'!AL57=0,"",+'LPA Estimate of Hours'!AL57),) ->  | AM55: =IFERROR(IF(+'LPA Estimate of Hours'!AM57=0,"",+'LPA Estimate of Hours'!AM57),) ->  | AN55: =IFERROR(IF(+'LPA Estimate of Hours'!AN57=0,"",+'LPA Estimate of Hours'!AN57),) ->  | AO55: =IFERROR(IF(+'LPA Estimate of Hours'!AO57=0,"",+'LPA Estimate of Hours'!AO57),) ->  | AP55: =IFERROR(IF(+'LPA Estimate of Hours'!AP57=0,"",+'LPA Estimate of Hours'!AP57),) ->  | AQ55: =IFERROR(IF(+'LPA Estimate of Hours'!AQ57=0,"",+'LPA Estimate of Hours'!AQ57),) ->  | AR55: =IFERROR(IF(+'LPA Estimate of Hours'!AR57=0,"",+'LPA Estimate of Hours'!AR57),) ->  | AS55: =IFERROR(IF(+'LPA Estimate of Hours'!AS57=0,"",+'LPA Estimate of Hours'!AS57),) ->  | AT55: =IFERROR(IF(+'LPA Estimate of Hours'!AT57=0,"",+'LPA Estimate of Hours'!AT57),) ->  | AU55: =IFERROR(IF(+'LPA Estimate of Hours'!AU57=0,"",+'LPA Estimate of Hours'!AU57),) ->  | AV55: =IFERROR(IF(+'LPA Estimate of Hours'!AV57=0,"",+'LPA Estimate of Hours'!AV57),) ->  | AW55: =IFERROR(IF(+'LPA Estimate of Hours'!AW57=0,"",+'LPA Estimate of Hours'!AW57),) ->  | AX55: =IFERROR(IF(+'LPA Estimate of Hours'!AX57=0,"",+'LPA Estimate of Hours'!AX57),) ->  | AY55: =IFERROR(IF(+'LPA Estimate of Hours'!AY57=0,"",+'LPA Estimate of Hours'!AY57),) ->  | AZ55: 0
A56: =IFERROR(IF(+'LPA Estimate of Hours'!A58<>0,'LPA Estimate of Hours'!A58),"Row Deleted") -> Data Collection and Review | B56: =IFERROR(IF(+'LPA Estimate of Hours'!B58=0,"",+'LPA Estimate of Hours'!B58),) ->  | C56: =IFERROR(IF(+'LPA Estimate of Hours'!C58=0,"",+'LPA Estimate of Hours'!C58),) ->  | D56: =IFERROR(IF(+'LPA Estimate of Hours'!D58=0,"",+'LPA Estimate of Hours'!D58),) ->  | E56: =IFERROR(IF(+'LPA Estimate of Hours'!E58=0,"",+'LPA Estimate of Hours'!E58),) ->  | F56: =IFERROR(IF(+'LPA Estimate of Hours'!F58=0,"",+'LPA Estimate of Hours'!F58),) ->  | G56: =IFERROR(IF(+'LPA Estimate of Hours'!G58=0,"",+'LPA Estimate of Hours'!G58),) ->  | H56: =IFERROR(IF(+'LPA Estimate of Hours'!H58=0,"",+'LPA Estimate of Hours'!H58),) ->  | I56: =IFERROR(IF(+'LPA Estimate of Hours'!I58=0,"",+'LPA Estimate of Hours'!I58),) ->  | J56: =IFERROR(IF(+'LPA Estimate of Hours'!J58=0,"",+'LPA Estimate of Hours'!J58),) ->  | K56: =IFERROR(IF(+'LPA Estimate of Hours'!K58=0,"",+'LPA Estimate of Hours'!K58),) ->  | L56: =IFERROR(IF(+'LPA Estimate of Hours'!L58=0,"",+'LPA Estimate of Hours'!L58),) ->  | M56: =IFERROR(IF(+'LPA Estimate of Hours'!M58=0,"",+'LPA Estimate of Hours'!M58),) ->  | N56: =IFERROR(IF(+'LPA Estimate of Hours'!N58=0,"",+'LPA Estimate of Hours'!N58),) ->  | O56: =IFERROR(IF(+'LPA Estimate of Hours'!O58=0,"",+'LPA Estimate of Hours'!O58),) ->  | P56: =IFERROR(IF(+'LPA Estimate of Hours'!P58=0,"",+'LPA Estimate of Hours'!P58),) ->  | Q56: =IFERROR(IF(+'LPA Estimate of Hours'!Q58=0,"",+'LPA Estimate of Hours'!Q58),) ->  | R56: =IFERROR(IF(+'LPA Estimate of Hours'!R58=0,"",+'LPA Estimate of Hours'!R58),) ->  | S56: =IFERROR(IF(+'LPA Estimate of Hours'!S58=0,"",+'LPA Estimate of Hours'!S58),) ->  | T56: =IFERROR(IF(+'LPA Estimate of Hours'!T58=0,"",+'LPA Estimate of Hours'!T58),) ->  | U56: =IFERROR(IF(+'LPA Estimate of Hours'!U58=0,"",+'LPA Estimate of Hours'!U58),) ->  | V56: =IFERROR(IF(+'LPA Estimate of Hours'!V58=0,"",+'LPA Estimate of Hours'!V58),) ->  | W56: =IFERROR(IF(+'LPA Estimate of Hours'!W58=0,"",+'LPA Estimate of Hours'!W58),) ->  | X56: =IFERROR(IF(+'LPA Estimate of Hours'!X58=0,"",+'LPA Estimate of Hours'!X58),) ->  | Y56: =IFERROR(IF(+'LPA Estimate of Hours'!Y58=0,"",+'LPA Estimate of Hours'!Y58),) ->  | Z56: =IFERROR(IF(+'LPA Estimate of Hours'!Z58=0,"",+'LPA Estimate of Hours'!Z58),) ->  | AA56: =IFERROR(IF(+'LPA Estimate of Hours'!AA58=0,"",+'LPA Estimate of Hours'!AA58),) ->  | AB56: =IFERROR(IF(+'LPA Estimate of Hours'!AB58=0,"",+'LPA Estimate of Hours'!AB58),) ->  | AC56: =IFERROR(IF(+'LPA Estimate of Hours'!AC58=0,"",+'LPA Estimate of Hours'!AC58),) ->  | AD56: =IFERROR(IF(+'LPA Estimate of Hours'!AD58=0,"",+'LPA Estimate of Hours'!AD58),) ->  | AE56: =IFERROR(IF(+'LPA Estimate of Hours'!AE58=0,"",+'LPA Estimate of Hours'!AE58),) ->  | AF56: =IFERROR(IF(+'LPA Estimate of Hours'!AF58=0,"",+'LPA Estimate of Hours'!AF58),) ->  | AG56: =IFERROR(IF(+'LPA Estimate of Hours'!AG58=0,"",+'LPA Estimate of Hours'!AG58),) ->  | AH56: =IFERROR(IF(+'LPA Estimate of Hours'!AH58=0,"",+'LPA Estimate of Hours'!AH58),) ->  | AI56: =IFERROR(IF(+'LPA Estimate of Hours'!AI58=0,"",+'LPA Estimate of Hours'!AI58),) ->  | AJ56: =IFERROR(IF(+'LPA Estimate of Hours'!AJ58=0,"",+'LPA Estimate of Hours'!AJ58),) ->  | AK56: =IFERROR(IF(+'LPA Estimate of Hours'!AK58=0,"",+'LPA Estimate of Hours'!AK58),) ->  | AL56: =IFERROR(IF(+'LPA Estimate of Hours'!AL58=0,"",+'LPA Estimate of Hours'!AL58),) ->  | AM56: =IFERROR(IF(+'LPA Estimate of Hours'!AM58=0,"",+'LPA Estimate of Hours'!AM58),) ->  | AN56: =IFERROR(IF(+'LPA Estimate of Hours'!AN58=0,"",+'LPA Estimate of Hours'!AN58),) ->  | AO56: =IFERROR(IF(+'LPA Estimate of Hours'!AO58=0,"",+'LPA Estimate of Hours'!AO58),) ->  | AP56: =IFERROR(IF(+'LPA Estimate of Hours'!AP58=0,"",+'LPA Estimate of Hours'!AP58),) ->  | AQ56: =IFERROR(IF(+'LPA Estimate of Hours'!AQ58=0,"",+'LPA Estimate of Hours'!AQ58),) ->  | AR56: =IFERROR(IF(+'LPA Estimate of Hours'!AR58=0,"",+'LPA Estimate of Hours'!AR58),) ->  | AS56: =IFERROR(IF(+'LPA Estimate of Hours'!AS58=0,"",+'LPA Estimate of Hours'!AS58),) ->  | AT56: =IFERROR(IF(+'LPA Estimate of Hours'!AT58=0,"",+'LPA Estimate of Hours'!AT58),) ->  | AU56: =IFERROR(IF(+'LPA Estimate of Hours'!AU58=0,"",+'LPA Estimate of Hours'!AU58),) ->  | AV56: =IFERROR(IF(+'LPA Estimate of Hours'!AV58=0,"",+'LPA Estimate of Hours'!AV58),) ->  | AW56: =IFERROR(IF(+'LPA Estimate of Hours'!AW58=0,"",+'LPA Estimate of Hours'!AW58),) ->  | AX56: =IFERROR(IF(+'LPA Estimate of Hours'!AX58=0,"",+'LPA Estimate of Hours'!AX58),) ->  | AY56: =IFERROR(IF(+'LPA Estimate of Hours'!AY58=0,"",+'LPA Estimate of Hours'!AY58),) ->  | AZ56: 0
A57: =IFERROR(IF(+'LPA Estimate of Hours'!A59<>0,'LPA Estimate of Hours'!A59),"Row Deleted") -> Drafting | B57: =IFERROR(IF(+'LPA Estimate of Hours'!B59=0,"",+'LPA Estimate of Hours'!B59),) ->  | C57: =IFERROR(IF(+'LPA Estimate of Hours'!C59=0,"",+'LPA Estimate of Hours'!C59),) ->  | D57: =IFERROR(IF(+'LPA Estimate of Hours'!D59=0,"",+'LPA Estimate of Hours'!D59),) ->  | E57: =IFERROR(IF(+'LPA Estimate of Hours'!E59=0,"",+'LPA Estimate of Hours'!E59),) ->  | F57: =IFERROR(IF(+'LPA Estimate of Hours'!F59=0,"",+'LPA Estimate of Hours'!F59),) ->  | G57: =IFERROR(IF(+'LPA Estimate of Hours'!G59=0,"",+'LPA Estimate of Hours'!G59),) ->  | H57: =IFERROR(IF(+'LPA Estimate of Hours'!H59=0,"",+'LPA Estimate of Hours'!H59),) ->  | I57: =IFERROR(IF(+'LPA Estimate of Hours'!I59=0,"",+'LPA Estimate of Hours'!I59),) ->  | J57: =IFERROR(IF(+'LPA Estimate of Hours'!J59=0,"",+'LPA Estimate of Hours'!J59),) ->  | K57: =IFERROR(IF(+'LPA Estimate of Hours'!K59=0,"",+'LPA Estimate of Hours'!K59),) ->  | L57: =IFERROR(IF(+'LPA Estimate of Hours'!L59=0,"",+'LPA Estimate of Hours'!L59),) ->  | M57: =IFERROR(IF(+'LPA Estimate of Hours'!M59=0,"",+'LPA Estimate of Hours'!M59),) ->  | N57: =IFERROR(IF(+'LPA Estimate of Hours'!N59=0,"",+'LPA Estimate of Hours'!N59),) ->  | O57: =IFERROR(IF(+'LPA Estimate of Hours'!O59=0,"",+'LPA Estimate of Hours'!O59),) ->  | P57: =IFERROR(IF(+'LPA Estimate of Hours'!P59=0,"",+'LPA Estimate of Hours'!P59),) ->  | Q57: =IFERROR(IF(+'LPA Estimate of Hours'!Q59=0,"",+'LPA Estimate of Hours'!Q59),) ->  | R57: =IFERROR(IF(+'LPA Estimate of Hours'!R59=0,"",+'LPA Estimate of Hours'!R59),) ->  | S57: =IFERROR(IF(+'LPA Estimate of Hours'!S59=0,"",+'LPA Estimate of Hours'!S59),) ->  | T57: =IFERROR(IF(+'LPA Estimate of Hours'!T59=0,"",+'LPA Estimate of Hours'!T59),) ->  | U57: =IFERROR(IF(+'LPA Estimate of Hours'!U59=0,"",+'LPA Estimate of Hours'!U59),) ->  | V57: =IFERROR(IF(+'LPA Estimate of Hours'!V59=0,"",+'LPA Estimate of Hours'!V59),) ->  | W57: =IFERROR(IF(+'LPA Estimate of Hours'!W59=0,"",+'LPA Estimate of Hours'!W59),) ->  | X57: =IFERROR(IF(+'LPA Estimate of Hours'!X59=0,"",+'LPA Estimate of Hours'!X59),) ->  | Y57: =IFERROR(IF(+'LPA Estimate of Hours'!Y59=0,"",+'LPA Estimate of Hours'!Y59),) ->  | Z57: =IFERROR(IF(+'LPA Estimate of Hours'!Z59=0,"",+'LPA Estimate of Hours'!Z59),) ->  | AA57: =IFERROR(IF(+'LPA Estimate of Hours'!AA59=0,"",+'LPA Estimate of Hours'!AA59),) ->  | AB57: =IFERROR(IF(+'LPA Estimate of Hours'!AB59=0,"",+'LPA Estimate of Hours'!AB59),) ->  | AC57: =IFERROR(IF(+'LPA Estimate of Hours'!AC59=0,"",+'LPA Estimate of Hours'!AC59),) ->  | AD57: =IFERROR(IF(+'LPA Estimate of Hours'!AD59=0,"",+'LPA Estimate of Hours'!AD59),) ->  | AE57: =IFERROR(IF(+'LPA Estimate of Hours'!AE59=0,"",+'LPA Estimate of Hours'!AE59),) ->  | AF57: =IFERROR(IF(+'LPA Estimate of Hours'!AF59=0,"",+'LPA Estimate of Hours'!AF59),) ->  | AG57: =IFERROR(IF(+'LPA Estimate of Hours'!AG59=0,"",+'LPA Estimate of Hours'!AG59),) ->  | AH57: =IFERROR(IF(+'LPA Estimate of Hours'!AH59=0,"",+'LPA Estimate of Hours'!AH59),) ->  | AI57: =IFERROR(IF(+'LPA Estimate of Hours'!AI59=0,"",+'LPA Estimate of Hours'!AI59),) ->  | AJ57: =IFERROR(IF(+'LPA Estimate of Hours'!AJ59=0,"",+'LPA Estimate of Hours'!AJ59),) ->  | AK57: =IFERROR(IF(+'LPA Estimate of Hours'!AK59=0,"",+'LPA Estimate of Hours'!AK59),) ->  | AL57: =IFERROR(IF(+'LPA Estimate of Hours'!AL59=0,"",+'LPA Estimate of Hours'!AL59),) ->  | AM57: =IFERROR(IF(+'LPA Estimate of Hours'!AM59=0,"",+'LPA Estimate of Hours'!AM59),) ->  | AN57: =IFERROR(IF(+'LPA Estimate of Hours'!AN59=0,"",+'LPA Estimate of Hours'!AN59),) ->  | AO57: =IFERROR(IF(+'LPA Estimate of Hours'!AO59=0,"",+'LPA Estimate of Hours'!AO59),) ->  | AP57: =IFERROR(IF(+'LPA Estimate of Hours'!AP59=0,"",+'LPA Estimate of Hours'!AP59),) ->  | AQ57: =IFERROR(IF(+'LPA Estimate of Hours'!AQ59=0,"",+'LPA Estimate of Hours'!AQ59),) ->  | AR57: =IFERROR(IF(+'LPA Estimate of Hours'!AR59=0,"",+'LPA Estimate of Hours'!AR59),) ->  | AS57: =IFERROR(IF(+'LPA Estimate of Hours'!AS59=0,"",+'LPA Estimate of Hours'!AS59),) ->  | AT57: =IFERROR(IF(+'LPA Estimate of Hours'!AT59=0,"",+'LPA Estimate of Hours'!AT59),) ->  | AU57: =IFERROR(IF(+'LPA Estimate of Hours'!AU59=0,"",+'LPA Estimate of Hours'!AU59),) ->  | AV57: =IFERROR(IF(+'LPA Estimate of Hours'!AV59=0,"",+'LPA Estimate of Hours'!AV59),) ->  | AW57: =IFERROR(IF(+'LPA Estimate of Hours'!AW59=0,"",+'LPA Estimate of Hours'!AW59),) ->  | AX57: =IFERROR(IF(+'LPA Estimate of Hours'!AX59=0,"",+'LPA Estimate of Hours'!AX59),) ->  | AY57: =IFERROR(IF(+'LPA Estimate of Hours'!AY59=0,"",+'LPA Estimate of Hours'!AY59),) ->  | AZ57: 0
A58: =IFERROR(IF(+'LPA Estimate of Hours'!A60<>0,'LPA Estimate of Hours'!A60),"Row Deleted") -> Drainage Design | B58: =IFERROR(IF(+'LPA Estimate of Hours'!B60=0,"",+'LPA Estimate of Hours'!B60),) ->  | C58: =IFERROR(IF(+'LPA Estimate of Hours'!C60=0,"",+'LPA Estimate of Hours'!C60),) ->  | D58: =IFERROR(IF(+'LPA Estimate of Hours'!D60=0,"",+'LPA Estimate of Hours'!D60),) ->  | E58: =IFERROR(IF(+'LPA Estimate of Hours'!E60=0,"",+'LPA Estimate of Hours'!E60),) ->  | F58: =IFERROR(IF(+'LPA Estimate of Hours'!F60=0,"",+'LPA Estimate of Hours'!F60),) ->  | G58: =IFERROR(IF(+'LPA Estimate of Hours'!G60=0,"",+'LPA Estimate of Hours'!G60),) ->  | H58: =IFERROR(IF(+'LPA Estimate of Hours'!H60=0,"",+'LPA Estimate of Hours'!H60),) ->  | I58: =IFERROR(IF(+'LPA Estimate of Hours'!I60=0,"",+'LPA Estimate of Hours'!I60),) ->  | J58: =IFERROR(IF(+'LPA Estimate of Hours'!J60=0,"",+'LPA Estimate of Hours'!J60),) ->  | K58: =IFERROR(IF(+'LPA Estimate of Hours'!K60=0,"",+'LPA Estimate of Hours'!K60),) ->  | L58: =IFERROR(IF(+'LPA Estimate of Hours'!L60=0,"",+'LPA Estimate of Hours'!L60),) ->  | M58: =IFERROR(IF(+'LPA Estimate of Hours'!M60=0,"",+'LPA Estimate of Hours'!M60),) ->  | N58: =IFERROR(IF(+'LPA Estimate of Hours'!N60=0,"",+'LPA Estimate of Hours'!N60),) ->  | O58: =IFERROR(IF(+'LPA Estimate of Hours'!O60=0,"",+'LPA Estimate of Hours'!O60),) ->  | P58: =IFERROR(IF(+'LPA Estimate of Hours'!P60=0,"",+'LPA Estimate of Hours'!P60),) ->  | Q58: =IFERROR(IF(+'LPA Estimate of Hours'!Q60=0,"",+'LPA Estimate of Hours'!Q60),) ->  | R58: =IFERROR(IF(+'LPA Estimate of Hours'!R60=0,"",+'LPA Estimate of Hours'!R60),) ->  | S58: =IFERROR(IF(+'LPA Estimate of Hours'!S60=0,"",+'LPA Estimate of Hours'!S60),) ->  | T58: =IFERROR(IF(+'LPA Estimate of Hours'!T60=0,"",+'LPA Estimate of Hours'!T60),) ->  | U58: =IFERROR(IF(+'LPA Estimate of Hours'!U60=0,"",+'LPA Estimate of Hours'!U60),) ->  | V58: =IFERROR(IF(+'LPA Estimate of Hours'!V60=0,"",+'LPA Estimate of Hours'!V60),) ->  | W58: =IFERROR(IF(+'LPA Estimate of Hours'!W60=0,"",+'LPA Estimate of Hours'!W60),) ->  | X58: =IFERROR(IF(+'LPA Estimate of Hours'!X60=0,"",+'LPA Estimate of Hours'!X60),) ->  | Y58: =IFERROR(IF(+'LPA Estimate of Hours'!Y60=0,"",+'LPA Estimate of Hours'!Y60),) ->  | Z58: =IFERROR(IF(+'LPA Estimate of Hours'!Z60=0,"",+'LPA Estimate of Hours'!Z60),) ->  | AA58: =IFERROR(IF(+'LPA Estimate of Hours'!AA60=0,"",+'LPA Estimate of Hours'!AA60),) ->  | AB58: =IFERROR(IF(+'LPA Estimate of Hours'!AB60=0,"",+'LPA Estimate of Hours'!AB60),) ->  | AC58: =IFERROR(IF(+'LPA Estimate of Hours'!AC60=0,"",+'LPA Estimate of Hours'!AC60),) ->  | AD58: =IFERROR(IF(+'LPA Estimate of Hours'!AD60=0,"",+'LPA Estimate of Hours'!AD60),) ->  | AE58: =IFERROR(IF(+'LPA Estimate of Hours'!AE60=0,"",+'LPA Estimate of Hours'!AE60),) ->  | AF58: =IFERROR(IF(+'LPA Estimate of Hours'!AF60=0,"",+'LPA Estimate of Hours'!AF60),) ->  | AG58: =IFERROR(IF(+'LPA Estimate of Hours'!AG60=0,"",+'LPA Estimate of Hours'!AG60),) ->  | AH58: =IFERROR(IF(+'LPA Estimate of Hours'!AH60=0,"",+'LPA Estimate of Hours'!AH60),) ->  | AI58: =IFERROR(IF(+'LPA Estimate of Hours'!AI60=0,"",+'LPA Estimate of Hours'!AI60),) ->  | AJ58: =IFERROR(IF(+'LPA Estimate of Hours'!AJ60=0,"",+'LPA Estimate of Hours'!AJ60),) ->  | AK58: =IFERROR(IF(+'LPA Estimate of Hours'!AK60=0,"",+'LPA Estimate of Hours'!AK60),) ->  | AL58: =IFERROR(IF(+'LPA Estimate of Hours'!AL60=0,"",+'LPA Estimate of Hours'!AL60),) ->  | AM58: =IFERROR(IF(+'LPA Estimate of Hours'!AM60=0,"",+'LPA Estimate of Hours'!AM60),) ->  | AN58: =IFERROR(IF(+'LPA Estimate of Hours'!AN60=0,"",+'LPA Estimate of Hours'!AN60),) ->  | AO58: =IFERROR(IF(+'LPA Estimate of Hours'!AO60=0,"",+'LPA Estimate of Hours'!AO60),) ->  | AP58: =IFERROR(IF(+'LPA Estimate of Hours'!AP60=0,"",+'LPA Estimate of Hours'!AP60),) ->  | AQ58: =IFERROR(IF(+'LPA Estimate of Hours'!AQ60=0,"",+'LPA Estimate of Hours'!AQ60),) ->  | AR58: =IFERROR(IF(+'LPA Estimate of Hours'!AR60=0,"",+'LPA Estimate of Hours'!AR60),) ->  | AS58: =IFERROR(IF(+'LPA Estimate of Hours'!AS60=0,"",+'LPA Estimate of Hours'!AS60),) ->  | AT58: =IFERROR(IF(+'LPA Estimate of Hours'!AT60=0,"",+'LPA Estimate of Hours'!AT60),) ->  | AU58: =IFERROR(IF(+'LPA Estimate of Hours'!AU60=0,"",+'LPA Estimate of Hours'!AU60),) ->  | AV58: =IFERROR(IF(+'LPA Estimate of Hours'!AV60=0,"",+'LPA Estimate of Hours'!AV60),) ->  | AW58: =IFERROR(IF(+'LPA Estimate of Hours'!AW60=0,"",+'LPA Estimate of Hours'!AW60),) ->  | AX58: =IFERROR(IF(+'LPA Estimate of Hours'!AX60=0,"",+'LPA Estimate of Hours'!AX60),) ->  | AY58: =IFERROR(IF(+'LPA Estimate of Hours'!AY60=0,"",+'LPA Estimate of Hours'!AY60),) ->  | AZ58: 0
A59: =IFERROR(IF(+'LPA Estimate of Hours'!A61<>0,'LPA Estimate of Hours'!A61),"Row Deleted") -> Field review | B59: =IFERROR(IF(+'LPA Estimate of Hours'!B61=0,"",+'LPA Estimate of Hours'!B61),) ->  | C59: =IFERROR(IF(+'LPA Estimate of Hours'!C61=0,"",+'LPA Estimate of Hours'!C61),) ->  | D59: =IFERROR(IF(+'LPA Estimate of Hours'!D61=0,"",+'LPA Estimate of Hours'!D61),) ->  | E59: =IFERROR(IF(+'LPA Estimate of Hours'!E61=0,"",+'LPA Estimate of Hours'!E61),) ->  | F59: =IFERROR(IF(+'LPA Estimate of Hours'!F61=0,"",+'LPA Estimate of Hours'!F61),) ->  | G59: =IFERROR(IF(+'LPA Estimate of Hours'!G61=0,"",+'LPA Estimate of Hours'!G61),) ->  | H59: =IFERROR(IF(+'LPA Estimate of Hours'!H61=0,"",+'LPA Estimate of Hours'!H61),) ->  | I59: =IFERROR(IF(+'LPA Estimate of Hours'!I61=0,"",+'LPA Estimate of Hours'!I61),) ->  | J59: =IFERROR(IF(+'LPA Estimate of Hours'!J61=0,"",+'LPA Estimate of Hours'!J61),) ->  | K59: =IFERROR(IF(+'LPA Estimate of Hours'!K61=0,"",+'LPA Estimate of Hours'!K61),) ->  | L59: =IFERROR(IF(+'LPA Estimate of Hours'!L61=0,"",+'LPA Estimate of Hours'!L61),) ->  | M59: =IFERROR(IF(+'LPA Estimate of Hours'!M61=0,"",+'LPA Estimate of Hours'!M61),) ->  | N59: =IFERROR(IF(+'LPA Estimate of Hours'!N61=0,"",+'LPA Estimate of Hours'!N61),) ->  | O59: =IFERROR(IF(+'LPA Estimate of Hours'!O61=0,"",+'LPA Estimate of Hours'!O61),) ->  | P59: =IFERROR(IF(+'LPA Estimate of Hours'!P61=0,"",+'LPA Estimate of Hours'!P61),) ->  | Q59: =IFERROR(IF(+'LPA Estimate of Hours'!Q61=0,"",+'LPA Estimate of Hours'!Q61),) ->  | R59: =IFERROR(IF(+'LPA Estimate of Hours'!R61=0,"",+'LPA Estimate of Hours'!R61),) ->  | S59: =IFERROR(IF(+'LPA Estimate of Hours'!S61=0,"",+'LPA Estimate of Hours'!S61),) ->  | T59: =IFERROR(IF(+'LPA Estimate of Hours'!T61=0,"",+'LPA Estimate of Hours'!T61),) ->  | U59: =IFERROR(IF(+'LPA Estimate of Hours'!U61=0,"",+'LPA Estimate of Hours'!U61),) ->  | V59: =IFERROR(IF(+'LPA Estimate of Hours'!V61=0,"",+'LPA Estimate of Hours'!V61),) ->  | W59: =IFERROR(IF(+'LPA Estimate of Hours'!W61=0,"",+'LPA Estimate of Hours'!W61),) ->  | X59: =IFERROR(IF(+'LPA Estimate of Hours'!X61=0,"",+'LPA Estimate of Hours'!X61),) ->  | Y59: =IFERROR(IF(+'LPA Estimate of Hours'!Y61=0,"",+'LPA Estimate of Hours'!Y61),) ->  | Z59: =IFERROR(IF(+'LPA Estimate of Hours'!Z61=0,"",+'LPA Estimate of Hours'!Z61),) ->  | AA59: =IFERROR(IF(+'LPA Estimate of Hours'!AA61=0,"",+'LPA Estimate of Hours'!AA61),) ->  | AB59: =IFERROR(IF(+'LPA Estimate of Hours'!AB61=0,"",+'LPA Estimate of Hours'!AB61),) ->  | AC59: =IFERROR(IF(+'LPA Estimate of Hours'!AC61=0,"",+'LPA Estimate of Hours'!AC61),) ->  | AD59: =IFERROR(IF(+'LPA Estimate of Hours'!AD61=0,"",+'LPA Estimate of Hours'!AD61),) ->  | AE59: =IFERROR(IF(+'LPA Estimate of Hours'!AE61=0,"",+'LPA Estimate of Hours'!AE61),) ->  | AF59: =IFERROR(IF(+'LPA Estimate of Hours'!AF61=0,"",+'LPA Estimate of Hours'!AF61),) ->  | AG59: =IFERROR(IF(+'LPA Estimate of Hours'!AG61=0,"",+'LPA Estimate of Hours'!AG61),) ->  | AH59: =IFERROR(IF(+'LPA Estimate of Hours'!AH61=0,"",+'LPA Estimate of Hours'!AH61),) ->  | AI59: =IFERROR(IF(+'LPA Estimate of Hours'!AI61=0,"",+'LPA Estimate of Hours'!AI61),) ->  | AJ59: =IFERROR(IF(+'LPA Estimate of Hours'!AJ61=0,"",+'LPA Estimate of Hours'!AJ61),) ->  | AK59: =IFERROR(IF(+'LPA Estimate of Hours'!AK61=0,"",+'LPA Estimate of Hours'!AK61),) ->  | AL59: =IFERROR(IF(+'LPA Estimate of Hours'!AL61=0,"",+'LPA Estimate of Hours'!AL61),) ->  | AM59: =IFERROR(IF(+'LPA Estimate of Hours'!AM61=0,"",+'LPA Estimate of Hours'!AM61),) ->  | AN59: =IFERROR(IF(+'LPA Estimate of Hours'!AN61=0,"",+'LPA Estimate of Hours'!AN61),) ->  | AO59: =IFERROR(IF(+'LPA Estimate of Hours'!AO61=0,"",+'LPA Estimate of Hours'!AO61),) ->  | AP59: =IFERROR(IF(+'LPA Estimate of Hours'!AP61=0,"",+'LPA Estimate of Hours'!AP61),) ->  | AQ59: =IFERROR(IF(+'LPA Estimate of Hours'!AQ61=0,"",+'LPA Estimate of Hours'!AQ61),) ->  | AR59: =IFERROR(IF(+'LPA Estimate of Hours'!AR61=0,"",+'LPA Estimate of Hours'!AR61),) ->  | AS59: =IFERROR(IF(+'LPA Estimate of Hours'!AS61=0,"",+'LPA Estimate of Hours'!AS61),) ->  | AT59: =IFERROR(IF(+'LPA Estimate of Hours'!AT61=0,"",+'LPA Estimate of Hours'!AT61),) ->  | AU59: =IFERROR(IF(+'LPA Estimate of Hours'!AU61=0,"",+'LPA Estimate of Hours'!AU61),) ->  | AV59: =IFERROR(IF(+'LPA Estimate of Hours'!AV61=0,"",+'LPA Estimate of Hours'!AV61),) ->  | AW59: =IFERROR(IF(+'LPA Estimate of Hours'!AW61=0,"",+'LPA Estimate of Hours'!AW61),) ->  | AX59: =IFERROR(IF(+'LPA Estimate of Hours'!AX61=0,"",+'LPA Estimate of Hours'!AX61),) ->  | AY59: =IFERROR(IF(+'LPA Estimate of Hours'!AY61=0,"",+'LPA Estimate of Hours'!AY61),) ->  | AZ59: 0
A60: =IFERROR(IF(+'LPA Estimate of Hours'!A62<>0,'LPA Estimate of Hours'!A62),"Row Deleted") -> Meeting | B60: =IFERROR(IF(+'LPA Estimate of Hours'!B62=0,"",+'LPA Estimate of Hours'!B62),) ->  | C60: =IFERROR(IF(+'LPA Estimate of Hours'!C62=0,"",+'LPA Estimate of Hours'!C62),) ->  | D60: =IFERROR(IF(+'LPA Estimate of Hours'!D62=0,"",+'LPA Estimate of Hours'!D62),) ->  | E60: =IFERROR(IF(+'LPA Estimate of Hours'!E62=0,"",+'LPA Estimate of Hours'!E62),) ->  | F60: =IFERROR(IF(+'LPA Estimate of Hours'!F62=0,"",+'LPA Estimate of Hours'!F62),) ->  | G60: =IFERROR(IF(+'LPA Estimate of Hours'!G62=0,"",+'LPA Estimate of Hours'!G62),) ->  | H60: =IFERROR(IF(+'LPA Estimate of Hours'!H62=0,"",+'LPA Estimate of Hours'!H62),) ->  | I60: =IFERROR(IF(+'LPA Estimate of Hours'!I62=0,"",+'LPA Estimate of Hours'!I62),) ->  | J60: =IFERROR(IF(+'LPA Estimate of Hours'!J62=0,"",+'LPA Estimate of Hours'!J62),) ->  | K60: =IFERROR(IF(+'LPA Estimate of Hours'!K62=0,"",+'LPA Estimate of Hours'!K62),) ->  | L60: =IFERROR(IF(+'LPA Estimate of Hours'!L62=0,"",+'LPA Estimate of Hours'!L62),) ->  | M60: =IFERROR(IF(+'LPA Estimate of Hours'!M62=0,"",+'LPA Estimate of Hours'!M62),) ->  | N60: =IFERROR(IF(+'LPA Estimate of Hours'!N62=0,"",+'LPA Estimate of Hours'!N62),) ->  | O60: =IFERROR(IF(+'LPA Estimate of Hours'!O62=0,"",+'LPA Estimate of Hours'!O62),) ->  | P60: =IFERROR(IF(+'LPA Estimate of Hours'!P62=0,"",+'LPA Estimate of Hours'!P62),) ->  | Q60: =IFERROR(IF(+'LPA Estimate of Hours'!Q62=0,"",+'LPA Estimate of Hours'!Q62),) ->  | R60: =IFERROR(IF(+'LPA Estimate of Hours'!R62=0,"",+'LPA Estimate of Hours'!R62),) ->  | S60: =IFERROR(IF(+'LPA Estimate of Hours'!S62=0,"",+'LPA Estimate of Hours'!S62),) ->  | T60: =IFERROR(IF(+'LPA Estimate of Hours'!T62=0,"",+'LPA Estimate of Hours'!T62),) ->  | U60: =IFERROR(IF(+'LPA Estimate of Hours'!U62=0,"",+'LPA Estimate of Hours'!U62),) ->  | V60: =IFERROR(IF(+'LPA Estimate of Hours'!V62=0,"",+'LPA Estimate of Hours'!V62),) ->  | W60: =IFERROR(IF(+'LPA Estimate of Hours'!W62=0,"",+'LPA Estimate of Hours'!W62),) ->  | X60: =IFERROR(IF(+'LPA Estimate of Hours'!X62=0,"",+'LPA Estimate of Hours'!X62),) ->  | Y60: =IFERROR(IF(+'LPA Estimate of Hours'!Y62=0,"",+'LPA Estimate of Hours'!Y62),) ->  | Z60: =IFERROR(IF(+'LPA Estimate of Hours'!Z62=0,"",+'LPA Estimate of Hours'!Z62),) ->  | AA60: =IFERROR(IF(+'LPA Estimate of Hours'!AA62=0,"",+'LPA Estimate of Hours'!AA62),) ->  | AB60: =IFERROR(IF(+'LPA Estimate of Hours'!AB62=0,"",+'LPA Estimate of Hours'!AB62),) ->  | AC60: =IFERROR(IF(+'LPA Estimate of Hours'!AC62=0,"",+'LPA Estimate of Hours'!AC62),) ->  | AD60: =IFERROR(IF(+'LPA Estimate of Hours'!AD62=0,"",+'LPA Estimate of Hours'!AD62),) ->  | AE60: =IFERROR(IF(+'LPA Estimate of Hours'!AE62=0,"",+'LPA Estimate of Hours'!AE62),) ->  | AF60: =IFERROR(IF(+'LPA Estimate of Hours'!AF62=0,"",+'LPA Estimate of Hours'!AF62),) ->  | AG60: =IFERROR(IF(+'LPA Estimate of Hours'!AG62=0,"",+'LPA Estimate of Hours'!AG62),) ->  | AH60: =IFERROR(IF(+'LPA Estimate of Hours'!AH62=0,"",+'LPA Estimate of Hours'!AH62),) ->  | AI60: =IFERROR(IF(+'LPA Estimate of Hours'!AI62=0,"",+'LPA Estimate of Hours'!AI62),) ->  | AJ60: =IFERROR(IF(+'LPA Estimate of Hours'!AJ62=0,"",+'LPA Estimate of Hours'!AJ62),) ->  | AK60: =IFERROR(IF(+'LPA Estimate of Hours'!AK62=0,"",+'LPA Estimate of Hours'!AK62),) ->  | AL60: =IFERROR(IF(+'LPA Estimate of Hours'!AL62=0,"",+'LPA Estimate of Hours'!AL62),) ->  | AM60: =IFERROR(IF(+'LPA Estimate of Hours'!AM62=0,"",+'LPA Estimate of Hours'!AM62),) ->  | AN60: =IFERROR(IF(+'LPA Estimate of Hours'!AN62=0,"",+'LPA Estimate of Hours'!AN62),) ->  | AO60: =IFERROR(IF(+'LPA Estimate of Hours'!AO62=0,"",+'LPA Estimate of Hours'!AO62),) ->  | AP60: =IFERROR(IF(+'LPA Estimate of Hours'!AP62=0,"",+'LPA Estimate of Hours'!AP62),) ->  | AQ60: =IFERROR(IF(+'LPA Estimate of Hours'!AQ62=0,"",+'LPA Estimate of Hours'!AQ62),) ->  | AR60: =IFERROR(IF(+'LPA Estimate of Hours'!AR62=0,"",+'LPA Estimate of Hours'!AR62),) ->  | AS60: =IFERROR(IF(+'LPA Estimate of Hours'!AS62=0,"",+'LPA Estimate of Hours'!AS62),) ->  | AT60: =IFERROR(IF(+'LPA Estimate of Hours'!AT62=0,"",+'LPA Estimate of Hours'!AT62),) ->  | AU60: =IFERROR(IF(+'LPA Estimate of Hours'!AU62=0,"",+'LPA Estimate of Hours'!AU62),) ->  | AV60: =IFERROR(IF(+'LPA Estimate of Hours'!AV62=0,"",+'LPA Estimate of Hours'!AV62),) ->  | AW60: =IFERROR(IF(+'LPA Estimate of Hours'!AW62=0,"",+'LPA Estimate of Hours'!AW62),) ->  | AX60: =IFERROR(IF(+'LPA Estimate of Hours'!AX62=0,"",+'LPA Estimate of Hours'!AX62),) ->  | AY60: =IFERROR(IF(+'LPA Estimate of Hours'!AY62=0,"",+'LPA Estimate of Hours'!AY62),) ->  | AZ60: 0
A61: =IFERROR(IF(+'LPA Estimate of Hours'!A63<>0,'LPA Estimate of Hours'!A63),"Row Deleted") -> Quantities/Estimates | B61: =IFERROR(IF(+'LPA Estimate of Hours'!B63=0,"",+'LPA Estimate of Hours'!B63),) ->  | C61: =IFERROR(IF(+'LPA Estimate of Hours'!C63=0,"",+'LPA Estimate of Hours'!C63),) ->  | D61: =IFERROR(IF(+'LPA Estimate of Hours'!D63=0,"",+'LPA Estimate of Hours'!D63),) ->  | E61: =IFERROR(IF(+'LPA Estimate of Hours'!E63=0,"",+'LPA Estimate of Hours'!E63),) ->  | F61: =IFERROR(IF(+'LPA Estimate of Hours'!F63=0,"",+'LPA Estimate of Hours'!F63),) ->  | G61: =IFERROR(IF(+'LPA Estimate of Hours'!G63=0,"",+'LPA Estimate of Hours'!G63),) ->  | H61: =IFERROR(IF(+'LPA Estimate of Hours'!H63=0,"",+'LPA Estimate of Hours'!H63),) ->  | I61: =IFERROR(IF(+'LPA Estimate of Hours'!I63=0,"",+'LPA Estimate of Hours'!I63),) ->  | J61: =IFERROR(IF(+'LPA Estimate of Hours'!J63=0,"",+'LPA Estimate of Hours'!J63),) ->  | K61: =IFERROR(IF(+'LPA Estimate of Hours'!K63=0,"",+'LPA Estimate of Hours'!K63),) ->  | L61: =IFERROR(IF(+'LPA Estimate of Hours'!L63=0,"",+'LPA Estimate of Hours'!L63),) ->  | M61: =IFERROR(IF(+'LPA Estimate of Hours'!M63=0,"",+'LPA Estimate of Hours'!M63),) ->  | N61: =IFERROR(IF(+'LPA Estimate of Hours'!N63=0,"",+'LPA Estimate of Hours'!N63),) ->  | O61: =IFERROR(IF(+'LPA Estimate of Hours'!O63=0,"",+'LPA Estimate of Hours'!O63),) ->  | P61: =IFERROR(IF(+'LPA Estimate of Hours'!P63=0,"",+'LPA Estimate of Hours'!P63),) ->  | Q61: =IFERROR(IF(+'LPA Estimate of Hours'!Q63=0,"",+'LPA Estimate of Hours'!Q63),) ->  | R61: =IFERROR(IF(+'LPA Estimate of Hours'!R63=0,"",+'LPA Estimate of Hours'!R63),) ->  | S61: =IFERROR(IF(+'LPA Estimate of Hours'!S63=0,"",+'LPA Estimate of Hours'!S63),) ->  | T61: =IFERROR(IF(+'LPA Estimate of Hours'!T63=0,"",+'LPA Estimate of Hours'!T63),) ->  | U61: =IFERROR(IF(+'LPA Estimate of Hours'!U63=0,"",+'LPA Estimate of Hours'!U63),) ->  | V61: =IFERROR(IF(+'LPA Estimate of Hours'!V63=0,"",+'LPA Estimate of Hours'!V63),) ->  | W61: =IFERROR(IF(+'LPA Estimate of Hours'!W63=0,"",+'LPA Estimate of Hours'!W63),) ->  | X61: =IFERROR(IF(+'LPA Estimate of Hours'!X63=0,"",+'LPA Estimate of Hours'!X63),) ->  | Y61: =IFERROR(IF(+'LPA Estimate of Hours'!Y63=0,"",+'LPA Estimate of Hours'!Y63),) ->  | Z61: =IFERROR(IF(+'LPA Estimate of Hours'!Z63=0,"",+'LPA Estimate of Hours'!Z63),) ->  | AA61: =IFERROR(IF(+'LPA Estimate of Hours'!AA63=0,"",+'LPA Estimate of Hours'!AA63),) ->  | AB61: =IFERROR(IF(+'LPA Estimate of Hours'!AB63=0,"",+'LPA Estimate of Hours'!AB63),) ->  | AC61: =IFERROR(IF(+'LPA Estimate of Hours'!AC63=0,"",+'LPA Estimate of Hours'!AC63),) ->  | AD61: =IFERROR(IF(+'LPA Estimate of Hours'!AD63=0,"",+'LPA Estimate of Hours'!AD63),) ->  | AE61: =IFERROR(IF(+'LPA Estimate of Hours'!AE63=0,"",+'LPA Estimate of Hours'!AE63),) ->  | AF61: =IFERROR(IF(+'LPA Estimate of Hours'!AF63=0,"",+'LPA Estimate of Hours'!AF63),) ->  | AG61: =IFERROR(IF(+'LPA Estimate of Hours'!AG63=0,"",+'LPA Estimate of Hours'!AG63),) ->  | AH61: =IFERROR(IF(+'LPA Estimate of Hours'!AH63=0,"",+'LPA Estimate of Hours'!AH63),) ->  | AI61: =IFERROR(IF(+'LPA Estimate of Hours'!AI63=0,"",+'LPA Estimate of Hours'!AI63),) ->  | AJ61: =IFERROR(IF(+'LPA Estimate of Hours'!AJ63=0,"",+'LPA Estimate of Hours'!AJ63),) ->  | AK61: =IFERROR(IF(+'LPA Estimate of Hours'!AK63=0,"",+'LPA Estimate of Hours'!AK63),) ->  | AL61: =IFERROR(IF(+'LPA Estimate of Hours'!AL63=0,"",+'LPA Estimate of Hours'!AL63),) ->  | AM61: =IFERROR(IF(+'LPA Estimate of Hours'!AM63=0,"",+'LPA Estimate of Hours'!AM63),) ->  | AN61: =IFERROR(IF(+'LPA Estimate of Hours'!AN63=0,"",+'LPA Estimate of Hours'!AN63),) ->  | AO61: =IFERROR(IF(+'LPA Estimate of Hours'!AO63=0,"",+'LPA Estimate of Hours'!AO63),) ->  | AP61: =IFERROR(IF(+'LPA Estimate of Hours'!AP63=0,"",+'LPA Estimate of Hours'!AP63),) ->  | AQ61: =IFERROR(IF(+'LPA Estimate of Hours'!AQ63=0,"",+'LPA Estimate of Hours'!AQ63),) ->  | AR61: =IFERROR(IF(+'LPA Estimate of Hours'!AR63=0,"",+'LPA Estimate of Hours'!AR63),) ->  | AS61: =IFERROR(IF(+'LPA Estimate of Hours'!AS63=0,"",+'LPA Estimate of Hours'!AS63),) ->  | AT61: =IFERROR(IF(+'LPA Estimate of Hours'!AT63=0,"",+'LPA Estimate of Hours'!AT63),) ->  | AU61: =IFERROR(IF(+'LPA Estimate of Hours'!AU63=0,"",+'LPA Estimate of Hours'!AU63),) ->  | AV61: =IFERROR(IF(+'LPA Estimate of Hours'!AV63=0,"",+'LPA Estimate of Hours'!AV63),) ->  | AW61: =IFERROR(IF(+'LPA Estimate of Hours'!AW63=0,"",+'LPA Estimate of Hours'!AW63),) ->  | AX61: =IFERROR(IF(+'LPA Estimate of Hours'!AX63=0,"",+'LPA Estimate of Hours'!AX63),) ->  | AY61: =IFERROR(IF(+'LPA Estimate of Hours'!AY63=0,"",+'LPA Estimate of Hours'!AY63),) ->  | AZ61: 0
A62: =IFERROR(IF(+'LPA Estimate of Hours'!A64<>0,'LPA Estimate of Hours'!A64),"Row Deleted") -> Report | B62: =IFERROR(IF(+'LPA Estimate of Hours'!B64=0,"",+'LPA Estimate of Hours'!B64),) ->  | C62: =IFERROR(IF(+'LPA Estimate of Hours'!C64=0,"",+'LPA Estimate of Hours'!C64),) ->  | D62: =IFERROR(IF(+'LPA Estimate of Hours'!D64=0,"",+'LPA Estimate of Hours'!D64),) ->  | E62: =IFERROR(IF(+'LPA Estimate of Hours'!E64=0,"",+'LPA Estimate of Hours'!E64),) ->  | F62: =IFERROR(IF(+'LPA Estimate of Hours'!F64=0,"",+'LPA Estimate of Hours'!F64),) ->  | G62: =IFERROR(IF(+'LPA Estimate of Hours'!G64=0,"",+'LPA Estimate of Hours'!G64),) ->  | H62: =IFERROR(IF(+'LPA Estimate of Hours'!H64=0,"",+'LPA Estimate of Hours'!H64),) ->  | I62: =IFERROR(IF(+'LPA Estimate of Hours'!I64=0,"",+'LPA Estimate of Hours'!I64),) ->  | J62: =IFERROR(IF(+'LPA Estimate of Hours'!J64=0,"",+'LPA Estimate of Hours'!J64),) ->  | K62: =IFERROR(IF(+'LPA Estimate of Hours'!K64=0,"",+'LPA Estimate of Hours'!K64),) ->  | L62: =IFERROR(IF(+'LPA Estimate of Hours'!L64=0,"",+'LPA Estimate of Hours'!L64),) ->  | M62: =IFERROR(IF(+'LPA Estimate of Hours'!M64=0,"",+'LPA Estimate of Hours'!M64),) ->  | N62: =IFERROR(IF(+'LPA Estimate of Hours'!N64=0,"",+'LPA Estimate of Hours'!N64),) ->  | O62: =IFERROR(IF(+'LPA Estimate of Hours'!O64=0,"",+'LPA Estimate of Hours'!O64),) ->  | P62: =IFERROR(IF(+'LPA Estimate of Hours'!P64=0,"",+'LPA Estimate of Hours'!P64),) ->  | Q62: =IFERROR(IF(+'LPA Estimate of Hours'!Q64=0,"",+'LPA Estimate of Hours'!Q64),) ->  | R62: =IFERROR(IF(+'LPA Estimate of Hours'!R64=0,"",+'LPA Estimate of Hours'!R64),) ->  | S62: =IFERROR(IF(+'LPA Estimate of Hours'!S64=0,"",+'LPA Estimate of Hours'!S64),) ->  | T62: =IFERROR(IF(+'LPA Estimate of Hours'!T64=0,"",+'LPA Estimate of Hours'!T64),) ->  | U62: =IFERROR(IF(+'LPA Estimate of Hours'!U64=0,"",+'LPA Estimate of Hours'!U64),) ->  | V62: =IFERROR(IF(+'LPA Estimate of Hours'!V64=0,"",+'LPA Estimate of Hours'!V64),) ->  | W62: =IFERROR(IF(+'LPA Estimate of Hours'!W64=0,"",+'LPA Estimate of Hours'!W64),) ->  | X62: =IFERROR(IF(+'LPA Estimate of Hours'!X64=0,"",+'LPA Estimate of Hours'!X64),) ->  | Y62: =IFERROR(IF(+'LPA Estimate of Hours'!Y64=0,"",+'LPA Estimate of Hours'!Y64),) ->  | Z62: =IFERROR(IF(+'LPA Estimate of Hours'!Z64=0,"",+'LPA Estimate of Hours'!Z64),) ->  | AA62: =IFERROR(IF(+'LPA Estimate of Hours'!AA64=0,"",+'LPA Estimate of Hours'!AA64),) ->  | AB62: =IFERROR(IF(+'LPA Estimate of Hours'!AB64=0,"",+'LPA Estimate of Hours'!AB64),) ->  | AC62: =IFERROR(IF(+'LPA Estimate of Hours'!AC64=0,"",+'LPA Estimate of Hours'!AC64),) ->  | AD62: =IFERROR(IF(+'LPA Estimate of Hours'!AD64=0,"",+'LPA Estimate of Hours'!AD64),) ->  | AE62: =IFERROR(IF(+'LPA Estimate of Hours'!AE64=0,"",+'LPA Estimate of Hours'!AE64),) ->  | AF62: =IFERROR(IF(+'LPA Estimate of Hours'!AF64=0,"",+'LPA Estimate of Hours'!AF64),) ->  | AG62: =IFERROR(IF(+'LPA Estimate of Hours'!AG64=0,"",+'LPA Estimate of Hours'!AG64),) ->  | AH62: =IFERROR(IF(+'LPA Estimate of Hours'!AH64=0,"",+'LPA Estimate of Hours'!AH64),) ->  | AI62: =IFERROR(IF(+'LPA Estimate of Hours'!AI64=0,"",+'LPA Estimate of Hours'!AI64),) ->  | AJ62: =IFERROR(IF(+'LPA Estimate of Hours'!AJ64=0,"",+'LPA Estimate of Hours'!AJ64),) ->  | AK62: =IFERROR(IF(+'LPA Estimate of Hours'!AK64=0,"",+'LPA Estimate of Hours'!AK64),) ->  | AL62: =IFERROR(IF(+'LPA Estimate of Hours'!AL64=0,"",+'LPA Estimate of Hours'!AL64),) ->  | AM62: =IFERROR(IF(+'LPA Estimate of Hours'!AM64=0,"",+'LPA Estimate of Hours'!AM64),) ->  | AN62: =IFERROR(IF(+'LPA Estimate of Hours'!AN64=0,"",+'LPA Estimate of Hours'!AN64),) ->  | AO62: =IFERROR(IF(+'LPA Estimate of Hours'!AO64=0,"",+'LPA Estimate of Hours'!AO64),) ->  | AP62: =IFERROR(IF(+'LPA Estimate of Hours'!AP64=0,"",+'LPA Estimate of Hours'!AP64),) ->  | AQ62: =IFERROR(IF(+'LPA Estimate of Hours'!AQ64=0,"",+'LPA Estimate of Hours'!AQ64),) ->  | AR62: =IFERROR(IF(+'LPA Estimate of Hours'!AR64=0,"",+'LPA Estimate of Hours'!AR64),) ->  | AS62: =IFERROR(IF(+'LPA Estimate of Hours'!AS64=0,"",+'LPA Estimate of Hours'!AS64),) ->  | AT62: =IFERROR(IF(+'LPA Estimate of Hours'!AT64=0,"",+'LPA Estimate of Hours'!AT64),) ->  | AU62: =IFERROR(IF(+'LPA Estimate of Hours'!AU64=0,"",+'LPA Estimate of Hours'!AU64),) ->  | AV62: =IFERROR(IF(+'LPA Estimate of Hours'!AV64=0,"",+'LPA Estimate of Hours'!AV64),) ->  | AW62: =IFERROR(IF(+'LPA Estimate of Hours'!AW64=0,"",+'LPA Estimate of Hours'!AW64),) ->  | AX62: =IFERROR(IF(+'LPA Estimate of Hours'!AX64=0,"",+'LPA Estimate of Hours'!AX64),) ->  | AY62: =IFERROR(IF(+'LPA Estimate of Hours'!AY64=0,"",+'LPA Estimate of Hours'!AY64),) ->  | AZ62: 0
